Workbook

Sheet Index

Sheet Infographic
B2: Women
B8: Body mass index (BMI, kg/m2)
D10: 1 | E10: 2 | F10: 3 | G10: 4 | H10: 5 | I10: 6 | J10: 7 | K10: 8 | L10: 9 | M10: 10 | O10: 1 | P10: 2 | Q10: 3 | R10: 4 | S10: 5 | T10: 6 | U10: 7 | V10: 8 | W10: 9 | X10: 10 | Z10: 1 | AA10: 2 | AB10: 3 | AC10: 4 | AD10: 5 | AE10: 6 | AF10: 7 | AG10: 8 | AH10: 9 | AI10: 10 | AK10: 1 | AL10: 2 | AM10: 3 | AN10: 4 | AO10: 5 | AP10: 6 | AQ10: 7 | AR10: 8 | AS10: 9 | AT10: 10
D11: 11 | E11: 12 | F11: 13 | G11: 14 | H11: 15 | I11: 16 | J11: 17 | K11: 18 | L11: 19 | M11: 20 | O11: 11 | P11: 12 | Q11: 13 | R11: 14 | S11: 15 | T11: 16 | U11: 17 | V11: 18 | W11: 19 | X11: 20 | Z11: 11 | AA11: 12 | AB11: 13 | AC11: 14 | AD11: 15 | AE11: 16 | AF11: 17 | AG11: 18 | AH11: 19 | AI11: 20 | AK11: 11 | AL11: 12 | AM11: 13 | AN11: 14 | AO11: 15 | AP11: 16 | AQ11: 17 | AR11: 18 | AS11: 19 | AT11: 20
D12: 21 | E12: 22 | F12: 23 | G12: 24 | H12: 25 | I12: 26 | J12: 27 | K12: 28 | L12: 29 | M12: 30 | O12: 21 | P12: 22 | Q12: 23 | R12: 24 | S12: 25 | T12: 26 | U12: 27 | V12: 28 | W12: 29 | X12: 30 | Z12: 21 | AA12: 22 | AB12: 23 | AC12: 24 | AD12: 25 | AE12: 26 | AF12: 27 | AG12: 28 | AH12: 29 | AI12: 30 | AK12: 21 | AL12: 22 | AM12: 23 | AN12: 24 | AO12: 25 | AP12: 26 | AQ12: 27 | AR12: 28 | AS12: 29 | AT12: 30
D13: 31 | E13: 32 | F13: 33 | G13: 34 | H13: 35 | I13: 36 | J13: 37 | K13: 38 | L13: 39 | M13: 40 | O13: 31 | P13: 32 | Q13: 33 | R13: 34 | S13: 35 | T13: 36 | U13: 37 | V13: 38 | W13: 39 | X13: 40 | Z13: 31 | AA13: 32 | AB13: 33 | AC13: 34 | AD13: 35 | AE13: 36 | AF13: 37 | AG13: 38 | AH13: 39 | AI13: 40 | AK13: 31 | AL13: 32 | AM13: 33 | AN13: 34 | AO13: 35 | AP13: 36 | AQ13: 37 | AR13: 38 | AS13: 39 | AT13: 40
D14: 41 | E14: 42 | F14: 43 | G14: 44 | H14: 45 | I14: 46 | J14: 47 | K14: 48 | L14: 49 | M14: 50 | O14: 41 | P14: 42 | Q14: 43 | R14: 44 | S14: 45 | T14: 46 | U14: 47 | V14: 48 | W14: 49 | X14: 50 | Z14: 41 | AA14: 42 | AB14: 43 | AC14: 44 | AD14: 45 | AE14: 46 | AF14: 47 | AG14: 48 | AH14: 49 | AI14: 50 | AK14: 41 | AL14: 42 | AM14: 43 | AN14: 44 | AO14: 45 | AP14: 46 | AQ14: 47 | AR14: 48 | AS14: 49 | AT14: 50
D15: 51 | E15: 52 | F15: 53 | G15: 54 | H15: 55 | I15: 56 | J15: 57 | K15: 58 | L15: 59 | M15: 60 | O15: 51 | P15: 52 | Q15: 53 | R15: 54 | S15: 55 | T15: 56 | U15: 57 | V15: 58 | W15: 59 | X15: 60 | Z15: 51 | AA15: 52 | AB15: 53 | AC15: 54 | AD15: 55 | AE15: 56 | AF15: 57 | AG15: 58 | AH15: 59 | AI15: 60 | AK15: 51 | AL15: 52 | AM15: 53 | AN15: 54 | AO15: 55 | AP15: 56 | AQ15: 57 | AR15: 58 | AS15: 59 | AT15: 60
D16: 61 | E16: 62 | F16: 63 | G16: 64 | H16: 65 | I16: 66 | J16: 67 | K16: 68 | L16: 69 | M16: 70 | O16: 61 | P16: 62 | Q16: 63 | R16: 64 | S16: 65 | T16: 66 | U16: 67 | V16: 68 | W16: 69 | X16: 70 | Z16: 61 | AA16: 62 | AB16: 63 | AC16: 64 | AD16: 65 | AE16: 66 | AF16: 67 | AG16: 68 | AH16: 69 | AI16: 70 | AK16: 61 | AL16: 62 | AM16: 63 | AN16: 64 | AO16: 65 | AP16: 66 | AQ16: 67 | AR16: 68 | AS16: 69 | AT16: 70
D17: 71 | E17: 72 | F17: 73 | G17: 74 | H17: 75 | I17: 76 | J17: 77 | K17: 78 | L17: 79 | M17: 80 | O17: 71 | P17: 72 | Q17: 73 | R17: 74 | S17: 75 | T17: 76 | U17: 77 | V17: 78 | W17: 79 | X17: 80 | Z17: 71 | AA17: 72 | AB17: 73 | AC17: 74 | AD17: 75 | AE17: 76 | AF17: 77 | AG17: 78 | AH17: 79 | AI17: 80 | AK17: 71 | AL17: 72 | AM17: 73 | AN17: 74 | AO17: 75 | AP17: 76 | AQ17: 77 | AR17: 78 | AS17: 79 | AT17: 80
D18: 81 | E18: 82 | F18: 83 | G18: 84 | H18: 85 | I18: 86 | J18: 87 | K18: 88 | L18: 89 | M18: 90 | O18: 81 | P18: 82 | Q18: 83 | R18: 84 | S18: 85 | T18: 86 | U18: 87 | V18: 88 | W18: 89 | X18: 90 | Z18: 81 | AA18: 82 | AB18: 83 | AC18: 84 | AD18: 85 | AE18: 86 | AF18: 87 | AG18: 88 | AH18: 89 | AI18: 90 | AK18: 81 | AL18: 82 | AM18: 83 | AN18: 84 | AO18: 85 | AP18: 86 | AQ18: 87 | AR18: 88 | AS18: 89 | AT18: 90
D19: 91 | E19: 92 | F19: 93 | G19: 94 | H19: 95 | I19: 96 | J19: 97 | K19: 98 | L19: 99 | M19: 100 | O19: 91 | P19: 92 | Q19: 93 | R19: 94 | S19: 95 | T19: 96 | U19: 97 | V19: 98 | W19: 99 | X19: 100 | Z19: 91 | AA19: 92 | AB19: 93 | AC19: 94 | AD19: 95 | AE19: 96 | AF19: 97 | AG19: 98 | AH19: 99 | AI19: 100 | AK19: 91 | AL19: 92 | AM19: 93 | AN19: 94 | AO19: 95 | AP19: 96 | AQ19: 97 | AR19: 98 | AS19: 99 | AT19: 100
D22: Underweight (BMI < 18.5) | O22: Normal range (18.5 ≥ BMI < 25) | Z22: Overweight, but not obese (25 ≥ BMI < 30) | AK22: Obese (BMI ≥ 30)
B24: Overweight BMI categories
D26: 1 | E26: 2 | F26: 3 | G26: 4 | H26: 5 | I26: 6 | J26: 7 | K26: 8 | L26: 9 | M26: 10 | O26: 1 | P26: 2 | Q26: 3 | R26: 4 | S26: 5 | T26: 6 | U26: 7 | V26: 8 | W26: 9 | X26: 10 | Z26: 1 | AA26: 2 | AB26: 3 | AC26: 4 | AD26: 5 | AE26: 6 | AF26: 7 | AG26: 8 | AH26: 9 | AI26: 10 | AK26: 1 | AL26: 2 | AM26: 3 | AN26: 4 | AO26: 5 | AP26: 6 | AQ26: 7 | AR26: 8 | AS26: 9 | AT26: 10
D27: 11 | E27: 12 | F27: 13 | G27: 14 | H27: 15 | I27: 16 | J27: 17 | K27: 18 | L27: 19 | M27: 20 | O27: 11 | P27: 12 | Q27: 13 | R27: 14 | S27: 15 | T27: 16 | U27: 17 | V27: 18 | W27: 19 | X27: 20 | Z27: 11 | AA27: 12 | AB27: 13 | AC27: 14 | AD27: 15 | AE27: 16 | AF27: 17 | AG27: 18 | AH27: 19 | AI27: 20 | AK27: 11 | AL27: 12 | AM27: 13 | AN27: 14 | AO27: 15 | AP27: 16 | AQ27: 17 | AR27: 18 | AS27: 19 | AT27: 20
D28: 21 | E28: 22 | F28: 23 | G28: 24 | H28: 25 | I28: 26 | J28: 27 | K28: 28 | L28: 29 | M28: 30 | O28: 21 | P28: 22 | Q28: 23 | R28: 24 | S28: 25 | T28: 26 | U28: 27 | V28: 28 | W28: 29 | X28: 30 | Z28: 21 | AA28: 22 | AB28: 23 | AC28: 24 | AD28: 25 | AE28: 26 | AF28: 27 | AG28: 28 | AH28: 29 | AI28: 30 | AK28: 21 | AL28: 22 | AM28: 23 | AN28: 24 | AO28: 25 | AP28: 26 | AQ28: 27 | AR28: 28 | AS28: 29 | AT28: 30
D29: 31 | E29: 32 | F29: 33 | G29: 34 | H29: 35 | I29: 36 | J29: 37 | K29: 38 | L29: 39 | M29: 40 | O29: 31 | P29: 32 | Q29: 33 | R29: 34 | S29: 35 | T29: 36 | U29: 37 | V29: 38 | W29: 39 | X29: 40 | Z29: 31 | AA29: 32 | AB29: 33 | AC29: 34 | AD29: 35 | AE29: 36 | AF29: 37 | AG29: 38 | AH29: 39 | AI29: 40 | AK29: 31 | AL29: 32 | AM29: 33 | AN29: 34 | AO29: 35 | AP29: 36 | AQ29: 37 | AR29: 38 | AS29: 39 | AT29: 40
D30: 41 | E30: 42 | F30: 43 | G30: 44 | H30: 45 | I30: 46 | J30: 47 | K30: 48 | L30: 49 | M30: 50 | O30: 41 | P30: 42 | Q30: 43 | R30: 44 | S30: 45 | T30: 46 | U30: 47 | V30: 48 | W30: 49 | X30: 50 | Z30: 41 | AA30: 42 | AB30: 43 | AC30: 44 | AD30: 45 | AE30: 46 | AF30: 47 | AG30: 48 | AH30: 49 | AI30: 50 | AK30: 41 | AL30: 42 | AM30: 43 | AN30: 44 | AO30: 45 | AP30: 46 | AQ30: 47 | AR30: 48 | AS30: 49 | AT30: 50
D31: 51 | E31: 52 | F31: 53 | G31: 54 | H31: 55 | I31: 56 | J31: 57 | K31: 58 | L31: 59 | M31: 60 | O31: 51 | P31: 52 | Q31: 53 | R31: 54 | S31: 55 | T31: 56 | U31: 57 | V31: 58 | W31: 59 | X31: 60 | Z31: 51 | AA31: 52 | AB31: 53 | AC31: 54 | AD31: 55 | AE31: 56 | AF31: 57 | AG31: 58 | AH31: 59 | AI31: 60 | AK31: 51 | AL31: 52 | AM31: 53 | AN31: 54 | AO31: 55 | AP31: 56 | AQ31: 57 | AR31: 58 | AS31: 59 | AT31: 60
D32: 61 | E32: 62 | F32: 63 | G32: 64 | H32: 65 | I32: 66 | J32: 67 | K32: 68 | L32: 69 | M32: 70 | O32: 61 | P32: 62 | Q32: 63 | R32: 64 | S32: 65 | T32: 66 | U32: 67 | V32: 68 | W32: 69 | X32: 70 | Z32: 61 | AA32: 62 | AB32: 63 | AC32: 64 | AD32: 65 | AE32: 66 | AF32: 67 | AG32: 68 | AH32: 69 | AI32: 70 | AK32: 61 | AL32: 62 | AM32: 63 | AN32: 64 | AO32: 65 | AP32: 66 | AQ32: 67 | AR32: 68 | AS32: 69 | AT32: 70
D33: 71 | E33: 72 | F33: 73 | G33: 74 | H33: 75 | I33: 76 | J33: 77 | K33: 78 | L33: 79 | M33: 80 | O33: 71 | P33: 72 | Q33: 73 | R33: 74 | S33: 75 | T33: 76 | U33: 77 | V33: 78 | W33: 79 | X33: 80 | Z33: 71 | AA33: 72 | AB33: 73 | AC33: 74 | AD33: 75 | AE33: 76 | AF33: 77 | AG33: 78 | AH33: 79 | AI33: 80 | AK33: 71 | AL33: 72 | AM33: 73 | AN33: 74 | AO33: 75 | AP33: 76 | AQ33: 77 | AR33: 78 | AS33: 79 | AT33: 80
D34: 81 | E34: 82 | F34: 83 | G34: 84 | H34: 85 | I34: 86 | J34: 87 | K34: 88 | L34: 89 | M34: 90 | O34: 81 | P34: 82 | Q34: 83 | R34: 84 | S34: 85 | T34: 86 | U34: 87 | V34: 88 | W34: 89 | X34: 90 | Z34: 81 | AA34: 82 | AB34: 83 | AC34: 84 | AD34: 85 | AE34: 86 | AF34: 87 | AG34: 88 | AH34: 89 | AI34: 90 | AK34: 81 | AL34: 82 | AM34: 83 | AN34: 84 | AO34: 85 | AP34: 86 | AQ34: 87 | AR34: 88 | AS34: 89 | AT34: 90
D35: 91 | E35: 92 | F35: 93 | G35: 94 | H35: 95 | I35: 96 | J35: 97 | K35: 98 | L35: 99 | M35: 100 | O35: 91 | P35: 92 | Q35: 93 | R35: 94 | S35: 95 | T35: 96 | U35: 97 | V35: 98 | W35: 99 | X35: 100 | Z35: 91 | AA35: 92 | AB35: 93 | AC35: 94 | AD35: 95 | AE35: 96 | AF35: 97 | AG35: 98 | AH35: 99 | AI35: 100 | AK35: 91 | AL35: 92 | AM35: 93 | AN35: 94 | AO35: 95 | AP35: 96 | AQ35: 97 | AR35: 98 | AS35: 99 | AT35: 100
D38: Overweight (BMI ≥ 25) | O38: Obese Class I (30 ≥ BMI < 35) | Z38: Obese Class II (35 ≥ BMI < 40) | AK38: Obese Class III (BMI ≥ 40)
B40: Take-away food or snack consumption
D42: 1 | E42: 2 | F42: 3 | G42: 4 | H42: 5 | I42: 6 | J42: 7 | K42: 8 | L42: 9 | M42: 10 | O42: 1 | P42: 2 | Q42: 3 | R42: 4 | S42: 5 | T42: 6 | U42: 7 | V42: 8 | W42: 9 | X42: 10 | Z42: 1 | AA42: 2 | AB42: 3 | AC42: 4 | AD42: 5 | AE42: 6 | AF42: 7 | AG42: 8 | AH42: 9 | AI42: 10 | AK42: 1 | AL42: 2 | AM42: 3 | AN42: 4 | AO42: 5 | AP42: 6 | AQ42: 7 | AR42: 8 | AS42: 9 | AT42: 10
D43: 11 | E43: 12 | F43: 13 | G43: 14 | H43: 15 | I43: 16 | J43: 17 | K43: 18 | L43: 19 | M43: 20 | O43: 11 | P43: 12 | Q43: 13 | R43: 14 | S43: 15 | T43: 16 | U43: 17 | V43: 18 | W43: 19 | X43: 20 | Z43: 11 | AA43: 12 | AB43: 13 | AC43: 14 | AD43: 15 | AE43: 16 | AF43: 17 | AG43: 18 | AH43: 19 | AI43: 20 | AK43: 11 | AL43: 12 | AM43: 13 | AN43: 14 | AO43: 15 | AP43: 16 | AQ43: 17 | AR43: 18 | AS43: 19 | AT43: 20
D44: 21 | E44: 22 | F44: 23 | G44: 24 | H44: 25 | I44: 26 | J44: 27 | K44: 28 | L44: 29 | M44: 30 | O44: 21 | P44: 22 | Q44: 23 | R44: 24 | S44: 25 | T44: 26 | U44: 27 | V44: 28 | W44: 29 | X44: 30 | Z44: 21 | AA44: 22 | AB44: 23 | AC44: 24 | AD44: 25 | AE44: 26 | AF44: 27 | AG44: 28 | AH44: 29 | AI44: 30 | AK44: 21 | AL44: 22 | AM44: 23 | AN44: 24 | AO44: 25 | AP44: 26 | AQ44: 27 | AR44: 28 | AS44: 29 | AT44: 30
D45: 31 | E45: 32 | F45: 33 | G45: 34 | H45: 35 | I45: 36 | J45: 37 | K45: 38 | L45: 39 | M45: 40 | O45: 31 | P45: 32 | Q45: 33 | R45: 34 | S45: 35 | T45: 36 | U45: 37 | V45: 38 | W45: 39 | X45: 40 | Z45: 31 | AA45: 32 | AB45: 33 | AC45: 34 | AD45: 35 | AE45: 36 | AF45: 37 | AG45: 38 | AH45: 39 | AI45: 40 | AK45: 31 | AL45: 32 | AM45: 33 | AN45: 34 | AO45: 35 | AP45: 36 | AQ45: 37 | AR45: 38 | AS45: 39 | AT45: 40
D46: 41 | E46: 42 | F46: 43 | G46: 44 | H46: 45 | I46: 46 | J46: 47 | K46: 48 | L46: 49 | M46: 50 | O46: 41 | P46: 42 | Q46: 43 | R46: 44 | S46: 45 | T46: 46 | U46: 47 | V46: 48 | W46: 49 | X46: 50 | Z46: 41 | AA46: 42 | AB46: 43 | AC46: 44 | AD46: 45 | AE46: 46 | AF46: 47 | AG46: 48 | AH46: 49 | AI46: 50 | AK46: 41 | AL46: 42 | AM46: 43 | AN46: 44 | AO46: 45 | AP46: 46 | AQ46: 47 | AR46: 48 | AS46: 49 | AT46: 50
D47: 51 | E47: 52 | F47: 53 | G47: 54 | H47: 55 | I47: 56 | J47: 57 | K47: 58 | L47: 59 | M47: 60 | O47: 51 | P47: 52 | Q47: 53 | R47: 54 | S47: 55 | T47: 56 | U47: 57 | V47: 58 | W47: 59 | X47: 60 | Z47: 51 | AA47: 52 | AB47: 53 | AC47: 54 | AD47: 55 | AE47: 56 | AF47: 57 | AG47: 58 | AH47: 59 | AI47: 60 | AK47: 51 | AL47: 52 | AM47: 53 | AN47: 54 | AO47: 55 | AP47: 56 | AQ47: 57 | AR47: 58 | AS47: 59 | AT47: 60
D48: 61 | E48: 62 | F48: 63 | G48: 64 | H48: 65 | I48: 66 | J48: 67 | K48: 68 | L48: 69 | M48: 70 | O48: 61 | P48: 62 | Q48: 63 | R48: 64 | S48: 65 | T48: 66 | U48: 67 | V48: 68 | W48: 69 | X48: 70 | Z48: 61 | AA48: 62 | AB48: 63 | AC48: 64 | AD48: 65 | AE48: 66 | AF48: 67 | AG48: 68 | AH48: 69 | AI48: 70 | AK48: 61 | AL48: 62 | AM48: 63 | AN48: 64 | AO48: 65 | AP48: 66 | AQ48: 67 | AR48: 68 | AS48: 69 | AT48: 70
D49: 71 | E49: 72 | F49: 73 | G49: 74 | H49: 75 | I49: 76 | J49: 77 | K49: 78 | L49: 79 | M49: 80 | O49: 71 | P49: 72 | Q49: 73 | R49: 74 | S49: 75 | T49: 76 | U49: 77 | V49: 78 | W49: 79 | X49: 80 | Z49: 71 | AA49: 72 | AB49: 73 | AC49: 74 | AD49: 75 | AE49: 76 | AF49: 77 | AG49: 78 | AH49: 79 | AI49: 80 | AK49: 71 | AL49: 72 | AM49: 73 | AN49: 74 | AO49: 75 | AP49: 76 | AQ49: 77 | AR49: 78 | AS49: 79 | AT49: 80
D50: 81 | E50: 82 | F50: 83 | G50: 84 | H50: 85 | I50: 86 | J50: 87 | K50: 88 | L50: 89 | M50: 90 | O50: 81 | P50: 82 | Q50: 83 | R50: 84 | S50: 85 | T50: 86 | U50: 87 | V50: 88 | W50: 89 | X50: 90 | Z50: 81 | AA50: 82 | AB50: 83 | AC50: 84 | AD50: 85 | AE50: 86 | AF50: 87 | AG50: 88 | AH50: 89 | AI50: 90 | AK50: 81 | AL50: 82 | AM50: 83 | AN50: 84 | AO50: 85 | AP50: 86 | AQ50: 87 | AR50: 88 | AS50: 89 | AT50: 90
D51: 91 | E51: 92 | F51: 93 | G51: 94 | H51: 95 | I51: 96 | J51: 97 | K51: 98 | L51: 99 | M51: 100 | O51: 91 | P51: 92 | Q51: 93 | R51: 94 | S51: 95 | T51: 96 | U51: 97 | V51: 98 | W51: 99 | X51: 100 | Z51: 91 | AA51: 92 | AB51: 93 | AC51: 94 | AD51: 95 | AE51: 96 | AF51: 97 | AG51: 98 | AH51: 99 | AI51: 100 | AK51: 91 | AL51: 92 | AM51: 93 | AN51: 94 | AO51: 95 | AP51: 96 | AQ51: 97 | AR51: 98 | AS51: 99 | AT51: 100
D54: Never | O54: ≤ 1 day/week | Z54: > 1 day/week
B56: Savoury or salty snack consumption
D58: 1 | E58: 2 | F58: 3 | G58: 4 | H58: 5 | I58: 6 | J58: 7 | K58: 8 | L58: 9 | M58: 10 | O58: 1 | P58: 2 | Q58: 3 | R58: 4 | S58: 5 | T58: 6 | U58: 7 | V58: 8 | W58: 9 | X58: 10 | Z58: 1 | AA58: 2 | AB58: 3 | AC58: 4 | AD58: 5 | AE58: 6 | AF58: 7 | AG58: 8 | AH58: 9 | AI58: 10 | AK58: 1 | AL58: 2 | AM58: 3 | AN58: 4 | AO58: 5 | AP58: 6 | AQ58: 7 | AR58: 8 | AS58: 9 | AT58: 10
D59: 11 | E59: 12 | F59: 13 | G59: 14 | H59: 15 | I59: 16 | J59: 17 | K59: 18 | L59: 19 | M59: 20 | O59: 11 | P59: 12 | Q59: 13 | R59: 14 | S59: 15 | T59: 16 | U59: 17 | V59: 18 | W59: 19 | X59: 20 | Z59: 11 | AA59: 12 | AB59: 13 | AC59: 14 | AD59: 15 | AE59: 16 | AF59: 17 | AG59: 18 | AH59: 19 | AI59: 20 | AK59: 11 | AL59: 12 | AM59: 13 | AN59: 14 | AO59: 15 | AP59: 16 | AQ59: 17 | AR59: 18 | AS59: 19 | AT59: 20
D60: 21 | E60: 22 | F60: 23 | G60: 24 | H60: 25 | I60: 26 | J60: 27 | K60: 28 | L60: 29 | M60: 30 | O60: 21 | P60: 22 | Q60: 23 | R60: 24 | S60: 25 | T60: 26 | U60: 27 | V60: 28 | W60: 29 | X60: 30 | Z60: 21 | AA60: 22 | AB60: 23 | AC60: 24 | AD60: 25 | AE60: 26 | AF60: 27 | AG60: 28 | AH60: 29 | AI60: 30 | AK60: 21 | AL60: 22 | AM60: 23 | AN60: 24 | AO60: 25 | AP60: 26 | AQ60: 27 | AR60: 28 | AS60: 29 | AT60: 30
D61: 31 | E61: 32 | F61: 33 | G61: 34 | H61: 35 | I61: 36 | J61: 37 | K61: 38 | L61: 39 | M61: 40 | O61: 31 | P61: 32 | Q61: 33 | R61: 34 | S61: 35 | T61: 36 | U61: 37 | V61: 38 | W61: 39 | X61: 40 | Z61: 31 | AA61: 32 | AB61: 33 | AC61: 34 | AD61: 35 | AE61: 36 | AF61: 37 | AG61: 38 | AH61: 39 | AI61: 40 | AK61: 31 | AL61: 32 | AM61: 33 | AN61: 34 | AO61: 35 | AP61: 36 | AQ61: 37 | AR61: 38 | AS61: 39 | AT61: 40
D62: 41 | E62: 42 | F62: 43 | G62: 44 | H62: 45 | I62: 46 | J62: 47 | K62: 48 | L62: 49 | M62: 50 | O62: 41 | P62: 42 | Q62: 43 | R62: 44 | S62: 45 | T62: 46 | U62: 47 | V62: 48 | W62: 49 | X62: 50 | Z62: 41 | AA62: 42 | AB62: 43 | AC62: 44 | AD62: 45 | AE62: 46 | AF62: 47 | AG62: 48 | AH62: 49 | AI62: 50 | AK62: 41 | AL62: 42 | AM62: 43 | AN62: 44 | AO62: 45 | AP62: 46 | AQ62: 47 | AR62: 48 | AS62: 49 | AT62: 50
D63: 51 | E63: 52 | F63: 53 | G63: 54 | H63: 55 | I63: 56 | J63: 57 | K63: 58 | L63: 59 | M63: 60 | O63: 51 | P63: 52 | Q63: 53 | R63: 54 | S63: 55 | T63: 56 | U63: 57 | V63: 58 | W63: 59 | X63: 60 | Z63: 51 | AA63: 52 | AB63: 53 | AC63: 54 | AD63: 55 | AE63: 56 | AF63: 57 | AG63: 58 | AH63: 59 | AI63: 60 | AK63: 51 | AL63: 52 | AM63: 53 | AN63: 54 | AO63: 55 | AP63: 56 | AQ63: 57 | AR63: 58 | AS63: 59 | AT63: 60
D64: 61 | E64: 62 | F64: 63 | G64: 64 | H64: 65 | I64: 66 | J64: 67 | K64: 68 | L64: 69 | M64: 70 | O64: 61 | P64: 62 | Q64: 63 | R64: 64 | S64: 65 | T64: 66 | U64: 67 | V64: 68 | W64: 69 | X64: 70 | Z64: 61 | AA64: 62 | AB64: 63 | AC64: 64 | AD64: 65 | AE64: 66 | AF64: 67 | AG64: 68 | AH64: 69 | AI64: 70 | AK64: 61 | AL64: 62 | AM64: 63 | AN64: 64 | AO64: 65 | AP64: 66 | AQ64: 67 | AR64: 68 | AS64: 69 | AT64: 70
D65: 71 | E65: 72 | F65: 73 | G65: 74 | H65: 75 | I65: 76 | J65: 77 | K65: 78 | L65: 79 | M65: 80 | O65: 71 | P65: 72 | Q65: 73 | R65: 74 | S65: 75 | T65: 76 | U65: 77 | V65: 78 | W65: 79 | X65: 80 | Z65: 71 | AA65: 72 | AB65: 73 | AC65: 74 | AD65: 75 | AE65: 76 | AF65: 77 | AG65: 78 | AH65: 79 | AI65: 80 | AK65: 71 | AL65: 72 | AM65: 73 | AN65: 74 | AO65: 75 | AP65: 76 | AQ65: 77 | AR65: 78 | AS65: 79 | AT65: 80
D66: 81 | E66: 82 | F66: 83 | G66: 84 | H66: 85 | I66: 86 | J66: 87 | K66: 88 | L66: 89 | M66: 90 | O66: 81 | P66: 82 | Q66: 83 | R66: 84 | S66: 85 | T66: 86 | U66: 87 | V66: 88 | W66: 89 | X66: 90 | Z66: 81 | AA66: 82 | AB66: 83 | AC66: 84 | AD66: 85 | AE66: 86 | AF66: 87 | AG66: 88 | AH66: 89 | AI66: 90 | AK66: 81 | AL66: 82 | AM66: 83 | AN66: 84 | AO66: 85 | AP66: 86 | AQ66: 87 | AR66: 88 | AS66: 89 | AT66: 90
D67: 91 | E67: 92 | F67: 93 | G67: 94 | H67: 95 | I67: 96 | J67: 97 | K67: 98 | L67: 99 | M67: 100 | O67: 91 | P67: 92 | Q67: 93 | R67: 94 | S67: 95 | T67: 96 | U67: 97 | V67: 98 | W67: 99 | X67: 100 | Z67: 91 | AA67: 92 | AB67: 93 | AC67: 94 | AD67: 95 | AE67: 96 | AF67: 97 | AG67: 98 | AH67: 99 | AI67: 100 | AK67: 91 | AL67: 92 | AM67: 93 | AN67: 94 | AO67: 95 | AP67: 96 | AQ67: 97 | AR67: 98 | AS67: 99 | AT67: 100
D70: Never | O70: ≤ 1 day/week | Z70: 2 days/week | AK70: 3+ days/week
B72: Compliance with physical activity guidelines
D74: 1 | E74: 2 | F74: 3 | G74: 4 | H74: 5 | I74: 6 | J74: 7 | K74: 8 | L74: 9 | M74: 10 | O74: 1 | P74: 2 | Q74: 3 | R74: 4 | S74: 5 | T74: 6 | U74: 7 | V74: 8 | W74: 9 | X74: 10 | Z74: 1 | AA74: 2 | AB74: 3 | AC74: 4 | AD74: 5 | AE74: 6 | AF74: 7 | AG74: 8 | AH74: 9 | AI74: 10 | AK74: 1 | AL74: 2 | AM74: 3 | AN74: 4 | AO74: 5 | AP74: 6 | AQ74: 7 | AR74: 8 | AS74: 9 | AT74: 10
D75: 11 | E75: 12 | F75: 13 | G75: 14 | H75: 15 | I75: 16 | J75: 17 | K75: 18 | L75: 19 | M75: 20 | O75: 11 | P75: 12 | Q75: 13 | R75: 14 | S75: 15 | T75: 16 | U75: 17 | V75: 18 | W75: 19 | X75: 20 | Z75: 11 | AA75: 12 | AB75: 13 | AC75: 14 | AD75: 15 | AE75: 16 | AF75: 17 | AG75: 18 | AH75: 19 | AI75: 20 | AK75: 11 | AL75: 12 | AM75: 13 | AN75: 14 | AO75: 15 | AP75: 16 | AQ75: 17 | AR75: 18 | AS75: 19 | AT75: 20
D76: 21 | E76: 22 | F76: 23 | G76: 24 | H76: 25 | I76: 26 | J76: 27 | K76: 28 | L76: 29 | M76: 30 | O76: 21 | P76: 22 | Q76: 23 | R76: 24 | S76: 25 | T76: 26 | U76: 27 | V76: 28 | W76: 29 | X76: 30 | Z76: 21 | AA76: 22 | AB76: 23 | AC76: 24 | AD76: 25 | AE76: 26 | AF76: 27 | AG76: 28 | AH76: 29 | AI76: 30 | AK76: 21 | AL76: 22 | AM76: 23 | AN76: 24 | AO76: 25 | AP76: 26 | AQ76: 27 | AR76: 28 | AS76: 29 | AT76: 30
D77: 31 | E77: 32 | F77: 33 | G77: 34 | H77: 35 | I77: 36 | J77: 37 | K77: 38 | L77: 39 | M77: 40 | O77: 31 | P77: 32 | Q77: 33 | R77: 34 | S77: 35 | T77: 36 | U77: 37 | V77: 38 | W77: 39 | X77: 40 | Z77: 31 | AA77: 32 | AB77: 33 | AC77: 34 | AD77: 35 | AE77: 36 | AF77: 37 | AG77: 38 | AH77: 39 | AI77: 40 | AK77: 31 | AL77: 32 | AM77: 33 | AN77: 34 | AO77: 35 | AP77: 36 | AQ77: 37 | AR77: 38 | AS77: 39 | AT77: 40
D78: 41 | E78: 42 | F78: 43 | G78: 44 | H78: 45 | I78: 46 | J78: 47 | K78: 48 | L78: 49 | M78: 50 | O78: 41 | P78: 42 | Q78: 43 | R78: 44 | S78: 45 | T78: 46 | U78: 47 | V78: 48 | W78: 49 | X78: 50 | Z78: 41 | AA78: 42 | AB78: 43 | AC78: 44 | AD78: 45 | AE78: 46 | AF78: 47 | AG78: 48 | AH78: 49 | AI78: 50 | AK78: 41 | AL78: 42 | AM78: 43 | AN78: 44 | AO78: 45 | AP78: 46 | AQ78: 47 | AR78: 48 | AS78: 49 | AT78: 50
D79: 51 | E79: 52 | F79: 53 | G79: 54 | H79: 55 | I79: 56 | J79: 57 | K79: 58 | L79: 59 | M79: 60 | O79: 51 | P79: 52 | Q79: 53 | R79: 54 | S79: 55 | T79: 56 | U79: 57 | V79: 58 | W79: 59 | X79: 60 | Z79: 51 | AA79: 52 | AB79: 53 | AC79: 54 | AD79: 55 | AE79: 56 | AF79: 57 | AG79: 58 | AH79: 59 | AI79: 60 | AK79: 51 | AL79: 52 | AM79: 53 | AN79: 54 | AO79: 55 | AP79: 56 | AQ79: 57 | AR79: 58 | AS79: 59 | AT79: 60
D80: 61 | E80: 62 | F80: 63 | G80: 64 | H80: 65 | I80: 66 | J80: 67 | K80: 68 | L80: 69 | M80: 70 | O80: 61 | P80: 62 | Q80: 63 | R80: 64 | S80: 65 | T80: 66 | U80: 67 | V80: 68 | W80: 69 | X80: 70 | Z80: 61 | AA80: 62 | AB80: 63 | AC80: 64 | AD80: 65 | AE80: 66 | AF80: 67 | AG80: 68 | AH80: 69 | AI80: 70 | AK80: 61 | AL80: 62 | AM80: 63 | AN80: 64 | AO80: 65 | AP80: 66 | AQ80: 67 | AR80: 68 | AS80: 69 | AT80: 70
D81: 71 | E81: 72 | F81: 73 | G81: 74 | H81: 75 | I81: 76 | J81: 77 | K81: 78 | L81: 79 | M81: 80 | O81: 71 | P81: 72 | Q81: 73 | R81: 74 | S81: 75 | T81: 76 | U81: 77 | V81: 78 | W81: 79 | X81: 80 | Z81: 71 | AA81: 72 | AB81: 73 | AC81: 74 | AD81: 75 | AE81: 76 | AF81: 77 | AG81: 78 | AH81: 79 | AI81: 80 | AK81: 71 | AL81: 72 | AM81: 73 | AN81: 74 | AO81: 75 | AP81: 76 | AQ81: 77 | AR81: 78 | AS81: 79 | AT81: 80
D82: 81 | E82: 82 | F82: 83 | G82: 84 | H82: 85 | I82: 86 | J82: 87 | K82: 88 | L82: 89 | M82: 90 | O82: 81 | P82: 82 | Q82: 83 | R82: 84 | S82: 85 | T82: 86 | U82: 87 | V82: 88 | W82: 89 | X82: 90 | Z82: 81 | AA82: 82 | AB82: 83 | AC82: 84 | AD82: 85 | AE82: 86 | AF82: 87 | AG82: 88 | AH82: 89 | AI82: 90 | AK82: 81 | AL82: 82 | AM82: 83 | AN82: 84 | AO82: 85 | AP82: 86 | AQ82: 87 | AR82: 88 | AS82: 89 | AT82: 90
D83: 91 | E83: 92 | F83: 93 | G83: 94 | H83: 95 | I83: 96 | J83: 97 | K83: 98 | L83: 99 | M83: 100 | O83: 91 | P83: 92 | Q83: 93 | R83: 94 | S83: 95 | T83: 96 | U83: 97 | V83: 98 | W83: 99 | X83: 100 | Z83: 91 | AA83: 92 | AB83: 93 | AC83: 94 | AD83: 95 | AE83: 96 | AF83: 97 | AG83: 98 | AH83: 99 | AI83: 100 | AK83: 91 | AL83: 92 | AM83: 93 | AN83: 94 | AO83: 95 | AP83: 96 | AQ83: 97 | AR83: 98 | AS83: 99 | AT83: 100
D86: Met guidelines | O86: Insufficient | Z86: Sedentary
B88: Time spent sitting on a typical weekday
D90: 1 | E90: 2 | F90: 3 | G90: 4 | H90: 5 | I90: 6 | J90: 7 | K90: 8 | L90: 9 | M90: 10 | O90: 1 | P90: 2 | Q90: 3 | R90: 4 | S90: 5 | T90: 6 | U90: 7 | V90: 8 | W90: 9 | X90: 10 | Z90: 1 | AA90: 2 | AB90: 3 | AC90: 4 | AD90: 5 | AE90: 6 | AF90: 7 | AG90: 8 | AH90: 9 | AI90: 10 | AK90: 1 | AL90: 2 | AM90: 3 | AN90: 4 | AO90: 5 | AP90: 6 | AQ90: 7 | AR90: 8 | AS90: 9 | AT90: 10
D91: 11 | E91: 12 | F91: 13 | G91: 14 | H91: 15 | I91: 16 | J91: 17 | K91: 18 | L91: 19 | M91: 20 | O91: 11 | P91: 12 | Q91: 13 | R91: 14 | S91: 15 | T91: 16 | U91: 17 | V91: 18 | W91: 19 | X91: 20 | Z91: 11 | AA91: 12 | AB91: 13 | AC91: 14 | AD91: 15 | AE91: 16 | AF91: 17 | AG91: 18 | AH91: 19 | AI91: 20 | AK91: 11 | AL91: 12 | AM91: 13 | AN91: 14 | AO91: 15 | AP91: 16 | AQ91: 17 | AR91: 18 | AS91: 19 | AT91: 20
D92: 21 | E92: 22 | F92: 23 | G92: 24 | H92: 25 | I92: 26 | J92: 27 | K92: 28 | L92: 29 | M92: 30 | O92: 21 | P92: 22 | Q92: 23 | R92: 24 | S92: 25 | T92: 26 | U92: 27 | V92: 28 | W92: 29 | X92: 30 | Z92: 21 | AA92: 22 | AB92: 23 | AC92: 24 | AD92: 25 | AE92: 26 | AF92: 27 | AG92: 28 | AH92: 29 | AI92: 30 | AK92: 21 | AL92: 22 | AM92: 23 | AN92: 24 | AO92: 25 | AP92: 26 | AQ92: 27 | AR92: 28 | AS92: 29 | AT92: 30
D93: 31 | E93: 32 | F93: 33 | G93: 34 | H93: 35 | I93: 36 | J93: 37 | K93: 38 | L93: 39 | M93: 40 | O93: 31 | P93: 32 | Q93: 33 | R93: 34 | S93: 35 | T93: 36 | U93: 37 | V93: 38 | W93: 39 | X93: 40 | Z93: 31 | AA93: 32 | AB93: 33 | AC93: 34 | AD93: 35 | AE93: 36 | AF93: 37 | AG93: 38 | AH93: 39 | AI93: 40 | AK93: 31 | AL93: 32 | AM93: 33 | AN93: 34 | AO93: 35 | AP93: 36 | AQ93: 37 | AR93: 38 | AS93: 39 | AT93: 40
D94: 41 | E94: 42 | F94: 43 | G94: 44 | H94: 45 | I94: 46 | J94: 47 | K94: 48 | L94: 49 | M94: 50 | O94: 41 | P94: 42 | Q94: 43 | R94: 44 | S94: 45 | T94: 46 | U94: 47 | V94: 48 | W94: 49 | X94: 50 | Z94: 41 | AA94: 42 | AB94: 43 | AC94: 44 | AD94: 45 | AE94: 46 | AF94: 47 | AG94: 48 | AH94: 49 | AI94: 50 | AK94: 41 | AL94: 42 | AM94: 43 | AN94: 44 | AO94: 45 | AP94: 46 | AQ94: 47 | AR94: 48 | AS94: 49 | AT94: 50
D95: 51 | E95: 52 | F95: 53 | G95: 54 | H95: 55 | I95: 56 | J95: 57 | K95: 58 | L95: 59 | M95: 60 | O95: 51 | P95: 52 | Q95: 53 | R95: 54 | S95: 55 | T95: 56 | U95: 57 | V95: 58 | W95: 59 | X95: 60 | Z95: 51 | AA95: 52 | AB95: 53 | AC95: 54 | AD95: 55 | AE95: 56 | AF95: 57 | AG95: 58 | AH95: 59 | AI95: 60 | AK95: 51 | AL95: 52 | AM95: 53 | AN95: 54 | AO95: 55 | AP95: 56 | AQ95: 57 | AR95: 58 | AS95: 59 | AT95: 60
D96: 61 | E96: 62 | F96: 63 | G96: 64 | H96: 65 | I96: 66 | J96: 67 | K96: 68 | L96: 69 | M96: 70 | O96: 61 | P96: 62 | Q96: 63 | R96: 64 | S96: 65 | T96: 66 | U96: 67 | V96: 68 | W96: 69 | X96: 70 | Z96: 61 | AA96: 62 | AB96: 63 | AC96: 64 | AD96: 65 | AE96: 66 | AF96: 67 | AG96: 68 | AH96: 69 | AI96: 70 | AK96: 61 | AL96: 62 | AM96: 63 | AN96: 64 | AO96: 65 | AP96: 66 | AQ96: 67 | AR96: 68 | AS96: 69 | AT96: 70
D97: 71 | E97: 72 | F97: 73 | G97: 74 | H97: 75 | I97: 76 | J97: 77 | K97: 78 | L97: 79 | M97: 80 | O97: 71 | P97: 72 | Q97: 73 | R97: 74 | S97: 75 | T97: 76 | U97: 77 | V97: 78 | W97: 79 | X97: 80 | Z97: 71 | AA97: 72 | AB97: 73 | AC97: 74 | AD97: 75 | AE97: 76 | AF97: 77 | AG97: 78 | AH97: 79 | AI97: 80 | AK97: 71 | AL97: 72 | AM97: 73 | AN97: 74 | AO97: 75 | AP97: 76 | AQ97: 77 | AR97: 78 | AS97: 79 | AT97: 80
D98: 81 | E98: 82 | F98: 83 | G98: 84 | H98: 85 | I98: 86 | J98: 87 | K98: 88 | L98: 89 | M98: 90 | O98: 81 | P98: 82 | Q98: 83 | R98: 84 | S98: 85 | T98: 86 | U98: 87 | V98: 88 | W98: 89 | X98: 90 | Z98: 81 | AA98: 82 | AB98: 83 | AC98: 84 | AD98: 85 | AE98: 86 | AF98: 87 | AG98: 88 | AH98: 89 | AI98: 90 | AK98: 81 | AL98: 82 | AM98: 83 | AN98: 84 | AO98: 85 | AP98: 86 | AQ98: 87 | AR98: 88 | AS98: 89 | AT98: 90
D99: 91 | E99: 92 | F99: 93 | G99: 94 | H99: 95 | I99: 96 | J99: 97 | K99: 98 | L99: 99 | M99: 100 | O99: 91 | P99: 92 | Q99: 93 | R99: 94 | S99: 95 | T99: 96 | U99: 97 | V99: 98 | W99: 99 | X99: 100 | Z99: 91 | AA99: 92 | AB99: 93 | AC99: 94 | AD99: 95 | AE99: 96 | AF99: 97 | AG99: 98 | AH99: 99 | AI99: 100 | AK99: 91 | AL99: 92 | AM99: 93 | AN99: 94 | AO99: 95 | AP99: 96 | AQ99: 97 | AR99: 98 | AS99: 99 | AT99: 100
D102: 4 to < 6 hours | O102: 6 to < 8 hours | Z102: ≥ 8 hours
B104: Time spent sitting on a typical weekend day
D106: 1 | E106: 2 | F106: 3 | G106: 4 | H106: 5 | I106: 6 | J106: 7 | K106: 8 | L106: 9 | M106: 10 | O106: 1 | P106: 2 | Q106: 3 | R106: 4 | S106: 5 | T106: 6 | U106: 7 | V106: 8 | W106: 9 | X106: 10 | Z106: 1 | AA106: 2 | AB106: 3 | AC106: 4 | AD106: 5 | AE106: 6 | AF106: 7 | AG106: 8 | AH106: 9 | AI106: 10 | AK106: 1 | AL106: 2 | AM106: 3 | AN106: 4 | AO106: 5 | AP106: 6 | AQ106: 7 | AR106: 8 | AS106: 9 | AT106: 10
D107: 11 | E107: 12 | F107: 13 | G107: 14 | H107: 15 | I107: 16 | J107: 17 | K107: 18 | L107: 19 | M107: 20 | O107: 11 | P107: 12 | Q107: 13 | R107: 14 | S107: 15 | T107: 16 | U107: 17 | V107: 18 | W107: 19 | X107: 20 | Z107: 11 | AA107: 12 | AB107: 13 | AC107: 14 | AD107: 15 | AE107: 16 | AF107: 17 | AG107: 18 | AH107: 19 | AI107: 20 | AK107: 11 | AL107: 12 | AM107: 13 | AN107: 14 | AO107: 15 | AP107: 16 | AQ107: 17 | AR107: 18 | AS107: 19 | AT107: 20
D108: 21 | E108: 22 | F108: 23 | G108: 24 | H108: 25 | I108: 26 | J108: 27 | K108: 28 | L108: 29 | M108: 30 | O108: 21 | P108: 22 | Q108: 23 | R108: 24 | S108: 25 | T108: 26 | U108: 27 | V108: 28 | W108: 29 | X108: 30 | Z108: 21 | AA108: 22 | AB108: 23 | AC108: 24 | AD108: 25 | AE108: 26 | AF108: 27 | AG108: 28 | AH108: 29 | AI108: 30 | AK108: 21 | AL108: 22 | AM108: 23 | AN108: 24 | AO108: 25 | AP108: 26 | AQ108: 27 | AR108: 28 | AS108: 29 | AT108: 30
D109: 31 | E109: 32 | F109: 33 | G109: 34 | H109: 35 | I109: 36 | J109: 37 | K109: 38 | L109: 39 | M109: 40 | O109: 31 | P109: 32 | Q109: 33 | R109: 34 | S109: 35 | T109: 36 | U109: 37 | V109: 38 | W109: 39 | X109: 40 | Z109: 31 | AA109: 32 | AB109: 33 | AC109: 34 | AD109: 35 | AE109: 36 | AF109: 37 | AG109: 38 | AH109: 39 | AI109: 40 | AK109: 31 | AL109: 32 | AM109: 33 | AN109: 34 | AO109: 35 | AP109: 36 | AQ109: 37 | AR109: 38 | AS109: 39 | AT109: 40
D110: 41 | E110: 42 | F110: 43 | G110: 44 | H110: 45 | I110: 46 | J110: 47 | K110: 48 | L110: 49 | M110: 50 | O110: 41 | P110: 42 | Q110: 43 | R110: 44 | S110: 45 | T110: 46 | U110: 47 | V110: 48 | W110: 49 | X110: 50 | Z110: 41 | AA110: 42 | AB110: 43 | AC110: 44 | AD110: 45 | AE110: 46 | AF110: 47 | AG110: 48 | AH110: 49 | AI110: 50 | AK110: 41 | AL110: 42 | AM110: 43 | AN110: 44 | AO110: 45 | AP110: 46 | AQ110: 47 | AR110: 48 | AS110: 49 | AT110: 50
D111: 51 | E111: 52 | F111: 53 | G111: 54 | H111: 55 | I111: 56 | J111: 57 | K111: 58 | L111: 59 | M111: 60 | O111: 51 | P111: 52 | Q111: 53 | R111: 54 | S111: 55 | T111: 56 | U111: 57 | V111: 58 | W111: 59 | X111: 60 | Z111: 51 | AA111: 52 | AB111: 53 | AC111: 54 | AD111: 55 | AE111: 56 | AF111: 57 | AG111: 58 | AH111: 59 | AI111: 60 | AK111: 51 | AL111: 52 | AM111: 53 | AN111: 54 | AO111: 55 | AP111: 56 | AQ111: 57 | AR111: 58 | AS111: 59 | AT111: 60
D112: 61 | E112: 62 | F112: 63 | G112: 64 | H112: 65 | I112: 66 | J112: 67 | K112: 68 | L112: 69 | M112: 70 | O112: 61 | P112: 62 | Q112: 63 | R112: 64 | S112: 65 | T112: 66 | U112: 67 | V112: 68 | W112: 69 | X112: 70 | Z112: 61 | AA112: 62 | AB112: 63 | AC112: 64 | AD112: 65 | AE112: 66 | AF112: 67 | AG112: 68 | AH112: 69 | AI112: 70 | AK112: 61 | AL112: 62 | AM112: 63 | AN112: 64 | AO112: 65 | AP112: 66 | AQ112: 67 | AR112: 68 | AS112: 69 | AT112: 70
D113: 71 | E113: 72 | F113: 73 | G113: 74 | H113: 75 | I113: 76 | J113: 77 | K113: 78 | L113: 79 | M113: 80 | O113: 71 | P113: 72 | Q113: 73 | R113: 74 | S113: 75 | T113: 76 | U113: 77 | V113: 78 | W113: 79 | X113: 80 | Z113: 71 | AA113: 72 | AB113: 73 | AC113: 74 | AD113: 75 | AE113: 76 | AF113: 77 | AG113: 78 | AH113: 79 | AI113: 80 | AK113: 71 | AL113: 72 | AM113: 73 | AN113: 74 | AO113: 75 | AP113: 76 | AQ113: 77 | AR113: 78 | AS113: 79 | AT113: 80
D114: 81 | E114: 82 | F114: 83 | G114: 84 | H114: 85 | I114: 86 | J114: 87 | K114: 88 | L114: 89 | M114: 90 | O114: 81 | P114: 82 | Q114: 83 | R114: 84 | S114: 85 | T114: 86 | U114: 87 | V114: 88 | W114: 89 | X114: 90 | Z114: 81 | AA114: 82 | AB114: 83 | AC114: 84 | AD114: 85 | AE114: 86 | AF114: 87 | AG114: 88 | AH114: 89 | AI114: 90 | AK114: 81 | AL114: 82 | AM114: 83 | AN114: 84 | AO114: 85 | AP114: 86 | AQ114: 87 | AR114: 88 | AS114: 89 | AT114: 90
D115: 91 | E115: 92 | F115: 93 | G115: 94 | H115: 95 | I115: 96 | J115: 97 | K115: 98 | L115: 99 | M115: 100 | O115: 91 | P115: 92 | Q115: 93 | R115: 94 | S115: 95 | T115: 96 | U115: 97 | V115: 98 | W115: 99 | X115: 100 | Z115: 91 | AA115: 92 | AB115: 93 | AC115: 94 | AD115: 95 | AE115: 96 | AF115: 97 | AG115: 98 | AH115: 99 | AI115: 100 | AK115: 91 | AL115: 92 | AM115: 93 | AN115: 94 | AO115: 95 | AP115: 96 | AQ115: 97 | AR115: 98 | AS115: 99 | AT115: 100
D118: 4 to < 6 hours | O118: 6 to < 8 hours | Z118: ≥ 8 hours
B120: Compliance with fruit and vegetable consumption guidelines
D122: 1 | E122: 2 | F122: 3 | G122: 4 | H122: 5 | I122: 6 | J122: 7 | K122: 8 | L122: 9 | M122: 10 | O122: 1 | P122: 2 | Q122: 3 | R122: 4 | S122: 5 | T122: 6 | U122: 7 | V122: 8 | W122: 9 | X122: 10
D123: 11 | E123: 12 | F123: 13 | G123: 14 | H123: 15 | I123: 16 | J123: 17 | K123: 18 | L123: 19 | M123: 20 | O123: 11 | P123: 12 | Q123: 13 | R123: 14 | S123: 15 | T123: 16 | U123: 17 | V123: 18 | W123: 19 | X123: 20
D124: 21 | E124: 22 | F124: 23 | G124: 24 | H124: 25 | I124: 26 | J124: 27 | K124: 28 | L124: 29 | M124: 30 | O124: 21 | P124: 22 | Q124: 23 | R124: 24 | S124: 25 | T124: 26 | U124: 27 | V124: 28 | W124: 29 | X124: 30
D125: 31 | E125: 32 | F125: 33 | G125: 34 | H125: 35 | I125: 36 | J125: 37 | K125: 38 | L125: 39 | M125: 40 | O125: 31 | P125: 32 | Q125: 33 | R125: 34 | S125: 35 | T125: 36 | U125: 37 | V125: 38 | W125: 39 | X125: 40
D126: 41 | E126: 42 | F126: 43 | G126: 44 | H126: 45 | I126: 46 | J126: 47 | K126: 48 | L126: 49 | M126: 50 | O126: 41 | P126: 42 | Q126: 43 | R126: 44 | S126: 45 | T126: 46 | U126: 47 | V126: 48 | W126: 49 | X126: 50
D127: 51 | E127: 52 | F127: 53 | G127: 54 | H127: 55 | I127: 56 | J127: 57 | K127: 58 | L127: 59 | M127: 60 | O127: 51 | P127: 52 | Q127: 53 | R127: 54 | S127: 55 | T127: 56 | U127: 57 | V127: 58 | W127: 59 | X127: 60
D128: 61 | E128: 62 | F128: 63 | G128: 64 | H128: 65 | I128: 66 | J128: 67 | K128: 68 | L128: 69 | M128: 70 | O128: 61 | P128: 62 | Q128: 63 | R128: 64 | S128: 65 | T128: 66 | U128: 67 | V128: 68 | W128: 69 | X128: 70
D129: 71 | E129: 72 | F129: 73 | G129: 74 | H129: 75 | I129: 76 | J129: 77 | K129: 78 | L129: 79 | M129: 80 | O129: 71 | P129: 72 | Q129: 73 | R129: 74 | S129: 75 | T129: 76 | U129: 77 | V129: 78 | W129: 79 | X129: 80
D130: 81 | E130: 82 | F130: 83 | G130: 84 | H130: 85 | I130: 86 | J130: 87 | K130: 88 | L130: 89 | M130: 90 | O130: 81 | P130: 82 | Q130: 83 | R130: 84 | S130: 85 | T130: 86 | U130: 87 | V130: 88 | W130: 89 | X130: 90
D131: 91 | E131: 92 | F131: 93 | G131: 94 | H131: 95 | I131: 96 | J131: 97 | K131: 98 | L131: 99 | M131: 100 | O131: 91 | P131: 92 | Q131: 93 | R131: 94 | S131: 95 | T131: 96 | U131: 97 | V131: 98 | W131: 99 | X131: 100
D134: Met vegetable consumption guidelines | O134: Met fruit consumption guidelines
B136: Usual consumption (in serves) of vegetable per day
D138: 1 | E138: 2 | F138: 3 | G138: 4 | H138: 5 | I138: 6 | J138: 7 | K138: 8 | L138: 9 | M138: 10 | O138: 1 | P138: 2 | Q138: 3 | R138: 4 | S138: 5 | T138: 6 | U138: 7 | V138: 8 | W138: 9 | X138: 10 | Z138: 1 | AA138: 2 | AB138: 3 | AC138: 4 | AD138: 5 | AE138: 6 | AF138: 7 | AG138: 8 | AH138: 9 | AI138: 10 | AK138: 1 | AL138: 2 | AM138: 3 | AN138: 4 | AO138: 5 | AP138: 6 | AQ138: 7 | AR138: 8 | AS138: 9 | AT138: 10
D139: 11 | E139: 12 | F139: 13 | G139: 14 | H139: 15 | I139: 16 | J139: 17 | K139: 18 | L139: 19 | M139: 20 | O139: 11 | P139: 12 | Q139: 13 | R139: 14 | S139: 15 | T139: 16 | U139: 17 | V139: 18 | W139: 19 | X139: 20 | Z139: 11 | AA139: 12 | AB139: 13 | AC139: 14 | AD139: 15 | AE139: 16 | AF139: 17 | AG139: 18 | AH139: 19 | AI139: 20 | AK139: 11 | AL139: 12 | AM139: 13 | AN139: 14 | AO139: 15 | AP139: 16 | AQ139: 17 | AR139: 18 | AS139: 19 | AT139: 20
D140: 21 | E140: 22 | F140: 23 | G140: 24 | H140: 25 | I140: 26 | J140: 27 | K140: 28 | L140: 29 | M140: 30 | O140: 21 | P140: 22 | Q140: 23 | R140: 24 | S140: 25 | T140: 26 | U140: 27 | V140: 28 | W140: 29 | X140: 30 | Z140: 21 | AA140: 22 | AB140: 23 | AC140: 24 | AD140: 25 | AE140: 26 | AF140: 27 | AG140: 28 | AH140: 29 | AI140: 30 | AK140: 21 | AL140: 22 | AM140: 23 | AN140: 24 | AO140: 25 | AP140: 26 | AQ140: 27 | AR140: 28 | AS140: 29 | AT140: 30
D141: 31 | E141: 32 | F141: 33 | G141: 34 | H141: 35 | I141: 36 | J141: 37 | K141: 38 | L141: 39 | M141: 40 | O141: 31 | P141: 32 | Q141: 33 | R141: 34 | S141: 35 | T141: 36 | U141: 37 | V141: 38 | W141: 39 | X141: 40 | Z141: 31 | AA141: 32 | AB141: 33 | AC141: 34 | AD141: 35 | AE141: 36 | AF141: 37 | AG141: 38 | AH141: 39 | AI141: 40 | AK141: 31 | AL141: 32 | AM141: 33 | AN141: 34 | AO141: 35 | AP141: 36 | AQ141: 37 | AR141: 38 | AS141: 39 | AT141: 40
D142: 41 | E142: 42 | F142: 43 | G142: 44 | H142: 45 | I142: 46 | J142: 47 | K142: 48 | L142: 49 | M142: 50 | O142: 41 | P142: 42 | Q142: 43 | R142: 44 | S142: 45 | T142: 46 | U142: 47 | V142: 48 | W142: 49 | X142: 50 | Z142: 41 | AA142: 42 | AB142: 43 | AC142: 44 | AD142: 45 | AE142: 46 | AF142: 47 | AG142: 48 | AH142: 49 | AI142: 50 | AK142: 41 | AL142: 42 | AM142: 43 | AN142: 44 | AO142: 45 | AP142: 46 | AQ142: 47 | AR142: 48 | AS142: 49 | AT142: 50
D143: 51 | E143: 52 | F143: 53 | G143: 54 | H143: 55 | I143: 56 | J143: 57 | K143: 58 | L143: 59 | M143: 60 | O143: 51 | P143: 52 | Q143: 53 | R143: 54 | S143: 55 | T143: 56 | U143: 57 | V143: 58 | W143: 59 | X143: 60 | Z143: 51 | AA143: 52 | AB143: 53 | AC143: 54 | AD143: 55 | AE143: 56 | AF143: 57 | AG143: 58 | AH143: 59 | AI143: 60 | AK143: 51 | AL143: 52 | AM143: 53 | AN143: 54 | AO143: 55 | AP143: 56 | AQ143: 57 | AR143: 58 | AS143: 59 | AT143: 60
D144: 61 | E144: 62 | F144: 63 | G144: 64 | H144: 65 | I144: 66 | J144: 67 | K144: 68 | L144: 69 | M144: 70 | O144: 61 | P144: 62 | Q144: 63 | R144: 64 | S144: 65 | T144: 66 | U144: 67 | V144: 68 | W144: 69 | X144: 70 | Z144: 61 | AA144: 62 | AB144: 63 | AC144: 64 | AD144: 65 | AE144: 66 | AF144: 67 | AG144: 68 | AH144: 69 | AI144: 70 | AK144: 61 | AL144: 62 | AM144: 63 | AN144: 64 | AO144: 65 | AP144: 66 | AQ144: 67 | AR144: 68 | AS144: 69 | AT144: 70
D145: 71 | E145: 72 | F145: 73 | G145: 74 | H145: 75 | I145: 76 | J145: 77 | K145: 78 | L145: 79 | M145: 80 | O145: 71 | P145: 72 | Q145: 73 | R145: 74 | S145: 75 | T145: 76 | U145: 77 | V145: 78 | W145: 79 | X145: 80 | Z145: 71 | AA145: 72 | AB145: 73 | AC145: 74 | AD145: 75 | AE145: 76 | AF145: 77 | AG145: 78 | AH145: 79 | AI145: 80 | AK145: 71 | AL145: 72 | AM145: 73 | AN145: 74 | AO145: 75 | AP145: 76 | AQ145: 77 | AR145: 78 | AS145: 79 | AT145: 80
D146: 81 | E146: 82 | F146: 83 | G146: 84 | H146: 85 | I146: 86 | J146: 87 | K146: 88 | L146: 89 | M146: 90 | O146: 81 | P146: 82 | Q146: 83 | R146: 84 | S146: 85 | T146: 86 | U146: 87 | V146: 88 | W146: 89 | X146: 90 | Z146: 81 | AA146: 82 | AB146: 83 | AC146: 84 | AD146: 85 | AE146: 86 | AF146: 87 | AG146: 88 | AH146: 89 | AI146: 90 | AK146: 81 | AL146: 82 | AM146: 83 | AN146: 84 | AO146: 85 | AP146: 86 | AQ146: 87 | AR146: 88 | AS146: 89 | AT146: 90
D147: 91 | E147: 92 | F147: 93 | G147: 94 | H147: 95 | I147: 96 | J147: 97 | K147: 98 | L147: 99 | M147: 100 | O147: 91 | P147: 92 | Q147: 93 | R147: 94 | S147: 95 | T147: 96 | U147: 97 | V147: 98 | W147: 99 | X147: 100 | Z147: 91 | AA147: 92 | AB147: 93 | AC147: 94 | AD147: 95 | AE147: 96 | AF147: 97 | AG147: 98 | AH147: 99 | AI147: 100 | AK147: 91 | AL147: 92 | AM147: 93 | AN147: 94 | AO147: 95 | AP147: 96 | AQ147: 97 | AR147: 98 | AS147: 99 | AT147: 100
D150: 5+ serves | O150: 3–4 serves | Z150: 1–2 serves | AK150: < 1 serve
B152: Usual consumption (in serves) of fruit per day
D154: 1 | E154: 2 | F154: 3 | G154: 4 | H154: 5 | I154: 6 | J154: 7 | K154: 8 | L154: 9 | M154: 10 | O154: 1 | P154: 2 | Q154: 3 | R154: 4 | S154: 5 | T154: 6 | U154: 7 | V154: 8 | W154: 9 | X154: 10 | AK154: 1 | AL154: 2 | AM154: 3 | AN154: 4 | AO154: 5 | AP154: 6 | AQ154: 7 | AR154: 8 | AS154: 9 | AT154: 10
D155: 11 | E155: 12 | F155: 13 | G155: 14 | H155: 15 | I155: 16 | J155: 17 | K155: 18 | L155: 19 | M155: 20 | O155: 11 | P155: 12 | Q155: 13 | R155: 14 | S155: 15 | T155: 16 | U155: 17 | V155: 18 | W155: 19 | X155: 20 | AK155: 11 | AL155: 12 | AM155: 13 | AN155: 14 | AO155: 15 | AP155: 16 | AQ155: 17 | AR155: 18 | AS155: 19 | AT155: 20
D156: 21 | E156: 22 | F156: 23 | G156: 24 | H156: 25 | I156: 26 | J156: 27 | K156: 28 | L156: 29 | M156: 30 | O156: 21 | P156: 22 | Q156: 23 | R156: 24 | S156: 25 | T156: 26 | U156: 27 | V156: 28 | W156: 29 | X156: 30 | AK156: 21 | AL156: 22 | AM156: 23 | AN156: 24 | AO156: 25 | AP156: 26 | AQ156: 27 | AR156: 28 | AS156: 29 | AT156: 30
D157: 31 | E157: 32 | F157: 33 | G157: 34 | H157: 35 | I157: 36 | J157: 37 | K157: 38 | L157: 39 | M157: 40 | O157: 31 | P157: 32 | Q157: 33 | R157: 34 | S157: 35 | T157: 36 | U157: 37 | V157: 38 | W157: 39 | X157: 40 | AK157: 31 | AL157: 32 | AM157: 33 | AN157: 34 | AO157: 35 | AP157: 36 | AQ157: 37 | AR157: 38 | AS157: 39 | AT157: 40
D158: 41 | E158: 42 | F158: 43 | G158: 44 | H158: 45 | I158: 46 | J158: 47 | K158: 48 | L158: 49 | M158: 50 | O158: 41 | P158: 42 | Q158: 43 | R158: 44 | S158: 45 | T158: 46 | U158: 47 | V158: 48 | W158: 49 | X158: 50 | AK158: 41 | AL158: 42 | AM158: 43 | AN158: 44 | AO158: 45 | AP158: 46 | AQ158: 47 | AR158: 48 | AS158: 49 | AT158: 50
D159: 51 | E159: 52 | F159: 53 | G159: 54 | H159: 55 | I159: 56 | J159: 57 | K159: 58 | L159: 59 | M159: 60 | O159: 51 | P159: 52 | Q159: 53 | R159: 54 | S159: 55 | T159: 56 | U159: 57 | V159: 58 | W159: 59 | X159: 60 | AK159: 51 | AL159: 52 | AM159: 53 | AN159: 54 | AO159: 55 | AP159: 56 | AQ159: 57 | AR159: 58 | AS159: 59 | AT159: 60
D160: 61 | E160: 62 | F160: 63 | G160: 64 | H160: 65 | I160: 66 | J160: 67 | K160: 68 | L160: 69 | M160: 70 | O160: 61 | P160: 62 | Q160: 63 | R160: 64 | S160: 65 | T160: 66 | U160: 67 | V160: 68 | W160: 69 | X160: 70 | AK160: 61 | AL160: 62 | AM160: 63 | AN160: 64 | AO160: 65 | AP160: 66 | AQ160: 67 | AR160: 68 | AS160: 69 | AT160: 70
D161: 71 | E161: 72 | F161: 73 | G161: 74 | H161: 75 | I161: 76 | J161: 77 | K161: 78 | L161: 79 | M161: 80 | O161: 71 | P161: 72 | Q161: 73 | R161: 74 | S161: 75 | T161: 76 | U161: 77 | V161: 78 | W161: 79 | X161: 80 | AK161: 71 | AL161: 72 | AM161: 73 | AN161: 74 | AO161: 75 | AP161: 76 | AQ161: 77 | AR161: 78 | AS161: 79 | AT161: 80
D162: 81 | E162: 82 | F162: 83 | G162: 84 | H162: 85 | I162: 86 | J162: 87 | K162: 88 | L162: 89 | M162: 90 | O162: 81 | P162: 82 | Q162: 83 | R162: 84 | S162: 85 | T162: 86 | U162: 87 | V162: 88 | W162: 89 | X162: 90 | AK162: 81 | AL162: 82 | AM162: 83 | AN162: 84 | AO162: 85 | AP162: 86 | AQ162: 87 | AR162: 88 | AS162: 89 | AT162: 90
D163: 91 | E163: 92 | F163: 93 | G163: 94 | H163: 95 | I163: 96 | J163: 97 | K163: 98 | L163: 99 | M163: 100 | O163: 91 | P163: 92 | Q163: 93 | R163: 94 | S163: 95 | T163: 96 | U163: 97 | V163: 98 | W163: 99 | X163: 100 | AK163: 91 | AL163: 92 | AM163: 93 | AN163: 94 | AO163: 95 | AP163: 96 | AQ163: 97 | AR163: 98 | AS163: 99 | AT163: 100
D166: ≥ 2 serves | O166: < 2 serves
B168: Smoking status
D170: 1 | E170: 2 | F170: 3 | G170: 4 | H170: 5 | I170: 6 | J170: 7 | K170: 8 | L170: 9 | M170: 10 | O170: 1 | P170: 2 | Q170: 3 | R170: 4 | S170: 5 | T170: 6 | U170: 7 | V170: 8 | W170: 9 | X170: 10 | Z170: 1 | AA170: 2 | AB170: 3 | AC170: 4 | AD170: 5 | AE170: 6 | AF170: 7 | AG170: 8 | AH170: 9 | AI170: 10 | AK170: 1 | AL170: 2 | AM170: 3 | AN170: 4 | AO170: 5 | AP170: 6 | AQ170: 7 | AR170: 8 | AS170: 9 | AT170: 10
D171: 11 | E171: 12 | F171: 13 | G171: 14 | H171: 15 | I171: 16 | J171: 17 | K171: 18 | L171: 19 | M171: 20 | O171: 11 | P171: 12 | Q171: 13 | R171: 14 | S171: 15 | T171: 16 | U171: 17 | V171: 18 | W171: 19 | X171: 20 | Z171: 11 | AA171: 12 | AB171: 13 | AC171: 14 | AD171: 15 | AE171: 16 | AF171: 17 | AG171: 18 | AH171: 19 | AI171: 20 | AK171: 11 | AL171: 12 | AM171: 13 | AN171: 14 | AO171: 15 | AP171: 16 | AQ171: 17 | AR171: 18 | AS171: 19 | AT171: 20
D172: 21 | E172: 22 | F172: 23 | G172: 24 | H172: 25 | I172: 26 | J172: 27 | K172: 28 | L172: 29 | M172: 30 | O172: 21 | P172: 22 | Q172: 23 | R172: 24 | S172: 25 | T172: 26 | U172: 27 | V172: 28 | W172: 29 | X172: 30 | Z172: 21 | AA172: 22 | AB172: 23 | AC172: 24 | AD172: 25 | AE172: 26 | AF172: 27 | AG172: 28 | AH172: 29 | AI172: 30 | AK172: 21 | AL172: 22 | AM172: 23 | AN172: 24 | AO172: 25 | AP172: 26 | AQ172: 27 | AR172: 28 | AS172: 29 | AT172: 30
D173: 31 | E173: 32 | F173: 33 | G173: 34 | H173: 35 | I173: 36 | J173: 37 | K173: 38 | L173: 39 | M173: 40 | O173: 31 | P173: 32 | Q173: 33 | R173: 34 | S173: 35 | T173: 36 | U173: 37 | V173: 38 | W173: 39 | X173: 40 | Z173: 31 | AA173: 32 | AB173: 33 | AC173: 34 | AD173: 35 | AE173: 36 | AF173: 37 | AG173: 38 | AH173: 39 | AI173: 40 | AK173: 31 | AL173: 32 | AM173: 33 | AN173: 34 | AO173: 35 | AP173: 36 | AQ173: 37 | AR173: 38 | AS173: 39 | AT173: 40
D174: 41 | E174: 42 | F174: 43 | G174: 44 | H174: 45 | I174: 46 | J174: 47 | K174: 48 | L174: 49 | M174: 50 | O174: 41 | P174: 42 | Q174: 43 | R174: 44 | S174: 45 | T174: 46 | U174: 47 | V174: 48 | W174: 49 | X174: 50 | Z174: 41 | AA174: 42 | AB174: 43 | AC174: 44 | AD174: 45 | AE174: 46 | AF174: 47 | AG174: 48 | AH174: 49 | AI174: 50 | AK174: 41 | AL174: 42 | AM174: 43 | AN174: 44 | AO174: 45 | AP174: 46 | AQ174: 47 | AR174: 48 | AS174: 49 | AT174: 50
D175: 51 | E175: 52 | F175: 53 | G175: 54 | H175: 55 | I175: 56 | J175: 57 | K175: 58 | L175: 59 | M175: 60 | O175: 51 | P175: 52 | Q175: 53 | R175: 54 | S175: 55 | T175: 56 | U175: 57 | V175: 58 | W175: 59 | X175: 60 | Z175: 51 | AA175: 52 | AB175: 53 | AC175: 54 | AD175: 55 | AE175: 56 | AF175: 57 | AG175: 58 | AH175: 59 | AI175: 60 | AK175: 51 | AL175: 52 | AM175: 53 | AN175: 54 | AO175: 55 | AP175: 56 | AQ175: 57 | AR175: 58 | AS175: 59 | AT175: 60
D176: 61 | E176: 62 | F176: 63 | G176: 64 | H176: 65 | I176: 66 | J176: 67 | K176: 68 | L176: 69 | M176: 70 | O176: 61 | P176: 62 | Q176: 63 | R176: 64 | S176: 65 | T176: 66 | U176: 67 | V176: 68 | W176: 69 | X176: 70 | Z176: 61 | AA176: 62 | AB176: 63 | AC176: 64 | AD176: 65 | AE176: 66 | AF176: 67 | AG176: 68 | AH176: 69 | AI176: 70 | AK176: 61 | AL176: 62 | AM176: 63 | AN176: 64 | AO176: 65 | AP176: 66 | AQ176: 67 | AR176: 68 | AS176: 69 | AT176: 70
D177: 71 | E177: 72 | F177: 73 | G177: 74 | H177: 75 | I177: 76 | J177: 77 | K177: 78 | L177: 79 | M177: 80 | O177: 71 | P177: 72 | Q177: 73 | R177: 74 | S177: 75 | T177: 76 | U177: 77 | V177: 78 | W177: 79 | X177: 80 | Z177: 71 | AA177: 72 | AB177: 73 | AC177: 74 | AD177: 75 | AE177: 76 | AF177: 77 | AG177: 78 | AH177: 79 | AI177: 80 | AK177: 71 | AL177: 72 | AM177: 73 | AN177: 74 | AO177: 75 | AP177: 76 | AQ177: 77 | AR177: 78 | AS177: 79 | AT177: 80
D178: 81 | E178: 82 | F178: 83 | G178: 84 | H178: 85 | I178: 86 | J178: 87 | K178: 88 | L178: 89 | M178: 90 | O178: 81 | P178: 82 | Q178: 83 | R178: 84 | S178: 85 | T178: 86 | U178: 87 | V178: 88 | W178: 89 | X178: 90 | Z178: 81 | AA178: 82 | AB178: 83 | AC178: 84 | AD178: 85 | AE178: 86 | AF178: 87 | AG178: 88 | AH178: 89 | AI178: 90 | AK178: 81 | AL178: 82 | AM178: 83 | AN178: 84 | AO178: 85 | AP178: 86 | AQ178: 87 | AR178: 88 | AS178: 89 | AT178: 90
D179: 91 | E179: 92 | F179: 93 | G179: 94 | H179: 95 | I179: 96 | J179: 97 | K179: 98 | L179: 99 | M179: 100 | O179: 91 | P179: 92 | Q179: 93 | R179: 94 | S179: 95 | T179: 96 | U179: 97 | V179: 98 | W179: 99 | X179: 100 | Z179: 91 | AA179: 92 | AB179: 93 | AC179: 94 | AD179: 95 | AE179: 96 | AF179: 97 | AG179: 98 | AH179: 99 | AI179: 100 | AK179: 91 | AL179: 92 | AM179: 93 | AN179: 94 | AO179: 95 | AP179: 96 | AQ179: 97 | AR179: 98 | AS179: 99 | AT179: 100
D182: Non-smoker | O182: Ex-smoker | Z182: Occasional smoker | AK182: Daily smoker
B184: Lifetime risk of alcohol-related harm
D186: 1 | E186: 2 | F186: 3 | G186: 4 | H186: 5 | I186: 6 | J186: 7 | K186: 8 | L186: 9 | M186: 10 | O186: 1 | P186: 2 | Q186: 3 | R186: 4 | S186: 5 | T186: 6 | U186: 7 | V186: 8 | W186: 9 | X186: 10 | Z186: 1 | AA186: 2 | AB186: 3 | AC186: 4 | AD186: 5 | AE186: 6 | AF186: 7 | AG186: 8 | AH186: 9 | AI186: 10 | AK186: 1 | AL186: 2 | AM186: 3 | AN186: 4 | AO186: 5 | AP186: 6 | AQ186: 7 | AR186: 8 | AS186: 9 | AT186: 10
D187: 11 | E187: 12 | F187: 13 | G187: 14 | H187: 15 | I187: 16 | J187: 17 | K187: 18 | L187: 19 | M187: 20 | O187: 11 | P187: 12 | Q187: 13 | R187: 14 | S187: 15 | T187: 16 | U187: 17 | V187: 18 | W187: 19 | X187: 20 | Z187: 11 | AA187: 12 | AB187: 13 | AC187: 14 | AD187: 15 | AE187: 16 | AF187: 17 | AG187: 18 | AH187: 19 | AI187: 20 | AK187: 11 | AL187: 12 | AM187: 13 | AN187: 14 | AO187: 15 | AP187: 16 | AQ187: 17 | AR187: 18 | AS187: 19 | AT187: 20
D188: 21 | E188: 22 | F188: 23 | G188: 24 | H188: 25 | I188: 26 | J188: 27 | K188: 28 | L188: 29 | M188: 30 | O188: 21 | P188: 22 | Q188: 23 | R188: 24 | S188: 25 | T188: 26 | U188: 27 | V188: 28 | W188: 29 | X188: 30 | Z188: 21 | AA188: 22 | AB188: 23 | AC188: 24 | AD188: 25 | AE188: 26 | AF188: 27 | AG188: 28 | AH188: 29 | AI188: 30 | AK188: 21 | AL188: 22 | AM188: 23 | AN188: 24 | AO188: 25 | AP188: 26 | AQ188: 27 | AR188: 28 | AS188: 29 | AT188: 30
D189: 31 | E189: 32 | F189: 33 | G189: 34 | H189: 35 | I189: 36 | J189: 37 | K189: 38 | L189: 39 | M189: 40 | O189: 31 | P189: 32 | Q189: 33 | R189: 34 | S189: 35 | T189: 36 | U189: 37 | V189: 38 | W189: 39 | X189: 40 | Z189: 31 | AA189: 32 | AB189: 33 | AC189: 34 | AD189: 35 | AE189: 36 | AF189: 37 | AG189: 38 | AH189: 39 | AI189: 40 | AK189: 31 | AL189: 32 | AM189: 33 | AN189: 34 | AO189: 35 | AP189: 36 | AQ189: 37 | AR189: 38 | AS189: 39 | AT189: 40
D190: 41 | E190: 42 | F190: 43 | G190: 44 | H190: 45 | I190: 46 | J190: 47 | K190: 48 | L190: 49 | M190: 50 | O190: 41 | P190: 42 | Q190: 43 | R190: 44 | S190: 45 | T190: 46 | U190: 47 | V190: 48 | W190: 49 | X190: 50 | Z190: 41 | AA190: 42 | AB190: 43 | AC190: 44 | AD190: 45 | AE190: 46 | AF190: 47 | AG190: 48 | AH190: 49 | AI190: 50 | AK190: 41 | AL190: 42 | AM190: 43 | AN190: 44 | AO190: 45 | AP190: 46 | AQ190: 47 | AR190: 48 | AS190: 49 | AT190: 50
D191: 51 | E191: 52 | F191: 53 | G191: 54 | H191: 55 | I191: 56 | J191: 57 | K191: 58 | L191: 59 | M191: 60 | O191: 51 | P191: 52 | Q191: 53 | R191: 54 | S191: 55 | T191: 56 | U191: 57 | V191: 58 | W191: 59 | X191: 60 | Z191: 51 | AA191: 52 | AB191: 53 | AC191: 54 | AD191: 55 | AE191: 56 | AF191: 57 | AG191: 58 | AH191: 59 | AI191: 60 | AK191: 51 | AL191: 52 | AM191: 53 | AN191: 54 | AO191: 55 | AP191: 56 | AQ191: 57 | AR191: 58 | AS191: 59 | AT191: 60
D192: 61 | E192: 62 | F192: 63 | G192: 64 | H192: 65 | I192: 66 | J192: 67 | K192: 68 | L192: 69 | M192: 70 | O192: 61 | P192: 62 | Q192: 63 | R192: 64 | S192: 65 | T192: 66 | U192: 67 | V192: 68 | W192: 69 | X192: 70 | Z192: 61 | AA192: 62 | AB192: 63 | AC192: 64 | AD192: 65 | AE192: 66 | AF192: 67 | AG192: 68 | AH192: 69 | AI192: 70 | AK192: 61 | AL192: 62 | AM192: 63 | AN192: 64 | AO192: 65 | AP192: 66 | AQ192: 67 | AR192: 68 | AS192: 69 | AT192: 70
D193: 71 | E193: 72 | F193: 73 | G193: 74 | H193: 75 | I193: 76 | J193: 77 | K193: 78 | L193: 79 | M193: 80 | O193: 71 | P193: 72 | Q193: 73 | R193: 74 | S193: 75 | T193: 76 | U193: 77 | V193: 78 | W193: 79 | X193: 80 | Z193: 71 | AA193: 72 | AB193: 73 | AC193: 74 | AD193: 75 | AE193: 76 | AF193: 77 | AG193: 78 | AH193: 79 | AI193: 80 | AK193: 71 | AL193: 72 | AM193: 73 | AN193: 74 | AO193: 75 | AP193: 76 | AQ193: 77 | AR193: 78 | AS193: 79 | AT193: 80
D194: 81 | E194: 82 | F194: 83 | G194: 84 | H194: 85 | I194: 86 | J194: 87 | K194: 88 | L194: 89 | M194: 90 | O194: 81 | P194: 82 | Q194: 83 | R194: 84 | S194: 85 | T194: 86 | U194: 87 | V194: 88 | W194: 89 | X194: 90 | Z194: 81 | AA194: 82 | AB194: 83 | AC194: 84 | AD194: 85 | AE194: 86 | AF194: 87 | AG194: 88 | AH194: 89 | AI194: 90 | AK194: 81 | AL194: 82 | AM194: 83 | AN194: 84 | AO194: 85 | AP194: 86 | AQ194: 87 | AR194: 88 | AS194: 89 | AT194: 90
D195: 91 | E195: 92 | F195: 93 | G195: 94 | H195: 95 | I195: 96 | J195: 97 | K195: 98 | L195: 99 | M195: 100 | O195: 91 | P195: 92 | Q195: 93 | R195: 94 | S195: 95 | T195: 96 | U195: 97 | V195: 98 | W195: 99 | X195: 100 | Z195: 91 | AA195: 92 | AB195: 93 | AC195: 94 | AD195: 95 | AE195: 96 | AF195: 97 | AG195: 98 | AH195: 99 | AI195: 100 | AK195: 91 | AL195: 92 | AM195: 93 | AN195: 94 | AO195: 95 | AP195: 96 | AQ195: 97 | AR195: 98 | AS195: 99 | AT195: 100
D198: Abstainer / No longer drinks alcohol | O198: Reduced risk | Z198: Increased risk: either yearly, monthly or weekly
B200: Risk of alcohol-related harm from a single occasion of drinking
D202: 1 | E202: 2 | F202: 3 | G202: 4 | H202: 5 | I202: 6 | J202: 7 | K202: 8 | L202: 9 | M202: 10 | O202: 1 | P202: 2 | Q202: 3 | R202: 4 | S202: 5 | T202: 6 | U202: 7 | V202: 8 | W202: 9 | X202: 10 | Z202: 1 | AA202: 2 | AB202: 3 | AC202: 4 | AD202: 5 | AE202: 6 | AF202: 7 | AG202: 8 | AH202: 9 | AI202: 10 | AK202: 1 | AL202: 2 | AM202: 3 | AN202: 4 | AO202: 5 | AP202: 6 | AQ202: 7 | AR202: 8 | AS202: 9 | AT202: 10
D203: 11 | E203: 12 | F203: 13 | G203: 14 | H203: 15 | I203: 16 | J203: 17 | K203: 18 | L203: 19 | M203: 20 | O203: 11 | P203: 12 | Q203: 13 | R203: 14 | S203: 15 | T203: 16 | U203: 17 | V203: 18 | W203: 19 | X203: 20 | Z203: 11 | AA203: 12 | AB203: 13 | AC203: 14 | AD203: 15 | AE203: 16 | AF203: 17 | AG203: 18 | AH203: 19 | AI203: 20 | AK203: 11 | AL203: 12 | AM203: 13 | AN203: 14 | AO203: 15 | AP203: 16 | AQ203: 17 | AR203: 18 | AS203: 19 | AT203: 20
D204: 21 | E204: 22 | F204: 23 | G204: 24 | H204: 25 | I204: 26 | J204: 27 | K204: 28 | L204: 29 | M204: 30 | O204: 21 | P204: 22 | Q204: 23 | R204: 24 | S204: 25 | T204: 26 | U204: 27 | V204: 28 | W204: 29 | X204: 30 | Z204: 21 | AA204: 22 | AB204: 23 | AC204: 24 | AD204: 25 | AE204: 26 | AF204: 27 | AG204: 28 | AH204: 29 | AI204: 30 | AK204: 21 | AL204: 22 | AM204: 23 | AN204: 24 | AO204: 25 | AP204: 26 | AQ204: 27 | AR204: 28 | AS204: 29 | AT204: 30
D205: 31 | E205: 32 | F205: 33 | G205: 34 | H205: 35 | I205: 36 | J205: 37 | K205: 38 | L205: 39 | M205: 40 | O205: 31 | P205: 32 | Q205: 33 | R205: 34 | S205: 35 | T205: 36 | U205: 37 | V205: 38 | W205: 39 | X205: 40 | Z205: 31 | AA205: 32 | AB205: 33 | AC205: 34 | AD205: 35 | AE205: 36 | AF205: 37 | AG205: 38 | AH205: 39 | AI205: 40 | AK205: 31 | AL205: 32 | AM205: 33 | AN205: 34 | AO205: 35 | AP205: 36 | AQ205: 37 | AR205: 38 | AS205: 39 | AT205: 40
D206: 41 | E206: 42 | F206: 43 | G206: 44 | H206: 45 | I206: 46 | J206: 47 | K206: 48 | L206: 49 | M206: 50 | O206: 41 | P206: 42 | Q206: 43 | R206: 44 | S206: 45 | T206: 46 | U206: 47 | V206: 48 | W206: 49 | X206: 50 | Z206: 41 | AA206: 42 | AB206: 43 | AC206: 44 | AD206: 45 | AE206: 46 | AF206: 47 | AG206: 48 | AH206: 49 | AI206: 50 | AK206: 41 | AL206: 42 | AM206: 43 | AN206: 44 | AO206: 45 | AP206: 46 | AQ206: 47 | AR206: 48 | AS206: 49 | AT206: 50
D207: 51 | E207: 52 | F207: 53 | G207: 54 | H207: 55 | I207: 56 | J207: 57 | K207: 58 | L207: 59 | M207: 60 | O207: 51 | P207: 52 | Q207: 53 | R207: 54 | S207: 55 | T207: 56 | U207: 57 | V207: 58 | W207: 59 | X207: 60 | Z207: 51 | AA207: 52 | AB207: 53 | AC207: 54 | AD207: 55 | AE207: 56 | AF207: 57 | AG207: 58 | AH207: 59 | AI207: 60 | AK207: 51 | AL207: 52 | AM207: 53 | AN207: 54 | AO207: 55 | AP207: 56 | AQ207: 57 | AR207: 58 | AS207: 59 | AT207: 60
D208: 61 | E208: 62 | F208: 63 | G208: 64 | H208: 65 | I208: 66 | J208: 67 | K208: 68 | L208: 69 | M208: 70 | O208: 61 | P208: 62 | Q208: 63 | R208: 64 | S208: 65 | T208: 66 | U208: 67 | V208: 68 | W208: 69 | X208: 70 | Z208: 61 | AA208: 62 | AB208: 63 | AC208: 64 | AD208: 65 | AE208: 66 | AF208: 67 | AG208: 68 | AH208: 69 | AI208: 70 | AK208: 61 | AL208: 62 | AM208: 63 | AN208: 64 | AO208: 65 | AP208: 66 | AQ208: 67 | AR208: 68 | AS208: 69 | AT208: 70
D209: 71 | E209: 72 | F209: 73 | G209: 74 | H209: 75 | I209: 76 | J209: 77 | K209: 78 | L209: 79 | M209: 80 | O209: 71 | P209: 72 | Q209: 73 | R209: 74 | S209: 75 | T209: 76 | U209: 77 | V209: 78 | W209: 79 | X209: 80 | Z209: 71 | AA209: 72 | AB209: 73 | AC209: 74 | AD209: 75 | AE209: 76 | AF209: 77 | AG209: 78 | AH209: 79 | AI209: 80 | AK209: 71 | AL209: 72 | AM209: 73 | AN209: 74 | AO209: 75 | AP209: 76 | AQ209: 77 | AR209: 78 | AS209: 79 | AT209: 80
D210: 81 | E210: 82 | F210: 83 | G210: 84 | H210: 85 | I210: 86 | J210: 87 | K210: 88 | L210: 89 | M210: 90 | O210: 81 | P210: 82 | Q210: 83 | R210: 84 | S210: 85 | T210: 86 | U210: 87 | V210: 88 | W210: 89 | X210: 90 | Z210: 81 | AA210: 82 | AB210: 83 | AC210: 84 | AD210: 85 | AE210: 86 | AF210: 87 | AG210: 88 | AH210: 89 | AI210: 90 | AK210: 81 | AL210: 82 | AM210: 83 | AN210: 84 | AO210: 85 | AP210: 86 | AQ210: 87 | AR210: 88 | AS210: 89 | AT210: 90
D211: 91 | E211: 92 | F211: 93 | G211: 94 | H211: 95 | I211: 96 | J211: 97 | K211: 98 | L211: 99 | M211: 100 | O211: 91 | P211: 92 | Q211: 93 | R211: 94 | S211: 95 | T211: 96 | U211: 97 | V211: 98 | W211: 99 | X211: 100 | Z211: 91 | AA211: 92 | AB211: 93 | AC211: 94 | AD211: 95 | AE211: 96 | AF211: 97 | AG211: 98 | AH211: 99 | AI211: 100 | AK211: 91 | AL211: 92 | AM211: 93 | AN211: 94 | AO211: 95 | AP211: 96 | AQ211: 97 | AR211: 98 | AS211: 99 | AT211: 100
D214: Abstainer / No longer drinks alcohol | O214: Reduced risk | Z214: Increased risk: either yearly, monthly or weekly
B216: Level of psychological distress
D218: 1 | E218: 2 | F218: 3 | G218: 4 | H218: 5 | I218: 6 | J218: 7 | K218: 8 | L218: 9 | M218: 10 | O218: 1 | P218: 2 | Q218: 3 | R218: 4 | S218: 5 | T218: 6 | U218: 7 | V218: 8 | W218: 9 | X218: 10 | Z218: 1 | AA218: 2 | AB218: 3 | AC218: 4 | AD218: 5 | AE218: 6 | AF218: 7 | AG218: 8 | AH218: 9 | AI218: 10 | AK218: 1 | AL218: 2 | AM218: 3 | AN218: 4 | AO218: 5 | AP218: 6 | AQ218: 7 | AR218: 8 | AS218: 9 | AT218: 10
D219: 11 | E219: 12 | F219: 13 | G219: 14 | H219: 15 | I219: 16 | J219: 17 | K219: 18 | L219: 19 | M219: 20 | O219: 11 | P219: 12 | Q219: 13 | R219: 14 | S219: 15 | T219: 16 | U219: 17 | V219: 18 | W219: 19 | X219: 20 | Z219: 11 | AA219: 12 | AB219: 13 | AC219: 14 | AD219: 15 | AE219: 16 | AF219: 17 | AG219: 18 | AH219: 19 | AI219: 20 | AK219: 11 | AL219: 12 | AM219: 13 | AN219: 14 | AO219: 15 | AP219: 16 | AQ219: 17 | AR219: 18 | AS219: 19 | AT219: 20
D220: 21 | E220: 22 | F220: 23 | G220: 24 | H220: 25 | I220: 26 | J220: 27 | K220: 28 | L220: 29 | M220: 30 | O220: 21 | P220: 22 | Q220: 23 | R220: 24 | S220: 25 | T220: 26 | U220: 27 | V220: 28 | W220: 29 | X220: 30 | Z220: 21 | AA220: 22 | AB220: 23 | AC220: 24 | AD220: 25 | AE220: 26 | AF220: 27 | AG220: 28 | AH220: 29 | AI220: 30 | AK220: 21 | AL220: 22 | AM220: 23 | AN220: 24 | AO220: 25 | AP220: 26 | AQ220: 27 | AR220: 28 | AS220: 29 | AT220: 30
D221: 31 | E221: 32 | F221: 33 | G221: 34 | H221: 35 | I221: 36 | J221: 37 | K221: 38 | L221: 39 | M221: 40 | O221: 31 | P221: 32 | Q221: 33 | R221: 34 | S221: 35 | T221: 36 | U221: 37 | V221: 38 | W221: 39 | X221: 40 | Z221: 31 | AA221: 32 | AB221: 33 | AC221: 34 | AD221: 35 | AE221: 36 | AF221: 37 | AG221: 38 | AH221: 39 | AI221: 40 | AK221: 31 | AL221: 32 | AM221: 33 | AN221: 34 | AO221: 35 | AP221: 36 | AQ221: 37 | AR221: 38 | AS221: 39 | AT221: 40
D222: 41 | E222: 42 | F222: 43 | G222: 44 | H222: 45 | I222: 46 | J222: 47 | K222: 48 | L222: 49 | M222: 50 | O222: 41 | P222: 42 | Q222: 43 | R222: 44 | S222: 45 | T222: 46 | U222: 47 | V222: 48 | W222: 49 | X222: 50 | Z222: 41 | AA222: 42 | AB222: 43 | AC222: 44 | AD222: 45 | AE222: 46 | AF222: 47 | AG222: 48 | AH222: 49 | AI222: 50 | AK222: 41 | AL222: 42 | AM222: 43 | AN222: 44 | AO222: 45 | AP222: 46 | AQ222: 47 | AR222: 48 | AS222: 49 | AT222: 50
D223: 51 | E223: 52 | F223: 53 | G223: 54 | H223: 55 | I223: 56 | J223: 57 | K223: 58 | L223: 59 | M223: 60 | O223: 51 | P223: 52 | Q223: 53 | R223: 54 | S223: 55 | T223: 56 | U223: 57 | V223: 58 | W223: 59 | X223: 60 | Z223: 51 | AA223: 52 | AB223: 53 | AC223: 54 | AD223: 55 | AE223: 56 | AF223: 57 | AG223: 58 | AH223: 59 | AI223: 60 | AK223: 51 | AL223: 52 | AM223: 53 | AN223: 54 | AO223: 55 | AP223: 56 | AQ223: 57 | AR223: 58 | AS223: 59 | AT223: 60
D224: 61 | E224: 62 | F224: 63 | G224: 64 | H224: 65 | I224: 66 | J224: 67 | K224: 68 | L224: 69 | M224: 70 | O224: 61 | P224: 62 | Q224: 63 | R224: 64 | S224: 65 | T224: 66 | U224: 67 | V224: 68 | W224: 69 | X224: 70 | Z224: 61 | AA224: 62 | AB224: 63 | AC224: 64 | AD224: 65 | AE224: 66 | AF224: 67 | AG224: 68 | AH224: 69 | AI224: 70 | AK224: 61 | AL224: 62 | AM224: 63 | AN224: 64 | AO224: 65 | AP224: 66 | AQ224: 67 | AR224: 68 | AS224: 69 | AT224: 70
D225: 71 | E225: 72 | F225: 73 | G225: 74 | H225: 75 | I225: 76 | J225: 77 | K225: 78 | L225: 79 | M225: 80 | O225: 71 | P225: 72 | Q225: 73 | R225: 74 | S225: 75 | T225: 76 | U225: 77 | V225: 78 | W225: 79 | X225: 80 | Z225: 71 | AA225: 72 | AB225: 73 | AC225: 74 | AD225: 75 | AE225: 76 | AF225: 77 | AG225: 78 | AH225: 79 | AI225: 80 | AK225: 71 | AL225: 72 | AM225: 73 | AN225: 74 | AO225: 75 | AP225: 76 | AQ225: 77 | AR225: 78 | AS225: 79 | AT225: 80
D226: 81 | E226: 82 | F226: 83 | G226: 84 | H226: 85 | I226: 86 | J226: 87 | K226: 88 | L226: 89 | M226: 90 | O226: 81 | P226: 82 | Q226: 83 | R226: 84 | S226: 85 | T226: 86 | U226: 87 | V226: 88 | W226: 89 | X226: 90 | Z226: 81 | AA226: 82 | AB226: 83 | AC226: 84 | AD226: 85 | AE226: 86 | AF226: 87 | AG226: 88 | AH226: 89 | AI226: 90 | AK226: 81 | AL226: 82 | AM226: 83 | AN226: 84 | AO226: 85 | AP226: 86 | AQ226: 87 | AR226: 88 | AS226: 89 | AT226: 90
D227: 91 | E227: 92 | F227: 93 | G227: 94 | H227: 95 | I227: 96 | J227: 97 | K227: 98 | L227: 99 | M227: 100 | O227: 91 | P227: 92 | Q227: 93 | R227: 94 | S227: 95 | T227: 96 | U227: 97 | V227: 98 | W227: 99 | X227: 100 | Z227: 91 | AA227: 92 | AB227: 93 | AC227: 94 | AD227: 95 | AE227: 96 | AF227: 97 | AG227: 98 | AH227: 99 | AI227: 100 | AK227: 91 | AL227: 92 | AM227: 93 | AN227: 94 | AO227: 95 | AP227: 96 | AQ227: 97 | AR227: 98 | AS227: 99 | AT227: 100
D230: Low (K10 < 16) | O230: Moderate (K10 16–21) | Z230: High (K10 22–29) | AK230: Very high (K10 30+)
B232: Self-reported health status
D234: 1 | E234: 2 | F234: 3 | G234: 4 | H234: 5 | I234: 6 | J234: 7 | K234: 8 | L234: 9 | M234: 10 | O234: 1 | P234: 2 | Q234: 3 | R234: 4 | S234: 5 | T234: 6 | U234: 7 | V234: 8 | W234: 9 | X234: 10 | Z234: 1 | AA234: 2 | AB234: 3 | AC234: 4 | AD234: 5 | AE234: 6 | AF234: 7 | AG234: 8 | AH234: 9 | AI234: 10 | AK234: 1 | AL234: 2 | AM234: 3 | AN234: 4 | AO234: 5 | AP234: 6 | AQ234: 7 | AR234: 8 | AS234: 9 | AT234: 10
D235: 11 | E235: 12 | F235: 13 | G235: 14 | H235: 15 | I235: 16 | J235: 17 | K235: 18 | L235: 19 | M235: 20 | O235: 11 | P235: 12 | Q235: 13 | R235: 14 | S235: 15 | T235: 16 | U235: 17 | V235: 18 | W235: 19 | X235: 20 | Z235: 11 | AA235: 12 | AB235: 13 | AC235: 14 | AD235: 15 | AE235: 16 | AF235: 17 | AG235: 18 | AH235: 19 | AI235: 20 | AK235: 11 | AL235: 12 | AM235: 13 | AN235: 14 | AO235: 15 | AP235: 16 | AQ235: 17 | AR235: 18 | AS235: 19 | AT235: 20
D236: 21 | E236: 22 | F236: 23 | G236: 24 | H236: 25 | I236: 26 | J236: 27 | K236: 28 | L236: 29 | M236: 30 | O236: 21 | P236: 22 | Q236: 23 | R236: 24 | S236: 25 | T236: 26 | U236: 27 | V236: 28 | W236: 29 | X236: 30 | Z236: 21 | AA236: 22 | AB236: 23 | AC236: 24 | AD236: 25 | AE236: 26 | AF236: 27 | AG236: 28 | AH236: 29 | AI236: 30 | AK236: 21 | AL236: 22 | AM236: 23 | AN236: 24 | AO236: 25 | AP236: 26 | AQ236: 27 | AR236: 28 | AS236: 29 | AT236: 30
D237: 31 | E237: 32 | F237: 33 | G237: 34 | H237: 35 | I237: 36 | J237: 37 | K237: 38 | L237: 39 | M237: 40 | O237: 31 | P237: 32 | Q237: 33 | R237: 34 | S237: 35 | T237: 36 | U237: 37 | V237: 38 | W237: 39 | X237: 40 | Z237: 31 | AA237: 32 | AB237: 33 | AC237: 34 | AD237: 35 | AE237: 36 | AF237: 37 | AG237: 38 | AH237: 39 | AI237: 40 | AK237: 31 | AL237: 32 | AM237: 33 | AN237: 34 | AO237: 35 | AP237: 36 | AQ237: 37 | AR237: 38 | AS237: 39 | AT237: 40
D238: 41 | E238: 42 | F238: 43 | G238: 44 | H238: 45 | I238: 46 | J238: 47 | K238: 48 | L238: 49 | M238: 50 | O238: 41 | P238: 42 | Q238: 43 | R238: 44 | S238: 45 | T238: 46 | U238: 47 | V238: 48 | W238: 49 | X238: 50 | Z238: 41 | AA238: 42 | AB238: 43 | AC238: 44 | AD238: 45 | AE238: 46 | AF238: 47 | AG238: 48 | AH238: 49 | AI238: 50 | AK238: 41 | AL238: 42 | AM238: 43 | AN238: 44 | AO238: 45 | AP238: 46 | AQ238: 47 | AR238: 48 | AS238: 49 | AT238: 50
D239: 51 | E239: 52 | F239: 53 | G239: 54 | H239: 55 | I239: 56 | J239: 57 | K239: 58 | L239: 59 | M239: 60 | O239: 51 | P239: 52 | Q239: 53 | R239: 54 | S239: 55 | T239: 56 | U239: 57 | V239: 58 | W239: 59 | X239: 60 | Z239: 51 | AA239: 52 | AB239: 53 | AC239: 54 | AD239: 55 | AE239: 56 | AF239: 57 | AG239: 58 | AH239: 59 | AI239: 60 | AK239: 51 | AL239: 52 | AM239: 53 | AN239: 54 | AO239: 55 | AP239: 56 | AQ239: 57 | AR239: 58 | AS239: 59 | AT239: 60
D240: 61 | E240: 62 | F240: 63 | G240: 64 | H240: 65 | I240: 66 | J240: 67 | K240: 68 | L240: 69 | M240: 70 | O240: 61 | P240: 62 | Q240: 63 | R240: 64 | S240: 65 | T240: 66 | U240: 67 | V240: 68 | W240: 69 | X240: 70 | Z240: 61 | AA240: 62 | AB240: 63 | AC240: 64 | AD240: 65 | AE240: 66 | AF240: 67 | AG240: 68 | AH240: 69 | AI240: 70 | AK240: 61 | AL240: 62 | AM240: 63 | AN240: 64 | AO240: 65 | AP240: 66 | AQ240: 67 | AR240: 68 | AS240: 69 | AT240: 70
D241: 71 | E241: 72 | F241: 73 | G241: 74 | H241: 75 | I241: 76 | J241: 77 | K241: 78 | L241: 79 | M241: 80 | O241: 71 | P241: 72 | Q241: 73 | R241: 74 | S241: 75 | T241: 76 | U241: 77 | V241: 78 | W241: 79 | X241: 80 | Z241: 71 | AA241: 72 | AB241: 73 | AC241: 74 | AD241: 75 | AE241: 76 | AF241: 77 | AG241: 78 | AH241: 79 | AI241: 80 | AK241: 71 | AL241: 72 | AM241: 73 | AN241: 74 | AO241: 75 | AP241: 76 | AQ241: 77 | AR241: 78 | AS241: 79 | AT241: 80
D242: 81 | E242: 82 | F242: 83 | G242: 84 | H242: 85 | I242: 86 | J242: 87 | K242: 88 | L242: 89 | M242: 90 | O242: 81 | P242: 82 | Q242: 83 | R242: 84 | S242: 85 | T242: 86 | U242: 87 | V242: 88 | W242: 89 | X242: 90 | Z242: 81 | AA242: 82 | AB242: 83 | AC242: 84 | AD242: 85 | AE242: 86 | AF242: 87 | AG242: 88 | AH242: 89 | AI242: 90 | AK242: 81 | AL242: 82 | AM242: 83 | AN242: 84 | AO242: 85 | AP242: 86 | AQ242: 87 | AR242: 88 | AS242: 89 | AT242: 90
D243: 91 | E243: 92 | F243: 93 | G243: 94 | H243: 95 | I243: 96 | J243: 97 | K243: 98 | L243: 99 | M243: 100 | O243: 91 | P243: 92 | Q243: 93 | R243: 94 | S243: 95 | T243: 96 | U243: 97 | V243: 98 | W243: 99 | X243: 100 | Z243: 91 | AA243: 92 | AB243: 93 | AC243: 94 | AD243: 95 | AE243: 96 | AF243: 97 | AG243: 98 | AH243: 99 | AI243: 100 | AK243: 91 | AL243: 92 | AM243: 93 | AN243: 94 | AO243: 95 | AP243: 96 | AQ243: 97 | AR243: 98 | AS243: 99 | AT243: 100
D246: Excellent / very good | O246: Good | Z246: Fair/poor
B248: Life satisfaction
D250: 1 | E250: 2 | F250: 3 | G250: 4 | H250: 5 | I250: 6 | J250: 7 | K250: 8 | L250: 9 | M250: 10 | O250: 1 | P250: 2 | Q250: 3 | R250: 4 | S250: 5 | T250: 6 | U250: 7 | V250: 8 | W250: 9 | X250: 10 | Z250: 1 | AA250: 2 | AB250: 3 | AC250: 4 | AD250: 5 | AE250: 6 | AF250: 7 | AG250: 8 | AH250: 9 | AI250: 10 | AK250: 1 | AL250: 2 | AM250: 3 | AN250: 4 | AO250: 5 | AP250: 6 | AQ250: 7 | AR250: 8 | AS250: 9 | AT250: 10
D251: 11 | E251: 12 | F251: 13 | G251: 14 | H251: 15 | I251: 16 | J251: 17 | K251: 18 | L251: 19 | M251: 20 | O251: 11 | P251: 12 | Q251: 13 | R251: 14 | S251: 15 | T251: 16 | U251: 17 | V251: 18 | W251: 19 | X251: 20 | Z251: 11 | AA251: 12 | AB251: 13 | AC251: 14 | AD251: 15 | AE251: 16 | AF251: 17 | AG251: 18 | AH251: 19 | AI251: 20 | AK251: 11 | AL251: 12 | AM251: 13 | AN251: 14 | AO251: 15 | AP251: 16 | AQ251: 17 | AR251: 18 | AS251: 19 | AT251: 20
D252: 21 | E252: 22 | F252: 23 | G252: 24 | H252: 25 | I252: 26 | J252: 27 | K252: 28 | L252: 29 | M252: 30 | O252: 21 | P252: 22 | Q252: 23 | R252: 24 | S252: 25 | T252: 26 | U252: 27 | V252: 28 | W252: 29 | X252: 30 | Z252: 21 | AA252: 22 | AB252: 23 | AC252: 24 | AD252: 25 | AE252: 26 | AF252: 27 | AG252: 28 | AH252: 29 | AI252: 30 | AK252: 21 | AL252: 22 | AM252: 23 | AN252: 24 | AO252: 25 | AP252: 26 | AQ252: 27 | AR252: 28 | AS252: 29 | AT252: 30
D253: 31 | E253: 32 | F253: 33 | G253: 34 | H253: 35 | I253: 36 | J253: 37 | K253: 38 | L253: 39 | M253: 40 | O253: 31 | P253: 32 | Q253: 33 | R253: 34 | S253: 35 | T253: 36 | U253: 37 | V253: 38 | W253: 39 | X253: 40 | Z253: 31 | AA253: 32 | AB253: 33 | AC253: 34 | AD253: 35 | AE253: 36 | AF253: 37 | AG253: 38 | AH253: 39 | AI253: 40 | AK253: 31 | AL253: 32 | AM253: 33 | AN253: 34 | AO253: 35 | AP253: 36 | AQ253: 37 | AR253: 38 | AS253: 39 | AT253: 40
D254: 41 | E254: 42 | F254: 43 | G254: 44 | H254: 45 | I254: 46 | J254: 47 | K254: 48 | L254: 49 | M254: 50 | O254: 41 | P254: 42 | Q254: 43 | R254: 44 | S254: 45 | T254: 46 | U254: 47 | V254: 48 | W254: 49 | X254: 50 | Z254: 41 | AA254: 42 | AB254: 43 | AC254: 44 | AD254: 45 | AE254: 46 | AF254: 47 | AG254: 48 | AH254: 49 | AI254: 50 | AK254: 41 | AL254: 42 | AM254: 43 | AN254: 44 | AO254: 45 | AP254: 46 | AQ254: 47 | AR254: 48 | AS254: 49 | AT254: 50
D255: 51 | E255: 52 | F255: 53 | G255: 54 | H255: 55 | I255: 56 | J255: 57 | K255: 58 | L255: 59 | M255: 60 | O255: 51 | P255: 52 | Q255: 53 | R255: 54 | S255: 55 | T255: 56 | U255: 57 | V255: 58 | W255: 59 | X255: 60 | Z255: 51 | AA255: 52 | AB255: 53 | AC255: 54 | AD255: 55 | AE255: 56 | AF255: 57 | AG255: 58 | AH255: 59 | AI255: 60 | AK255: 51 | AL255: 52 | AM255: 53 | AN255: 54 | AO255: 55 | AP255: 56 | AQ255: 57 | AR255: 58 | AS255: 59 | AT255: 60
D256: 61 | E256: 62 | F256: 63 | G256: 64 | H256: 65 | I256: 66 | J256: 67 | K256: 68 | L256: 69 | M256: 70 | O256: 61 | P256: 62 | Q256: 63 | R256: 64 | S256: 65 | T256: 66 | U256: 67 | V256: 68 | W256: 69 | X256: 70 | Z256: 61 | AA256: 62 | AB256: 63 | AC256: 64 | AD256: 65 | AE256: 66 | AF256: 67 | AG256: 68 | AH256: 69 | AI256: 70 | AK256: 61 | AL256: 62 | AM256: 63 | AN256: 64 | AO256: 65 | AP256: 66 | AQ256: 67 | AR256: 68 | AS256: 69 | AT256: 70
D257: 71 | E257: 72 | F257: 73 | G257: 74 | H257: 75 | I257: 76 | J257: 77 | K257: 78 | L257: 79 | M257: 80 | O257: 71 | P257: 72 | Q257: 73 | R257: 74 | S257: 75 | T257: 76 | U257: 77 | V257: 78 | W257: 79 | X257: 80 | Z257: 71 | AA257: 72 | AB257: 73 | AC257: 74 | AD257: 75 | AE257: 76 | AF257: 77 | AG257: 78 | AH257: 79 | AI257: 80 | AK257: 71 | AL257: 72 | AM257: 73 | AN257: 74 | AO257: 75 | AP257: 76 | AQ257: 77 | AR257: 78 | AS257: 79 | AT257: 80
D258: 81 | E258: 82 | F258: 83 | G258: 84 | H258: 85 | I258: 86 | J258: 87 | K258: 88 | L258: 89 | M258: 90 | O258: 81 | P258: 82 | Q258: 83 | R258: 84 | S258: 85 | T258: 86 | U258: 87 | V258: 88 | W258: 89 | X258: 90 | Z258: 81 | AA258: 82 | AB258: 83 | AC258: 84 | AD258: 85 | AE258: 86 | AF258: 87 | AG258: 88 | AH258: 89 | AI258: 90 | AK258: 81 | AL258: 82 | AM258: 83 | AN258: 84 | AO258: 85 | AP258: 86 | AQ258: 87 | AR258: 88 | AS258: 89 | AT258: 90
D259: 91 | E259: 92 | F259: 93 | G259: 94 | H259: 95 | I259: 96 | J259: 97 | K259: 98 | L259: 99 | M259: 100 | O259: 91 | P259: 92 | Q259: 93 | R259: 94 | S259: 95 | T259: 96 | U259: 97 | V259: 98 | W259: 99 | X259: 100 | Z259: 91 | AA259: 92 | AB259: 93 | AC259: 94 | AD259: 95 | AE259: 96 | AF259: 97 | AG259: 98 | AH259: 99 | AI259: 100 | AK259: 91 | AL259: 92 | AM259: 93 | AN259: 94 | AO259: 95 | AP259: 96 | AQ259: 97 | AR259: 98 | AS259: 99 | AT259: 100
D262: Low or medium (0-6) | O262: High (7-8) | Z262: Very high (9-10)
B264: Feeling of life being worthwhile
D266: 1 | E266: 2 | F266: 3 | G266: 4 | H266: 5 | I266: 6 | J266: 7 | K266: 8 | L266: 9 | M266: 10 | O266: 1 | P266: 2 | Q266: 3 | R266: 4 | S266: 5 | T266: 6 | U266: 7 | V266: 8 | W266: 9 | X266: 10 | Z266: 1 | AA266: 2 | AB266: 3 | AC266: 4 | AD266: 5 | AE266: 6 | AF266: 7 | AG266: 8 | AH266: 9 | AI266: 10 | AK266: 1 | AL266: 2 | AM266: 3 | AN266: 4 | AO266: 5 | AP266: 6 | AQ266: 7 | AR266: 8 | AS266: 9 | AT266: 10
D267: 11 | E267: 12 | F267: 13 | G267: 14 | H267: 15 | I267: 16 | J267: 17 | K267: 18 | L267: 19 | M267: 20 | O267: 11 | P267: 12 | Q267: 13 | R267: 14 | S267: 15 | T267: 16 | U267: 17 | V267: 18 | W267: 19 | X267: 20 | Z267: 11 | AA267: 12 | AB267: 13 | AC267: 14 | AD267: 15 | AE267: 16 | AF267: 17 | AG267: 18 | AH267: 19 | AI267: 20 | AK267: 11 | AL267: 12 | AM267: 13 | AN267: 14 | AO267: 15 | AP267: 16 | AQ267: 17 | AR267: 18 | AS267: 19 | AT267: 20
D268: 21 | E268: 22 | F268: 23 | G268: 24 | H268: 25 | I268: 26 | J268: 27 | K268: 28 | L268: 29 | M268: 30 | O268: 21 | P268: 22 | Q268: 23 | R268: 24 | S268: 25 | T268: 26 | U268: 27 | V268: 28 | W268: 29 | X268: 30 | Z268: 21 | AA268: 22 | AB268: 23 | AC268: 24 | AD268: 25 | AE268: 26 | AF268: 27 | AG268: 28 | AH268: 29 | AI268: 30 | AK268: 21 | AL268: 22 | AM268: 23 | AN268: 24 | AO268: 25 | AP268: 26 | AQ268: 27 | AR268: 28 | AS268: 29 | AT268: 30
D269: 31 | E269: 32 | F269: 33 | G269: 34 | H269: 35 | I269: 36 | J269: 37 | K269: 38 | L269: 39 | M269: 40 | O269: 31 | P269: 32 | Q269: 33 | R269: 34 | S269: 35 | T269: 36 | U269: 37 | V269: 38 | W269: 39 | X269: 40 | Z269: 31 | AA269: 32 | AB269: 33 | AC269: 34 | AD269: 35 | AE269: 36 | AF269: 37 | AG269: 38 | AH269: 39 | AI269: 40 | AK269: 31 | AL269: 32 | AM269: 33 | AN269: 34 | AO269: 35 | AP269: 36 | AQ269: 37 | AR269: 38 | AS269: 39 | AT269: 40
D270: 41 | E270: 42 | F270: 43 | G270: 44 | H270: 45 | I270: 46 | J270: 47 | K270: 48 | L270: 49 | M270: 50 | O270: 41 | P270: 42 | Q270: 43 | R270: 44 | S270: 45 | T270: 46 | U270: 47 | V270: 48 | W270: 49 | X270: 50 | Z270: 41 | AA270: 42 | AB270: 43 | AC270: 44 | AD270: 45 | AE270: 46 | AF270: 47 | AG270: 48 | AH270: 49 | AI270: 50 | AK270: 41 | AL270: 42 | AM270: 43 | AN270: 44 | AO270: 45 | AP270: 46 | AQ270: 47 | AR270: 48 | AS270: 49 | AT270: 50
D271: 51 | E271: 52 | F271: 53 | G271: 54 | H271: 55 | I271: 56 | J271: 57 | K271: 58 | L271: 59 | M271: 60 | O271: 51 | P271: 52 | Q271: 53 | R271: 54 | S271: 55 | T271: 56 | U271: 57 | V271: 58 | W271: 59 | X271: 60 | Z271: 51 | AA271: 52 | AB271: 53 | AC271: 54 | AD271: 55 | AE271: 56 | AF271: 57 | AG271: 58 | AH271: 59 | AI271: 60 | AK271: 51 | AL271: 52 | AM271: 53 | AN271: 54 | AO271: 55 | AP271: 56 | AQ271: 57 | AR271: 58 | AS271: 59 | AT271: 60
... 160 more rows

Sheet Infographic-Social Capital
B2: Men
B8: Contact with others - number of people spoken to in last 24 hours
D10: 1 | E10: 2 | F10: 3 | G10: 4 | H10: 5 | I10: 6 | J10: 7 | K10: 8 | L10: 9 | M10: 10 | O10: 1 | P10: 2 | Q10: 3 | R10: 4 | S10: 5 | T10: 6 | U10: 7 | V10: 8 | W10: 9 | X10: 10 | Z10: 1 | AA10: 2 | AB10: 3 | AC10: 4 | AD10: 5 | AE10: 6 | AF10: 7 | AG10: 8 | AH10: 9 | AI10: 10 | AK10: 1 | AL10: 2 | AM10: 3 | AN10: 4 | AO10: 5 | AP10: 6 | AQ10: 7 | AR10: 8 | AS10: 9 | AT10: 10
D11: 11 | E11: 12 | F11: 13 | G11: 14 | H11: 15 | I11: 16 | J11: 17 | K11: 18 | L11: 19 | M11: 20 | O11: 11 | P11: 12 | Q11: 13 | R11: 14 | S11: 15 | T11: 16 | U11: 17 | V11: 18 | W11: 19 | X11: 20 | Z11: 11 | AA11: 12 | AB11: 13 | AC11: 14 | AD11: 15 | AE11: 16 | AF11: 17 | AG11: 18 | AH11: 19 | AI11: 20 | AK11: 11 | AL11: 12 | AM11: 13 | AN11: 14 | AO11: 15 | AP11: 16 | AQ11: 17 | AR11: 18 | AS11: 19 | AT11: 20
D12: 21 | E12: 22 | F12: 23 | G12: 24 | H12: 25 | I12: 26 | J12: 27 | K12: 28 | L12: 29 | M12: 30 | O12: 21 | P12: 22 | Q12: 23 | R12: 24 | S12: 25 | T12: 26 | U12: 27 | V12: 28 | W12: 29 | X12: 30 | Z12: 21 | AA12: 22 | AB12: 23 | AC12: 24 | AD12: 25 | AE12: 26 | AF12: 27 | AG12: 28 | AH12: 29 | AI12: 30 | AK12: 21 | AL12: 22 | AM12: 23 | AN12: 24 | AO12: 25 | AP12: 26 | AQ12: 27 | AR12: 28 | AS12: 29 | AT12: 30
D13: 31 | E13: 32 | F13: 33 | G13: 34 | H13: 35 | I13: 36 | J13: 37 | K13: 38 | L13: 39 | M13: 40 | O13: 31 | P13: 32 | Q13: 33 | R13: 34 | S13: 35 | T13: 36 | U13: 37 | V13: 38 | W13: 39 | X13: 40 | Z13: 31 | AA13: 32 | AB13: 33 | AC13: 34 | AD13: 35 | AE13: 36 | AF13: 37 | AG13: 38 | AH13: 39 | AI13: 40 | AK13: 31 | AL13: 32 | AM13: 33 | AN13: 34 | AO13: 35 | AP13: 36 | AQ13: 37 | AR13: 38 | AS13: 39 | AT13: 40
D14: 41 | E14: 42 | F14: 43 | G14: 44 | H14: 45 | I14: 46 | J14: 47 | K14: 48 | L14: 49 | M14: 50 | O14: 41 | P14: 42 | Q14: 43 | R14: 44 | S14: 45 | T14: 46 | U14: 47 | V14: 48 | W14: 49 | X14: 50 | Z14: 41 | AA14: 42 | AB14: 43 | AC14: 44 | AD14: 45 | AE14: 46 | AF14: 47 | AG14: 48 | AH14: 49 | AI14: 50 | AK14: 41 | AL14: 42 | AM14: 43 | AN14: 44 | AO14: 45 | AP14: 46 | AQ14: 47 | AR14: 48 | AS14: 49 | AT14: 50
D15: 51 | E15: 52 | F15: 53 | G15: 54 | H15: 55 | I15: 56 | J15: 57 | K15: 58 | L15: 59 | M15: 60 | O15: 51 | P15: 52 | Q15: 53 | R15: 54 | S15: 55 | T15: 56 | U15: 57 | V15: 58 | W15: 59 | X15: 60 | Z15: 51 | AA15: 52 | AB15: 53 | AC15: 54 | AD15: 55 | AE15: 56 | AF15: 57 | AG15: 58 | AH15: 59 | AI15: 60 | AK15: 51 | AL15: 52 | AM15: 53 | AN15: 54 | AO15: 55 | AP15: 56 | AQ15: 57 | AR15: 58 | AS15: 59 | AT15: 60
D16: 61 | E16: 62 | F16: 63 | G16: 64 | H16: 65 | I16: 66 | J16: 67 | K16: 68 | L16: 69 | M16: 70 | O16: 61 | P16: 62 | Q16: 63 | R16: 64 | S16: 65 | T16: 66 | U16: 67 | V16: 68 | W16: 69 | X16: 70 | Z16: 61 | AA16: 62 | AB16: 63 | AC16: 64 | AD16: 65 | AE16: 66 | AF16: 67 | AG16: 68 | AH16: 69 | AI16: 70 | AK16: 61 | AL16: 62 | AM16: 63 | AN16: 64 | AO16: 65 | AP16: 66 | AQ16: 67 | AR16: 68 | AS16: 69 | AT16: 70
D17: 71 | E17: 72 | F17: 73 | G17: 74 | H17: 75 | I17: 76 | J17: 77 | K17: 78 | L17: 79 | M17: 80 | O17: 71 | P17: 72 | Q17: 73 | R17: 74 | S17: 75 | T17: 76 | U17: 77 | V17: 78 | W17: 79 | X17: 80 | Z17: 71 | AA17: 72 | AB17: 73 | AC17: 74 | AD17: 75 | AE17: 76 | AF17: 77 | AG17: 78 | AH17: 79 | AI17: 80 | AK17: 71 | AL17: 72 | AM17: 73 | AN17: 74 | AO17: 75 | AP17: 76 | AQ17: 77 | AR17: 78 | AS17: 79 | AT17: 80
D18: 81 | E18: 82 | F18: 83 | G18: 84 | H18: 85 | I18: 86 | J18: 87 | K18: 88 | L18: 89 | M18: 90 | O18: 81 | P18: 82 | Q18: 83 | R18: 84 | S18: 85 | T18: 86 | U18: 87 | V18: 88 | W18: 89 | X18: 90 | Z18: 81 | AA18: 82 | AB18: 83 | AC18: 84 | AD18: 85 | AE18: 86 | AF18: 87 | AG18: 88 | AH18: 89 | AI18: 90 | AK18: 81 | AL18: 82 | AM18: 83 | AN18: 84 | AO18: 85 | AP18: 86 | AQ18: 87 | AR18: 88 | AS18: 89 | AT18: 90
D19: 91 | E19: 92 | F19: 93 | G19: 94 | H19: 95 | I19: 96 | J19: 97 | K19: 98 | L19: 99 | M19: 100 | O19: 91 | P19: 92 | Q19: 93 | R19: 94 | S19: 95 | T19: 96 | U19: 97 | V19: 98 | W19: 99 | X19: 100 | Z19: 91 | AA19: 92 | AB19: 93 | AC19: 94 | AD19: 95 | AE19: 96 | AF19: 97 | AG19: 98 | AH19: 99 | AI19: 100 | AK19: 91 | AL19: 92 | AM19: 93 | AN19: 94 | AO19: 95 | AP19: 96 | AQ19: 97 | AR19: 98 | AS19: 99 | AT19: 100
D22: None | O22: 1–4 | Z22: 5–9 | AK22: 10, or more
B24: Source of support
D26: 1 | E26: 2 | F26: 3 | G26: 4 | H26: 5 | I26: 6 | J26: 7 | K26: 8 | L26: 9 | M26: 10 | O26: 1 | P26: 2 | Q26: 3 | R26: 4 | S26: 5 | T26: 6 | U26: 7 | V26: 8 | W26: 9 | X26: 10 | Z26: 1 | AA26: 2 | AB26: 3 | AC26: 4 | AD26: 5 | AE26: 6 | AF26: 7 | AG26: 8 | AH26: 9 | AI26: 10 | AK26: 1 | AL26: 2 | AM26: 3 | AN26: 4 | AO26: 5 | AP26: 6 | AQ26: 7 | AR26: 8 | AS26: 9 | AT26: 10
D27: 11 | E27: 12 | F27: 13 | G27: 14 | H27: 15 | I27: 16 | J27: 17 | K27: 18 | L27: 19 | M27: 20 | O27: 11 | P27: 12 | Q27: 13 | R27: 14 | S27: 15 | T27: 16 | U27: 17 | V27: 18 | W27: 19 | X27: 20 | Z27: 11 | AA27: 12 | AB27: 13 | AC27: 14 | AD27: 15 | AE27: 16 | AF27: 17 | AG27: 18 | AH27: 19 | AI27: 20 | AK27: 11 | AL27: 12 | AM27: 13 | AN27: 14 | AO27: 15 | AP27: 16 | AQ27: 17 | AR27: 18 | AS27: 19 | AT27: 20
D28: 21 | E28: 22 | F28: 23 | G28: 24 | H28: 25 | I28: 26 | J28: 27 | K28: 28 | L28: 29 | M28: 30 | O28: 21 | P28: 22 | Q28: 23 | R28: 24 | S28: 25 | T28: 26 | U28: 27 | V28: 28 | W28: 29 | X28: 30 | Z28: 21 | AA28: 22 | AB28: 23 | AC28: 24 | AD28: 25 | AE28: 26 | AF28: 27 | AG28: 28 | AH28: 29 | AI28: 30 | AK28: 21 | AL28: 22 | AM28: 23 | AN28: 24 | AO28: 25 | AP28: 26 | AQ28: 27 | AR28: 28 | AS28: 29 | AT28: 30
D29: 31 | E29: 32 | F29: 33 | G29: 34 | H29: 35 | I29: 36 | J29: 37 | K29: 38 | L29: 39 | M29: 40 | O29: 31 | P29: 32 | Q29: 33 | R29: 34 | S29: 35 | T29: 36 | U29: 37 | V29: 38 | W29: 39 | X29: 40 | Z29: 31 | AA29: 32 | AB29: 33 | AC29: 34 | AD29: 35 | AE29: 36 | AF29: 37 | AG29: 38 | AH29: 39 | AI29: 40 | AK29: 31 | AL29: 32 | AM29: 33 | AN29: 34 | AO29: 35 | AP29: 36 | AQ29: 37 | AR29: 38 | AS29: 39 | AT29: 40
D30: 41 | E30: 42 | F30: 43 | G30: 44 | H30: 45 | I30: 46 | J30: 47 | K30: 48 | L30: 49 | M30: 50 | O30: 41 | P30: 42 | Q30: 43 | R30: 44 | S30: 45 | T30: 46 | U30: 47 | V30: 48 | W30: 49 | X30: 50 | Z30: 41 | AA30: 42 | AB30: 43 | AC30: 44 | AD30: 45 | AE30: 46 | AF30: 47 | AG30: 48 | AH30: 49 | AI30: 50 | AK30: 41 | AL30: 42 | AM30: 43 | AN30: 44 | AO30: 45 | AP30: 46 | AQ30: 47 | AR30: 48 | AS30: 49 | AT30: 50
D31: 51 | E31: 52 | F31: 53 | G31: 54 | H31: 55 | I31: 56 | J31: 57 | K31: 58 | L31: 59 | M31: 60 | O31: 51 | P31: 52 | Q31: 53 | R31: 54 | S31: 55 | T31: 56 | U31: 57 | V31: 58 | W31: 59 | X31: 60 | Z31: 51 | AA31: 52 | AB31: 53 | AC31: 54 | AD31: 55 | AE31: 56 | AF31: 57 | AG31: 58 | AH31: 59 | AI31: 60 | AK31: 51 | AL31: 52 | AM31: 53 | AN31: 54 | AO31: 55 | AP31: 56 | AQ31: 57 | AR31: 58 | AS31: 59 | AT31: 60
D32: 61 | E32: 62 | F32: 63 | G32: 64 | H32: 65 | I32: 66 | J32: 67 | K32: 68 | L32: 69 | M32: 70 | O32: 61 | P32: 62 | Q32: 63 | R32: 64 | S32: 65 | T32: 66 | U32: 67 | V32: 68 | W32: 69 | X32: 70 | Z32: 61 | AA32: 62 | AB32: 63 | AC32: 64 | AD32: 65 | AE32: 66 | AF32: 67 | AG32: 68 | AH32: 69 | AI32: 70 | AK32: 61 | AL32: 62 | AM32: 63 | AN32: 64 | AO32: 65 | AP32: 66 | AQ32: 67 | AR32: 68 | AS32: 69 | AT32: 70
D33: 71 | E33: 72 | F33: 73 | G33: 74 | H33: 75 | I33: 76 | J33: 77 | K33: 78 | L33: 79 | M33: 80 | O33: 71 | P33: 72 | Q33: 73 | R33: 74 | S33: 75 | T33: 76 | U33: 77 | V33: 78 | W33: 79 | X33: 80 | Z33: 71 | AA33: 72 | AB33: 73 | AC33: 74 | AD33: 75 | AE33: 76 | AF33: 77 | AG33: 78 | AH33: 79 | AI33: 80 | AK33: 71 | AL33: 72 | AM33: 73 | AN33: 74 | AO33: 75 | AP33: 76 | AQ33: 77 | AR33: 78 | AS33: 79 | AT33: 80
D34: 81 | E34: 82 | F34: 83 | G34: 84 | H34: 85 | I34: 86 | J34: 87 | K34: 88 | L34: 89 | M34: 90 | O34: 81 | P34: 82 | Q34: 83 | R34: 84 | S34: 85 | T34: 86 | U34: 87 | V34: 88 | W34: 89 | X34: 90 | Z34: 81 | AA34: 82 | AB34: 83 | AC34: 84 | AD34: 85 | AE34: 86 | AF34: 87 | AG34: 88 | AH34: 89 | AI34: 90 | AK34: 81 | AL34: 82 | AM34: 83 | AN34: 84 | AO34: 85 | AP34: 86 | AQ34: 87 | AR34: 88 | AS34: 89 | AT34: 90
D35: 91 | E35: 92 | F35: 93 | G35: 94 | H35: 95 | I35: 96 | J35: 97 | K35: 98 | L35: 99 | M35: 100 | O35: 91 | P35: 92 | Q35: 93 | R35: 94 | S35: 95 | T35: 96 | U35: 97 | V35: 98 | W35: 99 | X35: 100 | Z35: 91 | AA35: 92 | AB35: 93 | AC35: 94 | AD35: 95 | AE35: 96 | AF35: 97 | AG35: 98 | AH35: 99 | AI35: 100 | AK35: 91 | AL35: 92 | AM35: 93 | AN35: 94 | AO35: 95 | AP35: 96 | AQ35: 97 | AR35: 98 | AS35: 99 | AT35: 100
D38: Family | O38: Friends | Z38: Neighbours | AK38: No help available
B40: Ability to raise $2,000 within 2 days in an emergency
D42: 1 | E42: 2 | F42: 3 | G42: 4 | H42: 5 | I42: 6 | J42: 7 | K42: 8 | L42: 9 | M42: 10 | AK42: 1 | AL42: 2 | AM42: 3 | AN42: 4 | AO42: 5 | AP42: 6 | AQ42: 7 | AR42: 8 | AS42: 9 | AT42: 10
D43: 11 | E43: 12 | F43: 13 | G43: 14 | H43: 15 | I43: 16 | J43: 17 | K43: 18 | L43: 19 | M43: 20 | AK43: 11 | AL43: 12 | AM43: 13 | AN43: 14 | AO43: 15 | AP43: 16 | AQ43: 17 | AR43: 18 | AS43: 19 | AT43: 20
D44: 21 | E44: 22 | F44: 23 | G44: 24 | H44: 25 | I44: 26 | J44: 27 | K44: 28 | L44: 29 | M44: 30 | AK44: 21 | AL44: 22 | AM44: 23 | AN44: 24 | AO44: 25 | AP44: 26 | AQ44: 27 | AR44: 28 | AS44: 29 | AT44: 30
D45: 31 | E45: 32 | F45: 33 | G45: 34 | H45: 35 | I45: 36 | J45: 37 | K45: 38 | L45: 39 | M45: 40 | AK45: 31 | AL45: 32 | AM45: 33 | AN45: 34 | AO45: 35 | AP45: 36 | AQ45: 37 | AR45: 38 | AS45: 39 | AT45: 40
D46: 41 | E46: 42 | F46: 43 | G46: 44 | H46: 45 | I46: 46 | J46: 47 | K46: 48 | L46: 49 | M46: 50 | AK46: 41 | AL46: 42 | AM46: 43 | AN46: 44 | AO46: 45 | AP46: 46 | AQ46: 47 | AR46: 48 | AS46: 49 | AT46: 50
D47: 51 | E47: 52 | F47: 53 | G47: 54 | H47: 55 | I47: 56 | J47: 57 | K47: 58 | L47: 59 | M47: 60 | AK47: 51 | AL47: 52 | AM47: 53 | AN47: 54 | AO47: 55 | AP47: 56 | AQ47: 57 | AR47: 58 | AS47: 59 | AT47: 60
D48: 61 | E48: 62 | F48: 63 | G48: 64 | H48: 65 | I48: 66 | J48: 67 | K48: 68 | L48: 69 | M48: 70 | AK48: 61 | AL48: 62 | AM48: 63 | AN48: 64 | AO48: 65 | AP48: 66 | AQ48: 67 | AR48: 68 | AS48: 69 | AT48: 70
D49: 71 | E49: 72 | F49: 73 | G49: 74 | H49: 75 | I49: 76 | J49: 77 | K49: 78 | L49: 79 | M49: 80 | AK49: 71 | AL49: 72 | AM49: 73 | AN49: 74 | AO49: 75 | AP49: 76 | AQ49: 77 | AR49: 78 | AS49: 79 | AT49: 80
D50: 81 | E50: 82 | F50: 83 | G50: 84 | H50: 85 | I50: 86 | J50: 87 | K50: 88 | L50: 89 | M50: 90 | AK50: 81 | AL50: 82 | AM50: 83 | AN50: 84 | AO50: 85 | AP50: 86 | AQ50: 87 | AR50: 88 | AS50: 89 | AT50: 90
D51: 91 | E51: 92 | F51: 93 | G51: 94 | H51: 95 | I51: 96 | J51: 97 | K51: 98 | L51: 99 | M51: 100 | AK51: 91 | AL51: 92 | AM51: 93 | AN51: 94 | AO51: 95 | AP51: 96 | AQ51: 97 | AR51: 98 | AS51: 99 | AT51: 100
B54: Experienced food insecurity
D56: 1 | E56: 2 | F56: 3 | G56: 4 | H56: 5 | I56: 6 | J56: 7 | K56: 8 | L56: 9 | M56: 10 | AK56: 1 | AL56: 2 | AM56: 3 | AN56: 4 | AO56: 5 | AP56: 6 | AQ56: 7 | AR56: 8 | AS56: 9 | AT56: 10
D57: 11 | E57: 12 | F57: 13 | G57: 14 | H57: 15 | I57: 16 | J57: 17 | K57: 18 | L57: 19 | M57: 20 | AK57: 11 | AL57: 12 | AM57: 13 | AN57: 14 | AO57: 15 | AP57: 16 | AQ57: 17 | AR57: 18 | AS57: 19 | AT57: 20
D58: 21 | E58: 22 | F58: 23 | G58: 24 | H58: 25 | I58: 26 | J58: 27 | K58: 28 | L58: 29 | M58: 30 | AK58: 21 | AL58: 22 | AM58: 23 | AN58: 24 | AO58: 25 | AP58: 26 | AQ58: 27 | AR58: 28 | AS58: 29 | AT58: 30
D59: 31 | E59: 32 | F59: 33 | G59: 34 | H59: 35 | I59: 36 | J59: 37 | K59: 38 | L59: 39 | M59: 40 | AK59: 31 | AL59: 32 | AM59: 33 | AN59: 34 | AO59: 35 | AP59: 36 | AQ59: 37 | AR59: 38 | AS59: 39 | AT59: 40
D60: 41 | E60: 42 | F60: 43 | G60: 44 | H60: 45 | I60: 46 | J60: 47 | K60: 48 | L60: 49 | M60: 50 | AK60: 41 | AL60: 42 | AM60: 43 | AN60: 44 | AO60: 45 | AP60: 46 | AQ60: 47 | AR60: 48 | AS60: 49 | AT60: 50
D61: 51 | E61: 52 | F61: 53 | G61: 54 | H61: 55 | I61: 56 | J61: 57 | K61: 58 | L61: 59 | M61: 60 | AK61: 51 | AL61: 52 | AM61: 53 | AN61: 54 | AO61: 55 | AP61: 56 | AQ61: 57 | AR61: 58 | AS61: 59 | AT61: 60
D62: 61 | E62: 62 | F62: 63 | G62: 64 | H62: 65 | I62: 66 | J62: 67 | K62: 68 | L62: 69 | M62: 70 | AK62: 61 | AL62: 62 | AM62: 63 | AN62: 64 | AO62: 65 | AP62: 66 | AQ62: 67 | AR62: 68 | AS62: 69 | AT62: 70
D63: 71 | E63: 72 | F63: 73 | G63: 74 | H63: 75 | I63: 76 | J63: 77 | K63: 78 | L63: 79 | M63: 80 | AK63: 71 | AL63: 72 | AM63: 73 | AN63: 74 | AO63: 75 | AP63: 76 | AQ63: 77 | AR63: 78 | AS63: 79 | AT63: 80
D64: 81 | E64: 82 | F64: 83 | G64: 84 | H64: 85 | I64: 86 | J64: 87 | K64: 88 | L64: 89 | M64: 90 | AK64: 81 | AL64: 82 | AM64: 83 | AN64: 84 | AO64: 85 | AP64: 86 | AQ64: 87 | AR64: 88 | AS64: 89 | AT64: 90
D65: 91 | E65: 92 | F65: 93 | G65: 94 | H65: 95 | I65: 96 | J65: 97 | K65: 98 | L65: 99 | M65: 100 | AK65: 91 | AL65: 92 | AM65: 93 | AN65: 94 | AO65: 95 | AP65: 96 | AQ65: 97 | AR65: 98 | AS65: 99 | AT65: 100
B69: Reliance on low-cost food for children
D71: 1 | E71: 2 | F71: 3 | G71: 4 | H71: 5 | I71: 6 | J71: 7 | K71: 8 | L71: 9 | M71: 10 | O71: 1 | P71: 2 | Q71: 3 | R71: 4 | S71: 5 | T71: 6 | U71: 7 | V71: 8 | W71: 9 | X71: 10 | Z71: 1 | AA71: 2 | AB71: 3 | AC71: 4 | AD71: 5 | AE71: 6 | AF71: 7 | AG71: 8 | AH71: 9 | AI71: 10 | AK71: 1 | AL71: 2 | AM71: 3 | AN71: 4 | AO71: 5 | AP71: 6 | AQ71: 7 | AR71: 8 | AS71: 9 | AT71: 10
D72: 11 | E72: 12 | F72: 13 | G72: 14 | H72: 15 | I72: 16 | J72: 17 | K72: 18 | L72: 19 | M72: 20 | O72: 11 | P72: 12 | Q72: 13 | R72: 14 | S72: 15 | T72: 16 | U72: 17 | V72: 18 | W72: 19 | X72: 20 | Z72: 11 | AA72: 12 | AB72: 13 | AC72: 14 | AD72: 15 | AE72: 16 | AF72: 17 | AG72: 18 | AH72: 19 | AI72: 20 | AK72: 11 | AL72: 12 | AM72: 13 | AN72: 14 | AO72: 15 | AP72: 16 | AQ72: 17 | AR72: 18 | AS72: 19 | AT72: 20
D73: 21 | E73: 22 | F73: 23 | G73: 24 | H73: 25 | I73: 26 | J73: 27 | K73: 28 | L73: 29 | M73: 30 | O73: 21 | P73: 22 | Q73: 23 | R73: 24 | S73: 25 | T73: 26 | U73: 27 | V73: 28 | W73: 29 | X73: 30 | Z73: 21 | AA73: 22 | AB73: 23 | AC73: 24 | AD73: 25 | AE73: 26 | AF73: 27 | AG73: 28 | AH73: 29 | AI73: 30 | AK73: 21 | AL73: 22 | AM73: 23 | AN73: 24 | AO73: 25 | AP73: 26 | AQ73: 27 | AR73: 28 | AS73: 29 | AT73: 30
D74: 31 | E74: 32 | F74: 33 | G74: 34 | H74: 35 | I74: 36 | J74: 37 | K74: 38 | L74: 39 | M74: 40 | O74: 31 | P74: 32 | Q74: 33 | R74: 34 | S74: 35 | T74: 36 | U74: 37 | V74: 38 | W74: 39 | X74: 40 | Z74: 31 | AA74: 32 | AB74: 33 | AC74: 34 | AD74: 35 | AE74: 36 | AF74: 37 | AG74: 38 | AH74: 39 | AI74: 40 | AK74: 31 | AL74: 32 | AM74: 33 | AN74: 34 | AO74: 35 | AP74: 36 | AQ74: 37 | AR74: 38 | AS74: 39 | AT74: 40
D75: 41 | E75: 42 | F75: 43 | G75: 44 | H75: 45 | I75: 46 | J75: 47 | K75: 48 | L75: 49 | M75: 50 | O75: 41 | P75: 42 | Q75: 43 | R75: 44 | S75: 45 | T75: 46 | U75: 47 | V75: 48 | W75: 49 | X75: 50 | Z75: 41 | AA75: 42 | AB75: 43 | AC75: 44 | AD75: 45 | AE75: 46 | AF75: 47 | AG75: 48 | AH75: 49 | AI75: 50 | AK75: 41 | AL75: 42 | AM75: 43 | AN75: 44 | AO75: 45 | AP75: 46 | AQ75: 47 | AR75: 48 | AS75: 49 | AT75: 50
D76: 51 | E76: 52 | F76: 53 | G76: 54 | H76: 55 | I76: 56 | J76: 57 | K76: 58 | L76: 59 | M76: 60 | O76: 51 | P76: 52 | Q76: 53 | R76: 54 | S76: 55 | T76: 56 | U76: 57 | V76: 58 | W76: 59 | X76: 60 | Z76: 51 | AA76: 52 | AB76: 53 | AC76: 54 | AD76: 55 | AE76: 56 | AF76: 57 | AG76: 58 | AH76: 59 | AI76: 60 | AK76: 51 | AL76: 52 | AM76: 53 | AN76: 54 | AO76: 55 | AP76: 56 | AQ76: 57 | AR76: 58 | AS76: 59 | AT76: 60
D77: 61 | E77: 62 | F77: 63 | G77: 64 | H77: 65 | I77: 66 | J77: 67 | K77: 68 | L77: 69 | M77: 70 | O77: 61 | P77: 62 | Q77: 63 | R77: 64 | S77: 65 | T77: 66 | U77: 67 | V77: 68 | W77: 69 | X77: 70 | Z77: 61 | AA77: 62 | AB77: 63 | AC77: 64 | AD77: 65 | AE77: 66 | AF77: 67 | AG77: 68 | AH77: 69 | AI77: 70 | AK77: 61 | AL77: 62 | AM77: 63 | AN77: 64 | AO77: 65 | AP77: 66 | AQ77: 67 | AR77: 68 | AS77: 69 | AT77: 70
D78: 71 | E78: 72 | F78: 73 | G78: 74 | H78: 75 | I78: 76 | J78: 77 | K78: 78 | L78: 79 | M78: 80 | O78: 71 | P78: 72 | Q78: 73 | R78: 74 | S78: 75 | T78: 76 | U78: 77 | V78: 78 | W78: 79 | X78: 80 | Z78: 71 | AA78: 72 | AB78: 73 | AC78: 74 | AD78: 75 | AE78: 76 | AF78: 77 | AG78: 78 | AH78: 79 | AI78: 80 | AK78: 71 | AL78: 72 | AM78: 73 | AN78: 74 | AO78: 75 | AP78: 76 | AQ78: 77 | AR78: 78 | AS78: 79 | AT78: 80
D79: 81 | E79: 82 | F79: 83 | G79: 84 | H79: 85 | I79: 86 | J79: 87 | K79: 88 | L79: 89 | M79: 90 | O79: 81 | P79: 82 | Q79: 83 | R79: 84 | S79: 85 | T79: 86 | U79: 87 | V79: 88 | W79: 89 | X79: 90 | Z79: 81 | AA79: 82 | AB79: 83 | AC79: 84 | AD79: 85 | AE79: 86 | AF79: 87 | AG79: 88 | AH79: 89 | AI79: 90 | AK79: 81 | AL79: 82 | AM79: 83 | AN79: 84 | AO79: 85 | AP79: 86 | AQ79: 87 | AR79: 88 | AS79: 89 | AT79: 90
D80: 91 | E80: 92 | F80: 93 | G80: 94 | H80: 95 | I80: 96 | J80: 97 | K80: 98 | L80: 99 | M80: 100 | O80: 91 | P80: 92 | Q80: 93 | R80: 94 | S80: 95 | T80: 96 | U80: 97 | V80: 98 | W80: 99 | X80: 100 | Z80: 91 | AA80: 92 | AB80: 93 | AC80: 94 | AD80: 95 | AE80: 96 | AF80: 97 | AG80: 98 | AH80: 99 | AI80: 100 | AK80: 91 | AL80: 92 | AM80: 93 | AN80: 94 | AO80: 95 | AP80: 96 | AQ80: 97 | AR80: 98 | AS80: 99 | AT80: 100
D83: Never, or not often | O83: Sometimes | Z83: Yes, definitely
B85: Membership of an organised group
D87: 1 | E87: 2 | F87: 3 | G87: 4 | H87: 5 | I87: 6 | J87: 7 | K87: 8 | L87: 9 | M87: 10 | O87: 1 | P87: 2 | Q87: 3 | R87: 4 | S87: 5 | T87: 6 | U87: 7 | V87: 8 | W87: 9 | X87: 10 | Z87: 1 | AA87: 2 | AB87: 3 | AC87: 4 | AD87: 5 | AE87: 6 | AF87: 7 | AG87: 8 | AH87: 9 | AI87: 10 | AK87: 1 | AL87: 2 | AM87: 3 | AN87: 4 | AO87: 5 | AP87: 6 | AQ87: 7 | AR87: 8 | AS87: 9 | AT87: 10
D88: 11 | E88: 12 | F88: 13 | G88: 14 | H88: 15 | I88: 16 | J88: 17 | K88: 18 | L88: 19 | M88: 20 | O88: 11 | P88: 12 | Q88: 13 | R88: 14 | S88: 15 | T88: 16 | U88: 17 | V88: 18 | W88: 19 | X88: 20 | Z88: 11 | AA88: 12 | AB88: 13 | AC88: 14 | AD88: 15 | AE88: 16 | AF88: 17 | AG88: 18 | AH88: 19 | AI88: 20 | AK88: 11 | AL88: 12 | AM88: 13 | AN88: 14 | AO88: 15 | AP88: 16 | AQ88: 17 | AR88: 18 | AS88: 19 | AT88: 20
D89: 21 | E89: 22 | F89: 23 | G89: 24 | H89: 25 | I89: 26 | J89: 27 | K89: 28 | L89: 29 | M89: 30 | O89: 21 | P89: 22 | Q89: 23 | R89: 24 | S89: 25 | T89: 26 | U89: 27 | V89: 28 | W89: 29 | X89: 30 | Z89: 21 | AA89: 22 | AB89: 23 | AC89: 24 | AD89: 25 | AE89: 26 | AF89: 27 | AG89: 28 | AH89: 29 | AI89: 30 | AK89: 21 | AL89: 22 | AM89: 23 | AN89: 24 | AO89: 25 | AP89: 26 | AQ89: 27 | AR89: 28 | AS89: 29 | AT89: 30
D90: 31 | E90: 32 | F90: 33 | G90: 34 | H90: 35 | I90: 36 | J90: 37 | K90: 38 | L90: 39 | M90: 40 | O90: 31 | P90: 32 | Q90: 33 | R90: 34 | S90: 35 | T90: 36 | U90: 37 | V90: 38 | W90: 39 | X90: 40 | Z90: 31 | AA90: 32 | AB90: 33 | AC90: 34 | AD90: 35 | AE90: 36 | AF90: 37 | AG90: 38 | AH90: 39 | AI90: 40 | AK90: 31 | AL90: 32 | AM90: 33 | AN90: 34 | AO90: 35 | AP90: 36 | AQ90: 37 | AR90: 38 | AS90: 39 | AT90: 40
D91: 41 | E91: 42 | F91: 43 | G91: 44 | H91: 45 | I91: 46 | J91: 47 | K91: 48 | L91: 49 | M91: 50 | O91: 41 | P91: 42 | Q91: 43 | R91: 44 | S91: 45 | T91: 46 | U91: 47 | V91: 48 | W91: 49 | X91: 50 | Z91: 41 | AA91: 42 | AB91: 43 | AC91: 44 | AD91: 45 | AE91: 46 | AF91: 47 | AG91: 48 | AH91: 49 | AI91: 50 | AK91: 41 | AL91: 42 | AM91: 43 | AN91: 44 | AO91: 45 | AP91: 46 | AQ91: 47 | AR91: 48 | AS91: 49 | AT91: 50
D92: 51 | E92: 52 | F92: 53 | G92: 54 | H92: 55 | I92: 56 | J92: 57 | K92: 58 | L92: 59 | M92: 60 | O92: 51 | P92: 52 | Q92: 53 | R92: 54 | S92: 55 | T92: 56 | U92: 57 | V92: 58 | W92: 59 | X92: 60 | Z92: 51 | AA92: 52 | AB92: 53 | AC92: 54 | AD92: 55 | AE92: 56 | AF92: 57 | AG92: 58 | AH92: 59 | AI92: 60 | AK92: 51 | AL92: 52 | AM92: 53 | AN92: 54 | AO92: 55 | AP92: 56 | AQ92: 57 | AR92: 58 | AS92: 59 | AT92: 60
D93: 61 | E93: 62 | F93: 63 | G93: 64 | H93: 65 | I93: 66 | J93: 67 | K93: 68 | L93: 69 | M93: 70 | O93: 61 | P93: 62 | Q93: 63 | R93: 64 | S93: 65 | T93: 66 | U93: 67 | V93: 68 | W93: 69 | X93: 70 | Z93: 61 | AA93: 62 | AB93: 63 | AC93: 64 | AD93: 65 | AE93: 66 | AF93: 67 | AG93: 68 | AH93: 69 | AI93: 70 | AK93: 61 | AL93: 62 | AM93: 63 | AN93: 64 | AO93: 65 | AP93: 66 | AQ93: 67 | AR93: 68 | AS93: 69 | AT93: 70
D94: 71 | E94: 72 | F94: 73 | G94: 74 | H94: 75 | I94: 76 | J94: 77 | K94: 78 | L94: 79 | M94: 80 | O94: 71 | P94: 72 | Q94: 73 | R94: 74 | S94: 75 | T94: 76 | U94: 77 | V94: 78 | W94: 79 | X94: 80 | Z94: 71 | AA94: 72 | AB94: 73 | AC94: 74 | AD94: 75 | AE94: 76 | AF94: 77 | AG94: 78 | AH94: 79 | AI94: 80 | AK94: 71 | AL94: 72 | AM94: 73 | AN94: 74 | AO94: 75 | AP94: 76 | AQ94: 77 | AR94: 78 | AS94: 79 | AT94: 80
D95: 81 | E95: 82 | F95: 83 | G95: 84 | H95: 85 | I95: 86 | J95: 87 | K95: 88 | L95: 89 | M95: 90 | O95: 81 | P95: 82 | Q95: 83 | R95: 84 | S95: 85 | T95: 86 | U95: 87 | V95: 88 | W95: 89 | X95: 90 | Z95: 81 | AA95: 82 | AB95: 83 | AC95: 84 | AD95: 85 | AE95: 86 | AF95: 87 | AG95: 88 | AH95: 89 | AI95: 90 | AK95: 81 | AL95: 82 | AM95: 83 | AN95: 84 | AO95: 85 | AP95: 86 | AQ95: 87 | AR95: 88 | AS95: 89 | AT95: 90
D96: 91 | E96: 92 | F96: 93 | G96: 94 | H96: 95 | I96: 96 | J96: 97 | K96: 98 | L96: 99 | M96: 100 | O96: 91 | P96: 92 | Q96: 93 | R96: 94 | S96: 95 | T96: 96 | U96: 97 | V96: 98 | W96: 99 | X96: 100 | Z96: 91 | AA96: 92 | AB96: 93 | AC96: 94 | AD96: 95 | AE96: 96 | AF96: 97 | AG96: 98 | AH96: 99 | AI96: 100 | AK96: 91 | AL96: 92 | AM96: 93 | AN96: 94 | AO96: 95 | AP96: 96 | AQ96: 97 | AR96: 98 | AS96: 99 | AT96: 100
D99: Sports | O99: Religious | Z99: School | AK99: Professional
D101: 1 | E101: 2 | F101: 3 | G101: 4 | H101: 5 | I101: 6 | J101: 7 | K101: 8 | L101: 9 | M101: 10
D102: 11 | E102: 12 | F102: 13 | G102: 14 | H102: 15 | I102: 16 | J102: 17 | K102: 18 | L102: 19 | M102: 20
D103: 21 | E103: 22 | F103: 23 | G103: 24 | H103: 25 | I103: 26 | J103: 27 | K103: 28 | L103: 29 | M103: 30
D104: 31 | E104: 32 | F104: 33 | G104: 34 | H104: 35 | I104: 36 | J104: 37 | K104: 38 | L104: 39 | M104: 40
D105: 41 | E105: 42 | F105: 43 | G105: 44 | H105: 45 | I105: 46 | J105: 47 | K105: 48 | L105: 49 | M105: 50
D106: 51 | E106: 52 | F106: 53 | G106: 54 | H106: 55 | I106: 56 | J106: 57 | K106: 58 | L106: 59 | M106: 60
D107: 61 | E107: 62 | F107: 63 | G107: 64 | H107: 65 | I107: 66 | J107: 67 | K107: 68 | L107: 69 | M107: 70
D108: 71 | E108: 72 | F108: 73 | G108: 74 | H108: 75 | I108: 76 | J108: 77 | K108: 78 | L108: 79 | M108: 80
D109: 81 | E109: 82 | F109: 83 | G109: 84 | H109: 85 | I109: 86 | J109: 87 | K109: 88 | L109: 89 | M109: 90
D110: 91 | E110: 92 | F110: 93 | G110: 94 | H110: 95 | I110: 96 | J110: 97 | K110: 98 | L110: 99 | M110: 100
D113: Other
B115: Feeling of safety - feel safe walking down the street at night
D117: 1 | E117: 2 | F117: 3 | G117: 4 | H117: 5 | I117: 6 | J117: 7 | K117: 8 | L117: 9 | M117: 10 | O117: 1 | P117: 2 | Q117: 3 | R117: 4 | S117: 5 | T117: 6 | U117: 7 | V117: 8 | W117: 9 | X117: 10 | Z117: 1 | AA117: 2 | AB117: 3 | AC117: 4 | AD117: 5 | AE117: 6 | AF117: 7 | AG117: 8 | AH117: 9 | AI117: 10 | AK117: 1 | AL117: 2 | AM117: 3 | AN117: 4 | AO117: 5 | AP117: 6 | AQ117: 7 | AR117: 8 | AS117: 9 | AT117: 10
D118: 11 | E118: 12 | F118: 13 | G118: 14 | H118: 15 | I118: 16 | J118: 17 | K118: 18 | L118: 19 | M118: 20 | O118: 11 | P118: 12 | Q118: 13 | R118: 14 | S118: 15 | T118: 16 | U118: 17 | V118: 18 | W118: 19 | X118: 20 | Z118: 11 | AA118: 12 | AB118: 13 | AC118: 14 | AD118: 15 | AE118: 16 | AF118: 17 | AG118: 18 | AH118: 19 | AI118: 20 | AK118: 11 | AL118: 12 | AM118: 13 | AN118: 14 | AO118: 15 | AP118: 16 | AQ118: 17 | AR118: 18 | AS118: 19 | AT118: 20
D119: 21 | E119: 22 | F119: 23 | G119: 24 | H119: 25 | I119: 26 | J119: 27 | K119: 28 | L119: 29 | M119: 30 | O119: 21 | P119: 22 | Q119: 23 | R119: 24 | S119: 25 | T119: 26 | U119: 27 | V119: 28 | W119: 29 | X119: 30 | Z119: 21 | AA119: 22 | AB119: 23 | AC119: 24 | AD119: 25 | AE119: 26 | AF119: 27 | AG119: 28 | AH119: 29 | AI119: 30 | AK119: 21 | AL119: 22 | AM119: 23 | AN119: 24 | AO119: 25 | AP119: 26 | AQ119: 27 | AR119: 28 | AS119: 29 | AT119: 30
D120: 31 | E120: 32 | F120: 33 | G120: 34 | H120: 35 | I120: 36 | J120: 37 | K120: 38 | L120: 39 | M120: 40 | O120: 31 | P120: 32 | Q120: 33 | R120: 34 | S120: 35 | T120: 36 | U120: 37 | V120: 38 | W120: 39 | X120: 40 | Z120: 31 | AA120: 32 | AB120: 33 | AC120: 34 | AD120: 35 | AE120: 36 | AF120: 37 | AG120: 38 | AH120: 39 | AI120: 40 | AK120: 31 | AL120: 32 | AM120: 33 | AN120: 34 | AO120: 35 | AP120: 36 | AQ120: 37 | AR120: 38 | AS120: 39 | AT120: 40
D121: 41 | E121: 42 | F121: 43 | G121: 44 | H121: 45 | I121: 46 | J121: 47 | K121: 48 | L121: 49 | M121: 50 | O121: 41 | P121: 42 | Q121: 43 | R121: 44 | S121: 45 | T121: 46 | U121: 47 | V121: 48 | W121: 49 | X121: 50 | Z121: 41 | AA121: 42 | AB121: 43 | AC121: 44 | AD121: 45 | AE121: 46 | AF121: 47 | AG121: 48 | AH121: 49 | AI121: 50 | AK121: 41 | AL121: 42 | AM121: 43 | AN121: 44 | AO121: 45 | AP121: 46 | AQ121: 47 | AR121: 48 | AS121: 49 | AT121: 50
D122: 51 | E122: 52 | F122: 53 | G122: 54 | H122: 55 | I122: 56 | J122: 57 | K122: 58 | L122: 59 | M122: 60 | O122: 51 | P122: 52 | Q122: 53 | R122: 54 | S122: 55 | T122: 56 | U122: 57 | V122: 58 | W122: 59 | X122: 60 | Z122: 51 | AA122: 52 | AB122: 53 | AC122: 54 | AD122: 55 | AE122: 56 | AF122: 57 | AG122: 58 | AH122: 59 | AI122: 60 | AK122: 51 | AL122: 52 | AM122: 53 | AN122: 54 | AO122: 55 | AP122: 56 | AQ122: 57 | AR122: 58 | AS122: 59 | AT122: 60
D123: 61 | E123: 62 | F123: 63 | G123: 64 | H123: 65 | I123: 66 | J123: 67 | K123: 68 | L123: 69 | M123: 70 | O123: 61 | P123: 62 | Q123: 63 | R123: 64 | S123: 65 | T123: 66 | U123: 67 | V123: 68 | W123: 69 | X123: 70 | Z123: 61 | AA123: 62 | AB123: 63 | AC123: 64 | AD123: 65 | AE123: 66 | AF123: 67 | AG123: 68 | AH123: 69 | AI123: 70 | AK123: 61 | AL123: 62 | AM123: 63 | AN123: 64 | AO123: 65 | AP123: 66 | AQ123: 67 | AR123: 68 | AS123: 69 | AT123: 70
D124: 71 | E124: 72 | F124: 73 | G124: 74 | H124: 75 | I124: 76 | J124: 77 | K124: 78 | L124: 79 | M124: 80 | O124: 71 | P124: 72 | Q124: 73 | R124: 74 | S124: 75 | T124: 76 | U124: 77 | V124: 78 | W124: 79 | X124: 80 | Z124: 71 | AA124: 72 | AB124: 73 | AC124: 74 | AD124: 75 | AE124: 76 | AF124: 77 | AG124: 78 | AH124: 79 | AI124: 80 | AK124: 71 | AL124: 72 | AM124: 73 | AN124: 74 | AO124: 75 | AP124: 76 | AQ124: 77 | AR124: 78 | AS124: 79 | AT124: 80
D125: 81 | E125: 82 | F125: 83 | G125: 84 | H125: 85 | I125: 86 | J125: 87 | K125: 88 | L125: 89 | M125: 90 | O125: 81 | P125: 82 | Q125: 83 | R125: 84 | S125: 85 | T125: 86 | U125: 87 | V125: 88 | W125: 89 | X125: 90 | Z125: 81 | AA125: 82 | AB125: 83 | AC125: 84 | AD125: 85 | AE125: 86 | AF125: 87 | AG125: 88 | AH125: 89 | AI125: 90 | AK125: 81 | AL125: 82 | AM125: 83 | AN125: 84 | AO125: 85 | AP125: 86 | AQ125: 87 | AR125: 88 | AS125: 89 | AT125: 90
D126: 91 | E126: 92 | F126: 93 | G126: 94 | H126: 95 | I126: 96 | J126: 97 | K126: 98 | L126: 99 | M126: 100 | O126: 91 | P126: 92 | Q126: 93 | R126: 94 | S126: 95 | T126: 96 | U126: 97 | V126: 98 | W126: 99 | X126: 100 | Z126: 91 | AA126: 92 | AB126: 93 | AC126: 94 | AD126: 95 | AE126: 96 | AF126: 97 | AG126: 98 | AH126: 99 | AI126: 100 | AK126: 91 | AL126: 92 | AM126: 93 | AN126: 94 | AO126: 95 | AP126: 96 | AQ126: 97 | AR126: 98 | AS126: 99 | AT126: 100
D129: Never, or not often | O129: Sometimes | Z129: Yes, definitely
B131: Feeling of trust - most people can be trusted
D133: 1 | E133: 2 | F133: 3 | G133: 4 | H133: 5 | I133: 6 | J133: 7 | K133: 8 | L133: 9 | M133: 10 | O133: 1 | P133: 2 | Q133: 3 | R133: 4 | S133: 5 | T133: 6 | U133: 7 | V133: 8 | W133: 9 | X133: 10 | Z133: 1 | AA133: 2 | AB133: 3 | AC133: 4 | AD133: 5 | AE133: 6 | AF133: 7 | AG133: 8 | AH133: 9 | AI133: 10 | AK133: 1 | AL133: 2 | AM133: 3 | AN133: 4 | AO133: 5 | AP133: 6 | AQ133: 7 | AR133: 8 | AS133: 9 | AT133: 10
D134: 11 | E134: 12 | F134: 13 | G134: 14 | H134: 15 | I134: 16 | J134: 17 | K134: 18 | L134: 19 | M134: 20 | O134: 11 | P134: 12 | Q134: 13 | R134: 14 | S134: 15 | T134: 16 | U134: 17 | V134: 18 | W134: 19 | X134: 20 | Z134: 11 | AA134: 12 | AB134: 13 | AC134: 14 | AD134: 15 | AE134: 16 | AF134: 17 | AG134: 18 | AH134: 19 | AI134: 20 | AK134: 11 | AL134: 12 | AM134: 13 | AN134: 14 | AO134: 15 | AP134: 16 | AQ134: 17 | AR134: 18 | AS134: 19 | AT134: 20
D135: 21 | E135: 22 | F135: 23 | G135: 24 | H135: 25 | I135: 26 | J135: 27 | K135: 28 | L135: 29 | M135: 30 | O135: 21 | P135: 22 | Q135: 23 | R135: 24 | S135: 25 | T135: 26 | U135: 27 | V135: 28 | W135: 29 | X135: 30 | Z135: 21 | AA135: 22 | AB135: 23 | AC135: 24 | AD135: 25 | AE135: 26 | AF135: 27 | AG135: 28 | AH135: 29 | AI135: 30 | AK135: 21 | AL135: 22 | AM135: 23 | AN135: 24 | AO135: 25 | AP135: 26 | AQ135: 27 | AR135: 28 | AS135: 29 | AT135: 30
D136: 31 | E136: 32 | F136: 33 | G136: 34 | H136: 35 | I136: 36 | J136: 37 | K136: 38 | L136: 39 | M136: 40 | O136: 31 | P136: 32 | Q136: 33 | R136: 34 | S136: 35 | T136: 36 | U136: 37 | V136: 38 | W136: 39 | X136: 40 | Z136: 31 | AA136: 32 | AB136: 33 | AC136: 34 | AD136: 35 | AE136: 36 | AF136: 37 | AG136: 38 | AH136: 39 | AI136: 40 | AK136: 31 | AL136: 32 | AM136: 33 | AN136: 34 | AO136: 35 | AP136: 36 | AQ136: 37 | AR136: 38 | AS136: 39 | AT136: 40
D137: 41 | E137: 42 | F137: 43 | G137: 44 | H137: 45 | I137: 46 | J137: 47 | K137: 48 | L137: 49 | M137: 50 | O137: 41 | P137: 42 | Q137: 43 | R137: 44 | S137: 45 | T137: 46 | U137: 47 | V137: 48 | W137: 49 | X137: 50 | Z137: 41 | AA137: 42 | AB137: 43 | AC137: 44 | AD137: 45 | AE137: 46 | AF137: 47 | AG137: 48 | AH137: 49 | AI137: 50 | AK137: 41 | AL137: 42 | AM137: 43 | AN137: 44 | AO137: 45 | AP137: 46 | AQ137: 47 | AR137: 48 | AS137: 49 | AT137: 50
D138: 51 | E138: 52 | F138: 53 | G138: 54 | H138: 55 | I138: 56 | J138: 57 | K138: 58 | L138: 59 | M138: 60 | O138: 51 | P138: 52 | Q138: 53 | R138: 54 | S138: 55 | T138: 56 | U138: 57 | V138: 58 | W138: 59 | X138: 60 | Z138: 51 | AA138: 52 | AB138: 53 | AC138: 54 | AD138: 55 | AE138: 56 | AF138: 57 | AG138: 58 | AH138: 59 | AI138: 60 | AK138: 51 | AL138: 52 | AM138: 53 | AN138: 54 | AO138: 55 | AP138: 56 | AQ138: 57 | AR138: 58 | AS138: 59 | AT138: 60
D139: 61 | E139: 62 | F139: 63 | G139: 64 | H139: 65 | I139: 66 | J139: 67 | K139: 68 | L139: 69 | M139: 70 | O139: 61 | P139: 62 | Q139: 63 | R139: 64 | S139: 65 | T139: 66 | U139: 67 | V139: 68 | W139: 69 | X139: 70 | Z139: 61 | AA139: 62 | AB139: 63 | AC139: 64 | AD139: 65 | AE139: 66 | AF139: 67 | AG139: 68 | AH139: 69 | AI139: 70 | AK139: 61 | AL139: 62 | AM139: 63 | AN139: 64 | AO139: 65 | AP139: 66 | AQ139: 67 | AR139: 68 | AS139: 69 | AT139: 70
D140: 71 | E140: 72 | F140: 73 | G140: 74 | H140: 75 | I140: 76 | J140: 77 | K140: 78 | L140: 79 | M140: 80 | O140: 71 | P140: 72 | Q140: 73 | R140: 74 | S140: 75 | T140: 76 | U140: 77 | V140: 78 | W140: 79 | X140: 80 | Z140: 71 | AA140: 72 | AB140: 73 | AC140: 74 | AD140: 75 | AE140: 76 | AF140: 77 | AG140: 78 | AH140: 79 | AI140: 80 | AK140: 71 | AL140: 72 | AM140: 73 | AN140: 74 | AO140: 75 | AP140: 76 | AQ140: 77 | AR140: 78 | AS140: 79 | AT140: 80
D141: 81 | E141: 82 | F141: 83 | G141: 84 | H141: 85 | I141: 86 | J141: 87 | K141: 88 | L141: 89 | M141: 90 | O141: 81 | P141: 82 | Q141: 83 | R141: 84 | S141: 85 | T141: 86 | U141: 87 | V141: 88 | W141: 89 | X141: 90 | Z141: 81 | AA141: 82 | AB141: 83 | AC141: 84 | AD141: 85 | AE141: 86 | AF141: 87 | AG141: 88 | AH141: 89 | AI141: 90 | AK141: 81 | AL141: 82 | AM141: 83 | AN141: 84 | AO141: 85 | AP141: 86 | AQ141: 87 | AR141: 88 | AS141: 89 | AT141: 90
D142: 91 | E142: 92 | F142: 93 | G142: 94 | H142: 95 | I142: 96 | J142: 97 | K142: 98 | L142: 99 | M142: 100 | O142: 91 | P142: 92 | Q142: 93 | R142: 94 | S142: 95 | T142: 96 | U142: 97 | V142: 98 | W142: 99 | X142: 100 | Z142: 91 | AA142: 92 | AB142: 93 | AC142: 94 | AD142: 95 | AE142: 96 | AF142: 97 | AG142: 98 | AH142: 99 | AI142: 100 | AK142: 91 | AL142: 92 | AM142: 93 | AN142: 94 | AO142: 95 | AP142: 96 | AQ142: 97 | AR142: 98 | AS142: 99 | AT142: 100
D145: Never, or not often | O145: Sometimes | Z145: Yes, definitely
B147: Tolerance of diversity - multiculturalism makes life better in your area
D149: 1 | E149: 2 | F149: 3 | G149: 4 | H149: 5 | I149: 6 | J149: 7 | K149: 8 | L149: 9 | M149: 10 | O149: 1 | P149: 2 | Q149: 3 | R149: 4 | S149: 5 | T149: 6 | U149: 7 | V149: 8 | W149: 9 | X149: 10 | Z149: 1 | AA149: 2 | AB149: 3 | AC149: 4 | AD149: 5 | AE149: 6 | AF149: 7 | AG149: 8 | AH149: 9 | AI149: 10 | AK149: 1 | AL149: 2 | AM149: 3 | AN149: 4 | AO149: 5 | AP149: 6 | AQ149: 7 | AR149: 8 | AS149: 9 | AT149: 10
D150: 11 | E150: 12 | F150: 13 | G150: 14 | H150: 15 | I150: 16 | J150: 17 | K150: 18 | L150: 19 | M150: 20 | O150: 11 | P150: 12 | Q150: 13 | R150: 14 | S150: 15 | T150: 16 | U150: 17 | V150: 18 | W150: 19 | X150: 20 | Z150: 11 | AA150: 12 | AB150: 13 | AC150: 14 | AD150: 15 | AE150: 16 | AF150: 17 | AG150: 18 | AH150: 19 | AI150: 20 | AK150: 11 | AL150: 12 | AM150: 13 | AN150: 14 | AO150: 15 | AP150: 16 | AQ150: 17 | AR150: 18 | AS150: 19 | AT150: 20
D151: 21 | E151: 22 | F151: 23 | G151: 24 | H151: 25 | I151: 26 | J151: 27 | K151: 28 | L151: 29 | M151: 30 | O151: 21 | P151: 22 | Q151: 23 | R151: 24 | S151: 25 | T151: 26 | U151: 27 | V151: 28 | W151: 29 | X151: 30 | Z151: 21 | AA151: 22 | AB151: 23 | AC151: 24 | AD151: 25 | AE151: 26 | AF151: 27 | AG151: 28 | AH151: 29 | AI151: 30 | AK151: 21 | AL151: 22 | AM151: 23 | AN151: 24 | AO151: 25 | AP151: 26 | AQ151: 27 | AR151: 28 | AS151: 29 | AT151: 30
D152: 31 | E152: 32 | F152: 33 | G152: 34 | H152: 35 | I152: 36 | J152: 37 | K152: 38 | L152: 39 | M152: 40 | O152: 31 | P152: 32 | Q152: 33 | R152: 34 | S152: 35 | T152: 36 | U152: 37 | V152: 38 | W152: 39 | X152: 40 | Z152: 31 | AA152: 32 | AB152: 33 | AC152: 34 | AD152: 35 | AE152: 36 | AF152: 37 | AG152: 38 | AH152: 39 | AI152: 40 | AK152: 31 | AL152: 32 | AM152: 33 | AN152: 34 | AO152: 35 | AP152: 36 | AQ152: 37 | AR152: 38 | AS152: 39 | AT152: 40
D153: 41 | E153: 42 | F153: 43 | G153: 44 | H153: 45 | I153: 46 | J153: 47 | K153: 48 | L153: 49 | M153: 50 | O153: 41 | P153: 42 | Q153: 43 | R153: 44 | S153: 45 | T153: 46 | U153: 47 | V153: 48 | W153: 49 | X153: 50 | Z153: 41 | AA153: 42 | AB153: 43 | AC153: 44 | AD153: 45 | AE153: 46 | AF153: 47 | AG153: 48 | AH153: 49 | AI153: 50 | AK153: 41 | AL153: 42 | AM153: 43 | AN153: 44 | AO153: 45 | AP153: 46 | AQ153: 47 | AR153: 48 | AS153: 49 | AT153: 50
D154: 51 | E154: 52 | F154: 53 | G154: 54 | H154: 55 | I154: 56 | J154: 57 | K154: 58 | L154: 59 | M154: 60 | O154: 51 | P154: 52 | Q154: 53 | R154: 54 | S154: 55 | T154: 56 | U154: 57 | V154: 58 | W154: 59 | X154: 60 | Z154: 51 | AA154: 52 | AB154: 53 | AC154: 54 | AD154: 55 | AE154: 56 | AF154: 57 | AG154: 58 | AH154: 59 | AI154: 60 | AK154: 51 | AL154: 52 | AM154: 53 | AN154: 54 | AO154: 55 | AP154: 56 | AQ154: 57 | AR154: 58 | AS154: 59 | AT154: 60
D155: 61 | E155: 62 | F155: 63 | G155: 64 | H155: 65 | I155: 66 | J155: 67 | K155: 68 | L155: 69 | M155: 70 | O155: 61 | P155: 62 | Q155: 63 | R155: 64 | S155: 65 | T155: 66 | U155: 67 | V155: 68 | W155: 69 | X155: 70 | Z155: 61 | AA155: 62 | AB155: 63 | AC155: 64 | AD155: 65 | AE155: 66 | AF155: 67 | AG155: 68 | AH155: 69 | AI155: 70 | AK155: 61 | AL155: 62 | AM155: 63 | AN155: 64 | AO155: 65 | AP155: 66 | AQ155: 67 | AR155: 68 | AS155: 69 | AT155: 70
D156: 71 | E156: 72 | F156: 73 | G156: 74 | H156: 75 | I156: 76 | J156: 77 | K156: 78 | L156: 79 | M156: 80 | O156: 71 | P156: 72 | Q156: 73 | R156: 74 | S156: 75 | T156: 76 | U156: 77 | V156: 78 | W156: 79 | X156: 80 | Z156: 71 | AA156: 72 | AB156: 73 | AC156: 74 | AD156: 75 | AE156: 76 | AF156: 77 | AG156: 78 | AH156: 79 | AI156: 80 | AK156: 71 | AL156: 72 | AM156: 73 | AN156: 74 | AO156: 75 | AP156: 76 | AQ156: 77 | AR156: 78 | AS156: 79 | AT156: 80
D157: 81 | E157: 82 | F157: 83 | G157: 84 | H157: 85 | I157: 86 | J157: 87 | K157: 88 | L157: 89 | M157: 90 | O157: 81 | P157: 82 | Q157: 83 | R157: 84 | S157: 85 | T157: 86 | U157: 87 | V157: 88 | W157: 89 | X157: 90 | Z157: 81 | AA157: 82 | AB157: 83 | AC157: 84 | AD157: 85 | AE157: 86 | AF157: 87 | AG157: 88 | AH157: 89 | AI157: 90 | AK157: 81 | AL157: 82 | AM157: 83 | AN157: 84 | AO157: 85 | AP157: 86 | AQ157: 87 | AR157: 88 | AS157: 89 | AT157: 90
D158: 91 | E158: 92 | F158: 93 | G158: 94 | H158: 95 | I158: 96 | J158: 97 | K158: 98 | L158: 99 | M158: 100 | O158: 91 | P158: 92 | Q158: 93 | R158: 94 | S158: 95 | T158: 96 | U158: 97 | V158: 98 | W158: 99 | X158: 100 | Z158: 91 | AA158: 92 | AB158: 93 | AC158: 94 | AD158: 95 | AE158: 96 | AF158: 97 | AG158: 98 | AH158: 99 | AI158: 100 | AK158: 91 | AL158: 92 | AM158: 93 | AN158: 94 | AO158: 95 | AP158: 96 | AQ158: 97 | AR158: 98 | AS158: 99 | AT158: 100
D161: Never, or not often | O161: Sometimes | Z161: Yes, definitely | AK161: Not applicable
B163: Feeling valued by society
D165: 1 | E165: 2 | F165: 3 | G165: 4 | H165: 5 | I165: 6 | J165: 7 | K165: 8 | L165: 9 | M165: 10 | O165: 1 | P165: 2 | Q165: 3 | R165: 4 | S165: 5 | T165: 6 | U165: 7 | V165: 8 | W165: 9 | X165: 10 | Z165: 1 | AA165: 2 | AB165: 3 | AC165: 4 | AD165: 5 | AE165: 6 | AF165: 7 | AG165: 8 | AH165: 9 | AI165: 10 | AK165: 1 | AL165: 2 | AM165: 3 | AN165: 4 | AO165: 5 | AP165: 6 | AQ165: 7 | AR165: 8 | AS165: 9 | AT165: 10
D166: 11 | E166: 12 | F166: 13 | G166: 14 | H166: 15 | I166: 16 | J166: 17 | K166: 18 | L166: 19 | M166: 20 | O166: 11 | P166: 12 | Q166: 13 | R166: 14 | S166: 15 | T166: 16 | U166: 17 | V166: 18 | W166: 19 | X166: 20 | Z166: 11 | AA166: 12 | AB166: 13 | AC166: 14 | AD166: 15 | AE166: 16 | AF166: 17 | AG166: 18 | AH166: 19 | AI166: 20 | AK166: 11 | AL166: 12 | AM166: 13 | AN166: 14 | AO166: 15 | AP166: 16 | AQ166: 17 | AR166: 18 | AS166: 19 | AT166: 20
D167: 21 | E167: 22 | F167: 23 | G167: 24 | H167: 25 | I167: 26 | J167: 27 | K167: 28 | L167: 29 | M167: 30 | O167: 21 | P167: 22 | Q167: 23 | R167: 24 | S167: 25 | T167: 26 | U167: 27 | V167: 28 | W167: 29 | X167: 30 | Z167: 21 | AA167: 22 | AB167: 23 | AC167: 24 | AD167: 25 | AE167: 26 | AF167: 27 | AG167: 28 | AH167: 29 | AI167: 30 | AK167: 21 | AL167: 22 | AM167: 23 | AN167: 24 | AO167: 25 | AP167: 26 | AQ167: 27 | AR167: 28 | AS167: 29 | AT167: 30
D168: 31 | E168: 32 | F168: 33 | G168: 34 | H168: 35 | I168: 36 | J168: 37 | K168: 38 | L168: 39 | M168: 40 | O168: 31 | P168: 32 | Q168: 33 | R168: 34 | S168: 35 | T168: 36 | U168: 37 | V168: 38 | W168: 39 | X168: 40 | Z168: 31 | AA168: 32 | AB168: 33 | AC168: 34 | AD168: 35 | AE168: 36 | AF168: 37 | AG168: 38 | AH168: 39 | AI168: 40 | AK168: 31 | AL168: 32 | AM168: 33 | AN168: 34 | AO168: 35 | AP168: 36 | AQ168: 37 | AR168: 38 | AS168: 39 | AT168: 40
D169: 41 | E169: 42 | F169: 43 | G169: 44 | H169: 45 | I169: 46 | J169: 47 | K169: 48 | L169: 49 | M169: 50 | O169: 41 | P169: 42 | Q169: 43 | R169: 44 | S169: 45 | T169: 46 | U169: 47 | V169: 48 | W169: 49 | X169: 50 | Z169: 41 | AA169: 42 | AB169: 43 | AC169: 44 | AD169: 45 | AE169: 46 | AF169: 47 | AG169: 48 | AH169: 49 | AI169: 50 | AK169: 41 | AL169: 42 | AM169: 43 | AN169: 44 | AO169: 45 | AP169: 46 | AQ169: 47 | AR169: 48 | AS169: 49 | AT169: 50
D170: 51 | E170: 52 | F170: 53 | G170: 54 | H170: 55 | I170: 56 | J170: 57 | K170: 58 | L170: 59 | M170: 60 | O170: 51 | P170: 52 | Q170: 53 | R170: 54 | S170: 55 | T170: 56 | U170: 57 | V170: 58 | W170: 59 | X170: 60 | Z170: 51 | AA170: 52 | AB170: 53 | AC170: 54 | AD170: 55 | AE170: 56 | AF170: 57 | AG170: 58 | AH170: 59 | AI170: 60 | AK170: 51 | AL170: 52 | AM170: 53 | AN170: 54 | AO170: 55 | AP170: 56 | AQ170: 57 | AR170: 58 | AS170: 59 | AT170: 60
D171: 61 | E171: 62 | F171: 63 | G171: 64 | H171: 65 | I171: 66 | J171: 67 | K171: 68 | L171: 69 | M171: 70 | O171: 61 | P171: 62 | Q171: 63 | R171: 64 | S171: 65 | T171: 66 | U171: 67 | V171: 68 | W171: 69 | X171: 70 | Z171: 61 | AA171: 62 | AB171: 63 | AC171: 64 | AD171: 65 | AE171: 66 | AF171: 67 | AG171: 68 | AH171: 69 | AI171: 70 | AK171: 61 | AL171: 62 | AM171: 63 | AN171: 64 | AO171: 65 | AP171: 66 | AQ171: 67 | AR171: 68 | AS171: 69 | AT171: 70
D172: 71 | E172: 72 | F172: 73 | G172: 74 | H172: 75 | I172: 76 | J172: 77 | K172: 78 | L172: 79 | M172: 80 | O172: 71 | P172: 72 | Q172: 73 | R172: 74 | S172: 75 | T172: 76 | U172: 77 | V172: 78 | W172: 79 | X172: 80 | Z172: 71 | AA172: 72 | AB172: 73 | AC172: 74 | AD172: 75 | AE172: 76 | AF172: 77 | AG172: 78 | AH172: 79 | AI172: 80 | AK172: 71 | AL172: 72 | AM172: 73 | AN172: 74 | AO172: 75 | AP172: 76 | AQ172: 77 | AR172: 78 | AS172: 79 | AT172: 80
D173: 81 | E173: 82 | F173: 83 | G173: 84 | H173: 85 | I173: 86 | J173: 87 | K173: 88 | L173: 89 | M173: 90 | O173: 81 | P173: 82 | Q173: 83 | R173: 84 | S173: 85 | T173: 86 | U173: 87 | V173: 88 | W173: 89 | X173: 90 | Z173: 81 | AA173: 82 | AB173: 83 | AC173: 84 | AD173: 85 | AE173: 86 | AF173: 87 | AG173: 88 | AH173: 89 | AI173: 90 | AK173: 81 | AL173: 82 | AM173: 83 | AN173: 84 | AO173: 85 | AP173: 86 | AQ173: 87 | AR173: 88 | AS173: 89 | AT173: 90
D174: 91 | E174: 92 | F174: 93 | G174: 94 | H174: 95 | I174: 96 | J174: 97 | K174: 98 | L174: 99 | M174: 100 | O174: 91 | P174: 92 | Q174: 93 | R174: 94 | S174: 95 | T174: 96 | U174: 97 | V174: 98 | W174: 99 | X174: 100 | Z174: 91 | AA174: 92 | AB174: 93 | AC174: 94 | AD174: 95 | AE174: 96 | AF174: 97 | AG174: 98 | AH174: 99 | AI174: 100 | AK174: 91 | AL174: 92 | AM174: 93 | AN174: 94 | AO174: 95 | AP174: 96 | AQ174: 97 | AR174: 98 | AS174: 99 | AT174: 100
D177: Never, or not often | O177: Sometimes | Z177: Yes, definitely
B179: Have a real say on issues important to them
D181: 1 | E181: 2 | F181: 3 | G181: 4 | H181: 5 | I181: 6 | J181: 7 | K181: 8 | L181: 9 | M181: 10 | O181: 1 | P181: 2 | Q181: 3 | R181: 4 | S181: 5 | T181: 6 | U181: 7 | V181: 8 | W181: 9 | X181: 10 | Z181: 1 | AA181: 2 | AB181: 3 | AC181: 4 | AD181: 5 | AE181: 6 | AF181: 7 | AG181: 8 | AH181: 9 | AI181: 10 | AK181: 1 | AL181: 2 | AM181: 3 | AN181: 4 | AO181: 5 | AP181: 6 | AQ181: 7 | AR181: 8 | AS181: 9 | AT181: 10
D182: 11 | E182: 12 | F182: 13 | G182: 14 | H182: 15 | I182: 16 | J182: 17 | K182: 18 | L182: 19 | M182: 20 | O182: 11 | P182: 12 | Q182: 13 | R182: 14 | S182: 15 | T182: 16 | U182: 17 | V182: 18 | W182: 19 | X182: 20 | Z182: 11 | AA182: 12 | AB182: 13 | AC182: 14 | AD182: 15 | AE182: 16 | AF182: 17 | AG182: 18 | AH182: 19 | AI182: 20 | AK182: 11 | AL182: 12 | AM182: 13 | AN182: 14 | AO182: 15 | AP182: 16 | AQ182: 17 | AR182: 18 | AS182: 19 | AT182: 20
D183: 21 | E183: 22 | F183: 23 | G183: 24 | H183: 25 | I183: 26 | J183: 27 | K183: 28 | L183: 29 | M183: 30 | O183: 21 | P183: 22 | Q183: 23 | R183: 24 | S183: 25 | T183: 26 | U183: 27 | V183: 28 | W183: 29 | X183: 30 | Z183: 21 | AA183: 22 | AB183: 23 | AC183: 24 | AD183: 25 | AE183: 26 | AF183: 27 | AG183: 28 | AH183: 29 | AI183: 30 | AK183: 21 | AL183: 22 | AM183: 23 | AN183: 24 | AO183: 25 | AP183: 26 | AQ183: 27 | AR183: 28 | AS183: 29 | AT183: 30
D184: 31 | E184: 32 | F184: 33 | G184: 34 | H184: 35 | I184: 36 | J184: 37 | K184: 38 | L184: 39 | M184: 40 | O184: 31 | P184: 32 | Q184: 33 | R184: 34 | S184: 35 | T184: 36 | U184: 37 | V184: 38 | W184: 39 | X184: 40 | Z184: 31 | AA184: 32 | AB184: 33 | AC184: 34 | AD184: 35 | AE184: 36 | AF184: 37 | AG184: 38 | AH184: 39 | AI184: 40 | AK184: 31 | AL184: 32 | AM184: 33 | AN184: 34 | AO184: 35 | AP184: 36 | AQ184: 37 | AR184: 38 | AS184: 39 | AT184: 40
D185: 41 | E185: 42 | F185: 43 | G185: 44 | H185: 45 | I185: 46 | J185: 47 | K185: 48 | L185: 49 | M185: 50 | O185: 41 | P185: 42 | Q185: 43 | R185: 44 | S185: 45 | T185: 46 | U185: 47 | V185: 48 | W185: 49 | X185: 50 | Z185: 41 | AA185: 42 | AB185: 43 | AC185: 44 | AD185: 45 | AE185: 46 | AF185: 47 | AG185: 48 | AH185: 49 | AI185: 50 | AK185: 41 | AL185: 42 | AM185: 43 | AN185: 44 | AO185: 45 | AP185: 46 | AQ185: 47 | AR185: 48 | AS185: 49 | AT185: 50
D186: 51 | E186: 52 | F186: 53 | G186: 54 | H186: 55 | I186: 56 | J186: 57 | K186: 58 | L186: 59 | M186: 60 | O186: 51 | P186: 52 | Q186: 53 | R186: 54 | S186: 55 | T186: 56 | U186: 57 | V186: 58 | W186: 59 | X186: 60 | Z186: 51 | AA186: 52 | AB186: 53 | AC186: 54 | AD186: 55 | AE186: 56 | AF186: 57 | AG186: 58 | AH186: 59 | AI186: 60 | AK186: 51 | AL186: 52 | AM186: 53 | AN186: 54 | AO186: 55 | AP186: 56 | AQ186: 57 | AR186: 58 | AS186: 59 | AT186: 60
D187: 61 | E187: 62 | F187: 63 | G187: 64 | H187: 65 | I187: 66 | J187: 67 | K187: 68 | L187: 69 | M187: 70 | O187: 61 | P187: 62 | Q187: 63 | R187: 64 | S187: 65 | T187: 66 | U187: 67 | V187: 68 | W187: 69 | X187: 70 | Z187: 61 | AA187: 62 | AB187: 63 | AC187: 64 | AD187: 65 | AE187: 66 | AF187: 67 | AG187: 68 | AH187: 69 | AI187: 70 | AK187: 61 | AL187: 62 | AM187: 63 | AN187: 64 | AO187: 65 | AP187: 66 | AQ187: 67 | AR187: 68 | AS187: 69 | AT187: 70
D188: 71 | E188: 72 | F188: 73 | G188: 74 | H188: 75 | I188: 76 | J188: 77 | K188: 78 | L188: 79 | M188: 80 | O188: 71 | P188: 72 | Q188: 73 | R188: 74 | S188: 75 | T188: 76 | U188: 77 | V188: 78 | W188: 79 | X188: 80 | Z188: 71 | AA188: 72 | AB188: 73 | AC188: 74 | AD188: 75 | AE188: 76 | AF188: 77 | AG188: 78 | AH188: 79 | AI188: 80 | AK188: 71 | AL188: 72 | AM188: 73 | AN188: 74 | AO188: 75 | AP188: 76 | AQ188: 77 | AR188: 78 | AS188: 79 | AT188: 80
D189: 81 | E189: 82 | F189: 83 | G189: 84 | H189: 85 | I189: 86 | J189: 87 | K189: 88 | L189: 89 | M189: 90 | O189: 81 | P189: 82 | Q189: 83 | R189: 84 | S189: 85 | T189: 86 | U189: 87 | V189: 88 | W189: 89 | X189: 90 | Z189: 81 | AA189: 82 | AB189: 83 | AC189: 84 | AD189: 85 | AE189: 86 | AF189: 87 | AG189: 88 | AH189: 89 | AI189: 90 | AK189: 81 | AL189: 82 | AM189: 83 | AN189: 84 | AO189: 85 | AP189: 86 | AQ189: 87 | AR189: 88 | AS189: 89 | AT189: 90
D190: 91 | E190: 92 | F190: 93 | G190: 94 | H190: 95 | I190: 96 | J190: 97 | K190: 98 | L190: 99 | M190: 100 | O190: 91 | P190: 92 | Q190: 93 | R190: 94 | S190: 95 | T190: 96 | U190: 97 | V190: 98 | W190: 99 | X190: 100 | Z190: 91 | AA190: 92 | AB190: 93 | AC190: 94 | AD190: 95 | AE190: 96 | AF190: 97 | AG190: 98 | AH190: 99 | AI190: 100 | AK190: 91 | AL190: 92 | AM190: 93 | AN190: 94 | AO190: 95 | AP190: 96 | AQ190: 97 | AR190: 98 | AS190: 99 | AT190: 100
D193: Never, or not often | O193: Sometimes | Z193: Yes, definitely
B195: Neighbourhood tenure (years)
D197: 1 | E197: 2 | F197: 3 | G197: 4 | H197: 5 | I197: 6 | J197: 7 | K197: 8 | L197: 9 | M197: 10 | O197: 1 | P197: 2 | Q197: 3 | R197: 4 | S197: 5 | T197: 6 | U197: 7 | V197: 8 | W197: 9 | X197: 10 | Z197: 1 | AA197: 2 | AB197: 3 | AC197: 4 | AD197: 5 | AE197: 6 | AF197: 7 | AG197: 8 | AH197: 9 | AI197: 10 | AK197: 1 | AL197: 2 | AM197: 3 | AN197: 4 | AO197: 5 | AP197: 6 | AQ197: 7 | AR197: 8 | AS197: 9 | AT197: 10
D198: 11 | E198: 12 | F198: 13 | G198: 14 | H198: 15 | I198: 16 | J198: 17 | K198: 18 | L198: 19 | M198: 20 | O198: 11 | P198: 12 | Q198: 13 | R198: 14 | S198: 15 | T198: 16 | U198: 17 | V198: 18 | W198: 19 | X198: 20 | Z198: 11 | AA198: 12 | AB198: 13 | AC198: 14 | AD198: 15 | AE198: 16 | AF198: 17 | AG198: 18 | AH198: 19 | AI198: 20 | AK198: 11 | AL198: 12 | AM198: 13 | AN198: 14 | AO198: 15 | AP198: 16 | AQ198: 17 | AR198: 18 | AS198: 19 | AT198: 20
D199: 21 | E199: 22 | F199: 23 | G199: 24 | H199: 25 | I199: 26 | J199: 27 | K199: 28 | L199: 29 | M199: 30 | O199: 21 | P199: 22 | Q199: 23 | R199: 24 | S199: 25 | T199: 26 | U199: 27 | V199: 28 | W199: 29 | X199: 30 | Z199: 21 | AA199: 22 | AB199: 23 | AC199: 24 | AD199: 25 | AE199: 26 | AF199: 27 | AG199: 28 | AH199: 29 | AI199: 30 | AK199: 21 | AL199: 22 | AM199: 23 | AN199: 24 | AO199: 25 | AP199: 26 | AQ199: 27 | AR199: 28 | AS199: 29 | AT199: 30
D200: 31 | E200: 32 | F200: 33 | G200: 34 | H200: 35 | I200: 36 | J200: 37 | K200: 38 | L200: 39 | M200: 40 | O200: 31 | P200: 32 | Q200: 33 | R200: 34 | S200: 35 | T200: 36 | U200: 37 | V200: 38 | W200: 39 | X200: 40 | Z200: 31 | AA200: 32 | AB200: 33 | AC200: 34 | AD200: 35 | AE200: 36 | AF200: 37 | AG200: 38 | AH200: 39 | AI200: 40 | AK200: 31 | AL200: 32 | AM200: 33 | AN200: 34 | AO200: 35 | AP200: 36 | AQ200: 37 | AR200: 38 | AS200: 39 | AT200: 40
D201: 41 | E201: 42 | F201: 43 | G201: 44 | H201: 45 | I201: 46 | J201: 47 | K201: 48 | L201: 49 | M201: 50 | O201: 41 | P201: 42 | Q201: 43 | R201: 44 | S201: 45 | T201: 46 | U201: 47 | V201: 48 | W201: 49 | X201: 50 | Z201: 41 | AA201: 42 | AB201: 43 | AC201: 44 | AD201: 45 | AE201: 46 | AF201: 47 | AG201: 48 | AH201: 49 | AI201: 50 | AK201: 41 | AL201: 42 | AM201: 43 | AN201: 44 | AO201: 45 | AP201: 46 | AQ201: 47 | AR201: 48 | AS201: 49 | AT201: 50
D202: 51 | E202: 52 | F202: 53 | G202: 54 | H202: 55 | I202: 56 | J202: 57 | K202: 58 | L202: 59 | M202: 60 | O202: 51 | P202: 52 | Q202: 53 | R202: 54 | S202: 55 | T202: 56 | U202: 57 | V202: 58 | W202: 59 | X202: 60 | Z202: 51 | AA202: 52 | AB202: 53 | AC202: 54 | AD202: 55 | AE202: 56 | AF202: 57 | AG202: 58 | AH202: 59 | AI202: 60 | AK202: 51 | AL202: 52 | AM202: 53 | AN202: 54 | AO202: 55 | AP202: 56 | AQ202: 57 | AR202: 58 | AS202: 59 | AT202: 60
D203: 61 | E203: 62 | F203: 63 | G203: 64 | H203: 65 | I203: 66 | J203: 67 | K203: 68 | L203: 69 | M203: 70 | O203: 61 | P203: 62 | Q203: 63 | R203: 64 | S203: 65 | T203: 66 | U203: 67 | V203: 68 | W203: 69 | X203: 70 | Z203: 61 | AA203: 62 | AB203: 63 | AC203: 64 | AD203: 65 | AE203: 66 | AF203: 67 | AG203: 68 | AH203: 69 | AI203: 70 | AK203: 61 | AL203: 62 | AM203: 63 | AN203: 64 | AO203: 65 | AP203: 66 | AQ203: 67 | AR203: 68 | AS203: 69 | AT203: 70
D204: 71 | E204: 72 | F204: 73 | G204: 74 | H204: 75 | I204: 76 | J204: 77 | K204: 78 | L204: 79 | M204: 80 | O204: 71 | P204: 72 | Q204: 73 | R204: 74 | S204: 75 | T204: 76 | U204: 77 | V204: 78 | W204: 79 | X204: 80 | Z204: 71 | AA204: 72 | AB204: 73 | AC204: 74 | AD204: 75 | AE204: 76 | AF204: 77 | AG204: 78 | AH204: 79 | AI204: 80 | AK204: 71 | AL204: 72 | AM204: 73 | AN204: 74 | AO204: 75 | AP204: 76 | AQ204: 77 | AR204: 78 | AS204: 79 | AT204: 80
D205: 81 | E205: 82 | F205: 83 | G205: 84 | H205: 85 | I205: 86 | J205: 87 | K205: 88 | L205: 89 | M205: 90 | O205: 81 | P205: 82 | Q205: 83 | R205: 84 | S205: 85 | T205: 86 | U205: 87 | V205: 88 | W205: 89 | X205: 90 | Z205: 81 | AA205: 82 | AB205: 83 | AC205: 84 | AD205: 85 | AE205: 86 | AF205: 87 | AG205: 88 | AH205: 89 | AI205: 90 | AK205: 81 | AL205: 82 | AM205: 83 | AN205: 84 | AO205: 85 | AP205: 86 | AQ205: 87 | AR205: 88 | AS205: 89 | AT205: 90
D206: 91 | E206: 92 | F206: 93 | G206: 94 | H206: 95 | I206: 96 | J206: 97 | K206: 98 | L206: 99 | M206: 100 | O206: 91 | P206: 92 | Q206: 93 | R206: 94 | S206: 95 | T206: 96 | U206: 97 | V206: 98 | W206: 99 | X206: 100 | Z206: 91 | AA206: 92 | AB206: 93 | AC206: 94 | AD206: 95 | AE206: 96 | AF206: 97 | AG206: 98 | AH206: 99 | AI206: 100 | AK206: 91 | AL206: 92 | AM206: 93 | AN206: 94 | AO206: 95 | AP206: 96 | AQ206: 97 | AR206: 98 | AS206: 99 | AT206: 100
D209: < 1 year | O209: > 1 but ≤ 5 years | Z209: > 5 but ≤ 10 years | AK209: > 10 years
B211: Home ownership status
D213: 1 | E213: 2 | F213: 3 | G213: 4 | H213: 5 | I213: 6 | J213: 7 | K213: 8 | L213: 9 | M213: 10 | O213: 1 | P213: 2 | Q213: 3 | R213: 4 | S213: 5 | T213: 6 | U213: 7 | V213: 8 | W213: 9 | X213: 10 | Z213: 1 | AA213: 2 | AB213: 3 | AC213: 4 | AD213: 5 | AE213: 6 | AF213: 7 | AG213: 8 | AH213: 9 | AI213: 10 | AK213: 1 | AL213: 2 | AM213: 3 | AN213: 4 | AO213: 5 | AP213: 6 | AQ213: 7 | AR213: 8 | AS213: 9 | AT213: 10
D214: 11 | E214: 12 | F214: 13 | G214: 14 | H214: 15 | I214: 16 | J214: 17 | K214: 18 | L214: 19 | M214: 20 | O214: 11 | P214: 12 | Q214: 13 | R214: 14 | S214: 15 | T214: 16 | U214: 17 | V214: 18 | W214: 19 | X214: 20 | Z214: 11 | AA214: 12 | AB214: 13 | AC214: 14 | AD214: 15 | AE214: 16 | AF214: 17 | AG214: 18 | AH214: 19 | AI214: 20 | AK214: 11 | AL214: 12 | AM214: 13 | AN214: 14 | AO214: 15 | AP214: 16 | AQ214: 17 | AR214: 18 | AS214: 19 | AT214: 20
D215: 21 | E215: 22 | F215: 23 | G215: 24 | H215: 25 | I215: 26 | J215: 27 | K215: 28 | L215: 29 | M215: 30 | O215: 21 | P215: 22 | Q215: 23 | R215: 24 | S215: 25 | T215: 26 | U215: 27 | V215: 28 | W215: 29 | X215: 30 | Z215: 21 | AA215: 22 | AB215: 23 | AC215: 24 | AD215: 25 | AE215: 26 | AF215: 27 | AG215: 28 | AH215: 29 | AI215: 30 | AK215: 21 | AL215: 22 | AM215: 23 | AN215: 24 | AO215: 25 | AP215: 26 | AQ215: 27 | AR215: 28 | AS215: 29 | AT215: 30
D216: 31 | E216: 32 | F216: 33 | G216: 34 | H216: 35 | I216: 36 | J216: 37 | K216: 38 | L216: 39 | M216: 40 | O216: 31 | P216: 32 | Q216: 33 | R216: 34 | S216: 35 | T216: 36 | U216: 37 | V216: 38 | W216: 39 | X216: 40 | Z216: 31 | AA216: 32 | AB216: 33 | AC216: 34 | AD216: 35 | AE216: 36 | AF216: 37 | AG216: 38 | AH216: 39 | AI216: 40 | AK216: 31 | AL216: 32 | AM216: 33 | AN216: 34 | AO216: 35 | AP216: 36 | AQ216: 37 | AR216: 38 | AS216: 39 | AT216: 40
D217: 41 | E217: 42 | F217: 43 | G217: 44 | H217: 45 | I217: 46 | J217: 47 | K217: 48 | L217: 49 | M217: 50 | O217: 41 | P217: 42 | Q217: 43 | R217: 44 | S217: 45 | T217: 46 | U217: 47 | V217: 48 | W217: 49 | X217: 50 | Z217: 41 | AA217: 42 | AB217: 43 | AC217: 44 | AD217: 45 | AE217: 46 | AF217: 47 | AG217: 48 | AH217: 49 | AI217: 50 | AK217: 41 | AL217: 42 | AM217: 43 | AN217: 44 | AO217: 45 | AP217: 46 | AQ217: 47 | AR217: 48 | AS217: 49 | AT217: 50
D218: 51 | E218: 52 | F218: 53 | G218: 54 | H218: 55 | I218: 56 | J218: 57 | K218: 58 | L218: 59 | M218: 60 | O218: 51 | P218: 52 | Q218: 53 | R218: 54 | S218: 55 | T218: 56 | U218: 57 | V218: 58 | W218: 59 | X218: 60 | Z218: 51 | AA218: 52 | AB218: 53 | AC218: 54 | AD218: 55 | AE218: 56 | AF218: 57 | AG218: 58 | AH218: 59 | AI218: 60 | AK218: 51 | AL218: 52 | AM218: 53 | AN218: 54 | AO218: 55 | AP218: 56 | AQ218: 57 | AR218: 58 | AS218: 59 | AT218: 60
D219: 61 | E219: 62 | F219: 63 | G219: 64 | H219: 65 | I219: 66 | J219: 67 | K219: 68 | L219: 69 | M219: 70 | O219: 61 | P219: 62 | Q219: 63 | R219: 64 | S219: 65 | T219: 66 | U219: 67 | V219: 68 | W219: 69 | X219: 70 | Z219: 61 | AA219: 62 | AB219: 63 | AC219: 64 | AD219: 65 | AE219: 66 | AF219: 67 | AG219: 68 | AH219: 69 | AI219: 70 | AK219: 61 | AL219: 62 | AM219: 63 | AN219: 64 | AO219: 65 | AP219: 66 | AQ219: 67 | AR219: 68 | AS219: 69 | AT219: 70
D220: 71 | E220: 72 | F220: 73 | G220: 74 | H220: 75 | I220: 76 | J220: 77 | K220: 78 | L220: 79 | M220: 80 | O220: 71 | P220: 72 | Q220: 73 | R220: 74 | S220: 75 | T220: 76 | U220: 77 | V220: 78 | W220: 79 | X220: 80 | Z220: 71 | AA220: 72 | AB220: 73 | AC220: 74 | AD220: 75 | AE220: 76 | AF220: 77 | AG220: 78 | AH220: 79 | AI220: 80 | AK220: 71 | AL220: 72 | AM220: 73 | AN220: 74 | AO220: 75 | AP220: 76 | AQ220: 77 | AR220: 78 | AS220: 79 | AT220: 80
D221: 81 | E221: 82 | F221: 83 | G221: 84 | H221: 85 | I221: 86 | J221: 87 | K221: 88 | L221: 89 | M221: 90 | O221: 81 | P221: 82 | Q221: 83 | R221: 84 | S221: 85 | T221: 86 | U221: 87 | V221: 88 | W221: 89 | X221: 90 | Z221: 81 | AA221: 82 | AB221: 83 | AC221: 84 | AD221: 85 | AE221: 86 | AF221: 87 | AG221: 88 | AH221: 89 | AI221: 90 | AK221: 81 | AL221: 82 | AM221: 83 | AN221: 84 | AO221: 85 | AP221: 86 | AQ221: 87 | AR221: 88 | AS221: 89 | AT221: 90
D222: 91 | E222: 92 | F222: 93 | G222: 94 | H222: 95 | I222: 96 | J222: 97 | K222: 98 | L222: 99 | M222: 100 | O222: 91 | P222: 92 | Q222: 93 | R222: 94 | S222: 95 | T222: 96 | U222: 97 | V222: 98 | W222: 99 | X222: 100 | Z222: 91 | AA222: 92 | AB222: 93 | AC222: 94 | AD222: 95 | AE222: 96 | AF222: 97 | AG222: 98 | AH222: 99 | AI222: 100 | AK222: 91 | AL222: 92 | AM222: 93 | AN222: 94 | AO222: 95 | AP222: 96 | AQ222: 97 | AR222: 98 | AS222: 99 | AT222: 100
D225: Owned, no mortgage | O225: Owned with mortgage | Z225: Rented | AK225: Other
B227: Has private health insurance
D229: 1 | E229: 2 | F229: 3 | G229: 4 | H229: 5 | I229: 6 | J229: 7 | K229: 8 | L229: 9 | M229: 10 | AK229: 1 | AL229: 2 | AM229: 3 | AN229: 4 | AO229: 5 | AP229: 6 | AQ229: 7 | AR229: 8 | AS229: 9 | AT229: 10
D230: 11 | E230: 12 | F230: 13 | G230: 14 | H230: 15 | I230: 16 | J230: 17 | K230: 18 | L230: 19 | M230: 20 | AK230: 11 | AL230: 12 | AM230: 13 | AN230: 14 | AO230: 15 | AP230: 16 | AQ230: 17 | AR230: 18 | AS230: 19 | AT230: 20
D231: 21 | E231: 22 | F231: 23 | G231: 24 | H231: 25 | I231: 26 | J231: 27 | K231: 28 | L231: 29 | M231: 30 | AK231: 21 | AL231: 22 | AM231: 23 | AN231: 24 | AO231: 25 | AP231: 26 | AQ231: 27 | AR231: 28 | AS231: 29 | AT231: 30
D232: 31 | E232: 32 | F232: 33 | G232: 34 | H232: 35 | I232: 36 | J232: 37 | K232: 38 | L232: 39 | M232: 40 | AK232: 31 | AL232: 32 | AM232: 33 | AN232: 34 | AO232: 35 | AP232: 36 | AQ232: 37 | AR232: 38 | AS232: 39 | AT232: 40
D233: 41 | E233: 42 | F233: 43 | G233: 44 | H233: 45 | I233: 46 | J233: 47 | K233: 48 | L233: 49 | M233: 50 | AK233: 41 | AL233: 42 | AM233: 43 | AN233: 44 | AO233: 45 | AP233: 46 | AQ233: 47 | AR233: 48 | AS233: 49 | AT233: 50
D234: 51 | E234: 52 | F234: 53 | G234: 54 | H234: 55 | I234: 56 | J234: 57 | K234: 58 | L234: 59 | M234: 60 | AK234: 51 | AL234: 52 | AM234: 53 | AN234: 54 | AO234: 55 | AP234: 56 | AQ234: 57 | AR234: 58 | AS234: 59 | AT234: 60
D235: 61 | E235: 62 | F235: 63 | G235: 64 | H235: 65 | I235: 66 | J235: 67 | K235: 68 | L235: 69 | M235: 70 | AK235: 61 | AL235: 62 | AM235: 63 | AN235: 64 | AO235: 65 | AP235: 66 | AQ235: 67 | AR235: 68 | AS235: 69 | AT235: 70
D236: 71 | E236: 72 | F236: 73 | G236: 74 | H236: 75 | I236: 76 | J236: 77 | K236: 78 | L236: 79 | M236: 80 | AK236: 71 | AL236: 72 | AM236: 73 | AN236: 74 | AO236: 75 | AP236: 76 | AQ236: 77 | AR236: 78 | AS236: 79 | AT236: 80
D237: 81 | E237: 82 | F237: 83 | G237: 84 | H237: 85 | I237: 86 | J237: 87 | K237: 88 | L237: 89 | M237: 90 | AK237: 81 | AL237: 82 | AM237: 83 | AN237: 84 | AO237: 85 | AP237: 86 | AQ237: 87 | AR237: 88 | AS237: 89 | AT237: 90
D238: 91 | E238: 92 | F238: 93 | G238: 94 | H238: 95 | I238: 96 | J238: 97 | K238: 98 | L238: 99 | M238: 100 | AK238: 91 | AL238: 92 | AM238: 93 | AN238: 94 | AO238: 95 | AP238: 96 | AQ238: 97 | AR238: 98 | AS238: 99 | AT238: 100
B242: Experience of discrimination
D244: 1 | E244: 2 | F244: 3 | G244: 4 | H244: 5 | I244: 6 | J244: 7 | K244: 8 | L244: 9 | M244: 10 | O244: 1 | P244: 2 | Q244: 3 | R244: 4 | S244: 5 | T244: 6 | U244: 7 | V244: 8 | W244: 9 | X244: 10 | AK244: 1 | AL244: 2 | AM244: 3 | AN244: 4 | AO244: 5 | AP244: 6 | AQ244: 7 | AR244: 8 | AS244: 9 | AT244: 10
D245: 11 | E245: 12 | F245: 13 | G245: 14 | H245: 15 | I245: 16 | J245: 17 | K245: 18 | L245: 19 | M245: 20 | O245: 11 | P245: 12 | Q245: 13 | R245: 14 | S245: 15 | T245: 16 | U245: 17 | V245: 18 | W245: 19 | X245: 20 | AK245: 11 | AL245: 12 | AM245: 13 | AN245: 14 | AO245: 15 | AP245: 16 | AQ245: 17 | AR245: 18 | AS245: 19 | AT245: 20
D246: 21 | E246: 22 | F246: 23 | G246: 24 | H246: 25 | I246: 26 | J246: 27 | K246: 28 | L246: 29 | M246: 30 | O246: 21 | P246: 22 | Q246: 23 | R246: 24 | S246: 25 | T246: 26 | U246: 27 | V246: 28 | W246: 29 | X246: 30 | AK246: 21 | AL246: 22 | AM246: 23 | AN246: 24 | AO246: 25 | AP246: 26 | AQ246: 27 | AR246: 28 | AS246: 29 | AT246: 30
D247: 31 | E247: 32 | F247: 33 | G247: 34 | H247: 35 | I247: 36 | J247: 37 | K247: 38 | L247: 39 | M247: 40 | O247: 31 | P247: 32 | Q247: 33 | R247: 34 | S247: 35 | T247: 36 | U247: 37 | V247: 38 | W247: 39 | X247: 40 | AK247: 31 | AL247: 32 | AM247: 33 | AN247: 34 | AO247: 35 | AP247: 36 | AQ247: 37 | AR247: 38 | AS247: 39 | AT247: 40
D248: 41 | E248: 42 | F248: 43 | G248: 44 | H248: 45 | I248: 46 | J248: 47 | K248: 48 | L248: 49 | M248: 50 | O248: 41 | P248: 42 | Q248: 43 | R248: 44 | S248: 45 | T248: 46 | U248: 47 | V248: 48 | W248: 49 | X248: 50 | AK248: 41 | AL248: 42 | AM248: 43 | AN248: 44 | AO248: 45 | AP248: 46 | AQ248: 47 | AR248: 48 | AS248: 49 | AT248: 50
D249: 51 | E249: 52 | F249: 53 | G249: 54 | H249: 55 | I249: 56 | J249: 57 | K249: 58 | L249: 59 | M249: 60 | O249: 51 | P249: 52 | Q249: 53 | R249: 54 | S249: 55 | T249: 56 | U249: 57 | V249: 58 | W249: 59 | X249: 60 | AK249: 51 | AL249: 52 | AM249: 53 | AN249: 54 | AO249: 55 | AP249: 56 | AQ249: 57 | AR249: 58 | AS249: 59 | AT249: 60
D250: 61 | E250: 62 | F250: 63 | G250: 64 | H250: 65 | I250: 66 | J250: 67 | K250: 68 | L250: 69 | M250: 70 | O250: 61 | P250: 62 | Q250: 63 | R250: 64 | S250: 65 | T250: 66 | U250: 67 | V250: 68 | W250: 69 | X250: 70 | AK250: 61 | AL250: 62 | AM250: 63 | AN250: 64 | AO250: 65 | AP250: 66 | AQ250: 67 | AR250: 68 | AS250: 69 | AT250: 70
D251: 71 | E251: 72 | F251: 73 | G251: 74 | H251: 75 | I251: 76 | J251: 77 | K251: 78 | L251: 79 | M251: 80 | O251: 71 | P251: 72 | Q251: 73 | R251: 74 | S251: 75 | T251: 76 | U251: 77 | V251: 78 | W251: 79 | X251: 80 | AK251: 71 | AL251: 72 | AM251: 73 | AN251: 74 | AO251: 75 | AP251: 76 | AQ251: 77 | AR251: 78 | AS251: 79 | AT251: 80
D252: 81 | E252: 82 | F252: 83 | G252: 84 | H252: 85 | I252: 86 | J252: 87 | K252: 88 | L252: 89 | M252: 90 | O252: 81 | P252: 82 | Q252: 83 | R252: 84 | S252: 85 | T252: 86 | U252: 87 | V252: 88 | W252: 89 | X252: 90 | AK252: 81 | AL252: 82 | AM252: 83 | AN252: 84 | AO252: 85 | AP252: 86 | AQ252: 87 | AR252: 88 | AS252: 89 | AT252: 90
D253: 91 | E253: 92 | F253: 93 | G253: 94 | H253: 95 | I253: 96 | J253: 97 | K253: 98 | L253: 99 | M253: 100 | O253: 91 | P253: 92 | Q253: 93 | R253: 94 | S253: 95 | T253: 96 | U253: 97 | V253: 98 | W253: 99 | X253: 100 | AK253: 91 | AL253: 92 | AM253: 93 | AN253: 94 | AO253: 95 | AP253: 96 | AQ253: 97 | AR253: 98 | AS253: 99 | AT253: 100
D256: Yes | O256: No
B258: Data were age-standardised to the 2011 Victorian population.
B259: Estimates may not add to 100 per cent due to a proportion of 'don't know' or 'refused to say' responses, not reported here.

Sheet 2018 Victorian Estimates
C14: Men | H14: Women | M14: People
E15: 95% CI | J15: 95% CI | O15: 95% CI
C16: % | E16: LL | F16: UL | H16: % | J16: LL | K16: UL | M16: % | O16: LL | P16: UL
B17: OBESITY - BMI
B18: Underweight (BMI < 18.5) | C18: =SUMIFS(SummaryData!$D:$D,SummaryData!$A:$A,$B$17,SummaryData!$B:$B,$B18,SummaryData!$C:$C,$C$14) -> 1.126059 | E18: =SUMIFS(SummaryData!$E:$E,SummaryData!$A:$A,$B$17,SummaryData!$B:$B,$B18,SummaryData!$C:$C,$C$14) -> 0.7427905 | F18: =SUMIFS(SummaryData!$F:$F,SummaryData!$A:$A,$B$17,SummaryData!$B:$B,$B18,SummaryData!$C:$C,$C$14) -> 1.703695 | H18: =SUMIFS(SummaryData!$D:$D,SummaryData!$A:$A,$B$17,SummaryData!$B:$B,$B18,SummaryData!$C:$C,$H$14) -> 2.721737 | J18: =SUMIFS(SummaryData!$E:$E,SummaryData!$A:$A,$B$17,SummaryData!$B:$B,$B18,SummaryData!$C:$C,$H$14) -> 2.04626 | K18: =SUMIFS(SummaryData!$F:$F,SummaryData!$A:$A,$B$17,SummaryData!$B:$B,$B18,SummaryData!$C:$C,$H$14) -> 3.61197 | M18: =SUMIFS(SummaryData!$D:$D,SummaryData!$A:$A,$B$17,SummaryData!$B:$B,$B18,SummaryData!$C:$C,$M$14) -> 1.923407 | O18: =SUMIFS(SummaryData!$E:$E,SummaryData!$A:$A,$B$17,SummaryData!$B:$B,$B18,SummaryData!$C:$C,$M$14) -> 1.518505 | P18: =SUMIFS(SummaryData!$F:$F,SummaryData!$A:$A,$B$17,SummaryData!$B:$B,$B18,SummaryData!$C:$C,$M$14) -> 2.433605
B19: Normal range (18.5 ≥ BMI < 25) | C19: =SUMIFS(SummaryData!$D:$D,SummaryData!$A:$A,$B$17,SummaryData!$B:$B,$B19,SummaryData!$C:$C,$C$14) -> 35.34835 | E19: =SUMIFS(SummaryData!$E:$E,SummaryData!$A:$A,$B$17,SummaryData!$B:$B,$B19,SummaryData!$C:$C,$C$14) -> 33.10938 | F19: =SUMIFS(SummaryData!$F:$F,SummaryData!$A:$A,$B$17,SummaryData!$B:$B,$B19,SummaryData!$C:$C,$C$14) -> 37.6535 | H19: =SUMIFS(SummaryData!$D:$D,SummaryData!$A:$A,$B$17,SummaryData!$B:$B,$B19,SummaryData!$C:$C,$H$14) -> 40.94622 | J19: =SUMIFS(SummaryData!$E:$E,SummaryData!$A:$A,$B$17,SummaryData!$B:$B,$B19,SummaryData!$C:$C,$H$14) -> 38.71784 | K19: =SUMIFS(SummaryData!$F:$F,SummaryData!$A:$A,$B$17,SummaryData!$B:$B,$B19,SummaryData!$C:$C,$H$14) -> 43.21241 | M19: =SUMIFS(SummaryData!$D:$D,SummaryData!$A:$A,$B$17,SummaryData!$B:$B,$B19,SummaryData!$C:$C,$M$14) -> 38.21016 | O19: =SUMIFS(SummaryData!$E:$E,SummaryData!$A:$A,$B$17,SummaryData!$B:$B,$B19,SummaryData!$C:$C,$M$14) -> 36.6279 | P19: =SUMIFS(SummaryData!$F:$F,SummaryData!$A:$A,$B$17,SummaryData!$B:$B,$B19,SummaryData!$C:$C,$M$14) -> 39.81782
B20: Overweight, but not obese (25 ≥ BMI < 30) | C20: =SUMIFS(SummaryData!$D:$D,SummaryData!$A:$A,$B$17,SummaryData!$B:$B,$B20,SummaryData!$C:$C,$C$14) -> 36.58896 | E20: =SUMIFS(SummaryData!$E:$E,SummaryData!$A:$A,$B$17,SummaryData!$B:$B,$B20,SummaryData!$C:$C,$C$14) -> 34.35305 | F20: =SUMIFS(SummaryData!$F:$F,SummaryData!$A:$A,$B$17,SummaryData!$B:$B,$B20,SummaryData!$C:$C,$C$14) -> 38.8842 | H20: =SUMIFS(SummaryData!$D:$D,SummaryData!$A:$A,$B$17,SummaryData!$B:$B,$B20,SummaryData!$C:$C,$H$14) -> 23.71661 | J20: =SUMIFS(SummaryData!$E:$E,SummaryData!$A:$A,$B$17,SummaryData!$B:$B,$B20,SummaryData!$C:$C,$H$14) -> 21.8907 | K20: =SUMIFS(SummaryData!$F:$F,SummaryData!$A:$A,$B$17,SummaryData!$B:$B,$B20,SummaryData!$C:$C,$H$14) -> 25.64481 | M20: =SUMIFS(SummaryData!$D:$D,SummaryData!$A:$A,$B$17,SummaryData!$B:$B,$B20,SummaryData!$C:$C,$M$14) -> 29.90127 | O20: =SUMIFS(SummaryData!$E:$E,SummaryData!$A:$A,$B$17,SummaryData!$B:$B,$B20,SummaryData!$C:$C,$M$14) -> 28.43602 | P20: =SUMIFS(SummaryData!$F:$F,SummaryData!$A:$A,$B$17,SummaryData!$B:$B,$B20,SummaryData!$C:$C,$M$14) -> 31.40889
B21: Obese (BMI ≥ 30) | C21: =SUMIFS(SummaryData!$D:$D,SummaryData!$A:$A,$B$17,SummaryData!$B:$B,$B21,SummaryData!$C:$C,$C$14) -> 22.12528 | E21: =SUMIFS(SummaryData!$E:$E,SummaryData!$A:$A,$B$17,SummaryData!$B:$B,$B21,SummaryData!$C:$C,$C$14) -> 20.24956 | F21: =SUMIFS(SummaryData!$F:$F,SummaryData!$A:$A,$B$17,SummaryData!$B:$B,$B21,SummaryData!$C:$C,$C$14) -> 24.12219 | H21: =SUMIFS(SummaryData!$D:$D,SummaryData!$A:$A,$B$17,SummaryData!$B:$B,$B21,SummaryData!$C:$C,$H$14) -> 20.36952 | J21: =SUMIFS(SummaryData!$E:$E,SummaryData!$A:$A,$B$17,SummaryData!$B:$B,$B21,SummaryData!$C:$C,$H$14) -> 18.6503 | K21: =SUMIFS(SummaryData!$F:$F,SummaryData!$A:$A,$B$17,SummaryData!$B:$B,$B21,SummaryData!$C:$C,$H$14) -> 22.20396 | M21: =SUMIFS(SummaryData!$D:$D,SummaryData!$A:$A,$B$17,SummaryData!$B:$B,$B21,SummaryData!$C:$C,$M$14) -> 21.30471 | O21: =SUMIFS(SummaryData!$E:$E,SummaryData!$A:$A,$B$17,SummaryData!$B:$B,$B21,SummaryData!$C:$C,$M$14) -> 20.01802 | P21: =SUMIFS(SummaryData!$F:$F,SummaryData!$A:$A,$B$17,SummaryData!$B:$B,$B21,SummaryData!$C:$C,$M$14) -> 22.65069
B22: OBESITY - Overweight category
B23: Overweight (BMI ≥ 25) | C23: =SUMIFS(SummaryData!$D:$D,SummaryData!$A:$A,$B$22,SummaryData!$B:$B,$B23,SummaryData!$C:$C,$C$14) -> 58.71 | E23: =SUMIFS(SummaryData!$E:$E,SummaryData!$A:$A,$B$22,SummaryData!$B:$B,$B23,SummaryData!$C:$C,$C$14) -> 56.38 | F23: =SUMIFS(SummaryData!$F:$F,SummaryData!$A:$A,$B$22,SummaryData!$B:$B,$B23,SummaryData!$C:$C,$C$14) -> 61.01 | H23: =SUMIFS(SummaryData!$D:$D,SummaryData!$A:$A,$B$22,SummaryData!$B:$B,$B23,SummaryData!$C:$C,$H$14) -> 44.09 | J23: =SUMIFS(SummaryData!$E:$E,SummaryData!$A:$A,$B$22,SummaryData!$B:$B,$B23,SummaryData!$C:$C,$H$14) -> 41.88 | K23: =SUMIFS(SummaryData!$F:$F,SummaryData!$A:$A,$B$22,SummaryData!$B:$B,$B23,SummaryData!$C:$C,$H$14) -> 46.31 | M23: =SUMIFS(SummaryData!$D:$D,SummaryData!$A:$A,$B$22,SummaryData!$B:$B,$B23,SummaryData!$C:$C,$M$14) -> 51.21 | O23: =SUMIFS(SummaryData!$E:$E,SummaryData!$A:$A,$B$22,SummaryData!$B:$B,$B23,SummaryData!$C:$C,$M$14) -> 49.58 | P23: =SUMIFS(SummaryData!$F:$F,SummaryData!$A:$A,$B$22,SummaryData!$B:$B,$B23,SummaryData!$C:$C,$M$14) -> 52.83
B24: Obese Class I (30 ≥ BMI < 35) | C24: =SUMIFS(SummaryData!$D:$D,SummaryData!$A:$A,$B$22,SummaryData!$B:$B,$B24,SummaryData!$C:$C,$C$14) -> 15.4 | E24: =SUMIFS(SummaryData!$E:$E,SummaryData!$A:$A,$B$22,SummaryData!$B:$B,$B24,SummaryData!$C:$C,$C$14) -> 13.78 | F24: =SUMIFS(SummaryData!$F:$F,SummaryData!$A:$A,$B$22,SummaryData!$B:$B,$B24,SummaryData!$C:$C,$C$14) -> 17.16 | H24: =SUMIFS(SummaryData!$D:$D,SummaryData!$A:$A,$B$22,SummaryData!$B:$B,$B24,SummaryData!$C:$C,$H$14) -> 13.81 | J24: =SUMIFS(SummaryData!$E:$E,SummaryData!$A:$A,$B$22,SummaryData!$B:$B,$B24,SummaryData!$C:$C,$H$14) -> 12.35 | K24: =SUMIFS(SummaryData!$F:$F,SummaryData!$A:$A,$B$22,SummaryData!$B:$B,$B24,SummaryData!$C:$C,$H$14) -> 15.42 | M24: =SUMIFS(SummaryData!$D:$D,SummaryData!$A:$A,$B$22,SummaryData!$B:$B,$B24,SummaryData!$C:$C,$M$14) -> 14.6 | O24: =SUMIFS(SummaryData!$E:$E,SummaryData!$A:$A,$B$22,SummaryData!$B:$B,$B24,SummaryData!$C:$C,$M$14) -> 13.49 | P24: =SUMIFS(SummaryData!$F:$F,SummaryData!$A:$A,$B$22,SummaryData!$B:$B,$B24,SummaryData!$C:$C,$M$14) -> 15.78
B25: Obese Class II (35 ≥ BMI < 40) | C25: =SUMIFS(SummaryData!$D:$D,SummaryData!$A:$A,$B$22,SummaryData!$B:$B,$B25,SummaryData!$C:$C,$C$14) -> 4.3 | E25: =SUMIFS(SummaryData!$E:$E,SummaryData!$A:$A,$B$22,SummaryData!$B:$B,$B25,SummaryData!$C:$C,$C$14) -> 3.45 | F25: =SUMIFS(SummaryData!$F:$F,SummaryData!$A:$A,$B$22,SummaryData!$B:$B,$B25,SummaryData!$C:$C,$C$14) -> 5.36 | H25: =SUMIFS(SummaryData!$D:$D,SummaryData!$A:$A,$B$22,SummaryData!$B:$B,$B25,SummaryData!$C:$C,$H$14) -> 4.44 | J25: =SUMIFS(SummaryData!$E:$E,SummaryData!$A:$A,$B$22,SummaryData!$B:$B,$B25,SummaryData!$C:$C,$H$14) -> 3.62 | K25: =SUMIFS(SummaryData!$F:$F,SummaryData!$A:$A,$B$22,SummaryData!$B:$B,$B25,SummaryData!$C:$C,$H$14) -> 5.43 | M25: =SUMIFS(SummaryData!$D:$D,SummaryData!$A:$A,$B$22,SummaryData!$B:$B,$B25,SummaryData!$C:$C,$M$14) -> 4.39 | O25: =SUMIFS(SummaryData!$E:$E,SummaryData!$A:$A,$B$22,SummaryData!$B:$B,$B25,SummaryData!$C:$C,$M$14) -> 3.78 | P25: =SUMIFS(SummaryData!$F:$F,SummaryData!$A:$A,$B$22,SummaryData!$B:$B,$B25,SummaryData!$C:$C,$M$14) -> 5.1
B26: Obese Class III (BMI ≥ 40) | C26: =SUMIFS(SummaryData!$D:$D,SummaryData!$A:$A,$B$22,SummaryData!$B:$B,$B26,SummaryData!$C:$C,$C$14) -> 2.43 | E26: =SUMIFS(SummaryData!$E:$E,SummaryData!$A:$A,$B$22,SummaryData!$B:$B,$B26,SummaryData!$C:$C,$C$14) -> 1.81 | F26: =SUMIFS(SummaryData!$F:$F,SummaryData!$A:$A,$B$22,SummaryData!$B:$B,$B26,SummaryData!$C:$C,$C$14) -> 3.25 | H26: =SUMIFS(SummaryData!$D:$D,SummaryData!$A:$A,$B$22,SummaryData!$B:$B,$B26,SummaryData!$C:$C,$H$14) -> 2.12 | J26: =SUMIFS(SummaryData!$E:$E,SummaryData!$A:$A,$B$22,SummaryData!$B:$B,$B26,SummaryData!$C:$C,$H$14) -> 1.59 | K26: =SUMIFS(SummaryData!$F:$F,SummaryData!$A:$A,$B$22,SummaryData!$B:$B,$B26,SummaryData!$C:$C,$H$14) -> 2.82 | M26: =SUMIFS(SummaryData!$D:$D,SummaryData!$A:$A,$B$22,SummaryData!$B:$B,$B26,SummaryData!$C:$C,$M$14) -> 2.31 | O26: =SUMIFS(SummaryData!$E:$E,SummaryData!$A:$A,$B$22,SummaryData!$B:$B,$B26,SummaryData!$C:$C,$M$14) -> 1.88 | P26: =SUMIFS(SummaryData!$F:$F,SummaryData!$A:$A,$B$22,SummaryData!$B:$B,$B26,SummaryData!$C:$C,$M$14) -> 2.83
B27: OBESITY - Frequency of consumption of take-away food or snacks
B28: Never | C28: =SUMIFS(SummaryData!$D:$D,SummaryData!$A:$A,$B$27,SummaryData!$B:$B,$B28,SummaryData!$C:$C,$C$14) -> 9.262706 | E28: =SUMIFS(SummaryData!$E:$E,SummaryData!$A:$A,$B$27,SummaryData!$B:$B,$B28,SummaryData!$C:$C,$C$14) -> 8.143486 | F28: =SUMIFS(SummaryData!$F:$F,SummaryData!$A:$A,$B$27,SummaryData!$B:$B,$B28,SummaryData!$C:$C,$C$14) -> 10.51813 | H28: =SUMIFS(SummaryData!$D:$D,SummaryData!$A:$A,$B$27,SummaryData!$B:$B,$B28,SummaryData!$C:$C,$H$14) -> 13.69282 | J28: =SUMIFS(SummaryData!$E:$E,SummaryData!$A:$A,$B$27,SummaryData!$B:$B,$B28,SummaryData!$C:$C,$H$14) -> 12.46791 | K28: =SUMIFS(SummaryData!$F:$F,SummaryData!$A:$A,$B$27,SummaryData!$B:$B,$B28,SummaryData!$C:$C,$H$14) -> 15.01742 | M28: =SUMIFS(SummaryData!$D:$D,SummaryData!$A:$A,$B$27,SummaryData!$B:$B,$B28,SummaryData!$C:$C,$M$14) -> 11.57202 | O28: =SUMIFS(SummaryData!$E:$E,SummaryData!$A:$A,$B$27,SummaryData!$B:$B,$B28,SummaryData!$C:$C,$M$14) -> 10.73556 | P28: =SUMIFS(SummaryData!$F:$F,SummaryData!$A:$A,$B$27,SummaryData!$B:$B,$B28,SummaryData!$C:$C,$M$14) -> 12.46455
B29: ≤ 1 day/week | C29: =SUMIFS(SummaryData!$D:$D,SummaryData!$A:$A,$B$27,SummaryData!$B:$B,$B29,SummaryData!$C:$C,$C$14) -> 67.83361 | E29: =SUMIFS(SummaryData!$E:$E,SummaryData!$A:$A,$B$27,SummaryData!$B:$B,$B29,SummaryData!$C:$C,$C$14) -> 65.57543 | F29: =SUMIFS(SummaryData!$F:$F,SummaryData!$A:$A,$B$27,SummaryData!$B:$B,$B29,SummaryData!$C:$C,$C$14) -> 70.01139 | H29: =SUMIFS(SummaryData!$D:$D,SummaryData!$A:$A,$B$27,SummaryData!$B:$B,$B29,SummaryData!$C:$C,$H$14) -> 73.37475 | J29: =SUMIFS(SummaryData!$E:$E,SummaryData!$A:$A,$B$27,SummaryData!$B:$B,$B29,SummaryData!$C:$C,$H$14) -> 71.33605 | K29: =SUMIFS(SummaryData!$F:$F,SummaryData!$A:$A,$B$27,SummaryData!$B:$B,$B29,SummaryData!$C:$C,$H$14) -> 75.31861 | M29: =SUMIFS(SummaryData!$D:$D,SummaryData!$A:$A,$B$27,SummaryData!$B:$B,$B29,SummaryData!$C:$C,$M$14) -> 70.26926 | O29: =SUMIFS(SummaryData!$E:$E,SummaryData!$A:$A,$B$27,SummaryData!$B:$B,$B29,SummaryData!$C:$C,$M$14) -> 68.74661 | P29: =SUMIFS(SummaryData!$F:$F,SummaryData!$A:$A,$B$27,SummaryData!$B:$B,$B29,SummaryData!$C:$C,$M$14) -> 71.74821
B30: > 1 day/week | C30: =SUMIFS(SummaryData!$D:$D,SummaryData!$A:$A,$B$27,SummaryData!$B:$B,$B30,SummaryData!$C:$C,$C$14) -> 22.45242 | E30: =SUMIFS(SummaryData!$E:$E,SummaryData!$A:$A,$B$27,SummaryData!$B:$B,$B30,SummaryData!$C:$C,$C$14) -> 20.51083 | F30: =SUMIFS(SummaryData!$F:$F,SummaryData!$A:$A,$B$27,SummaryData!$B:$B,$B30,SummaryData!$C:$C,$C$14) -> 24.52111 | H30: =SUMIFS(SummaryData!$D:$D,SummaryData!$A:$A,$B$27,SummaryData!$B:$B,$B30,SummaryData!$C:$C,$H$14) -> 12.03169 | J30: =SUMIFS(SummaryData!$E:$E,SummaryData!$A:$A,$B$27,SummaryData!$B:$B,$B30,SummaryData!$C:$C,$H$14) -> 10.49872 | K30: =SUMIFS(SummaryData!$F:$F,SummaryData!$A:$A,$B$27,SummaryData!$B:$B,$B30,SummaryData!$C:$C,$H$14) -> 13.7541 | M30: =SUMIFS(SummaryData!$D:$D,SummaryData!$A:$A,$B$27,SummaryData!$B:$B,$B30,SummaryData!$C:$C,$M$14) -> 17.44828 | O30: =SUMIFS(SummaryData!$E:$E,SummaryData!$A:$A,$B$27,SummaryData!$B:$B,$B30,SummaryData!$C:$C,$M$14) -> 16.17721 | P30: =SUMIFS(SummaryData!$F:$F,SummaryData!$A:$A,$B$27,SummaryData!$B:$B,$B30,SummaryData!$C:$C,$M$14) -> 18.79683
B31: OBESITY - Freqency of consuming savoury or salty snacks per week
B32: Never | C32: =SUMIFS(SummaryData!$D:$D,SummaryData!$A:$A,$B$31,SummaryData!$B:$B,$B32,SummaryData!$C:$C,$C$14) -> 11.74646 | E32: =SUMIFS(SummaryData!$E:$E,SummaryData!$A:$A,$B$31,SummaryData!$B:$B,$B32,SummaryData!$C:$C,$C$14) -> 10.29555 | F32: =SUMIFS(SummaryData!$F:$F,SummaryData!$A:$A,$B$31,SummaryData!$B:$B,$B32,SummaryData!$C:$C,$C$14) -> 13.37136 | H32: =SUMIFS(SummaryData!$D:$D,SummaryData!$A:$A,$B$31,SummaryData!$B:$B,$B32,SummaryData!$C:$C,$H$14) -> 9.902333 | J32: =SUMIFS(SummaryData!$E:$E,SummaryData!$A:$A,$B$31,SummaryData!$B:$B,$B32,SummaryData!$C:$C,$H$14) -> 8.769358 | K32: =SUMIFS(SummaryData!$F:$F,SummaryData!$A:$A,$B$31,SummaryData!$B:$B,$B32,SummaryData!$C:$C,$H$14) -> 11.16377 | M32: =SUMIFS(SummaryData!$D:$D,SummaryData!$A:$A,$B$31,SummaryData!$B:$B,$B32,SummaryData!$C:$C,$M$14) -> 10.85715 | O32: =SUMIFS(SummaryData!$E:$E,SummaryData!$A:$A,$B$31,SummaryData!$B:$B,$B32,SummaryData!$C:$C,$M$14) -> 9.918345 | P32: =SUMIFS(SummaryData!$F:$F,SummaryData!$A:$A,$B$31,SummaryData!$B:$B,$B32,SummaryData!$C:$C,$M$14) -> 11.8731
B33: ≤ 1 day/week | C33: =SUMIFS(SummaryData!$D:$D,SummaryData!$A:$A,$B$31,SummaryData!$B:$B,$B33,SummaryData!$C:$C,$C$14) -> 48.65748 | E33: =SUMIFS(SummaryData!$E:$E,SummaryData!$A:$A,$B$31,SummaryData!$B:$B,$B33,SummaryData!$C:$C,$C$14) -> 46.29211 | F33: =SUMIFS(SummaryData!$F:$F,SummaryData!$A:$A,$B$31,SummaryData!$B:$B,$B33,SummaryData!$C:$C,$C$14) -> 51.02889 | H33: =SUMIFS(SummaryData!$D:$D,SummaryData!$A:$A,$B$31,SummaryData!$B:$B,$B33,SummaryData!$C:$C,$H$14) -> 51.66861 | J33: =SUMIFS(SummaryData!$E:$E,SummaryData!$A:$A,$B$31,SummaryData!$B:$B,$B33,SummaryData!$C:$C,$H$14) -> 49.3624 | K33: =SUMIFS(SummaryData!$F:$F,SummaryData!$A:$A,$B$31,SummaryData!$B:$B,$B33,SummaryData!$C:$C,$H$14) -> 53.96773 | M33: =SUMIFS(SummaryData!$D:$D,SummaryData!$A:$A,$B$31,SummaryData!$B:$B,$B33,SummaryData!$C:$C,$M$14) -> 50.25917 | O33: =SUMIFS(SummaryData!$E:$E,SummaryData!$A:$A,$B$31,SummaryData!$B:$B,$B33,SummaryData!$C:$C,$M$14) -> 48.61244 | P33: =SUMIFS(SummaryData!$F:$F,SummaryData!$A:$A,$B$31,SummaryData!$B:$B,$B33,SummaryData!$C:$C,$M$14) -> 51.90534
B34: 2 days/week | C34: =SUMIFS(SummaryData!$D:$D,SummaryData!$A:$A,$B$31,SummaryData!$B:$B,$B34,SummaryData!$C:$C,$C$14) -> 16.39041 | E34: =SUMIFS(SummaryData!$E:$E,SummaryData!$A:$A,$B$31,SummaryData!$B:$B,$B34,SummaryData!$C:$C,$C$14) -> 14.70034 | F34: =SUMIFS(SummaryData!$F:$F,SummaryData!$A:$A,$B$31,SummaryData!$B:$B,$B34,SummaryData!$C:$C,$C$14) -> 18.23325 | H34: =SUMIFS(SummaryData!$D:$D,SummaryData!$A:$A,$B$31,SummaryData!$B:$B,$B34,SummaryData!$C:$C,$H$14) -> 14.82287 | J34: =SUMIFS(SummaryData!$E:$E,SummaryData!$A:$A,$B$31,SummaryData!$B:$B,$B34,SummaryData!$C:$C,$H$14) -> 13.15833 | K34: =SUMIFS(SummaryData!$F:$F,SummaryData!$A:$A,$B$31,SummaryData!$B:$B,$B34,SummaryData!$C:$C,$H$14) -> 16.65758 | M34: =SUMIFS(SummaryData!$D:$D,SummaryData!$A:$A,$B$31,SummaryData!$B:$B,$B34,SummaryData!$C:$C,$M$14) -> 15.51335 | O34: =SUMIFS(SummaryData!$E:$E,SummaryData!$A:$A,$B$31,SummaryData!$B:$B,$B34,SummaryData!$C:$C,$M$14) -> 14.32013 | P34: =SUMIFS(SummaryData!$F:$F,SummaryData!$A:$A,$B$31,SummaryData!$B:$B,$B34,SummaryData!$C:$C,$M$14) -> 16.78652
B35: 3+ days/week | C35: =SUMIFS(SummaryData!$D:$D,SummaryData!$A:$A,$B$31,SummaryData!$B:$B,$B35,SummaryData!$C:$C,$C$14) -> 21.62828 | E35: =SUMIFS(SummaryData!$E:$E,SummaryData!$A:$A,$B$31,SummaryData!$B:$B,$B35,SummaryData!$C:$C,$C$14) -> 19.66872 | F35: =SUMIFS(SummaryData!$F:$F,SummaryData!$A:$A,$B$31,SummaryData!$B:$B,$B35,SummaryData!$C:$C,$C$14) -> 23.72541 | H35: =SUMIFS(SummaryData!$D:$D,SummaryData!$A:$A,$B$31,SummaryData!$B:$B,$B35,SummaryData!$C:$C,$H$14) -> 22.35969 | J35: =SUMIFS(SummaryData!$E:$E,SummaryData!$A:$A,$B$31,SummaryData!$B:$B,$B35,SummaryData!$C:$C,$H$14) -> 20.44487 | K35: =SUMIFS(SummaryData!$F:$F,SummaryData!$A:$A,$B$31,SummaryData!$B:$B,$B35,SummaryData!$C:$C,$H$14) -> 24.39886 | M35: =SUMIFS(SummaryData!$D:$D,SummaryData!$A:$A,$B$31,SummaryData!$B:$B,$B35,SummaryData!$C:$C,$M$14) -> 21.96731 | O35: =SUMIFS(SummaryData!$E:$E,SummaryData!$A:$A,$B$31,SummaryData!$B:$B,$B35,SummaryData!$C:$C,$M$14) -> 20.58698 | P35: =SUMIFS(SummaryData!$F:$F,SummaryData!$A:$A,$B$31,SummaryData!$B:$B,$B35,SummaryData!$C:$C,$M$14) -> 23.41289
B36: PHYSICAL ACTIVITY - Compliance with physical activity guidelines
B37: Sedentary | C37: =SUMIFS(SummaryData!$D:$D,SummaryData!$A:$A,$B$36,SummaryData!$B:$B,$B37,SummaryData!$C:$C,$C$14) -> 1.48622 | E37: =SUMIFS(SummaryData!$E:$E,SummaryData!$A:$A,$B$36,SummaryData!$B:$B,$B37,SummaryData!$C:$C,$C$14) -> 1.0621 | F37: =SUMIFS(SummaryData!$F:$F,SummaryData!$A:$A,$B$36,SummaryData!$B:$B,$B37,SummaryData!$C:$C,$C$14) -> 2.076148 | H37: =SUMIFS(SummaryData!$D:$D,SummaryData!$A:$A,$B$36,SummaryData!$B:$B,$B37,SummaryData!$C:$C,$H$14) -> 2.373572 | J37: =SUMIFS(SummaryData!$E:$E,SummaryData!$A:$A,$B$36,SummaryData!$B:$B,$B37,SummaryData!$C:$C,$H$14) -> 1.784478 | K37: =SUMIFS(SummaryData!$F:$F,SummaryData!$A:$A,$B$36,SummaryData!$B:$B,$B37,SummaryData!$C:$C,$H$14) -> 3.150899 | M37: =SUMIFS(SummaryData!$D:$D,SummaryData!$A:$A,$B$36,SummaryData!$B:$B,$B37,SummaryData!$C:$C,$M$14) -> 1.965534 | O37: =SUMIFS(SummaryData!$E:$E,SummaryData!$A:$A,$B$36,SummaryData!$B:$B,$B37,SummaryData!$C:$C,$M$14) -> 1.579964 | P37: =SUMIFS(SummaryData!$F:$F,SummaryData!$A:$A,$B$36,SummaryData!$B:$B,$B37,SummaryData!$C:$C,$M$14) -> 2.442861
B38: Insufficient | C38: =SUMIFS(SummaryData!$D:$D,SummaryData!$A:$A,$B$36,SummaryData!$B:$B,$B38,SummaryData!$C:$C,$C$14) -> 41.72385 | E38: =SUMIFS(SummaryData!$E:$E,SummaryData!$A:$A,$B$36,SummaryData!$B:$B,$B38,SummaryData!$C:$C,$C$14) -> 39.42959 | F38: =SUMIFS(SummaryData!$F:$F,SummaryData!$A:$A,$B$36,SummaryData!$B:$B,$B38,SummaryData!$C:$C,$C$14) -> 44.05452 | H38: =SUMIFS(SummaryData!$D:$D,SummaryData!$A:$A,$B$36,SummaryData!$B:$B,$B38,SummaryData!$C:$C,$H$14) -> 43.16453 | J38: =SUMIFS(SummaryData!$E:$E,SummaryData!$A:$A,$B$36,SummaryData!$B:$B,$B38,SummaryData!$C:$C,$H$14) -> 40.91418 | K38: =SUMIFS(SummaryData!$F:$F,SummaryData!$A:$A,$B$36,SummaryData!$B:$B,$B38,SummaryData!$C:$C,$H$14) -> 45.44347 | M38: =SUMIFS(SummaryData!$D:$D,SummaryData!$A:$A,$B$36,SummaryData!$B:$B,$B38,SummaryData!$C:$C,$M$14) -> 42.43267 | O38: =SUMIFS(SummaryData!$E:$E,SummaryData!$A:$A,$B$36,SummaryData!$B:$B,$B38,SummaryData!$C:$C,$M$14) -> 40.81782 | P38: =SUMIFS(SummaryData!$F:$F,SummaryData!$A:$A,$B$36,SummaryData!$B:$B,$B38,SummaryData!$C:$C,$M$14) -> 44.06385
B39: Met guidelines | C39: =SUMIFS(SummaryData!$D:$D,SummaryData!$A:$A,$B$36,SummaryData!$B:$B,$B39,SummaryData!$C:$C,$C$14) -> 54.92563 | E39: =SUMIFS(SummaryData!$E:$E,SummaryData!$A:$A,$B$36,SummaryData!$B:$B,$B39,SummaryData!$C:$C,$C$14) -> 52.58384 | F39: =SUMIFS(SummaryData!$F:$F,SummaryData!$A:$A,$B$36,SummaryData!$B:$B,$B39,SummaryData!$C:$C,$C$14) -> 57.24581 | H39: =SUMIFS(SummaryData!$D:$D,SummaryData!$A:$A,$B$36,SummaryData!$B:$B,$B39,SummaryData!$C:$C,$H$14) -> 50.93344 | J39: =SUMIFS(SummaryData!$E:$E,SummaryData!$A:$A,$B$36,SummaryData!$B:$B,$B39,SummaryData!$C:$C,$H$14) -> 48.63033 | K39: =SUMIFS(SummaryData!$F:$F,SummaryData!$A:$A,$B$36,SummaryData!$B:$B,$B39,SummaryData!$C:$C,$H$14) -> 53.23259 | M39: =SUMIFS(SummaryData!$D:$D,SummaryData!$A:$A,$B$36,SummaryData!$B:$B,$B39,SummaryData!$C:$C,$M$14) -> 52.87202 | O39: =SUMIFS(SummaryData!$E:$E,SummaryData!$A:$A,$B$36,SummaryData!$B:$B,$B39,SummaryData!$C:$C,$M$14) -> 51.22764 | P39: =SUMIFS(SummaryData!$F:$F,SummaryData!$A:$A,$B$36,SummaryData!$B:$B,$B39,SummaryData!$C:$C,$M$14) -> 54.51018
B40: PHYSICAL ACTIVITY - Time spent sitting on a typical week day
B41: 4 to < 6 hours | C41: =SUMIFS(SummaryData!$D:$D,SummaryData!$A:$A,$B$40,SummaryData!$B:$B,$B41,SummaryData!$C:$C,$C$14) -> 25.60288 | E41: =SUMIFS(SummaryData!$E:$E,SummaryData!$A:$A,$B$40,SummaryData!$B:$B,$B41,SummaryData!$C:$C,$C$14) -> 23.61927 | F41: =SUMIFS(SummaryData!$F:$F,SummaryData!$A:$A,$B$40,SummaryData!$B:$B,$B41,SummaryData!$C:$C,$C$14) -> 27.69269 | H41: =SUMIFS(SummaryData!$D:$D,SummaryData!$A:$A,$B$40,SummaryData!$B:$B,$B41,SummaryData!$C:$C,$H$14) -> 23.60315 | J41: =SUMIFS(SummaryData!$E:$E,SummaryData!$A:$A,$B$40,SummaryData!$B:$B,$B41,SummaryData!$C:$C,$H$14) -> 21.73299 | K41: =SUMIFS(SummaryData!$F:$F,SummaryData!$A:$A,$B$40,SummaryData!$B:$B,$B41,SummaryData!$C:$C,$H$14) -> 25.58164 | M41: =SUMIFS(SummaryData!$D:$D,SummaryData!$A:$A,$B$40,SummaryData!$B:$B,$B41,SummaryData!$C:$C,$M$14) -> 24.50378 | O41: =SUMIFS(SummaryData!$E:$E,SummaryData!$A:$A,$B$40,SummaryData!$B:$B,$B41,SummaryData!$C:$C,$M$14) -> 23.13459 | P41: =SUMIFS(SummaryData!$F:$F,SummaryData!$A:$A,$B$40,SummaryData!$B:$B,$B41,SummaryData!$C:$C,$M$14) -> 25.92666
B42: 6 to < 8 hours | C42: =SUMIFS(SummaryData!$D:$D,SummaryData!$A:$A,$B$40,SummaryData!$B:$B,$B42,SummaryData!$C:$C,$C$14) -> 14.9524 | E42: =SUMIFS(SummaryData!$E:$E,SummaryData!$A:$A,$B$40,SummaryData!$B:$B,$B42,SummaryData!$C:$C,$C$14) -> 13.37396 | F42: =SUMIFS(SummaryData!$F:$F,SummaryData!$A:$A,$B$40,SummaryData!$B:$B,$B42,SummaryData!$C:$C,$C$14) -> 16.68126 | H42: =SUMIFS(SummaryData!$D:$D,SummaryData!$A:$A,$B$40,SummaryData!$B:$B,$B42,SummaryData!$C:$C,$H$14) -> 13.63855 | J42: =SUMIFS(SummaryData!$E:$E,SummaryData!$A:$A,$B$40,SummaryData!$B:$B,$B42,SummaryData!$C:$C,$H$14) -> 12.20344 | K42: =SUMIFS(SummaryData!$F:$F,SummaryData!$A:$A,$B$40,SummaryData!$B:$B,$B42,SummaryData!$C:$C,$H$14) -> 15.21319 | M42: =SUMIFS(SummaryData!$D:$D,SummaryData!$A:$A,$B$40,SummaryData!$B:$B,$B42,SummaryData!$C:$C,$M$14) -> 14.21101 | O42: =SUMIFS(SummaryData!$E:$E,SummaryData!$A:$A,$B$40,SummaryData!$B:$B,$B42,SummaryData!$C:$C,$M$14) -> 13.13934 | P42: =SUMIFS(SummaryData!$F:$F,SummaryData!$A:$A,$B$40,SummaryData!$B:$B,$B42,SummaryData!$C:$C,$M$14) -> 15.35462
B43: ≥ 8 hours | C43: =SUMIFS(SummaryData!$D:$D,SummaryData!$A:$A,$B$40,SummaryData!$B:$B,$B43,SummaryData!$C:$C,$C$14) -> 24.05129 | E43: =SUMIFS(SummaryData!$E:$E,SummaryData!$A:$A,$B$40,SummaryData!$B:$B,$B43,SummaryData!$C:$C,$C$14) -> 22.13387 | F43: =SUMIFS(SummaryData!$F:$F,SummaryData!$A:$A,$B$40,SummaryData!$B:$B,$B43,SummaryData!$C:$C,$C$14) -> 26.07919 | H43: =SUMIFS(SummaryData!$D:$D,SummaryData!$A:$A,$B$40,SummaryData!$B:$B,$B43,SummaryData!$C:$C,$H$14) -> 22.28245 | J43: =SUMIFS(SummaryData!$E:$E,SummaryData!$A:$A,$B$40,SummaryData!$B:$B,$B43,SummaryData!$C:$C,$H$14) -> 20.32421 | K43: =SUMIFS(SummaryData!$F:$F,SummaryData!$A:$A,$B$40,SummaryData!$B:$B,$B43,SummaryData!$C:$C,$H$14) -> 24.37165 | M43: =SUMIFS(SummaryData!$D:$D,SummaryData!$A:$A,$B$40,SummaryData!$B:$B,$B43,SummaryData!$C:$C,$M$14) -> 23.12057 | O43: =SUMIFS(SummaryData!$E:$E,SummaryData!$A:$A,$B$40,SummaryData!$B:$B,$B43,SummaryData!$C:$C,$M$14) -> 21.74405 | P43: =SUMIFS(SummaryData!$F:$F,SummaryData!$A:$A,$B$40,SummaryData!$B:$B,$B43,SummaryData!$C:$C,$M$14) -> 24.55688
B44: PHYSICAL ACTIVITY - Time spent sitting on a typical weekend day
B45: 4 to < 6 hours | C45: =SUMIFS(SummaryData!$D:$D,SummaryData!$A:$A,$B$44,SummaryData!$B:$B,$B45,SummaryData!$C:$C,$C$14) -> 28.52073 | E45: =SUMIFS(SummaryData!$E:$E,SummaryData!$A:$A,$B$44,SummaryData!$B:$B,$B45,SummaryData!$C:$C,$C$14) -> 26.42692 | F45: =SUMIFS(SummaryData!$F:$F,SummaryData!$A:$A,$B$44,SummaryData!$B:$B,$B45,SummaryData!$C:$C,$C$14) -> 30.71119 | H45: =SUMIFS(SummaryData!$D:$D,SummaryData!$A:$A,$B$44,SummaryData!$B:$B,$B45,SummaryData!$C:$C,$H$14) -> 28.03481 | J45: =SUMIFS(SummaryData!$E:$E,SummaryData!$A:$A,$B$44,SummaryData!$B:$B,$B45,SummaryData!$C:$C,$H$14) -> 25.99391 | K45: =SUMIFS(SummaryData!$F:$F,SummaryData!$A:$A,$B$44,SummaryData!$B:$B,$B45,SummaryData!$C:$C,$H$14) -> 30.17063 | M45: =SUMIFS(SummaryData!$D:$D,SummaryData!$A:$A,$B$44,SummaryData!$B:$B,$B45,SummaryData!$C:$C,$M$14) -> 28.18228 | O45: =SUMIFS(SummaryData!$E:$E,SummaryData!$A:$A,$B$44,SummaryData!$B:$B,$B45,SummaryData!$C:$C,$M$14) -> 26.71543 | P45: =SUMIFS(SummaryData!$F:$F,SummaryData!$A:$A,$B$44,SummaryData!$B:$B,$B45,SummaryData!$C:$C,$M$14) -> 29.69705
B46: 6 to < 8 hours | C46: =SUMIFS(SummaryData!$D:$D,SummaryData!$A:$A,$B$44,SummaryData!$B:$B,$B46,SummaryData!$C:$C,$C$14) -> 13.70133 | E46: =SUMIFS(SummaryData!$E:$E,SummaryData!$A:$A,$B$44,SummaryData!$B:$B,$B46,SummaryData!$C:$C,$C$14) -> 12.08363 | F46: =SUMIFS(SummaryData!$F:$F,SummaryData!$A:$A,$B$44,SummaryData!$B:$B,$B46,SummaryData!$C:$C,$C$14) -> 15.49743 | H46: =SUMIFS(SummaryData!$D:$D,SummaryData!$A:$A,$B$44,SummaryData!$B:$B,$B46,SummaryData!$C:$C,$H$14) -> 10.62371 | J46: =SUMIFS(SummaryData!$E:$E,SummaryData!$A:$A,$B$44,SummaryData!$B:$B,$B46,SummaryData!$C:$C,$H$14) -> 9.292864 | K46: =SUMIFS(SummaryData!$F:$F,SummaryData!$A:$A,$B$44,SummaryData!$B:$B,$B46,SummaryData!$C:$C,$H$14) -> 12.11969 | M46: =SUMIFS(SummaryData!$D:$D,SummaryData!$A:$A,$B$44,SummaryData!$B:$B,$B46,SummaryData!$C:$C,$M$14) -> 12.1616 | O46: =SUMIFS(SummaryData!$E:$E,SummaryData!$A:$A,$B$44,SummaryData!$B:$B,$B46,SummaryData!$C:$C,$M$14) -> 11.09806 | P46: =SUMIFS(SummaryData!$F:$F,SummaryData!$A:$A,$B$44,SummaryData!$B:$B,$B46,SummaryData!$C:$C,$M$14) -> 13.31179
B47: ≥ 8 hours | C47: =SUMIFS(SummaryData!$D:$D,SummaryData!$A:$A,$B$44,SummaryData!$B:$B,$B47,SummaryData!$C:$C,$C$14) -> 13.57184 | E47: =SUMIFS(SummaryData!$E:$E,SummaryData!$A:$A,$B$44,SummaryData!$B:$B,$B47,SummaryData!$C:$C,$C$14) -> 12.04489 | F47: =SUMIFS(SummaryData!$F:$F,SummaryData!$A:$A,$B$44,SummaryData!$B:$B,$B47,SummaryData!$C:$C,$C$14) -> 15.25878 | H47: =SUMIFS(SummaryData!$D:$D,SummaryData!$A:$A,$B$44,SummaryData!$B:$B,$B47,SummaryData!$C:$C,$H$14) -> 9.561173 | J47: =SUMIFS(SummaryData!$E:$E,SummaryData!$A:$A,$B$44,SummaryData!$B:$B,$B47,SummaryData!$C:$C,$H$14) -> 8.262957 | K47: =SUMIFS(SummaryData!$F:$F,SummaryData!$A:$A,$B$44,SummaryData!$B:$B,$B47,SummaryData!$C:$C,$H$14) -> 11.03881 | M47: =SUMIFS(SummaryData!$D:$D,SummaryData!$A:$A,$B$44,SummaryData!$B:$B,$B47,SummaryData!$C:$C,$M$14) -> 11.54946 | O47: =SUMIFS(SummaryData!$E:$E,SummaryData!$A:$A,$B$44,SummaryData!$B:$B,$B47,SummaryData!$C:$C,$M$14) -> 10.52948 | P47: =SUMIFS(SummaryData!$F:$F,SummaryData!$A:$A,$B$44,SummaryData!$B:$B,$B47,SummaryData!$C:$C,$M$14) -> 12.65429
B48: FRUIT and VEG CONSUMPTION - Compliance with fruit and vegetable consumption guidelines
B49: Met fruit and vegetable consumption guidelines | C49: =SUMIFS(SummaryData!$D:$D,SummaryData!$A:$A,$B$48,SummaryData!$B:$B,$B49,SummaryData!$C:$C,$C$14) -> 1.495822 | E49: =SUMIFS(SummaryData!$E:$E,SummaryData!$A:$A,$B$48,SummaryData!$B:$B,$B49,SummaryData!$C:$C,$C$14) -> 1.046622 | F49: =SUMIFS(SummaryData!$F:$F,SummaryData!$A:$A,$B$48,SummaryData!$B:$B,$B49,SummaryData!$C:$C,$C$14) -> 2.133656 | H49: =SUMIFS(SummaryData!$D:$D,SummaryData!$A:$A,$B$48,SummaryData!$B:$B,$B49,SummaryData!$C:$C,$H$14) -> 5.501283 | J49: =SUMIFS(SummaryData!$E:$E,SummaryData!$A:$A,$B$48,SummaryData!$B:$B,$B49,SummaryData!$C:$C,$H$14) -> 4.687225 | K49: =SUMIFS(SummaryData!$F:$F,SummaryData!$A:$A,$B$48,SummaryData!$B:$B,$B49,SummaryData!$C:$C,$H$14) -> 6.447161 | M49: =SUMIFS(SummaryData!$D:$D,SummaryData!$A:$A,$B$48,SummaryData!$B:$B,$B49,SummaryData!$C:$C,$M$14) -> 3.606929 | O49: =SUMIFS(SummaryData!$E:$E,SummaryData!$A:$A,$B$48,SummaryData!$B:$B,$B49,SummaryData!$C:$C,$M$14) -> 3.119316 | P49: =SUMIFS(SummaryData!$F:$F,SummaryData!$A:$A,$B$48,SummaryData!$B:$B,$B49,SummaryData!$C:$C,$M$14) -> 4.167486
B50: Met vegetable consumption guidelines only^^ | C50: =SUMIFS(SummaryData!$D:$D,SummaryData!$A:$A,$B$48,SummaryData!$B:$B,$B50,SummaryData!$C:$C,$C$14) -> 2.562004 | E50: =SUMIFS(SummaryData!$E:$E,SummaryData!$A:$A,$B$48,SummaryData!$B:$B,$B50,SummaryData!$C:$C,$C$14) -> 1.936483 | F50: =SUMIFS(SummaryData!$F:$F,SummaryData!$A:$A,$B$48,SummaryData!$B:$B,$B50,SummaryData!$C:$C,$C$14) -> 3.382612 | H50: =SUMIFS(SummaryData!$D:$D,SummaryData!$A:$A,$B$48,SummaryData!$B:$B,$B50,SummaryData!$C:$C,$H$14) -> 8.926816 | J50: =SUMIFS(SummaryData!$E:$E,SummaryData!$A:$A,$B$48,SummaryData!$B:$B,$B50,SummaryData!$C:$C,$H$14) -> 7.82523 | K50: =SUMIFS(SummaryData!$F:$F,SummaryData!$A:$A,$B$48,SummaryData!$B:$B,$B50,SummaryData!$C:$C,$H$14) -> 10.16637 | M50: =SUMIFS(SummaryData!$D:$D,SummaryData!$A:$A,$B$48,SummaryData!$B:$B,$B50,SummaryData!$C:$C,$M$14) -> 5.895897 | O50: =SUMIFS(SummaryData!$E:$E,SummaryData!$A:$A,$B$48,SummaryData!$B:$B,$B50,SummaryData!$C:$C,$M$14) -> 5.232522 | P50: =SUMIFS(SummaryData!$F:$F,SummaryData!$A:$A,$B$48,SummaryData!$B:$B,$B50,SummaryData!$C:$C,$M$14) -> 6.637484
B51: Met fruit consumption guidelines only^^ | C51: =SUMIFS(SummaryData!$D:$D,SummaryData!$A:$A,$B$48,SummaryData!$B:$B,$B51,SummaryData!$C:$C,$C$14) -> 40.47554 | E51: =SUMIFS(SummaryData!$E:$E,SummaryData!$A:$A,$B$48,SummaryData!$B:$B,$B51,SummaryData!$C:$C,$C$14) -> 38.12856 | F51: =SUMIFS(SummaryData!$F:$F,SummaryData!$A:$A,$B$48,SummaryData!$B:$B,$B51,SummaryData!$C:$C,$C$14) -> 42.8669 | H51: =SUMIFS(SummaryData!$D:$D,SummaryData!$A:$A,$B$48,SummaryData!$B:$B,$B51,SummaryData!$C:$C,$H$14) -> 45.43113 | J51: =SUMIFS(SummaryData!$E:$E,SummaryData!$A:$A,$B$48,SummaryData!$B:$B,$B51,SummaryData!$C:$C,$H$14) -> 43.15973 | K51: =SUMIFS(SummaryData!$F:$F,SummaryData!$A:$A,$B$48,SummaryData!$B:$B,$B51,SummaryData!$C:$C,$H$14) -> 47.72171 | M51: =SUMIFS(SummaryData!$D:$D,SummaryData!$A:$A,$B$48,SummaryData!$B:$B,$B51,SummaryData!$C:$C,$M$14) -> 43.052 | O51: =SUMIFS(SummaryData!$E:$E,SummaryData!$A:$A,$B$48,SummaryData!$B:$B,$B51,SummaryData!$C:$C,$M$14) -> 41.41909 | P51: =SUMIFS(SummaryData!$F:$F,SummaryData!$A:$A,$B$48,SummaryData!$B:$B,$B51,SummaryData!$C:$C,$M$14) -> 44.70016
B52: Did not meet fruit and vegetable consumption guidelines | C52: =SUMIFS(SummaryData!$D:$D,SummaryData!$A:$A,$B$48,SummaryData!$B:$B,$B52,SummaryData!$C:$C,$C$14) -> 54.53784 | E52: =SUMIFS(SummaryData!$E:$E,SummaryData!$A:$A,$B$48,SummaryData!$B:$B,$B52,SummaryData!$C:$C,$C$14) -> 52.14381 | F52: =SUMIFS(SummaryData!$F:$F,SummaryData!$A:$A,$B$48,SummaryData!$B:$B,$B52,SummaryData!$C:$C,$C$14) -> 56.91109 | H52: =SUMIFS(SummaryData!$D:$D,SummaryData!$A:$A,$B$48,SummaryData!$B:$B,$B52,SummaryData!$C:$C,$H$14) -> 47.56115 | J52: =SUMIFS(SummaryData!$E:$E,SummaryData!$A:$A,$B$48,SummaryData!$B:$B,$B52,SummaryData!$C:$C,$H$14) -> 45.25002 | K52: =SUMIFS(SummaryData!$F:$F,SummaryData!$A:$A,$B$48,SummaryData!$B:$B,$B52,SummaryData!$C:$C,$H$14) -> 49.88276 | M52: =SUMIFS(SummaryData!$D:$D,SummaryData!$A:$A,$B$48,SummaryData!$B:$B,$B52,SummaryData!$C:$C,$M$14) -> 50.83239 | O52: =SUMIFS(SummaryData!$E:$E,SummaryData!$A:$A,$B$48,SummaryData!$B:$B,$B52,SummaryData!$C:$C,$M$14) -> 49.17415 | P52: =SUMIFS(SummaryData!$F:$F,SummaryData!$A:$A,$B$48,SummaryData!$B:$B,$B52,SummaryData!$C:$C,$M$14) -> 52.4888
B53: FRUIT and VEG CONSUMPTION - Usual serves of vegetable/day
B54: <1 serve | C54: =SUMIFS(SummaryData!$D:$D,SummaryData!$A:$A,$B$53,SummaryData!$B:$B,$B54,SummaryData!$C:$C,$C$14) -> 12.51496 | E54: =SUMIFS(SummaryData!$E:$E,SummaryData!$A:$A,$B$53,SummaryData!$B:$B,$B54,SummaryData!$C:$C,$C$14) -> 11.00522 | F54: =SUMIFS(SummaryData!$F:$F,SummaryData!$A:$A,$B$53,SummaryData!$B:$B,$B54,SummaryData!$C:$C,$C$14) -> 14.19876 | H54: =SUMIFS(SummaryData!$D:$D,SummaryData!$A:$A,$B$53,SummaryData!$B:$B,$B54,SummaryData!$C:$C,$H$14) -> 5.933004 | J54: =SUMIFS(SummaryData!$E:$E,SummaryData!$A:$A,$B$53,SummaryData!$B:$B,$B54,SummaryData!$C:$C,$H$14) -> 4.890807 | K54: =SUMIFS(SummaryData!$F:$F,SummaryData!$A:$A,$B$53,SummaryData!$B:$B,$B54,SummaryData!$C:$C,$H$14) -> 7.18052 | M54: =SUMIFS(SummaryData!$D:$D,SummaryData!$A:$A,$B$53,SummaryData!$B:$B,$B54,SummaryData!$C:$C,$M$14) -> 9.175908 | O54: =SUMIFS(SummaryData!$E:$E,SummaryData!$A:$A,$B$53,SummaryData!$B:$B,$B54,SummaryData!$C:$C,$M$14) -> 8.239065 | P54: =SUMIFS(SummaryData!$F:$F,SummaryData!$A:$A,$B$53,SummaryData!$B:$B,$B54,SummaryData!$C:$C,$M$14) -> 10.20743
B55: 1–2 serves | C55: =SUMIFS(SummaryData!$D:$D,SummaryData!$A:$A,$B$53,SummaryData!$B:$B,$B55,SummaryData!$C:$C,$C$14) -> 62.26342 | E55: =SUMIFS(SummaryData!$E:$E,SummaryData!$A:$A,$B$53,SummaryData!$B:$B,$B55,SummaryData!$C:$C,$C$14) -> 59.93348 | F55: =SUMIFS(SummaryData!$F:$F,SummaryData!$A:$A,$B$53,SummaryData!$B:$B,$B55,SummaryData!$C:$C,$C$14) -> 64.53804 | H55: =SUMIFS(SummaryData!$D:$D,SummaryData!$A:$A,$B$53,SummaryData!$B:$B,$B55,SummaryData!$C:$C,$H$14) -> 54.2071 | J55: =SUMIFS(SummaryData!$E:$E,SummaryData!$A:$A,$B$53,SummaryData!$B:$B,$B55,SummaryData!$C:$C,$H$14) -> 51.91385 | K55: =SUMIFS(SummaryData!$F:$F,SummaryData!$A:$A,$B$53,SummaryData!$B:$B,$B55,SummaryData!$C:$C,$H$14) -> 56.48267 | M55: =SUMIFS(SummaryData!$D:$D,SummaryData!$A:$A,$B$53,SummaryData!$B:$B,$B55,SummaryData!$C:$C,$M$14) -> 57.93152 | O55: =SUMIFS(SummaryData!$E:$E,SummaryData!$A:$A,$B$53,SummaryData!$B:$B,$B55,SummaryData!$C:$C,$M$14) -> 56.29662 | P55: =SUMIFS(SummaryData!$F:$F,SummaryData!$A:$A,$B$53,SummaryData!$B:$B,$B55,SummaryData!$C:$C,$M$14) -> 59.5492
B56: 3–4 serves | C56: =SUMIFS(SummaryData!$D:$D,SummaryData!$A:$A,$B$53,SummaryData!$B:$B,$B56,SummaryData!$C:$C,$C$14) -> 16.52517 | E56: =SUMIFS(SummaryData!$E:$E,SummaryData!$A:$A,$B$53,SummaryData!$B:$B,$B56,SummaryData!$C:$C,$C$14) -> 14.90027 | F56: =SUMIFS(SummaryData!$F:$F,SummaryData!$A:$A,$B$53,SummaryData!$B:$B,$B56,SummaryData!$C:$C,$C$14) -> 18.28917 | H56: =SUMIFS(SummaryData!$D:$D,SummaryData!$A:$A,$B$53,SummaryData!$B:$B,$B56,SummaryData!$C:$C,$H$14) -> 27.63203 | J56: =SUMIFS(SummaryData!$E:$E,SummaryData!$A:$A,$B$53,SummaryData!$B:$B,$B56,SummaryData!$C:$C,$H$14) -> 25.64268 | K56: =SUMIFS(SummaryData!$F:$F,SummaryData!$A:$A,$B$53,SummaryData!$B:$B,$B56,SummaryData!$C:$C,$H$14) -> 29.71403 | M56: =SUMIFS(SummaryData!$D:$D,SummaryData!$A:$A,$B$53,SummaryData!$B:$B,$B56,SummaryData!$C:$C,$M$14) -> 22.30862 | O56: =SUMIFS(SummaryData!$E:$E,SummaryData!$A:$A,$B$53,SummaryData!$B:$B,$B56,SummaryData!$C:$C,$M$14) -> 20.99616 | P56: =SUMIFS(SummaryData!$F:$F,SummaryData!$A:$A,$B$53,SummaryData!$B:$B,$B56,SummaryData!$C:$C,$M$14) -> 23.67853
B57: 5+ serves | C57: =SUMIFS(SummaryData!$D:$D,SummaryData!$A:$A,$B$53,SummaryData!$B:$B,$B57,SummaryData!$C:$C,$C$14) -> 4.594458 | E57: =SUMIFS(SummaryData!$E:$E,SummaryData!$A:$A,$B$53,SummaryData!$B:$B,$B57,SummaryData!$C:$C,$C$14) -> 3.712189 | F57: =SUMIFS(SummaryData!$F:$F,SummaryData!$A:$A,$B$53,SummaryData!$B:$B,$B57,SummaryData!$C:$C,$C$14) -> 5.674059 | H57: =SUMIFS(SummaryData!$D:$D,SummaryData!$A:$A,$B$53,SummaryData!$B:$B,$B57,SummaryData!$C:$C,$H$14) -> 8.926816 | J57: =SUMIFS(SummaryData!$E:$E,SummaryData!$A:$A,$B$53,SummaryData!$B:$B,$B57,SummaryData!$C:$C,$H$14) -> 7.82523 | K57: =SUMIFS(SummaryData!$F:$F,SummaryData!$A:$A,$B$53,SummaryData!$B:$B,$B57,SummaryData!$C:$C,$H$14) -> 10.16637 | M57: =SUMIFS(SummaryData!$D:$D,SummaryData!$A:$A,$B$53,SummaryData!$B:$B,$B57,SummaryData!$C:$C,$M$14) -> 6.871172 | O57: =SUMIFS(SummaryData!$E:$E,SummaryData!$A:$A,$B$53,SummaryData!$B:$B,$B57,SummaryData!$C:$C,$M$14) -> 6.140755 | P57: =SUMIFS(SummaryData!$F:$F,SummaryData!$A:$A,$B$53,SummaryData!$B:$B,$B57,SummaryData!$C:$C,$M$14) -> 7.681359
B58: FRUIT and VEG CONSUMPTION - Usual serves of fruit/day
B59: <2 serves | C59: =SUMIFS(SummaryData!$D:$D,SummaryData!$A:$A,$B$58,SummaryData!$B:$B,$B59,SummaryData!$C:$C,$C$14) -> 57.26885 | E59: =SUMIFS(SummaryData!$E:$E,SummaryData!$A:$A,$B$58,SummaryData!$B:$B,$B59,SummaryData!$C:$C,$C$14) -> 54.8716 | F59: =SUMIFS(SummaryData!$F:$F,SummaryData!$A:$A,$B$58,SummaryData!$B:$B,$B59,SummaryData!$C:$C,$C$14) -> 59.63245 | H59: =SUMIFS(SummaryData!$D:$D,SummaryData!$A:$A,$B$58,SummaryData!$B:$B,$B59,SummaryData!$C:$C,$H$14) -> 52.58226 | J59: =SUMIFS(SummaryData!$E:$E,SummaryData!$A:$A,$B$58,SummaryData!$B:$B,$B59,SummaryData!$C:$C,$H$14) -> 50.28566 | K59: =SUMIFS(SummaryData!$F:$F,SummaryData!$A:$A,$B$58,SummaryData!$B:$B,$B59,SummaryData!$C:$C,$H$14) -> 54.86799 | M59: =SUMIFS(SummaryData!$D:$D,SummaryData!$A:$A,$B$58,SummaryData!$B:$B,$B59,SummaryData!$C:$C,$M$14) -> 54.81289 | O59: =SUMIFS(SummaryData!$E:$E,SummaryData!$A:$A,$B$58,SummaryData!$B:$B,$B59,SummaryData!$C:$C,$M$14) -> 53.15996 | P59: =SUMIFS(SummaryData!$F:$F,SummaryData!$A:$A,$B$58,SummaryData!$B:$B,$B59,SummaryData!$C:$C,$M$14) -> 56.45528
B60: ≥2 serves | C60: =SUMIFS(SummaryData!$D:$D,SummaryData!$A:$A,$B$58,SummaryData!$B:$B,$B60,SummaryData!$C:$C,$C$14) -> 40.47554 | E60: =SUMIFS(SummaryData!$E:$E,SummaryData!$A:$A,$B$58,SummaryData!$B:$B,$B60,SummaryData!$C:$C,$C$14) -> 38.12856 | F60: =SUMIFS(SummaryData!$F:$F,SummaryData!$A:$A,$B$58,SummaryData!$B:$B,$B60,SummaryData!$C:$C,$C$14) -> 42.8669 | H60: =SUMIFS(SummaryData!$D:$D,SummaryData!$A:$A,$B$58,SummaryData!$B:$B,$B60,SummaryData!$C:$C,$H$14) -> 45.43113 | J60: =SUMIFS(SummaryData!$E:$E,SummaryData!$A:$A,$B$58,SummaryData!$B:$B,$B60,SummaryData!$C:$C,$H$14) -> 43.15973 | K60: =SUMIFS(SummaryData!$F:$F,SummaryData!$A:$A,$B$58,SummaryData!$B:$B,$B60,SummaryData!$C:$C,$H$14) -> 47.72171 | M60: =SUMIFS(SummaryData!$D:$D,SummaryData!$A:$A,$B$58,SummaryData!$B:$B,$B60,SummaryData!$C:$C,$M$14) -> 43.052 | O60: =SUMIFS(SummaryData!$E:$E,SummaryData!$A:$A,$B$58,SummaryData!$B:$B,$B60,SummaryData!$C:$C,$M$14) -> 41.41909 | P60: =SUMIFS(SummaryData!$F:$F,SummaryData!$A:$A,$B$58,SummaryData!$B:$B,$B60,SummaryData!$C:$C,$M$14) -> 44.70016
B61: SMOKING - Smoking status
B62: Daily smoker | C62: =SUMIFS(SummaryData!$D:$D,SummaryData!$A:$A,$B$61,SummaryData!$B:$B,$B62,SummaryData!$C:$C,$C$14) -> 14.98603 | E62: =SUMIFS(SummaryData!$E:$E,SummaryData!$A:$A,$B$61,SummaryData!$B:$B,$B62,SummaryData!$C:$C,$C$14) -> 13.26415 | F62: =SUMIFS(SummaryData!$F:$F,SummaryData!$A:$A,$B$61,SummaryData!$B:$B,$B62,SummaryData!$C:$C,$C$14) -> 16.88791 | H62: =SUMIFS(SummaryData!$D:$D,SummaryData!$A:$A,$B$61,SummaryData!$B:$B,$B62,SummaryData!$C:$C,$H$14) -> 10.07657 | J62: =SUMIFS(SummaryData!$E:$E,SummaryData!$A:$A,$B$61,SummaryData!$B:$B,$B62,SummaryData!$C:$C,$H$14) -> 8.734016 | K62: =SUMIFS(SummaryData!$F:$F,SummaryData!$A:$A,$B$61,SummaryData!$B:$B,$B62,SummaryData!$C:$C,$H$14) -> 11.59927 | M62: =SUMIFS(SummaryData!$D:$D,SummaryData!$A:$A,$B$61,SummaryData!$B:$B,$B62,SummaryData!$C:$C,$M$14) -> 12.55978 | O62: =SUMIFS(SummaryData!$E:$E,SummaryData!$A:$A,$B$61,SummaryData!$B:$B,$B62,SummaryData!$C:$C,$M$14) -> 11.43707 | P62: =SUMIFS(SummaryData!$F:$F,SummaryData!$A:$A,$B$61,SummaryData!$B:$B,$B62,SummaryData!$C:$C,$M$14) -> 13.77556
B63: Occasional smoker | C63: =SUMIFS(SummaryData!$D:$D,SummaryData!$A:$A,$B$61,SummaryData!$B:$B,$B63,SummaryData!$C:$C,$C$14) -> 5.5204 | E63: =SUMIFS(SummaryData!$E:$E,SummaryData!$A:$A,$B$61,SummaryData!$B:$B,$B63,SummaryData!$C:$C,$C$14) -> 4.480564 | F63: =SUMIFS(SummaryData!$F:$F,SummaryData!$A:$A,$B$61,SummaryData!$B:$B,$B63,SummaryData!$C:$C,$C$14) -> 6.784418 | H63: =SUMIFS(SummaryData!$D:$D,SummaryData!$A:$A,$B$61,SummaryData!$B:$B,$B63,SummaryData!$C:$C,$H$14) -> 4.413894 | J63: =SUMIFS(SummaryData!$E:$E,SummaryData!$A:$A,$B$61,SummaryData!$B:$B,$B63,SummaryData!$C:$C,$H$14) -> 3.504744 | K63: =SUMIFS(SummaryData!$F:$F,SummaryData!$A:$A,$B$61,SummaryData!$B:$B,$B63,SummaryData!$C:$C,$H$14) -> 5.545329 | M63: =SUMIFS(SummaryData!$D:$D,SummaryData!$A:$A,$B$61,SummaryData!$B:$B,$B63,SummaryData!$C:$C,$M$14) -> 5.029007 | O63: =SUMIFS(SummaryData!$E:$E,SummaryData!$A:$A,$B$61,SummaryData!$B:$B,$B63,SummaryData!$C:$C,$M$14) -> 4.311125 | P63: =SUMIFS(SummaryData!$F:$F,SummaryData!$A:$A,$B$61,SummaryData!$B:$B,$B63,SummaryData!$C:$C,$M$14) -> 5.859111
B64: Current smoker (Daily + Occassional) | C64: =SUMIFS(SummaryData!$D:$D,SummaryData!$A:$A,$B$61,SummaryData!$B:$B,$B64,SummaryData!$C:$C,$C$14) -> 20.50643 | E64: =SUMIFS(SummaryData!$E:$E,SummaryData!$A:$A,$B$61,SummaryData!$B:$B,$B64,SummaryData!$C:$C,$C$14) -> 18.56724 | F64: =SUMIFS(SummaryData!$F:$F,SummaryData!$A:$A,$B$61,SummaryData!$B:$B,$B64,SummaryData!$C:$C,$C$14) -> 22.59195 | H64: =SUMIFS(SummaryData!$D:$D,SummaryData!$A:$A,$B$61,SummaryData!$B:$B,$B64,SummaryData!$C:$C,$H$14) -> 14.49046 | J64: =SUMIFS(SummaryData!$E:$E,SummaryData!$A:$A,$B$61,SummaryData!$B:$B,$B64,SummaryData!$C:$C,$H$14) -> 12.88551 | K64: =SUMIFS(SummaryData!$F:$F,SummaryData!$A:$A,$B$61,SummaryData!$B:$B,$B64,SummaryData!$C:$C,$H$14) -> 16.25802 | M64: =SUMIFS(SummaryData!$D:$D,SummaryData!$A:$A,$B$61,SummaryData!$B:$B,$B64,SummaryData!$C:$C,$M$14) -> 17.58879 | O64: =SUMIFS(SummaryData!$E:$E,SummaryData!$A:$A,$B$61,SummaryData!$B:$B,$B64,SummaryData!$C:$C,$M$14) -> 16.29895 | P64: =SUMIFS(SummaryData!$F:$F,SummaryData!$A:$A,$B$61,SummaryData!$B:$B,$B64,SummaryData!$C:$C,$M$14) -> 18.95758
B65: Ex-smoker | C65: =SUMIFS(SummaryData!$D:$D,SummaryData!$A:$A,$B$61,SummaryData!$B:$B,$B65,SummaryData!$C:$C,$C$14) -> 27.72362 | E65: =SUMIFS(SummaryData!$E:$E,SummaryData!$A:$A,$B$61,SummaryData!$B:$B,$B65,SummaryData!$C:$C,$C$14) -> 25.79355 | F65: =SUMIFS(SummaryData!$F:$F,SummaryData!$A:$A,$B$61,SummaryData!$B:$B,$B65,SummaryData!$C:$C,$C$14) -> 29.74022 | H65: =SUMIFS(SummaryData!$D:$D,SummaryData!$A:$A,$B$61,SummaryData!$B:$B,$B65,SummaryData!$C:$C,$H$14) -> 20.87904 | J65: =SUMIFS(SummaryData!$E:$E,SummaryData!$A:$A,$B$61,SummaryData!$B:$B,$B65,SummaryData!$C:$C,$H$14) -> 19.106 | K65: =SUMIFS(SummaryData!$F:$F,SummaryData!$A:$A,$B$61,SummaryData!$B:$B,$B65,SummaryData!$C:$C,$H$14) -> 22.7703 | M65: =SUMIFS(SummaryData!$D:$D,SummaryData!$A:$A,$B$61,SummaryData!$B:$B,$B65,SummaryData!$C:$C,$M$14) -> 23.95363 | O65: =SUMIFS(SummaryData!$E:$E,SummaryData!$A:$A,$B$61,SummaryData!$B:$B,$B65,SummaryData!$C:$C,$M$14) -> 22.642 | P65: =SUMIFS(SummaryData!$F:$F,SummaryData!$A:$A,$B$61,SummaryData!$B:$B,$B65,SummaryData!$C:$C,$M$14) -> 25.31638
B66: Non-smoker | C66: =SUMIFS(SummaryData!$D:$D,SummaryData!$A:$A,$B$61,SummaryData!$B:$B,$B66,SummaryData!$C:$C,$C$14) -> 51.15534 | E66: =SUMIFS(SummaryData!$E:$E,SummaryData!$A:$A,$B$61,SummaryData!$B:$B,$B66,SummaryData!$C:$C,$C$14) -> 48.81064 | F66: =SUMIFS(SummaryData!$F:$F,SummaryData!$A:$A,$B$61,SummaryData!$B:$B,$B66,SummaryData!$C:$C,$C$14) -> 53.49497 | H66: =SUMIFS(SummaryData!$D:$D,SummaryData!$A:$A,$B$61,SummaryData!$B:$B,$B66,SummaryData!$C:$C,$H$14) -> 63.55793 | J66: =SUMIFS(SummaryData!$E:$E,SummaryData!$A:$A,$B$61,SummaryData!$B:$B,$B66,SummaryData!$C:$C,$H$14) -> 61.32606 | K66: =SUMIFS(SummaryData!$F:$F,SummaryData!$A:$A,$B$61,SummaryData!$B:$B,$B66,SummaryData!$C:$C,$H$14) -> 65.73297 | M66: =SUMIFS(SummaryData!$D:$D,SummaryData!$A:$A,$B$61,SummaryData!$B:$B,$B66,SummaryData!$C:$C,$M$14) -> 57.60692 | O66: =SUMIFS(SummaryData!$E:$E,SummaryData!$A:$A,$B$61,SummaryData!$B:$B,$B66,SummaryData!$C:$C,$M$14) -> 55.979 | P66: =SUMIFS(SummaryData!$F:$F,SummaryData!$A:$A,$B$61,SummaryData!$B:$B,$B66,SummaryData!$C:$C,$M$14) -> 59.21851
B67: ALCOHOL CONSUMPTION - Lifetime risk of alcohol-related harm
B68: Abstainer / No longer drinks alcohol | C68: =SUMIFS(SummaryData!$D:$D,SummaryData!$A:$A,$B$67,SummaryData!$B:$B,$B68,SummaryData!$C:$C,$C$14) -> 15.65199 | E68: =SUMIFS(SummaryData!$E:$E,SummaryData!$A:$A,$B$67,SummaryData!$B:$B,$B68,SummaryData!$C:$C,$C$14) -> 13.99004 | F68: =SUMIFS(SummaryData!$F:$F,SummaryData!$A:$A,$B$67,SummaryData!$B:$B,$B68,SummaryData!$C:$C,$C$14) -> 17.47127 | H68: =SUMIFS(SummaryData!$D:$D,SummaryData!$A:$A,$B$67,SummaryData!$B:$B,$B68,SummaryData!$C:$C,$H$14) -> 25.31341 | J68: =SUMIFS(SummaryData!$E:$E,SummaryData!$A:$A,$B$67,SummaryData!$B:$B,$B68,SummaryData!$C:$C,$H$14) -> 23.31696 | K68: =SUMIFS(SummaryData!$F:$F,SummaryData!$A:$A,$B$67,SummaryData!$B:$B,$B68,SummaryData!$C:$C,$H$14) -> 27.41969 | M68: =SUMIFS(SummaryData!$D:$D,SummaryData!$A:$A,$B$67,SummaryData!$B:$B,$B68,SummaryData!$C:$C,$M$14) -> 20.75609 | O68: =SUMIFS(SummaryData!$E:$E,SummaryData!$A:$A,$B$67,SummaryData!$B:$B,$B68,SummaryData!$C:$C,$M$14) -> 19.42407 | P68: =SUMIFS(SummaryData!$F:$F,SummaryData!$A:$A,$B$67,SummaryData!$B:$B,$B68,SummaryData!$C:$C,$M$14) -> 22.15433
B69: Reduced risk | C69: =SUMIFS(SummaryData!$D:$D,SummaryData!$A:$A,$B$67,SummaryData!$B:$B,$B69,SummaryData!$C:$C,$C$14) -> 12.40684 | E69: =SUMIFS(SummaryData!$E:$E,SummaryData!$A:$A,$B$67,SummaryData!$B:$B,$B69,SummaryData!$C:$C,$C$14) -> 10.92512 | F69: =SUMIFS(SummaryData!$F:$F,SummaryData!$A:$A,$B$67,SummaryData!$B:$B,$B69,SummaryData!$C:$C,$C$14) -> 14.0578 | H69: =SUMIFS(SummaryData!$D:$D,SummaryData!$A:$A,$B$67,SummaryData!$B:$B,$B69,SummaryData!$C:$C,$H$14) -> 19.47389 | J69: =SUMIFS(SummaryData!$E:$E,SummaryData!$A:$A,$B$67,SummaryData!$B:$B,$B69,SummaryData!$C:$C,$H$14) -> 17.87247 | K69: =SUMIFS(SummaryData!$F:$F,SummaryData!$A:$A,$B$67,SummaryData!$B:$B,$B69,SummaryData!$C:$C,$H$14) -> 21.1818 | M69: =SUMIFS(SummaryData!$D:$D,SummaryData!$A:$A,$B$67,SummaryData!$B:$B,$B69,SummaryData!$C:$C,$M$14) -> 16.16805 | O69: =SUMIFS(SummaryData!$E:$E,SummaryData!$A:$A,$B$67,SummaryData!$B:$B,$B69,SummaryData!$C:$C,$M$14) -> 15.05753 | P69: =SUMIFS(SummaryData!$F:$F,SummaryData!$A:$A,$B$67,SummaryData!$B:$B,$B69,SummaryData!$C:$C,$M$14) -> 17.34374
B70: Increased risk: either yearly, monthly or weekly | C70: =SUMIFS(SummaryData!$D:$D,SummaryData!$A:$A,$B$67,SummaryData!$B:$B,$B70,SummaryData!$C:$C,$C$14) -> 69.83947 | E70: =SUMIFS(SummaryData!$E:$E,SummaryData!$A:$A,$B$67,SummaryData!$B:$B,$B70,SummaryData!$C:$C,$C$14) -> 67.63434 | F70: =SUMIFS(SummaryData!$F:$F,SummaryData!$A:$A,$B$67,SummaryData!$B:$B,$B70,SummaryData!$C:$C,$C$14) -> 71.95666 | H70: =SUMIFS(SummaryData!$D:$D,SummaryData!$A:$A,$B$67,SummaryData!$B:$B,$B70,SummaryData!$C:$C,$H$14) -> 53.47471 | J70: =SUMIFS(SummaryData!$E:$E,SummaryData!$A:$A,$B$67,SummaryData!$B:$B,$B70,SummaryData!$C:$C,$H$14) -> 51.2452 | K70: =SUMIFS(SummaryData!$F:$F,SummaryData!$A:$A,$B$67,SummaryData!$B:$B,$B70,SummaryData!$C:$C,$H$14) -> 55.69043 | M70: =SUMIFS(SummaryData!$D:$D,SummaryData!$A:$A,$B$67,SummaryData!$B:$B,$B70,SummaryData!$C:$C,$M$14) -> 61.13168 | O70: =SUMIFS(SummaryData!$E:$E,SummaryData!$A:$A,$B$67,SummaryData!$B:$B,$B70,SummaryData!$C:$C,$M$14) -> 59.55222 | P70: =SUMIFS(SummaryData!$F:$F,SummaryData!$A:$A,$B$67,SummaryData!$B:$B,$B70,SummaryData!$C:$C,$M$14) -> 62.68811
B71: ALCOHOL CONSUMPTION - Risk of alcohol-related injury from a single occasion of drinking
B72: Abstainer / No longer drinks alcohol | C72: =SUMIFS(SummaryData!$D:$D,SummaryData!$A:$A,$B$71,SummaryData!$B:$B,$B72,SummaryData!$C:$C,$C$14) -> 15.65199 | E72: =SUMIFS(SummaryData!$E:$E,SummaryData!$A:$A,$B$71,SummaryData!$B:$B,$B72,SummaryData!$C:$C,$C$14) -> 13.99004 | F72: =SUMIFS(SummaryData!$F:$F,SummaryData!$A:$A,$B$71,SummaryData!$B:$B,$B72,SummaryData!$C:$C,$C$14) -> 17.47127 | H72: =SUMIFS(SummaryData!$D:$D,SummaryData!$A:$A,$B$71,SummaryData!$B:$B,$B72,SummaryData!$C:$C,$H$14) -> 25.31341 | J72: =SUMIFS(SummaryData!$E:$E,SummaryData!$A:$A,$B$71,SummaryData!$B:$B,$B72,SummaryData!$C:$C,$H$14) -> 23.31696 | K72: =SUMIFS(SummaryData!$F:$F,SummaryData!$A:$A,$B$71,SummaryData!$B:$B,$B72,SummaryData!$C:$C,$H$14) -> 27.41969 | M72: =SUMIFS(SummaryData!$D:$D,SummaryData!$A:$A,$B$71,SummaryData!$B:$B,$B72,SummaryData!$C:$C,$M$14) -> 20.75609 | O72: =SUMIFS(SummaryData!$E:$E,SummaryData!$A:$A,$B$71,SummaryData!$B:$B,$B72,SummaryData!$C:$C,$M$14) -> 19.42407 | P72: =SUMIFS(SummaryData!$F:$F,SummaryData!$A:$A,$B$71,SummaryData!$B:$B,$B72,SummaryData!$C:$C,$M$14) -> 22.15433
B73: Reduced risk | C73: =SUMIFS(SummaryData!$D:$D,SummaryData!$A:$A,$B$71,SummaryData!$B:$B,$B73,SummaryData!$C:$C,$C$14) -> 27.69394 | E73: =SUMIFS(SummaryData!$E:$E,SummaryData!$A:$A,$B$71,SummaryData!$B:$B,$B73,SummaryData!$C:$C,$C$14) -> 25.61969 | F73: =SUMIFS(SummaryData!$F:$F,SummaryData!$A:$A,$B$71,SummaryData!$B:$B,$B73,SummaryData!$C:$C,$C$14) -> 29.86868 | H73: =SUMIFS(SummaryData!$D:$D,SummaryData!$A:$A,$B$71,SummaryData!$B:$B,$B73,SummaryData!$C:$C,$H$14) -> 39.20117 | J73: =SUMIFS(SummaryData!$E:$E,SummaryData!$A:$A,$B$71,SummaryData!$B:$B,$B73,SummaryData!$C:$C,$H$14) -> 37.02871 | K73: =SUMIFS(SummaryData!$F:$F,SummaryData!$A:$A,$B$71,SummaryData!$B:$B,$B73,SummaryData!$C:$C,$H$14) -> 41.41726 | M73: =SUMIFS(SummaryData!$D:$D,SummaryData!$A:$A,$B$71,SummaryData!$B:$B,$B73,SummaryData!$C:$C,$M$14) -> 33.63877 | O73: =SUMIFS(SummaryData!$E:$E,SummaryData!$A:$A,$B$71,SummaryData!$B:$B,$B73,SummaryData!$C:$C,$M$14) -> 32.12513 | P73: =SUMIFS(SummaryData!$F:$F,SummaryData!$A:$A,$B$71,SummaryData!$B:$B,$B73,SummaryData!$C:$C,$M$14) -> 35.18676
B74: Increased risk: either yearly, monthly or weekly | C74: =SUMIFS(SummaryData!$D:$D,SummaryData!$A:$A,$B$71,SummaryData!$B:$B,$B74,SummaryData!$C:$C,$C$14) -> 55.01373 | E74: =SUMIFS(SummaryData!$E:$E,SummaryData!$A:$A,$B$71,SummaryData!$B:$B,$B74,SummaryData!$C:$C,$C$14) -> 52.69312 | F74: =SUMIFS(SummaryData!$F:$F,SummaryData!$A:$A,$B$71,SummaryData!$B:$B,$B74,SummaryData!$C:$C,$C$14) -> 57.31272 | H74: =SUMIFS(SummaryData!$D:$D,SummaryData!$A:$A,$B$71,SummaryData!$B:$B,$B74,SummaryData!$C:$C,$H$14) -> 34.70086 | J74: =SUMIFS(SummaryData!$E:$E,SummaryData!$A:$A,$B$71,SummaryData!$B:$B,$B74,SummaryData!$C:$C,$H$14) -> 32.58079 | K74: =SUMIFS(SummaryData!$F:$F,SummaryData!$A:$A,$B$71,SummaryData!$B:$B,$B74,SummaryData!$C:$C,$H$14) -> 36.88341 | M74: =SUMIFS(SummaryData!$D:$D,SummaryData!$A:$A,$B$71,SummaryData!$B:$B,$B74,SummaryData!$C:$C,$M$14) -> 44.38116 | O74: =SUMIFS(SummaryData!$E:$E,SummaryData!$A:$A,$B$71,SummaryData!$B:$B,$B74,SummaryData!$C:$C,$M$14) -> 42.78522 | P74: =SUMIFS(SummaryData!$F:$F,SummaryData!$A:$A,$B$71,SummaryData!$B:$B,$B74,SummaryData!$C:$C,$M$14) -> 45.98879
B75: MENTAL HEALTH and WELLBEING - Level of psychological distress
B76: Low (K10 < 16) | C76: =SUMIFS(SummaryData!$D:$D,SummaryData!$A:$A,$B$75,SummaryData!$B:$B,$B76,SummaryData!$C:$C,$C$14) -> 55.07837 | E76: =SUMIFS(SummaryData!$E:$E,SummaryData!$A:$A,$B$75,SummaryData!$B:$B,$B76,SummaryData!$C:$C,$C$14) -> 52.70932 | F76: =SUMIFS(SummaryData!$F:$F,SummaryData!$A:$A,$B$75,SummaryData!$B:$B,$B76,SummaryData!$C:$C,$C$14) -> 57.4246 | H76: =SUMIFS(SummaryData!$D:$D,SummaryData!$A:$A,$B$75,SummaryData!$B:$B,$B76,SummaryData!$C:$C,$H$14) -> 51.47717 | J76: =SUMIFS(SummaryData!$E:$E,SummaryData!$A:$A,$B$75,SummaryData!$B:$B,$B76,SummaryData!$C:$C,$H$14) -> 49.1677 | K76: =SUMIFS(SummaryData!$F:$F,SummaryData!$A:$A,$B$75,SummaryData!$B:$B,$B76,SummaryData!$C:$C,$H$14) -> 53.78035 | M76: =SUMIFS(SummaryData!$D:$D,SummaryData!$A:$A,$B$75,SummaryData!$B:$B,$B76,SummaryData!$C:$C,$M$14) -> 53.15292 | O76: =SUMIFS(SummaryData!$E:$E,SummaryData!$A:$A,$B$75,SummaryData!$B:$B,$B76,SummaryData!$C:$C,$M$14) -> 51.50413 | P76: =SUMIFS(SummaryData!$F:$F,SummaryData!$A:$A,$B$75,SummaryData!$B:$B,$B76,SummaryData!$C:$C,$M$14) -> 54.79487
B77: Moderate (K10 16–21) | C77: =SUMIFS(SummaryData!$D:$D,SummaryData!$A:$A,$B$75,SummaryData!$B:$B,$B77,SummaryData!$C:$C,$C$14) -> 25.91405 | E77: =SUMIFS(SummaryData!$E:$E,SummaryData!$A:$A,$B$75,SummaryData!$B:$B,$B77,SummaryData!$C:$C,$C$14) -> 23.83794 | F77: =SUMIFS(SummaryData!$F:$F,SummaryData!$A:$A,$B$75,SummaryData!$B:$B,$B77,SummaryData!$C:$C,$C$14) -> 28.10425 | H77: =SUMIFS(SummaryData!$D:$D,SummaryData!$A:$A,$B$75,SummaryData!$B:$B,$B77,SummaryData!$C:$C,$H$14) -> 26.50737 | J77: =SUMIFS(SummaryData!$E:$E,SummaryData!$A:$A,$B$75,SummaryData!$B:$B,$B77,SummaryData!$C:$C,$H$14) -> 24.48338 | K77: =SUMIFS(SummaryData!$F:$F,SummaryData!$A:$A,$B$75,SummaryData!$B:$B,$B77,SummaryData!$C:$C,$H$14) -> 28.63524 | M77: =SUMIFS(SummaryData!$D:$D,SummaryData!$A:$A,$B$75,SummaryData!$B:$B,$B77,SummaryData!$C:$C,$M$14) -> 26.31955 | O77: =SUMIFS(SummaryData!$E:$E,SummaryData!$A:$A,$B$75,SummaryData!$B:$B,$B77,SummaryData!$C:$C,$M$14) -> 24.8587 | P77: =SUMIFS(SummaryData!$F:$F,SummaryData!$A:$A,$B$75,SummaryData!$B:$B,$B77,SummaryData!$C:$C,$M$14) -> 27.83446
B78: High (K10 22–29) | C78: =SUMIFS(SummaryData!$D:$D,SummaryData!$A:$A,$B$75,SummaryData!$B:$B,$B78,SummaryData!$C:$C,$C$14) -> 9.754415 | E78: =SUMIFS(SummaryData!$E:$E,SummaryData!$A:$A,$B$75,SummaryData!$B:$B,$B78,SummaryData!$C:$C,$C$14) -> 8.34027 | F78: =SUMIFS(SummaryData!$F:$F,SummaryData!$A:$A,$B$75,SummaryData!$B:$B,$B78,SummaryData!$C:$C,$C$14) -> 11.37857 | H78: =SUMIFS(SummaryData!$D:$D,SummaryData!$A:$A,$B$75,SummaryData!$B:$B,$B78,SummaryData!$C:$C,$H$14) -> 11.74203 | J78: =SUMIFS(SummaryData!$E:$E,SummaryData!$A:$A,$B$75,SummaryData!$B:$B,$B78,SummaryData!$C:$C,$H$14) -> 10.34378 | K78: =SUMIFS(SummaryData!$F:$F,SummaryData!$A:$A,$B$75,SummaryData!$B:$B,$B78,SummaryData!$C:$C,$H$14) -> 13.30126 | M78: =SUMIFS(SummaryData!$D:$D,SummaryData!$A:$A,$B$75,SummaryData!$B:$B,$B78,SummaryData!$C:$C,$M$14) -> 10.67624 | O78: =SUMIFS(SummaryData!$E:$E,SummaryData!$A:$A,$B$75,SummaryData!$B:$B,$B78,SummaryData!$C:$C,$M$14) -> 9.667108 | P78: =SUMIFS(SummaryData!$F:$F,SummaryData!$A:$A,$B$75,SummaryData!$B:$B,$B78,SummaryData!$C:$C,$M$14) -> 11.77697
B79: Very high (K10 30+) | C79: =SUMIFS(SummaryData!$D:$D,SummaryData!$A:$A,$B$75,SummaryData!$B:$B,$B79,SummaryData!$C:$C,$C$14) -> 3.588105 | E79: =SUMIFS(SummaryData!$E:$E,SummaryData!$A:$A,$B$75,SummaryData!$B:$B,$B79,SummaryData!$C:$C,$C$14) -> 2.78583 | F79: =SUMIFS(SummaryData!$F:$F,SummaryData!$A:$A,$B$75,SummaryData!$B:$B,$B79,SummaryData!$C:$C,$C$14) -> 4.610466 | H79: =SUMIFS(SummaryData!$D:$D,SummaryData!$A:$A,$B$75,SummaryData!$B:$B,$B79,SummaryData!$C:$C,$H$14) -> 4.872501 | J79: =SUMIFS(SummaryData!$E:$E,SummaryData!$A:$A,$B$75,SummaryData!$B:$B,$B79,SummaryData!$C:$C,$H$14) -> 3.981965 | K79: =SUMIFS(SummaryData!$F:$F,SummaryData!$A:$A,$B$75,SummaryData!$B:$B,$B79,SummaryData!$C:$C,$H$14) -> 5.949856 | M79: =SUMIFS(SummaryData!$D:$D,SummaryData!$A:$A,$B$75,SummaryData!$B:$B,$B79,SummaryData!$C:$C,$M$14) -> 4.335804 | O79: =SUMIFS(SummaryData!$E:$E,SummaryData!$A:$A,$B$75,SummaryData!$B:$B,$B79,SummaryData!$C:$C,$M$14) -> 3.70438 | P79: =SUMIFS(SummaryData!$F:$F,SummaryData!$A:$A,$B$75,SummaryData!$B:$B,$B79,SummaryData!$C:$C,$M$14) -> 5.06919
B80: High / very high (K10 22+) | C80: =SUMIFS(SummaryData!$D:$D,SummaryData!$A:$A,$B$75,SummaryData!$B:$B,$B80,SummaryData!$C:$C,$C$14) -> 13.34252 | E80: =SUMIFS(SummaryData!$E:$E,SummaryData!$A:$A,$B$75,SummaryData!$B:$B,$B80,SummaryData!$C:$C,$C$14) -> 11.72524 | F80: =SUMIFS(SummaryData!$F:$F,SummaryData!$A:$A,$B$75,SummaryData!$B:$B,$B80,SummaryData!$C:$C,$C$14) -> 15.14461 | H80: =SUMIFS(SummaryData!$D:$D,SummaryData!$A:$A,$B$75,SummaryData!$B:$B,$B80,SummaryData!$C:$C,$H$14) -> 16.61453 | J80: =SUMIFS(SummaryData!$E:$E,SummaryData!$A:$A,$B$75,SummaryData!$B:$B,$B80,SummaryData!$C:$C,$H$14) -> 14.96917 | K80: =SUMIFS(SummaryData!$F:$F,SummaryData!$A:$A,$B$75,SummaryData!$B:$B,$B80,SummaryData!$C:$C,$H$14) -> 18.40161 | M80: =SUMIFS(SummaryData!$D:$D,SummaryData!$A:$A,$B$75,SummaryData!$B:$B,$B80,SummaryData!$C:$C,$M$14) -> 15.01204 | O80: =SUMIFS(SummaryData!$E:$E,SummaryData!$A:$A,$B$75,SummaryData!$B:$B,$B80,SummaryData!$C:$C,$M$14) -> 13.83901 | P80: =SUMIFS(SummaryData!$F:$F,SummaryData!$A:$A,$B$75,SummaryData!$B:$B,$B80,SummaryData!$C:$C,$M$14) -> 16.26574
B81: MENTAL HEALTH and WELLBEING - Diagnosed with anxiety or depression
B82: Ever diagnosed with anxiety or depression | C82: =SUMIFS(SummaryData!$D:$D,SummaryData!$A:$A,$B$81,SummaryData!$B:$B,$B82,SummaryData!$C:$C,$C$14) -> 23.09573 | E82: =SUMIFS(SummaryData!$E:$E,SummaryData!$A:$A,$B$81,SummaryData!$B:$B,$B82,SummaryData!$C:$C,$C$14) -> 21.11433 | F82: =SUMIFS(SummaryData!$F:$F,SummaryData!$A:$A,$B$81,SummaryData!$B:$B,$B82,SummaryData!$C:$C,$C$14) -> 25.20366 | H82: =SUMIFS(SummaryData!$D:$D,SummaryData!$A:$A,$B$81,SummaryData!$B:$B,$B82,SummaryData!$C:$C,$H$14) -> 34.70943 | J82: =SUMIFS(SummaryData!$E:$E,SummaryData!$A:$A,$B$81,SummaryData!$B:$B,$B82,SummaryData!$C:$C,$H$14) -> 32.52218 | K82: =SUMIFS(SummaryData!$F:$F,SummaryData!$A:$A,$B$81,SummaryData!$B:$B,$B82,SummaryData!$C:$C,$H$14) -> 36.96319 | M82: =SUMIFS(SummaryData!$D:$D,SummaryData!$A:$A,$B$81,SummaryData!$B:$B,$B82,SummaryData!$C:$C,$M$14) -> 29.06137 | O82: =SUMIFS(SummaryData!$E:$E,SummaryData!$A:$A,$B$81,SummaryData!$B:$B,$B82,SummaryData!$C:$C,$M$14) -> 27.56544 | P82: =SUMIFS(SummaryData!$F:$F,SummaryData!$A:$A,$B$81,SummaryData!$B:$B,$B82,SummaryData!$C:$C,$M$14) -> 30.60418
B83: Diagnosed with anxiety or depression in the last year | C83: =SUMIFS(SummaryData!$D:$D,SummaryData!$A:$A,$B$81,SummaryData!$B:$B,$B83,SummaryData!$C:$C,$C$14) -> 10 | E83: =SUMIFS(SummaryData!$E:$E,SummaryData!$A:$A,$B$81,SummaryData!$B:$B,$B83,SummaryData!$C:$C,$C$14) -> 8.576189 | F83: =SUMIFS(SummaryData!$F:$F,SummaryData!$A:$A,$B$81,SummaryData!$B:$B,$B83,SummaryData!$C:$C,$C$14) -> 11.63647 | H83: =SUMIFS(SummaryData!$D:$D,SummaryData!$A:$A,$B$81,SummaryData!$B:$B,$B83,SummaryData!$C:$C,$H$14) -> 16.7 | J83: =SUMIFS(SummaryData!$E:$E,SummaryData!$A:$A,$B$81,SummaryData!$B:$B,$B83,SummaryData!$C:$C,$H$14) -> 15.04091 | K83: =SUMIFS(SummaryData!$F:$F,SummaryData!$A:$A,$B$81,SummaryData!$B:$B,$B83,SummaryData!$C:$C,$H$14) -> 18.50497 | M83: =SUMIFS(SummaryData!$D:$D,SummaryData!$A:$A,$B$81,SummaryData!$B:$B,$B83,SummaryData!$C:$C,$M$14) -> 13.5 | O83: =SUMIFS(SummaryData!$E:$E,SummaryData!$A:$A,$B$81,SummaryData!$B:$B,$B83,SummaryData!$C:$C,$M$14) -> 12.36966 | P83: =SUMIFS(SummaryData!$F:$F,SummaryData!$A:$A,$B$81,SummaryData!$B:$B,$B83,SummaryData!$C:$C,$M$14) -> 14.69853
B84: MENTAL HEALTH and WELLBEING - Sought professional help for a mental health problem in the previous year
B85: Sought professional help for a mental health related problem | C85: =SUMIFS(SummaryData!$D:$D,SummaryData!$A:$A,$B$84,SummaryData!$B:$B,$B85,SummaryData!$C:$C,$C$14) -> 15.00659 | E85: =SUMIFS(SummaryData!$E:$E,SummaryData!$A:$A,$B$84,SummaryData!$B:$B,$B85,SummaryData!$C:$C,$C$14) -> 13.29914 | F85: =SUMIFS(SummaryData!$F:$F,SummaryData!$A:$A,$B$84,SummaryData!$B:$B,$B85,SummaryData!$C:$C,$C$14) -> 16.89055 | H85: =SUMIFS(SummaryData!$D:$D,SummaryData!$A:$A,$B$84,SummaryData!$B:$B,$B85,SummaryData!$C:$C,$H$14) -> 21.71735 | J85: =SUMIFS(SummaryData!$E:$E,SummaryData!$A:$A,$B$84,SummaryData!$B:$B,$B85,SummaryData!$C:$C,$H$14) -> 19.82921 | K85: =SUMIFS(SummaryData!$F:$F,SummaryData!$A:$A,$B$84,SummaryData!$B:$B,$B85,SummaryData!$C:$C,$H$14) -> 23.73206 | M85: =SUMIFS(SummaryData!$D:$D,SummaryData!$A:$A,$B$84,SummaryData!$B:$B,$B85,SummaryData!$C:$C,$M$14) -> 18.42627 | O85: =SUMIFS(SummaryData!$E:$E,SummaryData!$A:$A,$B$84,SummaryData!$B:$B,$B85,SummaryData!$C:$C,$M$14) -> 17.13154 | P85: =SUMIFS(SummaryData!$F:$F,SummaryData!$A:$A,$B$84,SummaryData!$B:$B,$B85,SummaryData!$C:$C,$M$14) -> 19.79548
B86: MENTAL HEALTH and WELLBEING - Self-reported health status
B87: Excellent / very good | C87: =SUMIFS(SummaryData!$D:$D,SummaryData!$A:$A,$B$86,SummaryData!$B:$B,$B87,SummaryData!$C:$C,$C$14) -> 38.2509 | E87: =SUMIFS(SummaryData!$E:$E,SummaryData!$A:$A,$B$86,SummaryData!$B:$B,$B87,SummaryData!$C:$C,$C$14) -> 35.99706 | F87: =SUMIFS(SummaryData!$F:$F,SummaryData!$A:$A,$B$86,SummaryData!$B:$B,$B87,SummaryData!$C:$C,$C$14) -> 40.55644 | H87: =SUMIFS(SummaryData!$D:$D,SummaryData!$A:$A,$B$86,SummaryData!$B:$B,$B87,SummaryData!$C:$C,$H$14) -> 39.46116 | J87: =SUMIFS(SummaryData!$E:$E,SummaryData!$A:$A,$B$86,SummaryData!$B:$B,$B87,SummaryData!$C:$C,$H$14) -> 37.22365 | K87: =SUMIFS(SummaryData!$F:$F,SummaryData!$A:$A,$B$86,SummaryData!$B:$B,$B87,SummaryData!$C:$C,$H$14) -> 41.74373 | M87: =SUMIFS(SummaryData!$D:$D,SummaryData!$A:$A,$B$86,SummaryData!$B:$B,$B87,SummaryData!$C:$C,$M$14) -> 38.8991 | O87: =SUMIFS(SummaryData!$E:$E,SummaryData!$A:$A,$B$86,SummaryData!$B:$B,$B87,SummaryData!$C:$C,$M$14) -> 37.30361 | P87: =SUMIFS(SummaryData!$F:$F,SummaryData!$A:$A,$B$86,SummaryData!$B:$B,$B87,SummaryData!$C:$C,$M$14) -> 40.51874
B88: Good | C88: =SUMIFS(SummaryData!$D:$D,SummaryData!$A:$A,$B$86,SummaryData!$B:$B,$B88,SummaryData!$C:$C,$C$14) -> 39.00311 | E88: =SUMIFS(SummaryData!$E:$E,SummaryData!$A:$A,$B$86,SummaryData!$B:$B,$B88,SummaryData!$C:$C,$C$14) -> 36.69785 | F88: =SUMIFS(SummaryData!$F:$F,SummaryData!$A:$A,$B$86,SummaryData!$B:$B,$B88,SummaryData!$C:$C,$C$14) -> 41.35856 | H88: =SUMIFS(SummaryData!$D:$D,SummaryData!$A:$A,$B$86,SummaryData!$B:$B,$B88,SummaryData!$C:$C,$H$14) -> 38.67952 | J88: =SUMIFS(SummaryData!$E:$E,SummaryData!$A:$A,$B$86,SummaryData!$B:$B,$B88,SummaryData!$C:$C,$H$14) -> 36.43398 | K88: =SUMIFS(SummaryData!$F:$F,SummaryData!$A:$A,$B$86,SummaryData!$B:$B,$B88,SummaryData!$C:$C,$H$14) -> 40.97424 | M88: =SUMIFS(SummaryData!$D:$D,SummaryData!$A:$A,$B$86,SummaryData!$B:$B,$B88,SummaryData!$C:$C,$M$14) -> 38.67312 | O88: =SUMIFS(SummaryData!$E:$E,SummaryData!$A:$A,$B$86,SummaryData!$B:$B,$B88,SummaryData!$C:$C,$M$14) -> 37.06321 | P88: =SUMIFS(SummaryData!$F:$F,SummaryData!$A:$A,$B$86,SummaryData!$B:$B,$B88,SummaryData!$C:$C,$M$14) -> 40.30816
B89: Fair/poor | C89: =SUMIFS(SummaryData!$D:$D,SummaryData!$A:$A,$B$86,SummaryData!$B:$B,$B89,SummaryData!$C:$C,$C$14) -> 22.37478 | E89: =SUMIFS(SummaryData!$E:$E,SummaryData!$A:$A,$B$86,SummaryData!$B:$B,$B89,SummaryData!$C:$C,$C$14) -> 20.43351 | F89: =SUMIFS(SummaryData!$F:$F,SummaryData!$A:$A,$B$86,SummaryData!$B:$B,$B89,SummaryData!$C:$C,$C$14) -> 24.44383 | H89: =SUMIFS(SummaryData!$D:$D,SummaryData!$A:$A,$B$86,SummaryData!$B:$B,$B89,SummaryData!$C:$C,$H$14) -> 21.5699 | J89: =SUMIFS(SummaryData!$E:$E,SummaryData!$A:$A,$B$86,SummaryData!$B:$B,$B89,SummaryData!$C:$C,$H$14) -> 19.78534 | K89: =SUMIFS(SummaryData!$F:$F,SummaryData!$A:$A,$B$86,SummaryData!$B:$B,$B89,SummaryData!$C:$C,$H$14) -> 23.46832 | M89: =SUMIFS(SummaryData!$D:$D,SummaryData!$A:$A,$B$86,SummaryData!$B:$B,$B89,SummaryData!$C:$C,$M$14) -> 22.10367 | O89: =SUMIFS(SummaryData!$E:$E,SummaryData!$A:$A,$B$86,SummaryData!$B:$B,$B89,SummaryData!$C:$C,$M$14) -> 20.76023 | P89: =SUMIFS(SummaryData!$F:$F,SummaryData!$A:$A,$B$86,SummaryData!$B:$B,$B89,SummaryData!$C:$C,$M$14) -> 23.50825
B90: MENTAL HEALTH and WELLBEING - Life statisfaction
B91: Low or medium (0–6) | C91: =SUMIFS(SummaryData!$D:$D,SummaryData!$A:$A,$B$90,SummaryData!$B:$B,$B91,SummaryData!$C:$C,$C$14) -> 20.61179 | E91: =SUMIFS(SummaryData!$E:$E,SummaryData!$A:$A,$B$90,SummaryData!$B:$B,$B91,SummaryData!$C:$C,$C$14) -> 18.72805 | F91: =SUMIFS(SummaryData!$F:$F,SummaryData!$A:$A,$B$90,SummaryData!$B:$B,$B91,SummaryData!$C:$C,$C$14) -> 22.63225 | H91: =SUMIFS(SummaryData!$D:$D,SummaryData!$A:$A,$B$90,SummaryData!$B:$B,$B91,SummaryData!$C:$C,$H$14) -> 19.86987 | J91: =SUMIFS(SummaryData!$E:$E,SummaryData!$A:$A,$B$90,SummaryData!$B:$B,$B91,SummaryData!$C:$C,$H$14) -> 18.12062 | K91: =SUMIFS(SummaryData!$F:$F,SummaryData!$A:$A,$B$90,SummaryData!$B:$B,$B91,SummaryData!$C:$C,$H$14) -> 21.74315 | M91: =SUMIFS(SummaryData!$D:$D,SummaryData!$A:$A,$B$90,SummaryData!$B:$B,$B91,SummaryData!$C:$C,$M$14) -> 20.34284 | O91: =SUMIFS(SummaryData!$E:$E,SummaryData!$A:$A,$B$90,SummaryData!$B:$B,$B91,SummaryData!$C:$C,$M$14) -> 19.03595 | P91: =SUMIFS(SummaryData!$F:$F,SummaryData!$A:$A,$B$90,SummaryData!$B:$B,$B91,SummaryData!$C:$C,$M$14) -> 21.7154
B92: High (7–8) | C92: =SUMIFS(SummaryData!$D:$D,SummaryData!$A:$A,$B$90,SummaryData!$B:$B,$B92,SummaryData!$C:$C,$C$14) -> 53.2351 | E92: =SUMIFS(SummaryData!$E:$E,SummaryData!$A:$A,$B$90,SummaryData!$B:$B,$B92,SummaryData!$C:$C,$C$14) -> 50.86587 | F92: =SUMIFS(SummaryData!$F:$F,SummaryData!$A:$A,$B$90,SummaryData!$B:$B,$B92,SummaryData!$C:$C,$C$14) -> 55.58982 | H92: =SUMIFS(SummaryData!$D:$D,SummaryData!$A:$A,$B$90,SummaryData!$B:$B,$B92,SummaryData!$C:$C,$H$14) -> 50.1862 | J92: =SUMIFS(SummaryData!$E:$E,SummaryData!$A:$A,$B$90,SummaryData!$B:$B,$B92,SummaryData!$C:$C,$H$14) -> 47.88991 | K92: =SUMIFS(SummaryData!$F:$F,SummaryData!$A:$A,$B$90,SummaryData!$B:$B,$B92,SummaryData!$C:$C,$H$14) -> 52.48171 | M92: =SUMIFS(SummaryData!$D:$D,SummaryData!$A:$A,$B$90,SummaryData!$B:$B,$B92,SummaryData!$C:$C,$M$14) -> 51.4414 | O92: =SUMIFS(SummaryData!$E:$E,SummaryData!$A:$A,$B$90,SummaryData!$B:$B,$B92,SummaryData!$C:$C,$M$14) -> 49.79162 | P92: =SUMIFS(SummaryData!$F:$F,SummaryData!$A:$A,$B$90,SummaryData!$B:$B,$B92,SummaryData!$C:$C,$M$14) -> 53.08805
B93: Very high (9–10) | C93: =SUMIFS(SummaryData!$D:$D,SummaryData!$A:$A,$B$90,SummaryData!$B:$B,$B93,SummaryData!$C:$C,$C$14) -> 24.53915 | E93: =SUMIFS(SummaryData!$E:$E,SummaryData!$A:$A,$B$90,SummaryData!$B:$B,$B93,SummaryData!$C:$C,$C$14) -> 22.60746 | F93: =SUMIFS(SummaryData!$F:$F,SummaryData!$A:$A,$B$90,SummaryData!$B:$B,$B93,SummaryData!$C:$C,$C$14) -> 26.5792 | H93: =SUMIFS(SummaryData!$D:$D,SummaryData!$A:$A,$B$90,SummaryData!$B:$B,$B93,SummaryData!$C:$C,$H$14) -> 28.00296 | J93: =SUMIFS(SummaryData!$E:$E,SummaryData!$A:$A,$B$90,SummaryData!$B:$B,$B93,SummaryData!$C:$C,$H$14) -> 25.96716 | K93: =SUMIFS(SummaryData!$F:$F,SummaryData!$A:$A,$B$90,SummaryData!$B:$B,$B93,SummaryData!$C:$C,$H$14) -> 30.13339 | M93: =SUMIFS(SummaryData!$D:$D,SummaryData!$A:$A,$B$90,SummaryData!$B:$B,$B93,SummaryData!$C:$C,$M$14) -> 26.39173 | O93: =SUMIFS(SummaryData!$E:$E,SummaryData!$A:$A,$B$90,SummaryData!$B:$B,$B93,SummaryData!$C:$C,$M$14) -> 24.96926 | P93: =SUMIFS(SummaryData!$F:$F,SummaryData!$A:$A,$B$90,SummaryData!$B:$B,$B93,SummaryData!$C:$C,$M$14) -> 27.86514
B94: MENTAL HEALTH and WELLBEING - Feeling of life being worthwhile
B95: Low or medium (0–6) | C95: =SUMIFS(SummaryData!$D:$D,SummaryData!$A:$A,$B$94,SummaryData!$B:$B,$B95,SummaryData!$C:$C,$C$14) -> 18.40754 | E95: =SUMIFS(SummaryData!$E:$E,SummaryData!$A:$A,$B$94,SummaryData!$B:$B,$B95,SummaryData!$C:$C,$C$14) -> 16.58841 | F95: =SUMIFS(SummaryData!$F:$F,SummaryData!$A:$A,$B$94,SummaryData!$B:$B,$B95,SummaryData!$C:$C,$C$14) -> 20.37743 | H95: =SUMIFS(SummaryData!$D:$D,SummaryData!$A:$A,$B$94,SummaryData!$B:$B,$B95,SummaryData!$C:$C,$H$14) -> 14.63095 | J95: =SUMIFS(SummaryData!$E:$E,SummaryData!$A:$A,$B$94,SummaryData!$B:$B,$B95,SummaryData!$C:$C,$H$14) -> 13.05478 | K95: =SUMIFS(SummaryData!$F:$F,SummaryData!$A:$A,$B$94,SummaryData!$B:$B,$B95,SummaryData!$C:$C,$H$14) -> 16.3616 | M95: =SUMIFS(SummaryData!$D:$D,SummaryData!$A:$A,$B$94,SummaryData!$B:$B,$B95,SummaryData!$C:$C,$M$14) -> 16.56972 | O95: =SUMIFS(SummaryData!$E:$E,SummaryData!$A:$A,$B$94,SummaryData!$B:$B,$B95,SummaryData!$C:$C,$M$14) -> 15.34116 | P95: =SUMIFS(SummaryData!$F:$F,SummaryData!$A:$A,$B$94,SummaryData!$B:$B,$B95,SummaryData!$C:$C,$M$14) -> 17.8759
B96: High (7–8) | C96: =SUMIFS(SummaryData!$D:$D,SummaryData!$A:$A,$B$94,SummaryData!$B:$B,$B96,SummaryData!$C:$C,$C$14) -> 45.96883 | E96: =SUMIFS(SummaryData!$E:$E,SummaryData!$A:$A,$B$94,SummaryData!$B:$B,$B96,SummaryData!$C:$C,$C$14) -> 43.60864 | F96: =SUMIFS(SummaryData!$F:$F,SummaryData!$A:$A,$B$94,SummaryData!$B:$B,$B96,SummaryData!$C:$C,$C$14) -> 48.34724 | H96: =SUMIFS(SummaryData!$D:$D,SummaryData!$A:$A,$B$94,SummaryData!$B:$B,$B96,SummaryData!$C:$C,$H$14) -> 43.94198 | J96: =SUMIFS(SummaryData!$E:$E,SummaryData!$A:$A,$B$94,SummaryData!$B:$B,$B96,SummaryData!$C:$C,$H$14) -> 41.66538 | K96: =SUMIFS(SummaryData!$F:$F,SummaryData!$A:$A,$B$94,SummaryData!$B:$B,$B96,SummaryData!$C:$C,$H$14) -> 46.24436 | M96: =SUMIFS(SummaryData!$D:$D,SummaryData!$A:$A,$B$94,SummaryData!$B:$B,$B96,SummaryData!$C:$C,$M$14) -> 44.76146 | O96: =SUMIFS(SummaryData!$E:$E,SummaryData!$A:$A,$B$94,SummaryData!$B:$B,$B96,SummaryData!$C:$C,$M$14) -> 43.12293 | P96: =SUMIFS(SummaryData!$F:$F,SummaryData!$A:$A,$B$94,SummaryData!$B:$B,$B96,SummaryData!$C:$C,$M$14) -> 46.41144
B97: Very high (9–10) | C97: =SUMIFS(SummaryData!$D:$D,SummaryData!$A:$A,$B$94,SummaryData!$B:$B,$B97,SummaryData!$C:$C,$C$14) -> 33.19845 | E97: =SUMIFS(SummaryData!$E:$E,SummaryData!$A:$A,$B$94,SummaryData!$B:$B,$B97,SummaryData!$C:$C,$C$14) -> 31.01236 | F97: =SUMIFS(SummaryData!$F:$F,SummaryData!$A:$A,$B$94,SummaryData!$B:$B,$B97,SummaryData!$C:$C,$C$14) -> 35.45942 | H97: =SUMIFS(SummaryData!$D:$D,SummaryData!$A:$A,$B$94,SummaryData!$B:$B,$B97,SummaryData!$C:$C,$H$14) -> 38.18005 | J97: =SUMIFS(SummaryData!$E:$E,SummaryData!$A:$A,$B$94,SummaryData!$B:$B,$B97,SummaryData!$C:$C,$H$14) -> 35.98546 | K97: =SUMIFS(SummaryData!$F:$F,SummaryData!$A:$A,$B$94,SummaryData!$B:$B,$B97,SummaryData!$C:$C,$H$14) -> 40.42397 | M97: =SUMIFS(SummaryData!$D:$D,SummaryData!$A:$A,$B$94,SummaryData!$B:$B,$B97,SummaryData!$C:$C,$M$14) -> 35.80398 | O97: =SUMIFS(SummaryData!$E:$E,SummaryData!$A:$A,$B$94,SummaryData!$B:$B,$B97,SummaryData!$C:$C,$M$14) -> 34.24079 | P97: =SUMIFS(SummaryData!$F:$F,SummaryData!$A:$A,$B$94,SummaryData!$B:$B,$B97,SummaryData!$C:$C,$M$14) -> 37.39794
B98: MORBIDITY STATUS
B99: No chronic disease | C99: =SUMIFS(SummaryData!$D:$D,SummaryData!$A:$A,$B$98,SummaryData!$B:$B,$B99,SummaryData!$C:$C,$C$14) -> 54.92555 | E99: =SUMIFS(SummaryData!$E:$E,SummaryData!$A:$A,$B$98,SummaryData!$B:$B,$B99,SummaryData!$C:$C,$C$14) -> 52.69822 | F99: =SUMIFS(SummaryData!$F:$F,SummaryData!$A:$A,$B$98,SummaryData!$B:$B,$B99,SummaryData!$C:$C,$C$14) -> 57.13331 | H99: =SUMIFS(SummaryData!$D:$D,SummaryData!$A:$A,$B$98,SummaryData!$B:$B,$B99,SummaryData!$C:$C,$H$14) -> 45.17915 | J99: =SUMIFS(SummaryData!$E:$E,SummaryData!$A:$A,$B$98,SummaryData!$B:$B,$B99,SummaryData!$C:$C,$H$14) -> 42.96012 | K99: =SUMIFS(SummaryData!$F:$F,SummaryData!$A:$A,$B$98,SummaryData!$B:$B,$B99,SummaryData!$C:$C,$H$14) -> 47.41751 | M99: =SUMIFS(SummaryData!$D:$D,SummaryData!$A:$A,$B$98,SummaryData!$B:$B,$B99,SummaryData!$C:$C,$M$14) -> 49.95987 | O99: =SUMIFS(SummaryData!$E:$E,SummaryData!$A:$A,$B$98,SummaryData!$B:$B,$B99,SummaryData!$C:$C,$M$14) -> 48.38575 | P99: =SUMIFS(SummaryData!$F:$F,SummaryData!$A:$A,$B$98,SummaryData!$B:$B,$B99,SummaryData!$C:$C,$M$14) -> 51.53408
B100: One chronic disease | C100: =SUMIFS(SummaryData!$D:$D,SummaryData!$A:$A,$B$98,SummaryData!$B:$B,$B100,SummaryData!$C:$C,$C$14) -> 28.95057 | E100: =SUMIFS(SummaryData!$E:$E,SummaryData!$A:$A,$B$98,SummaryData!$B:$B,$B100,SummaryData!$C:$C,$C$14) -> 26.85683 | F100: =SUMIFS(SummaryData!$F:$F,SummaryData!$A:$A,$B$98,SummaryData!$B:$B,$B100,SummaryData!$C:$C,$C$14) -> 31.13805 | H100: =SUMIFS(SummaryData!$D:$D,SummaryData!$A:$A,$B$98,SummaryData!$B:$B,$B100,SummaryData!$C:$C,$H$14) -> 32.71141 | J100: =SUMIFS(SummaryData!$E:$E,SummaryData!$A:$A,$B$98,SummaryData!$B:$B,$B100,SummaryData!$C:$C,$H$14) -> 30.57301 | K100: =SUMIFS(SummaryData!$F:$F,SummaryData!$A:$A,$B$98,SummaryData!$B:$B,$B100,SummaryData!$C:$C,$H$14) -> 34.92413 | M100: =SUMIFS(SummaryData!$D:$D,SummaryData!$A:$A,$B$98,SummaryData!$B:$B,$B100,SummaryData!$C:$C,$M$14) -> 30.67246 | O100: =SUMIFS(SummaryData!$E:$E,SummaryData!$A:$A,$B$98,SummaryData!$B:$B,$B100,SummaryData!$C:$C,$M$14) -> 29.17049 | P100: =SUMIFS(SummaryData!$F:$F,SummaryData!$A:$A,$B$98,SummaryData!$B:$B,$B100,SummaryData!$C:$C,$M$14) -> 32.21658
B101: Two or more chronic diseases | C101: =SUMIFS(SummaryData!$D:$D,SummaryData!$A:$A,$B$98,SummaryData!$B:$B,$B101,SummaryData!$C:$C,$C$14) -> 16.12388 | E101: =SUMIFS(SummaryData!$E:$E,SummaryData!$A:$A,$B$98,SummaryData!$B:$B,$B101,SummaryData!$C:$C,$C$14) -> 14.71702 | F101: =SUMIFS(SummaryData!$F:$F,SummaryData!$A:$A,$B$98,SummaryData!$B:$B,$B101,SummaryData!$C:$C,$C$14) -> 17.63742 | H101: =SUMIFS(SummaryData!$D:$D,SummaryData!$A:$A,$B$98,SummaryData!$B:$B,$B101,SummaryData!$C:$C,$H$14) -> 22.10944 | J101: =SUMIFS(SummaryData!$E:$E,SummaryData!$A:$A,$B$98,SummaryData!$B:$B,$B101,SummaryData!$C:$C,$H$14) -> 20.60656 | K101: =SUMIFS(SummaryData!$F:$F,SummaryData!$A:$A,$B$98,SummaryData!$B:$B,$B101,SummaryData!$C:$C,$H$14) -> 23.68923 | M101: =SUMIFS(SummaryData!$D:$D,SummaryData!$A:$A,$B$98,SummaryData!$B:$B,$B101,SummaryData!$C:$C,$M$14) -> 19.36767 | O101: =SUMIFS(SummaryData!$E:$E,SummaryData!$A:$A,$B$98,SummaryData!$B:$B,$B101,SummaryData!$C:$C,$M$14) -> 18.32299 | P101: =SUMIFS(SummaryData!$F:$F,SummaryData!$A:$A,$B$98,SummaryData!$B:$B,$B101,SummaryData!$C:$C,$M$14) -> 20.45699
B102: SELECTED CHRONIC DISEASE PREVALENCE
B103: Asthma | C103: =SUMIFS(SummaryData!$D:$D,SummaryData!$A:$A,$B$102,SummaryData!$B:$B,$B103,SummaryData!$C:$C,$C$14) -> 18.02689 | E103: =SUMIFS(SummaryData!$E:$E,SummaryData!$A:$A,$B$102,SummaryData!$B:$B,$B103,SummaryData!$C:$C,$C$14) -> 16.24727 | F103: =SUMIFS(SummaryData!$F:$F,SummaryData!$A:$A,$B$102,SummaryData!$B:$B,$B103,SummaryData!$C:$C,$C$14) -> 19.95498 | H103: =SUMIFS(SummaryData!$D:$D,SummaryData!$A:$A,$B$102,SummaryData!$B:$B,$B103,SummaryData!$C:$C,$H$14) -> 22.16331 | J103: =SUMIFS(SummaryData!$E:$E,SummaryData!$A:$A,$B$102,SummaryData!$B:$B,$B103,SummaryData!$C:$C,$H$14) -> 20.29211 | K103: =SUMIFS(SummaryData!$F:$F,SummaryData!$A:$A,$B$102,SummaryData!$B:$B,$B103,SummaryData!$C:$C,$H$14) -> 24.15478 | M103: =SUMIFS(SummaryData!$D:$D,SummaryData!$A:$A,$B$102,SummaryData!$B:$B,$B103,SummaryData!$C:$C,$M$14) -> 20.21224 | O103: =SUMIFS(SummaryData!$E:$E,SummaryData!$A:$A,$B$102,SummaryData!$B:$B,$B103,SummaryData!$C:$C,$M$14) -> 18.9025 | P103: =SUMIFS(SummaryData!$F:$F,SummaryData!$A:$A,$B$102,SummaryData!$B:$B,$B103,SummaryData!$C:$C,$M$14) -> 21.58858
B104: Type 1 diabetes | C104: =SUMIFS(SummaryData!$D:$D,SummaryData!$A:$A,$B$102,SummaryData!$B:$B,$B104,SummaryData!$C:$C,$C$14) -> 1.110789 | D104: * | E104: =SUMIFS(SummaryData!$E:$E,SummaryData!$A:$A,$B$102,SummaryData!$B:$B,$B104,SummaryData!$C:$C,$C$14) -> 0.6763185 | F104: =SUMIFS(SummaryData!$F:$F,SummaryData!$A:$A,$B$102,SummaryData!$B:$B,$B104,SummaryData!$C:$C,$C$14) -> 1.819253 | H104: =SUMIFS(SummaryData!$D:$D,SummaryData!$A:$A,$B$102,SummaryData!$B:$B,$B104,SummaryData!$C:$C,$H$14) -> 0.7582602 | J104: =SUMIFS(SummaryData!$E:$E,SummaryData!$A:$A,$B$102,SummaryData!$B:$B,$B104,SummaryData!$C:$C,$H$14) -> 0.4728478 | K104: =SUMIFS(SummaryData!$F:$F,SummaryData!$A:$A,$B$102,SummaryData!$B:$B,$B104,SummaryData!$C:$C,$H$14) -> 1.213847 | M104: =SUMIFS(SummaryData!$D:$D,SummaryData!$A:$A,$B$102,SummaryData!$B:$B,$B104,SummaryData!$C:$C,$M$14) -> 0.9198224 | O104: =SUMIFS(SummaryData!$E:$E,SummaryData!$A:$A,$B$102,SummaryData!$B:$B,$B104,SummaryData!$C:$C,$M$14) -> 0.6452741 | P104: =SUMIFS(SummaryData!$F:$F,SummaryData!$A:$A,$B$102,SummaryData!$B:$B,$B104,SummaryData!$C:$C,$M$14) -> 1.309644
B105: Type 2 diabetes | C105: =SUMIFS(SummaryData!$D:$D,SummaryData!$A:$A,$B$102,SummaryData!$B:$B,$B105,SummaryData!$C:$C,$C$14) -> 6.532789 | E105: =SUMIFS(SummaryData!$E:$E,SummaryData!$A:$A,$B$102,SummaryData!$B:$B,$B105,SummaryData!$C:$C,$C$14) -> 5.53235 | F105: =SUMIFS(SummaryData!$F:$F,SummaryData!$A:$A,$B$102,SummaryData!$B:$B,$B105,SummaryData!$C:$C,$C$14) -> 7.699397 | H105: =SUMIFS(SummaryData!$D:$D,SummaryData!$A:$A,$B$102,SummaryData!$B:$B,$B105,SummaryData!$C:$C,$H$14) -> 4.425776 | J105: =SUMIFS(SummaryData!$E:$E,SummaryData!$A:$A,$B$102,SummaryData!$B:$B,$B105,SummaryData!$C:$C,$H$14) -> 3.667852 | K105: =SUMIFS(SummaryData!$F:$F,SummaryData!$A:$A,$B$102,SummaryData!$B:$B,$B105,SummaryData!$C:$C,$H$14) -> 5.33165 | M105: =SUMIFS(SummaryData!$D:$D,SummaryData!$A:$A,$B$102,SummaryData!$B:$B,$B105,SummaryData!$C:$C,$M$14) -> 5.434021 | O105: =SUMIFS(SummaryData!$E:$E,SummaryData!$A:$A,$B$102,SummaryData!$B:$B,$B105,SummaryData!$C:$C,$M$14) -> 4.786986 | P105: =SUMIFS(SummaryData!$F:$F,SummaryData!$A:$A,$B$102,SummaryData!$B:$B,$B105,SummaryData!$C:$C,$M$14) -> 6.162852
B106: Heart disease | C106: =SUMIFS(SummaryData!$D:$D,SummaryData!$A:$A,$B$102,SummaryData!$B:$B,$B106,SummaryData!$C:$C,$C$14) -> 8.05477 | E106: =SUMIFS(SummaryData!$E:$E,SummaryData!$A:$A,$B$102,SummaryData!$B:$B,$B106,SummaryData!$C:$C,$C$14) -> 7.078227 | F106: =SUMIFS(SummaryData!$F:$F,SummaryData!$A:$A,$B$102,SummaryData!$B:$B,$B106,SummaryData!$C:$C,$C$14) -> 9.152771 | H106: =SUMIFS(SummaryData!$D:$D,SummaryData!$A:$A,$B$102,SummaryData!$B:$B,$B106,SummaryData!$C:$C,$H$14) -> 6.264785 | J106: =SUMIFS(SummaryData!$E:$E,SummaryData!$A:$A,$B$102,SummaryData!$B:$B,$B106,SummaryData!$C:$C,$H$14) -> 5.399819 | K106: =SUMIFS(SummaryData!$F:$F,SummaryData!$A:$A,$B$102,SummaryData!$B:$B,$B106,SummaryData!$C:$C,$H$14) -> 7.257675 | M106: =SUMIFS(SummaryData!$D:$D,SummaryData!$A:$A,$B$102,SummaryData!$B:$B,$B106,SummaryData!$C:$C,$M$14) -> 7.078699 | O106: =SUMIFS(SummaryData!$E:$E,SummaryData!$A:$A,$B$102,SummaryData!$B:$B,$B106,SummaryData!$C:$C,$M$14) -> 6.420504 | P106: =SUMIFS(SummaryData!$F:$F,SummaryData!$A:$A,$B$102,SummaryData!$B:$B,$B106,SummaryData!$C:$C,$M$14) -> 7.798746
B107: Stroke | C107: =SUMIFS(SummaryData!$D:$D,SummaryData!$A:$A,$B$102,SummaryData!$B:$B,$B107,SummaryData!$C:$C,$C$14) -> 2.744257 | E107: =SUMIFS(SummaryData!$E:$E,SummaryData!$A:$A,$B$102,SummaryData!$B:$B,$B107,SummaryData!$C:$C,$C$14) -> 2.146832 | F107: =SUMIFS(SummaryData!$F:$F,SummaryData!$A:$A,$B$102,SummaryData!$B:$B,$B107,SummaryData!$C:$C,$C$14) -> 3.501985 | H107: =SUMIFS(SummaryData!$D:$D,SummaryData!$A:$A,$B$102,SummaryData!$B:$B,$B107,SummaryData!$C:$C,$H$14) -> 2.22508 | J107: =SUMIFS(SummaryData!$E:$E,SummaryData!$A:$A,$B$102,SummaryData!$B:$B,$B107,SummaryData!$C:$C,$H$14) -> 1.711216 | K107: =SUMIFS(SummaryData!$F:$F,SummaryData!$A:$A,$B$102,SummaryData!$B:$B,$B107,SummaryData!$C:$C,$H$14) -> 2.88872 | M107: =SUMIFS(SummaryData!$D:$D,SummaryData!$A:$A,$B$102,SummaryData!$B:$B,$B107,SummaryData!$C:$C,$M$14) -> 2.444055 | O107: =SUMIFS(SummaryData!$E:$E,SummaryData!$A:$A,$B$102,SummaryData!$B:$B,$B107,SummaryData!$C:$C,$M$14) -> 2.042182 | P107: =SUMIFS(SummaryData!$F:$F,SummaryData!$A:$A,$B$102,SummaryData!$B:$B,$B107,SummaryData!$C:$C,$M$14) -> 2.922652
B108: Cancer | C108: =SUMIFS(SummaryData!$D:$D,SummaryData!$A:$A,$B$102,SummaryData!$B:$B,$B108,SummaryData!$C:$C,$C$14) -> 8.001448 | E108: =SUMIFS(SummaryData!$E:$E,SummaryData!$A:$A,$B$102,SummaryData!$B:$B,$B108,SummaryData!$C:$C,$C$14) -> 7.031899 | F108: =SUMIFS(SummaryData!$F:$F,SummaryData!$A:$A,$B$102,SummaryData!$B:$B,$B108,SummaryData!$C:$C,$C$14) -> 9.091604 | H108: =SUMIFS(SummaryData!$D:$D,SummaryData!$A:$A,$B$102,SummaryData!$B:$B,$B108,SummaryData!$C:$C,$H$14) -> 7.919452 | J108: =SUMIFS(SummaryData!$E:$E,SummaryData!$A:$A,$B$102,SummaryData!$B:$B,$B108,SummaryData!$C:$C,$H$14) -> 6.995194 | K108: =SUMIFS(SummaryData!$F:$F,SummaryData!$A:$A,$B$102,SummaryData!$B:$B,$B108,SummaryData!$C:$C,$H$14) -> 8.954073 | M108: =SUMIFS(SummaryData!$D:$D,SummaryData!$A:$A,$B$102,SummaryData!$B:$B,$B108,SummaryData!$C:$C,$M$14) -> 7.91227 | O108: =SUMIFS(SummaryData!$E:$E,SummaryData!$A:$A,$B$102,SummaryData!$B:$B,$B108,SummaryData!$C:$C,$M$14) -> 7.23544 | P108: =SUMIFS(SummaryData!$F:$F,SummaryData!$A:$A,$B$102,SummaryData!$B:$B,$B108,SummaryData!$C:$C,$M$14) -> 8.646512
B109: Osteoporosis | C109: =SUMIFS(SummaryData!$D:$D,SummaryData!$A:$A,$B$102,SummaryData!$B:$B,$B109,SummaryData!$C:$C,$C$14) -> 2.337671 | E109: =SUMIFS(SummaryData!$E:$E,SummaryData!$A:$A,$B$102,SummaryData!$B:$B,$B109,SummaryData!$C:$C,$C$14) -> 1.851961 | F109: =SUMIFS(SummaryData!$F:$F,SummaryData!$A:$A,$B$102,SummaryData!$B:$B,$B109,SummaryData!$C:$C,$C$14) -> 2.946942 | H109: =SUMIFS(SummaryData!$D:$D,SummaryData!$A:$A,$B$102,SummaryData!$B:$B,$B109,SummaryData!$C:$C,$H$14) -> 7.95576 | J109: =SUMIFS(SummaryData!$E:$E,SummaryData!$A:$A,$B$102,SummaryData!$B:$B,$B109,SummaryData!$C:$C,$H$14) -> 7.107378 | K109: =SUMIFS(SummaryData!$F:$F,SummaryData!$A:$A,$B$102,SummaryData!$B:$B,$B109,SummaryData!$C:$C,$H$14) -> 8.895713 | M109: =SUMIFS(SummaryData!$D:$D,SummaryData!$A:$A,$B$102,SummaryData!$B:$B,$B109,SummaryData!$C:$C,$M$14) -> 5.41993 | O109: =SUMIFS(SummaryData!$E:$E,SummaryData!$A:$A,$B$102,SummaryData!$B:$B,$B109,SummaryData!$C:$C,$M$14) -> 4.892076 | P109: =SUMIFS(SummaryData!$F:$F,SummaryData!$A:$A,$B$102,SummaryData!$B:$B,$B109,SummaryData!$C:$C,$M$14) -> 6.001146
B110: Anxiety or depression | C110: =SUMIFS(SummaryData!$D:$D,SummaryData!$A:$A,$B$102,SummaryData!$B:$B,$B110,SummaryData!$C:$C,$C$14) -> 23.09573 | E110: =SUMIFS(SummaryData!$E:$E,SummaryData!$A:$A,$B$102,SummaryData!$B:$B,$B110,SummaryData!$C:$C,$C$14) -> 21.11433 | F110: =SUMIFS(SummaryData!$F:$F,SummaryData!$A:$A,$B$102,SummaryData!$B:$B,$B110,SummaryData!$C:$C,$C$14) -> 25.20366 | H110: =SUMIFS(SummaryData!$D:$D,SummaryData!$A:$A,$B$102,SummaryData!$B:$B,$B110,SummaryData!$C:$C,$H$14) -> 34.70943 | J110: =SUMIFS(SummaryData!$E:$E,SummaryData!$A:$A,$B$102,SummaryData!$B:$B,$B110,SummaryData!$C:$C,$H$14) -> 32.52218 | K110: =SUMIFS(SummaryData!$F:$F,SummaryData!$A:$A,$B$102,SummaryData!$B:$B,$B110,SummaryData!$C:$C,$H$14) -> 36.96319 | M110: =SUMIFS(SummaryData!$D:$D,SummaryData!$A:$A,$B$102,SummaryData!$B:$B,$B110,SummaryData!$C:$C,$M$14) -> 29.06137 | O110: =SUMIFS(SummaryData!$E:$E,SummaryData!$A:$A,$B$102,SummaryData!$B:$B,$B110,SummaryData!$C:$C,$M$14) -> 27.56544 | P110: =SUMIFS(SummaryData!$F:$F,SummaryData!$A:$A,$B$102,SummaryData!$B:$B,$B110,SummaryData!$C:$C,$M$14) -> 30.60418
B111: Arthritis | C111: =SUMIFS(SummaryData!$D:$D,SummaryData!$A:$A,$B$102,SummaryData!$B:$B,$B111,SummaryData!$C:$C,$C$14) -> 16.60331 | E111: =SUMIFS(SummaryData!$E:$E,SummaryData!$A:$A,$B$102,SummaryData!$B:$B,$B111,SummaryData!$C:$C,$C$14) -> 15.25513 | F111: =SUMIFS(SummaryData!$F:$F,SummaryData!$A:$A,$B$102,SummaryData!$B:$B,$B111,SummaryData!$C:$C,$C$14) -> 18.04527 | H111: =SUMIFS(SummaryData!$D:$D,SummaryData!$A:$A,$B$102,SummaryData!$B:$B,$B111,SummaryData!$C:$C,$H$14) -> 23.40564 | J111: =SUMIFS(SummaryData!$E:$E,SummaryData!$A:$A,$B$102,SummaryData!$B:$B,$B111,SummaryData!$C:$C,$H$14) -> 21.91869 | K111: =SUMIFS(SummaryData!$F:$F,SummaryData!$A:$A,$B$102,SummaryData!$B:$B,$B111,SummaryData!$C:$C,$H$14) -> 24.96121 | M111: =SUMIFS(SummaryData!$D:$D,SummaryData!$A:$A,$B$102,SummaryData!$B:$B,$B111,SummaryData!$C:$C,$M$14) -> 20.29185 | O111: =SUMIFS(SummaryData!$E:$E,SummaryData!$A:$A,$B$102,SummaryData!$B:$B,$B111,SummaryData!$C:$C,$M$14) -> 19.27039 | P111: =SUMIFS(SummaryData!$F:$F,SummaryData!$A:$A,$B$102,SummaryData!$B:$B,$B111,SummaryData!$C:$C,$M$14) -> 21.35314
B112: PREVENTATIVE HEALTH CHECKS - In previous 2 years
B113: Blood pressure | C113: =SUMIFS(SummaryData!$D:$D,SummaryData!$A:$A,$B$112,SummaryData!$B:$B,$B113,SummaryData!$C:$C,$C$14) -> 76.7959 | E113: =SUMIFS(SummaryData!$E:$E,SummaryData!$A:$A,$B$112,SummaryData!$B:$B,$B113,SummaryData!$C:$C,$C$14) -> 74.71601 | F113: =SUMIFS(SummaryData!$F:$F,SummaryData!$A:$A,$B$112,SummaryData!$B:$B,$B113,SummaryData!$C:$C,$C$14) -> 78.75334 | H113: =SUMIFS(SummaryData!$D:$D,SummaryData!$A:$A,$B$112,SummaryData!$B:$B,$B113,SummaryData!$C:$C,$H$14) -> 83.43036 | J113: =SUMIFS(SummaryData!$E:$E,SummaryData!$A:$A,$B$112,SummaryData!$B:$B,$B113,SummaryData!$C:$C,$H$14) -> 81.45474 | K113: =SUMIFS(SummaryData!$F:$F,SummaryData!$A:$A,$B$112,SummaryData!$B:$B,$B113,SummaryData!$C:$C,$H$14) -> 85.23367 | M113: =SUMIFS(SummaryData!$D:$D,SummaryData!$A:$A,$B$112,SummaryData!$B:$B,$B113,SummaryData!$C:$C,$M$14) -> 79.85414 | O113: =SUMIFS(SummaryData!$E:$E,SummaryData!$A:$A,$B$112,SummaryData!$B:$B,$B113,SummaryData!$C:$C,$M$14) -> 78.42462 | P113: =SUMIFS(SummaryData!$F:$F,SummaryData!$A:$A,$B$112,SummaryData!$B:$B,$B113,SummaryData!$C:$C,$M$14) -> 81.21163
B114: Blood lipids | C114: =SUMIFS(SummaryData!$D:$D,SummaryData!$A:$A,$B$112,SummaryData!$B:$B,$B114,SummaryData!$C:$C,$C$14) -> 56.03674 | E114: =SUMIFS(SummaryData!$E:$E,SummaryData!$A:$A,$B$112,SummaryData!$B:$B,$B114,SummaryData!$C:$C,$C$14) -> 53.91105 | F114: =SUMIFS(SummaryData!$F:$F,SummaryData!$A:$A,$B$112,SummaryData!$B:$B,$B114,SummaryData!$C:$C,$C$14) -> 58.14051 | H114: =SUMIFS(SummaryData!$D:$D,SummaryData!$A:$A,$B$112,SummaryData!$B:$B,$B114,SummaryData!$C:$C,$H$14) -> 54.2951 | J114: =SUMIFS(SummaryData!$E:$E,SummaryData!$A:$A,$B$112,SummaryData!$B:$B,$B114,SummaryData!$C:$C,$H$14) -> 52.19989 | K114: =SUMIFS(SummaryData!$F:$F,SummaryData!$A:$A,$B$112,SummaryData!$B:$B,$B114,SummaryData!$C:$C,$H$14) -> 56.37522 | M114: =SUMIFS(SummaryData!$D:$D,SummaryData!$A:$A,$B$112,SummaryData!$B:$B,$B114,SummaryData!$C:$C,$M$14) -> 55.07285 | O114: =SUMIFS(SummaryData!$E:$E,SummaryData!$A:$A,$B$112,SummaryData!$B:$B,$B114,SummaryData!$C:$C,$M$14) -> 53.58945 | P114: =SUMIFS(SummaryData!$F:$F,SummaryData!$A:$A,$B$112,SummaryData!$B:$B,$B114,SummaryData!$C:$C,$M$14) -> 56.54727
B115: Blood glucose | C115: =SUMIFS(SummaryData!$D:$D,SummaryData!$A:$A,$B$112,SummaryData!$B:$B,$B115,SummaryData!$C:$C,$C$14) -> 48.91919 | E115: =SUMIFS(SummaryData!$E:$E,SummaryData!$A:$A,$B$112,SummaryData!$B:$B,$B115,SummaryData!$C:$C,$C$14) -> 46.7874 | F115: =SUMIFS(SummaryData!$F:$F,SummaryData!$A:$A,$B$112,SummaryData!$B:$B,$B115,SummaryData!$C:$C,$C$14) -> 51.05493 | H115: =SUMIFS(SummaryData!$D:$D,SummaryData!$A:$A,$B$112,SummaryData!$B:$B,$B115,SummaryData!$C:$C,$H$14) -> 47.7555 | J115: =SUMIFS(SummaryData!$E:$E,SummaryData!$A:$A,$B$112,SummaryData!$B:$B,$B115,SummaryData!$C:$C,$H$14) -> 45.58775 | K115: =SUMIFS(SummaryData!$F:$F,SummaryData!$A:$A,$B$112,SummaryData!$B:$B,$B115,SummaryData!$C:$C,$H$14) -> 49.93174 | M115: =SUMIFS(SummaryData!$D:$D,SummaryData!$A:$A,$B$112,SummaryData!$B:$B,$B115,SummaryData!$C:$C,$M$14) -> 48.15147 | O115: =SUMIFS(SummaryData!$E:$E,SummaryData!$A:$A,$B$112,SummaryData!$B:$B,$B115,SummaryData!$C:$C,$M$14) -> 46.63136 | P115: =SUMIFS(SummaryData!$F:$F,SummaryData!$A:$A,$B$112,SummaryData!$B:$B,$B115,SummaryData!$C:$C,$M$14) -> 49.67501
B116: SCREENING - Had a mammogram in the previous two years
B117: Had a mammogram in the previous 2 years | H117: =SUMIFS(SummaryData!$D:$D,SummaryData!$A:$A,$B$116,SummaryData!$B:$B,$B117,SummaryData!$C:$C,$H$14) -> 70.0131 | J117: =SUMIFS(SummaryData!$E:$E,SummaryData!$A:$A,$B$116,SummaryData!$B:$B,$B117,SummaryData!$C:$C,$H$14) -> 66.91091 | K117: =SUMIFS(SummaryData!$F:$F,SummaryData!$A:$A,$B$116,SummaryData!$B:$B,$B117,SummaryData!$C:$C,$H$14) -> 72.94207
B118: HIGH BLOOD PRESSURE
B119: High blood pressure | C119: =SUMIFS(SummaryData!$D:$D,SummaryData!$A:$A,$B$118,SummaryData!$B:$B,$B119,SummaryData!$C:$C,$C$14) -> 28.54362 | E119: =SUMIFS(SummaryData!$E:$E,SummaryData!$A:$A,$B$118,SummaryData!$B:$B,$B119,SummaryData!$C:$C,$C$14) -> 26.76025 | F119: =SUMIFS(SummaryData!$F:$F,SummaryData!$A:$A,$B$118,SummaryData!$B:$B,$B119,SummaryData!$C:$C,$C$14) -> 30.39652 | H119: =SUMIFS(SummaryData!$D:$D,SummaryData!$A:$A,$B$118,SummaryData!$B:$B,$B119,SummaryData!$C:$C,$H$14) -> 24.31086 | J119: =SUMIFS(SummaryData!$E:$E,SummaryData!$A:$A,$B$118,SummaryData!$B:$B,$B119,SummaryData!$C:$C,$H$14) -> 22.74939 | K119: =SUMIFS(SummaryData!$F:$F,SummaryData!$A:$A,$B$118,SummaryData!$B:$B,$B119,SummaryData!$C:$C,$H$14) -> 25.94351 | M119: =SUMIFS(SummaryData!$D:$D,SummaryData!$A:$A,$B$118,SummaryData!$B:$B,$B119,SummaryData!$C:$C,$M$14) -> 26.34884 | O119: =SUMIFS(SummaryData!$E:$E,SummaryData!$A:$A,$B$118,SummaryData!$B:$B,$B119,SummaryData!$C:$C,$M$14) -> 25.15962 | P119: =SUMIFS(SummaryData!$F:$F,SummaryData!$A:$A,$B$118,SummaryData!$B:$B,$B119,SummaryData!$C:$C,$M$14) -> 27.57357
B120: EYE HEALTH - Change in vision
B121: Worsening of vision in the last 12 months | C121: =SUMIFS(SummaryData!$D:$D,SummaryData!$A:$A,$B$120,SummaryData!$B:$B,$B121,SummaryData!$C:$C,$C$14) -> 37.00765 | E121: =SUMIFS(SummaryData!$E:$E,SummaryData!$A:$A,$B$120,SummaryData!$B:$B,$B121,SummaryData!$C:$C,$C$14) -> 34.7632 | F121: =SUMIFS(SummaryData!$F:$F,SummaryData!$A:$A,$B$120,SummaryData!$B:$B,$B121,SummaryData!$C:$C,$C$14) -> 39.30969 | H121: =SUMIFS(SummaryData!$D:$D,SummaryData!$A:$A,$B$120,SummaryData!$B:$B,$B121,SummaryData!$C:$C,$H$14) -> 43.22373 | J121: =SUMIFS(SummaryData!$E:$E,SummaryData!$A:$A,$B$120,SummaryData!$B:$B,$B121,SummaryData!$C:$C,$H$14) -> 41.06912 | K121: =SUMIFS(SummaryData!$F:$F,SummaryData!$A:$A,$B$120,SummaryData!$B:$B,$B121,SummaryData!$C:$C,$H$14) -> 45.40428 | M121: =SUMIFS(SummaryData!$D:$D,SummaryData!$A:$A,$B$120,SummaryData!$B:$B,$B121,SummaryData!$C:$C,$M$14) -> 40.08387 | O121: =SUMIFS(SummaryData!$E:$E,SummaryData!$A:$A,$B$120,SummaryData!$B:$B,$B121,SummaryData!$C:$C,$M$14) -> 38.51874 | P121: =SUMIFS(SummaryData!$F:$F,SummaryData!$A:$A,$B$120,SummaryData!$B:$B,$B121,SummaryData!$C:$C,$M$14) -> 41.6695
B122: EYE HEALTH - Last visit to eye health professional
B123: < 1 year | C123: =SUMIFS(SummaryData!$D:$D,SummaryData!$A:$A,$B$122,SummaryData!$B:$B,$B123,SummaryData!$C:$C,$C$14) -> 12.38888 | E123: =SUMIFS(SummaryData!$E:$E,SummaryData!$A:$A,$B$122,SummaryData!$B:$B,$B123,SummaryData!$C:$C,$C$14) -> 10.82354 | F123: =SUMIFS(SummaryData!$F:$F,SummaryData!$A:$A,$B$122,SummaryData!$B:$B,$B123,SummaryData!$C:$C,$C$14) -> 14.1447 | H123: =SUMIFS(SummaryData!$D:$D,SummaryData!$A:$A,$B$122,SummaryData!$B:$B,$B123,SummaryData!$C:$C,$H$14) -> 9.316857 | J123: =SUMIFS(SummaryData!$E:$E,SummaryData!$A:$A,$B$122,SummaryData!$B:$B,$B123,SummaryData!$C:$C,$H$14) -> 7.872476 | K123: =SUMIFS(SummaryData!$F:$F,SummaryData!$A:$A,$B$122,SummaryData!$B:$B,$B123,SummaryData!$C:$C,$H$14) -> 10.99462 | M123: =SUMIFS(SummaryData!$D:$D,SummaryData!$A:$A,$B$122,SummaryData!$B:$B,$B123,SummaryData!$C:$C,$M$14) -> 10.83517 | O123: =SUMIFS(SummaryData!$E:$E,SummaryData!$A:$A,$B$122,SummaryData!$B:$B,$B123,SummaryData!$C:$C,$M$14) -> 9.761414 | P123: =SUMIFS(SummaryData!$F:$F,SummaryData!$A:$A,$B$122,SummaryData!$B:$B,$B123,SummaryData!$C:$C,$M$14) -> 12.01131
B124: 1 to < 2 years | C124: =SUMIFS(SummaryData!$D:$D,SummaryData!$A:$A,$B$122,SummaryData!$B:$B,$B124,SummaryData!$C:$C,$C$14) -> 17.13242 | E124: =SUMIFS(SummaryData!$E:$E,SummaryData!$A:$A,$B$122,SummaryData!$B:$B,$B124,SummaryData!$C:$C,$C$14) -> 15.41223 | F124: =SUMIFS(SummaryData!$F:$F,SummaryData!$A:$A,$B$122,SummaryData!$B:$B,$B124,SummaryData!$C:$C,$C$14) -> 19.00148 | H124: =SUMIFS(SummaryData!$D:$D,SummaryData!$A:$A,$B$122,SummaryData!$B:$B,$B124,SummaryData!$C:$C,$H$14) -> 20.93949 | J124: =SUMIFS(SummaryData!$E:$E,SummaryData!$A:$A,$B$122,SummaryData!$B:$B,$B124,SummaryData!$C:$C,$H$14) -> 19.1177 | K124: =SUMIFS(SummaryData!$F:$F,SummaryData!$A:$A,$B$122,SummaryData!$B:$B,$B124,SummaryData!$C:$C,$H$14) -> 22.88576 | M124: =SUMIFS(SummaryData!$D:$D,SummaryData!$A:$A,$B$122,SummaryData!$B:$B,$B124,SummaryData!$C:$C,$M$14) -> 19.01957 | O124: =SUMIFS(SummaryData!$E:$E,SummaryData!$A:$A,$B$122,SummaryData!$B:$B,$B124,SummaryData!$C:$C,$M$14) -> 17.75716 | P124: =SUMIFS(SummaryData!$F:$F,SummaryData!$A:$A,$B$122,SummaryData!$B:$B,$B124,SummaryData!$C:$C,$M$14) -> 20.34952
B125: 2 to < 5 years | C125: =SUMIFS(SummaryData!$D:$D,SummaryData!$A:$A,$B$122,SummaryData!$B:$B,$B125,SummaryData!$C:$C,$C$14) -> 16.2151 | E125: =SUMIFS(SummaryData!$E:$E,SummaryData!$A:$A,$B$122,SummaryData!$B:$B,$B125,SummaryData!$C:$C,$C$14) -> 14.53232 | F125: =SUMIFS(SummaryData!$F:$F,SummaryData!$A:$A,$B$122,SummaryData!$B:$B,$B125,SummaryData!$C:$C,$C$14) -> 18.05158 | H125: =SUMIFS(SummaryData!$D:$D,SummaryData!$A:$A,$B$122,SummaryData!$B:$B,$B125,SummaryData!$C:$C,$H$14) -> 14.32329 | J125: =SUMIFS(SummaryData!$E:$E,SummaryData!$A:$A,$B$122,SummaryData!$B:$B,$B125,SummaryData!$C:$C,$H$14) -> 12.70887 | K125: =SUMIFS(SummaryData!$F:$F,SummaryData!$A:$A,$B$122,SummaryData!$B:$B,$B125,SummaryData!$C:$C,$H$14) -> 16.10495 | M125: =SUMIFS(SummaryData!$D:$D,SummaryData!$A:$A,$B$122,SummaryData!$B:$B,$B125,SummaryData!$C:$C,$M$14) -> 15.25791 | O125: =SUMIFS(SummaryData!$E:$E,SummaryData!$A:$A,$B$122,SummaryData!$B:$B,$B125,SummaryData!$C:$C,$M$14) -> 14.07364 | P125: =SUMIFS(SummaryData!$F:$F,SummaryData!$A:$A,$B$122,SummaryData!$B:$B,$B125,SummaryData!$C:$C,$M$14) -> 16.52267
B126: ≥ 5 years | C126: =SUMIFS(SummaryData!$D:$D,SummaryData!$A:$A,$B$122,SummaryData!$B:$B,$B126,SummaryData!$C:$C,$C$14) -> 12.38888 | E126: =SUMIFS(SummaryData!$E:$E,SummaryData!$A:$A,$B$122,SummaryData!$B:$B,$B126,SummaryData!$C:$C,$C$14) -> 10.82354 | F126: =SUMIFS(SummaryData!$F:$F,SummaryData!$A:$A,$B$122,SummaryData!$B:$B,$B126,SummaryData!$C:$C,$C$14) -> 14.1447 | H126: =SUMIFS(SummaryData!$D:$D,SummaryData!$A:$A,$B$122,SummaryData!$B:$B,$B126,SummaryData!$C:$C,$H$14) -> 9.316857 | J126: =SUMIFS(SummaryData!$E:$E,SummaryData!$A:$A,$B$122,SummaryData!$B:$B,$B126,SummaryData!$C:$C,$H$14) -> 7.872476 | K126: =SUMIFS(SummaryData!$F:$F,SummaryData!$A:$A,$B$122,SummaryData!$B:$B,$B126,SummaryData!$C:$C,$H$14) -> 10.99462 | M126: =SUMIFS(SummaryData!$D:$D,SummaryData!$A:$A,$B$122,SummaryData!$B:$B,$B126,SummaryData!$C:$C,$M$14) -> 10.83517 | O126: =SUMIFS(SummaryData!$E:$E,SummaryData!$A:$A,$B$122,SummaryData!$B:$B,$B126,SummaryData!$C:$C,$M$14) -> 9.761414 | P126: =SUMIFS(SummaryData!$F:$F,SummaryData!$A:$A,$B$122,SummaryData!$B:$B,$B126,SummaryData!$C:$C,$M$14) -> 12.01131
B127: EYE HEALTH - Specific eye disease
B128: Cataract | C128: =SUMIFS(SummaryData!$D:$D,SummaryData!$A:$A,$B$127,SummaryData!$B:$B,$B128,SummaryData!$C:$C,$C$14) -> 8.313077 | E128: =SUMIFS(SummaryData!$E:$E,SummaryData!$A:$A,$B$127,SummaryData!$B:$B,$B128,SummaryData!$C:$C,$C$14) -> 7.414492 | F128: =SUMIFS(SummaryData!$F:$F,SummaryData!$A:$A,$B$127,SummaryData!$B:$B,$B128,SummaryData!$C:$C,$C$14) -> 9.309613 | H128: =SUMIFS(SummaryData!$D:$D,SummaryData!$A:$A,$B$127,SummaryData!$B:$B,$B128,SummaryData!$C:$C,$H$14) -> 10.75052 | J128: =SUMIFS(SummaryData!$E:$E,SummaryData!$A:$A,$B$127,SummaryData!$B:$B,$B128,SummaryData!$C:$C,$H$14) -> 9.875208 | K128: =SUMIFS(SummaryData!$F:$F,SummaryData!$A:$A,$B$127,SummaryData!$B:$B,$B128,SummaryData!$C:$C,$H$14) -> 11.69334 | M128: =SUMIFS(SummaryData!$D:$D,SummaryData!$A:$A,$B$127,SummaryData!$B:$B,$B128,SummaryData!$C:$C,$M$14) -> 9.686581 | O128: =SUMIFS(SummaryData!$E:$E,SummaryData!$A:$A,$B$127,SummaryData!$B:$B,$B128,SummaryData!$C:$C,$M$14) -> 9.051833 | P128: =SUMIFS(SummaryData!$F:$F,SummaryData!$A:$A,$B$127,SummaryData!$B:$B,$B128,SummaryData!$C:$C,$M$14) -> 10.36077
B129: Glaucoma | C129: =SUMIFS(SummaryData!$D:$D,SummaryData!$A:$A,$B$127,SummaryData!$B:$B,$B129,SummaryData!$C:$C,$C$14) -> 3.130469 | E129: =SUMIFS(SummaryData!$E:$E,SummaryData!$A:$A,$B$127,SummaryData!$B:$B,$B129,SummaryData!$C:$C,$C$14) -> 2.461552 | F129: =SUMIFS(SummaryData!$F:$F,SummaryData!$A:$A,$B$127,SummaryData!$B:$B,$B129,SummaryData!$C:$C,$C$14) -> 3.973757 | H129: =SUMIFS(SummaryData!$D:$D,SummaryData!$A:$A,$B$127,SummaryData!$B:$B,$B129,SummaryData!$C:$C,$H$14) -> 2.724001 | J129: =SUMIFS(SummaryData!$E:$E,SummaryData!$A:$A,$B$127,SummaryData!$B:$B,$B129,SummaryData!$C:$C,$H$14) -> 2.207742 | K129: =SUMIFS(SummaryData!$F:$F,SummaryData!$A:$A,$B$127,SummaryData!$B:$B,$B129,SummaryData!$C:$C,$H$14) -> 3.356839 | M129: =SUMIFS(SummaryData!$D:$D,SummaryData!$A:$A,$B$127,SummaryData!$B:$B,$B129,SummaryData!$C:$C,$M$14) -> 2.907993 | O129: =SUMIFS(SummaryData!$E:$E,SummaryData!$A:$A,$B$127,SummaryData!$B:$B,$B129,SummaryData!$C:$C,$M$14) -> 2.478043 | P129: =SUMIFS(SummaryData!$F:$F,SummaryData!$A:$A,$B$127,SummaryData!$B:$B,$B129,SummaryData!$C:$C,$M$14) -> 3.409933
B130: Diabetic retinopathy | C130: =SUMIFS(SummaryData!$D:$D,SummaryData!$A:$A,$B$127,SummaryData!$B:$B,$B130,SummaryData!$C:$C,$C$14) -> 1.337209 | E130: =SUMIFS(SummaryData!$E:$E,SummaryData!$A:$A,$B$127,SummaryData!$B:$B,$B130,SummaryData!$C:$C,$C$14) -> 0.8626133 | F130: =SUMIFS(SummaryData!$F:$F,SummaryData!$A:$A,$B$127,SummaryData!$B:$B,$B130,SummaryData!$C:$C,$C$14) -> 2.067474 | H130: =SUMIFS(SummaryData!$D:$D,SummaryData!$A:$A,$B$127,SummaryData!$B:$B,$B130,SummaryData!$C:$C,$H$14) -> 0.4995152 | J130: =SUMIFS(SummaryData!$E:$E,SummaryData!$A:$A,$B$127,SummaryData!$B:$B,$B130,SummaryData!$C:$C,$H$14) -> 0.3226193 | K130: =SUMIFS(SummaryData!$F:$F,SummaryData!$A:$A,$B$127,SummaryData!$B:$B,$B130,SummaryData!$C:$C,$H$14) -> 0.7726533 | M130: =SUMIFS(SummaryData!$D:$D,SummaryData!$A:$A,$B$127,SummaryData!$B:$B,$B130,SummaryData!$C:$C,$M$14) -> 0.9010132 | O130: =SUMIFS(SummaryData!$E:$E,SummaryData!$A:$A,$B$127,SummaryData!$B:$B,$B130,SummaryData!$C:$C,$M$14) -> 0.6408482 | P130: =SUMIFS(SummaryData!$F:$F,SummaryData!$A:$A,$B$127,SummaryData!$B:$B,$B130,SummaryData!$C:$C,$M$14) -> 1.265452
B131: Macular degeneration | C131: =SUMIFS(SummaryData!$D:$D,SummaryData!$A:$A,$B$127,SummaryData!$B:$B,$B131,SummaryData!$C:$C,$C$14) -> 3.181121 | E131: =SUMIFS(SummaryData!$E:$E,SummaryData!$A:$A,$B$127,SummaryData!$B:$B,$B131,SummaryData!$C:$C,$C$14) -> 2.546386 | F131: =SUMIFS(SummaryData!$F:$F,SummaryData!$A:$A,$B$127,SummaryData!$B:$B,$B131,SummaryData!$C:$C,$C$14) -> 3.967633 | H131: =SUMIFS(SummaryData!$D:$D,SummaryData!$A:$A,$B$127,SummaryData!$B:$B,$B131,SummaryData!$C:$C,$H$14) -> 2.465892 | J131: =SUMIFS(SummaryData!$E:$E,SummaryData!$A:$A,$B$127,SummaryData!$B:$B,$B131,SummaryData!$C:$C,$H$14) -> 2.00691 | K131: =SUMIFS(SummaryData!$F:$F,SummaryData!$A:$A,$B$127,SummaryData!$B:$B,$B131,SummaryData!$C:$C,$H$14) -> 3.026603 | M131: =SUMIFS(SummaryData!$D:$D,SummaryData!$A:$A,$B$127,SummaryData!$B:$B,$B131,SummaryData!$C:$C,$M$14) -> 2.822844 | O131: =SUMIFS(SummaryData!$E:$E,SummaryData!$A:$A,$B$127,SummaryData!$B:$B,$B131,SummaryData!$C:$C,$M$14) -> 2.417993 | P131: =SUMIFS(SummaryData!$F:$F,SummaryData!$A:$A,$B$127,SummaryData!$B:$B,$B131,SummaryData!$C:$C,$M$14) -> 3.293193
B132: EYE HEALTH - Use of glasses or contact lenses
B133: Wear glasses or contact lenses to improve vision | C133: =SUMIFS(SummaryData!$D:$D,SummaryData!$A:$A,$B$132,SummaryData!$B:$B,$B133,SummaryData!$C:$C,$C$14) -> 58.89293 | E133: =SUMIFS(SummaryData!$E:$E,SummaryData!$A:$A,$B$132,SummaryData!$B:$B,$B133,SummaryData!$C:$C,$C$14) -> 56.72103 | F133: =SUMIFS(SummaryData!$F:$F,SummaryData!$A:$A,$B$132,SummaryData!$B:$B,$B133,SummaryData!$C:$C,$C$14) -> 61.03071 | H133: =SUMIFS(SummaryData!$D:$D,SummaryData!$A:$A,$B$132,SummaryData!$B:$B,$B133,SummaryData!$C:$C,$H$14) -> 69.94192 | J133: =SUMIFS(SummaryData!$E:$E,SummaryData!$A:$A,$B$132,SummaryData!$B:$B,$B133,SummaryData!$C:$C,$H$14) -> 67.82593 | K133: =SUMIFS(SummaryData!$F:$F,SummaryData!$A:$A,$B$132,SummaryData!$B:$B,$B133,SummaryData!$C:$C,$H$14) -> 71.97625 | M133: =SUMIFS(SummaryData!$D:$D,SummaryData!$A:$A,$B$132,SummaryData!$B:$B,$B133,SummaryData!$C:$C,$M$14) -> 64.38954 | O133: =SUMIFS(SummaryData!$E:$E,SummaryData!$A:$A,$B$132,SummaryData!$B:$B,$B133,SummaryData!$C:$C,$M$14) -> 62.86659 | P133: =SUMIFS(SummaryData!$F:$F,SummaryData!$A:$A,$B$132,SummaryData!$B:$B,$B133,SummaryData!$C:$C,$M$14) -> 65.88393
B134: EYE HEALTH - Difficulties with vision
B135: Difficulties with vision | C135: =SUMIFS(SummaryData!$D:$D,SummaryData!$A:$A,$B$134,SummaryData!$B:$B,$B135,SummaryData!$C:$C,$C$14) -> 3.852651 | E135: =SUMIFS(SummaryData!$E:$E,SummaryData!$A:$A,$B$134,SummaryData!$B:$B,$B135,SummaryData!$C:$C,$C$14) -> 3.053627 | F135: =SUMIFS(SummaryData!$F:$F,SummaryData!$A:$A,$B$134,SummaryData!$B:$B,$B135,SummaryData!$C:$C,$C$14) -> 4.85029 | H135: =SUMIFS(SummaryData!$D:$D,SummaryData!$A:$A,$B$134,SummaryData!$B:$B,$B135,SummaryData!$C:$C,$H$14) -> 4.931752 | J135: =SUMIFS(SummaryData!$E:$E,SummaryData!$A:$A,$B$134,SummaryData!$B:$B,$B135,SummaryData!$C:$C,$H$14) -> 4.079711 | K135: =SUMIFS(SummaryData!$F:$F,SummaryData!$A:$A,$B$134,SummaryData!$B:$B,$B135,SummaryData!$C:$C,$H$14) -> 5.950702 | M135: =SUMIFS(SummaryData!$D:$D,SummaryData!$A:$A,$B$134,SummaryData!$B:$B,$B135,SummaryData!$C:$C,$M$14) -> 4.445752 | O135: =SUMIFS(SummaryData!$E:$E,SummaryData!$A:$A,$B$134,SummaryData!$B:$B,$B135,SummaryData!$C:$C,$M$14) -> 3.838529 | P135: =SUMIFS(SummaryData!$F:$F,SummaryData!$A:$A,$B$134,SummaryData!$B:$B,$B135,SummaryData!$C:$C,$M$14) -> 5.143893
B136: SOCIAL CAPITAL - Contact with others - Number of people spoken to previous day
B137: None | C137: =IF(SUMIFS(SummaryData!$D:$D,SummaryData!$A:$A,$B$136,SummaryData!$B:$B,$B137,SummaryData!$C:$C,$C$14)=0,"NA",SUMIFS(SummaryData!$D:$D,SummaryData!$A:$A,$B$136,SummaryData!$B:$B,$B137,SummaryData!$C:$C,$C$14)) -> 2.8 | E137: =IF(SUMIFS(SummaryData!$E:$E,SummaryData!$A:$A,$B$136,SummaryData!$B:$B,$B137,SummaryData!$C:$C,$C$14)=0,"NA",SUMIFS(SummaryData!$E:$E,SummaryData!$A:$A,$B$136,SummaryData!$B:$B,$B137,SummaryData!$C:$C,$C$14)) -> 2.2 | F137: =IF(SUMIFS(SummaryData!$F:$F,SummaryData!$A:$A,$B$136,SummaryData!$B:$B,$B137,SummaryData!$C:$C,$C$14)=0,"NA",SUMIFS(SummaryData!$F:$F,SummaryData!$A:$A,$B$136,SummaryData!$B:$B,$B137,SummaryData!$C:$C,$C$14)) -> 3.7 | H137: =IF(SUMIFS(SummaryData!$D:$D,SummaryData!$A:$A,$B$136,SummaryData!$B:$B,$B137,SummaryData!$C:$C,$H$14)=0,"NA",SUMIFS(SummaryData!$D:$D,SummaryData!$A:$A,$B$136,SummaryData!$B:$B,$B137,SummaryData!$C:$C,$H$14)) -> 1.8 | J137: =IF(SUMIFS(SummaryData!$E:$E,SummaryData!$A:$A,$B$136,SummaryData!$B:$B,$B137,SummaryData!$C:$C,$H$14)=0,"NA",SUMIFS(SummaryData!$E:$E,SummaryData!$A:$A,$B$136,SummaryData!$B:$B,$B137,SummaryData!$C:$C,$H$14)) -> 1.4 | K137: =IF(SUMIFS(SummaryData!$F:$F,SummaryData!$A:$A,$B$136,SummaryData!$B:$B,$B137,SummaryData!$C:$C,$H$14)=0,"NA",SUMIFS(SummaryData!$F:$F,SummaryData!$A:$A,$B$136,SummaryData!$B:$B,$B137,SummaryData!$C:$C,$H$14)) -> 2.5 | M137: =IF(SUMIFS(SummaryData!$D:$D,SummaryData!$A:$A,$B$136,SummaryData!$B:$B,$B137,SummaryData!$C:$C,$M$14)=0,"NA",SUMIFS(SummaryData!$D:$D,SummaryData!$A:$A,$B$136,SummaryData!$B:$B,$B137,SummaryData!$C:$C,$M$14)) -> 2.322857 | O137: =IF(SUMIFS(SummaryData!$E:$E,SummaryData!$A:$A,$B$136,SummaryData!$B:$B,$B137,SummaryData!$C:$C,$M$14)=0,"NA",SUMIFS(SummaryData!$E:$E,SummaryData!$A:$A,$B$136,SummaryData!$B:$B,$B137,SummaryData!$C:$C,$M$14)) -> 1.899885 | P137: =IF(SUMIFS(SummaryData!$F:$F,SummaryData!$A:$A,$B$136,SummaryData!$B:$B,$B137,SummaryData!$C:$C,$M$14)=0,"NA",SUMIFS(SummaryData!$F:$F,SummaryData!$A:$A,$B$136,SummaryData!$B:$B,$B137,SummaryData!$C:$C,$M$14)) -> 2.837272
B138: 1–4 | C138: =IF(SUMIFS(SummaryData!$D:$D,SummaryData!$A:$A,$B$136,SummaryData!$B:$B,$B138,SummaryData!$C:$C,$C$14)=0,"NA",SUMIFS(SummaryData!$D:$D,SummaryData!$A:$A,$B$136,SummaryData!$B:$B,$B138,SummaryData!$C:$C,$C$14)) -> 20 | E138: =IF(SUMIFS(SummaryData!$E:$E,SummaryData!$A:$A,$B$136,SummaryData!$B:$B,$B138,SummaryData!$C:$C,$C$14)=0,"NA",SUMIFS(SummaryData!$E:$E,SummaryData!$A:$A,$B$136,SummaryData!$B:$B,$B138,SummaryData!$C:$C,$C$14)) -> 18.2 | F138: =IF(SUMIFS(SummaryData!$F:$F,SummaryData!$A:$A,$B$136,SummaryData!$B:$B,$B138,SummaryData!$C:$C,$C$14)=0,"NA",SUMIFS(SummaryData!$F:$F,SummaryData!$A:$A,$B$136,SummaryData!$B:$B,$B138,SummaryData!$C:$C,$C$14)) -> 21.8 | H138: =IF(SUMIFS(SummaryData!$D:$D,SummaryData!$A:$A,$B$136,SummaryData!$B:$B,$B138,SummaryData!$C:$C,$H$14)=0,"NA",SUMIFS(SummaryData!$D:$D,SummaryData!$A:$A,$B$136,SummaryData!$B:$B,$B138,SummaryData!$C:$C,$H$14)) -> 23.4 | J138: =IF(SUMIFS(SummaryData!$E:$E,SummaryData!$A:$A,$B$136,SummaryData!$B:$B,$B138,SummaryData!$C:$C,$H$14)=0,"NA",SUMIFS(SummaryData!$E:$E,SummaryData!$A:$A,$B$136,SummaryData!$B:$B,$B138,SummaryData!$C:$C,$H$14)) -> 21.5 | K138: =IF(SUMIFS(SummaryData!$F:$F,SummaryData!$A:$A,$B$136,SummaryData!$B:$B,$B138,SummaryData!$C:$C,$H$14)=0,"NA",SUMIFS(SummaryData!$F:$F,SummaryData!$A:$A,$B$136,SummaryData!$B:$B,$B138,SummaryData!$C:$C,$H$14)) -> 25.4 | M138: =IF(SUMIFS(SummaryData!$D:$D,SummaryData!$A:$A,$B$136,SummaryData!$B:$B,$B138,SummaryData!$C:$C,$M$14)=0,"NA",SUMIFS(SummaryData!$D:$D,SummaryData!$A:$A,$B$136,SummaryData!$B:$B,$B138,SummaryData!$C:$C,$M$14)) -> 21.67513 | O138: =IF(SUMIFS(SummaryData!$E:$E,SummaryData!$A:$A,$B$136,SummaryData!$B:$B,$B138,SummaryData!$C:$C,$M$14)=0,"NA",SUMIFS(SummaryData!$E:$E,SummaryData!$A:$A,$B$136,SummaryData!$B:$B,$B138,SummaryData!$C:$C,$M$14)) -> 20.38551 | P138: =IF(SUMIFS(SummaryData!$F:$F,SummaryData!$A:$A,$B$136,SummaryData!$B:$B,$B138,SummaryData!$C:$C,$M$14)=0,"NA",SUMIFS(SummaryData!$F:$F,SummaryData!$A:$A,$B$136,SummaryData!$B:$B,$B138,SummaryData!$C:$C,$M$14)) -> 23.02273
B139: 5–9 | C139: =IF(SUMIFS(SummaryData!$D:$D,SummaryData!$A:$A,$B$136,SummaryData!$B:$B,$B139,SummaryData!$C:$C,$C$14)=0,"NA",SUMIFS(SummaryData!$D:$D,SummaryData!$A:$A,$B$136,SummaryData!$B:$B,$B139,SummaryData!$C:$C,$C$14)) -> 32 | E139: =IF(SUMIFS(SummaryData!$E:$E,SummaryData!$A:$A,$B$136,SummaryData!$B:$B,$B139,SummaryData!$C:$C,$C$14)=0,"NA",SUMIFS(SummaryData!$E:$E,SummaryData!$A:$A,$B$136,SummaryData!$B:$B,$B139,SummaryData!$C:$C,$C$14)) -> 29.8 | F139: =IF(SUMIFS(SummaryData!$F:$F,SummaryData!$A:$A,$B$136,SummaryData!$B:$B,$B139,SummaryData!$C:$C,$C$14)=0,"NA",SUMIFS(SummaryData!$F:$F,SummaryData!$A:$A,$B$136,SummaryData!$B:$B,$B139,SummaryData!$C:$C,$C$14)) -> 34.3 | H139: =IF(SUMIFS(SummaryData!$D:$D,SummaryData!$A:$A,$B$136,SummaryData!$B:$B,$B139,SummaryData!$C:$C,$H$14)=0,"NA",SUMIFS(SummaryData!$D:$D,SummaryData!$A:$A,$B$136,SummaryData!$B:$B,$B139,SummaryData!$C:$C,$H$14)) -> 31.4 | J139: =IF(SUMIFS(SummaryData!$E:$E,SummaryData!$A:$A,$B$136,SummaryData!$B:$B,$B139,SummaryData!$C:$C,$H$14)=0,"NA",SUMIFS(SummaryData!$E:$E,SummaryData!$A:$A,$B$136,SummaryData!$B:$B,$B139,SummaryData!$C:$C,$H$14)) -> 29.3 | K139: =IF(SUMIFS(SummaryData!$F:$F,SummaryData!$A:$A,$B$136,SummaryData!$B:$B,$B139,SummaryData!$C:$C,$H$14)=0,"NA",SUMIFS(SummaryData!$F:$F,SummaryData!$A:$A,$B$136,SummaryData!$B:$B,$B139,SummaryData!$C:$C,$H$14)) -> 33.6 | M139: =IF(SUMIFS(SummaryData!$D:$D,SummaryData!$A:$A,$B$136,SummaryData!$B:$B,$B139,SummaryData!$C:$C,$M$14)=0,"NA",SUMIFS(SummaryData!$D:$D,SummaryData!$A:$A,$B$136,SummaryData!$B:$B,$B139,SummaryData!$C:$C,$M$14)) -> 31.76288 | O139: =IF(SUMIFS(SummaryData!$E:$E,SummaryData!$A:$A,$B$136,SummaryData!$B:$B,$B139,SummaryData!$C:$C,$M$14)=0,"NA",SUMIFS(SummaryData!$E:$E,SummaryData!$A:$A,$B$136,SummaryData!$B:$B,$B139,SummaryData!$C:$C,$M$14)) -> 30.23379 | P139: =IF(SUMIFS(SummaryData!$F:$F,SummaryData!$A:$A,$B$136,SummaryData!$B:$B,$B139,SummaryData!$C:$C,$M$14)=0,"NA",SUMIFS(SummaryData!$F:$F,SummaryData!$A:$A,$B$136,SummaryData!$B:$B,$B139,SummaryData!$C:$C,$M$14)) -> 33.33236
B140: 10, or more | C140: =IF(SUMIFS(SummaryData!$D:$D,SummaryData!$A:$A,$B$136,SummaryData!$B:$B,$B140,SummaryData!$C:$C,$C$14)=0,"NA",SUMIFS(SummaryData!$D:$D,SummaryData!$A:$A,$B$136,SummaryData!$B:$B,$B140,SummaryData!$C:$C,$C$14)) -> 45 | E140: =IF(SUMIFS(SummaryData!$E:$E,SummaryData!$A:$A,$B$136,SummaryData!$B:$B,$B140,SummaryData!$C:$C,$C$14)=0,"NA",SUMIFS(SummaryData!$E:$E,SummaryData!$A:$A,$B$136,SummaryData!$B:$B,$B140,SummaryData!$C:$C,$C$14)) -> 42.6 | F140: =IF(SUMIFS(SummaryData!$F:$F,SummaryData!$A:$A,$B$136,SummaryData!$B:$B,$B140,SummaryData!$C:$C,$C$14)=0,"NA",SUMIFS(SummaryData!$F:$F,SummaryData!$A:$A,$B$136,SummaryData!$B:$B,$B140,SummaryData!$C:$C,$C$14)) -> 47.3 | H140: =IF(SUMIFS(SummaryData!$D:$D,SummaryData!$A:$A,$B$136,SummaryData!$B:$B,$B140,SummaryData!$C:$C,$H$14)=0,"NA",SUMIFS(SummaryData!$D:$D,SummaryData!$A:$A,$B$136,SummaryData!$B:$B,$B140,SummaryData!$C:$C,$H$14)) -> 42.7 | J140: =IF(SUMIFS(SummaryData!$E:$E,SummaryData!$A:$A,$B$136,SummaryData!$B:$B,$B140,SummaryData!$C:$C,$H$14)=0,"NA",SUMIFS(SummaryData!$E:$E,SummaryData!$A:$A,$B$136,SummaryData!$B:$B,$B140,SummaryData!$C:$C,$H$14)) -> 40.4 | K140: =IF(SUMIFS(SummaryData!$F:$F,SummaryData!$A:$A,$B$136,SummaryData!$B:$B,$B140,SummaryData!$C:$C,$H$14)=0,"NA",SUMIFS(SummaryData!$F:$F,SummaryData!$A:$A,$B$136,SummaryData!$B:$B,$B140,SummaryData!$C:$C,$H$14)) -> 45 | M140: =IF(SUMIFS(SummaryData!$D:$D,SummaryData!$A:$A,$B$136,SummaryData!$B:$B,$B140,SummaryData!$C:$C,$M$14)=0,"NA",SUMIFS(SummaryData!$D:$D,SummaryData!$A:$A,$B$136,SummaryData!$B:$B,$B140,SummaryData!$C:$C,$M$14)) -> 43.78733 | O140: =IF(SUMIFS(SummaryData!$E:$E,SummaryData!$A:$A,$B$136,SummaryData!$B:$B,$B140,SummaryData!$C:$C,$M$14)=0,"NA",SUMIFS(SummaryData!$E:$E,SummaryData!$A:$A,$B$136,SummaryData!$B:$B,$B140,SummaryData!$C:$C,$M$14)) -> 42.15521 | P140: =IF(SUMIFS(SummaryData!$F:$F,SummaryData!$A:$A,$B$136,SummaryData!$B:$B,$B140,SummaryData!$C:$C,$M$14)=0,"NA",SUMIFS(SummaryData!$F:$F,SummaryData!$A:$A,$B$136,SummaryData!$B:$B,$B140,SummaryData!$C:$C,$M$14)) -> 45.433
B141: SOCIAL CAPITAL - Source of support
B142: Family | C142: =IF(SUMIFS(SummaryData!$D:$D,SummaryData!$A:$A,$B$141,SummaryData!$B:$B,$B142,SummaryData!$C:$C,$C$14)=0,"NA",SUMIFS(SummaryData!$D:$D,SummaryData!$A:$A,$B$141,SummaryData!$B:$B,$B142,SummaryData!$C:$C,$C$14)) -> 93.1 | E142: =IF(SUMIFS(SummaryData!$E:$E,SummaryData!$A:$A,$B$141,SummaryData!$B:$B,$B142,SummaryData!$C:$C,$C$14)=0,"NA",SUMIFS(SummaryData!$E:$E,SummaryData!$A:$A,$B$141,SummaryData!$B:$B,$B142,SummaryData!$C:$C,$C$14)) -> 91.8 | F142: =IF(SUMIFS(SummaryData!$F:$F,SummaryData!$A:$A,$B$141,SummaryData!$B:$B,$B142,SummaryData!$C:$C,$C$14)=0,"NA",SUMIFS(SummaryData!$F:$F,SummaryData!$A:$A,$B$141,SummaryData!$B:$B,$B142,SummaryData!$C:$C,$C$14)) -> 94.2 | H142: =IF(SUMIFS(SummaryData!$D:$D,SummaryData!$A:$A,$B$141,SummaryData!$B:$B,$B142,SummaryData!$C:$C,$H$14)=0,"NA",SUMIFS(SummaryData!$D:$D,SummaryData!$A:$A,$B$141,SummaryData!$B:$B,$B142,SummaryData!$C:$C,$H$14)) -> 92.7 | J142: =IF(SUMIFS(SummaryData!$E:$E,SummaryData!$A:$A,$B$141,SummaryData!$B:$B,$B142,SummaryData!$C:$C,$H$14)=0,"NA",SUMIFS(SummaryData!$E:$E,SummaryData!$A:$A,$B$141,SummaryData!$B:$B,$B142,SummaryData!$C:$C,$H$14)) -> 91.4 | K142: =IF(SUMIFS(SummaryData!$F:$F,SummaryData!$A:$A,$B$141,SummaryData!$B:$B,$B142,SummaryData!$C:$C,$H$14)=0,"NA",SUMIFS(SummaryData!$F:$F,SummaryData!$A:$A,$B$141,SummaryData!$B:$B,$B142,SummaryData!$C:$C,$H$14)) -> 93.9 | M142: =IF(SUMIFS(SummaryData!$D:$D,SummaryData!$A:$A,$B$141,SummaryData!$B:$B,$B142,SummaryData!$C:$C,$M$14)=0,"NA",SUMIFS(SummaryData!$D:$D,SummaryData!$A:$A,$B$141,SummaryData!$B:$B,$B142,SummaryData!$C:$C,$M$14)) -> 92.86783 | O142: =IF(SUMIFS(SummaryData!$E:$E,SummaryData!$A:$A,$B$141,SummaryData!$B:$B,$B142,SummaryData!$C:$C,$M$14)=0,"NA",SUMIFS(SummaryData!$E:$E,SummaryData!$A:$A,$B$141,SummaryData!$B:$B,$B142,SummaryData!$C:$C,$M$14)) -> 91.95181 | P142: =IF(SUMIFS(SummaryData!$F:$F,SummaryData!$A:$A,$B$141,SummaryData!$B:$B,$B142,SummaryData!$C:$C,$M$14)=0,"NA",SUMIFS(SummaryData!$F:$F,SummaryData!$A:$A,$B$141,SummaryData!$B:$B,$B142,SummaryData!$C:$C,$M$14)) -> 93.68675
B143: Friends | C143: =IF(SUMIFS(SummaryData!$D:$D,SummaryData!$A:$A,$B$141,SummaryData!$B:$B,$B143,SummaryData!$C:$C,$C$14)=0,"NA",SUMIFS(SummaryData!$D:$D,SummaryData!$A:$A,$B$141,SummaryData!$B:$B,$B143,SummaryData!$C:$C,$C$14)) -> 87.6 | E143: =IF(SUMIFS(SummaryData!$E:$E,SummaryData!$A:$A,$B$141,SummaryData!$B:$B,$B143,SummaryData!$C:$C,$C$14)=0,"NA",SUMIFS(SummaryData!$E:$E,SummaryData!$A:$A,$B$141,SummaryData!$B:$B,$B143,SummaryData!$C:$C,$C$14)) -> 86 | F143: =IF(SUMIFS(SummaryData!$F:$F,SummaryData!$A:$A,$B$141,SummaryData!$B:$B,$B143,SummaryData!$C:$C,$C$14)=0,"NA",SUMIFS(SummaryData!$F:$F,SummaryData!$A:$A,$B$141,SummaryData!$B:$B,$B143,SummaryData!$C:$C,$C$14)) -> 88.9 | H143: =IF(SUMIFS(SummaryData!$D:$D,SummaryData!$A:$A,$B$141,SummaryData!$B:$B,$B143,SummaryData!$C:$C,$H$14)=0,"NA",SUMIFS(SummaryData!$D:$D,SummaryData!$A:$A,$B$141,SummaryData!$B:$B,$B143,SummaryData!$C:$C,$H$14)) -> 88.8 | J143: =IF(SUMIFS(SummaryData!$E:$E,SummaryData!$A:$A,$B$141,SummaryData!$B:$B,$B143,SummaryData!$C:$C,$H$14)=0,"NA",SUMIFS(SummaryData!$E:$E,SummaryData!$A:$A,$B$141,SummaryData!$B:$B,$B143,SummaryData!$C:$C,$H$14)) -> 87.3 | K143: =IF(SUMIFS(SummaryData!$F:$F,SummaryData!$A:$A,$B$141,SummaryData!$B:$B,$B143,SummaryData!$C:$C,$H$14)=0,"NA",SUMIFS(SummaryData!$F:$F,SummaryData!$A:$A,$B$141,SummaryData!$B:$B,$B143,SummaryData!$C:$C,$H$14)) -> 90.2 | M143: =IF(SUMIFS(SummaryData!$D:$D,SummaryData!$A:$A,$B$141,SummaryData!$B:$B,$B143,SummaryData!$C:$C,$M$14)=0,"NA",SUMIFS(SummaryData!$D:$D,SummaryData!$A:$A,$B$141,SummaryData!$B:$B,$B143,SummaryData!$C:$C,$M$14)) -> 88.20395 | O143: =IF(SUMIFS(SummaryData!$E:$E,SummaryData!$A:$A,$B$141,SummaryData!$B:$B,$B143,SummaryData!$C:$C,$M$14)=0,"NA",SUMIFS(SummaryData!$E:$E,SummaryData!$A:$A,$B$141,SummaryData!$B:$B,$B143,SummaryData!$C:$C,$M$14)) -> 87.12359 | P143: =IF(SUMIFS(SummaryData!$F:$F,SummaryData!$A:$A,$B$141,SummaryData!$B:$B,$B143,SummaryData!$C:$C,$M$14)=0,"NA",SUMIFS(SummaryData!$F:$F,SummaryData!$A:$A,$B$141,SummaryData!$B:$B,$B143,SummaryData!$C:$C,$M$14)) -> 89.2049
B144: Neighbours | C144: =IF(SUMIFS(SummaryData!$D:$D,SummaryData!$A:$A,$B$141,SummaryData!$B:$B,$B144,SummaryData!$C:$C,$C$14)=0,"NA",SUMIFS(SummaryData!$D:$D,SummaryData!$A:$A,$B$141,SummaryData!$B:$B,$B144,SummaryData!$C:$C,$C$14)) -> 42.7 | E144: =IF(SUMIFS(SummaryData!$E:$E,SummaryData!$A:$A,$B$141,SummaryData!$B:$B,$B144,SummaryData!$C:$C,$C$14)=0,"NA",SUMIFS(SummaryData!$E:$E,SummaryData!$A:$A,$B$141,SummaryData!$B:$B,$B144,SummaryData!$C:$C,$C$14)) -> 40.4 | F144: =IF(SUMIFS(SummaryData!$F:$F,SummaryData!$A:$A,$B$141,SummaryData!$B:$B,$B144,SummaryData!$C:$C,$C$14)=0,"NA",SUMIFS(SummaryData!$F:$F,SummaryData!$A:$A,$B$141,SummaryData!$B:$B,$B144,SummaryData!$C:$C,$C$14)) -> 45 | H144: =IF(SUMIFS(SummaryData!$D:$D,SummaryData!$A:$A,$B$141,SummaryData!$B:$B,$B144,SummaryData!$C:$C,$H$14)=0,"NA",SUMIFS(SummaryData!$D:$D,SummaryData!$A:$A,$B$141,SummaryData!$B:$B,$B144,SummaryData!$C:$C,$H$14)) -> 45.9 | J144: =IF(SUMIFS(SummaryData!$E:$E,SummaryData!$A:$A,$B$141,SummaryData!$B:$B,$B144,SummaryData!$C:$C,$H$14)=0,"NA",SUMIFS(SummaryData!$E:$E,SummaryData!$A:$A,$B$141,SummaryData!$B:$B,$B144,SummaryData!$C:$C,$H$14)) -> 43.6 | K144: =IF(SUMIFS(SummaryData!$F:$F,SummaryData!$A:$A,$B$141,SummaryData!$B:$B,$B144,SummaryData!$C:$C,$H$14)=0,"NA",SUMIFS(SummaryData!$F:$F,SummaryData!$A:$A,$B$141,SummaryData!$B:$B,$B144,SummaryData!$C:$C,$H$14)) -> 48.1 | M144: =IF(SUMIFS(SummaryData!$D:$D,SummaryData!$A:$A,$B$141,SummaryData!$B:$B,$B144,SummaryData!$C:$C,$M$14)=0,"NA",SUMIFS(SummaryData!$D:$D,SummaryData!$A:$A,$B$141,SummaryData!$B:$B,$B144,SummaryData!$C:$C,$M$14)) -> 44.34336 | O144: =IF(SUMIFS(SummaryData!$E:$E,SummaryData!$A:$A,$B$141,SummaryData!$B:$B,$B144,SummaryData!$C:$C,$M$14)=0,"NA",SUMIFS(SummaryData!$E:$E,SummaryData!$A:$A,$B$141,SummaryData!$B:$B,$B144,SummaryData!$C:$C,$M$14)) -> 42.7442 | P144: =IF(SUMIFS(SummaryData!$F:$F,SummaryData!$A:$A,$B$141,SummaryData!$B:$B,$B144,SummaryData!$C:$C,$M$14)=0,"NA",SUMIFS(SummaryData!$F:$F,SummaryData!$A:$A,$B$141,SummaryData!$B:$B,$B144,SummaryData!$C:$C,$M$14)) -> 45.95433
B145: No help available | C145: =IF(SUMIFS(SummaryData!$D:$D,SummaryData!$A:$A,$B$141,SummaryData!$B:$B,$B145,SummaryData!$C:$C,$C$14)=0,"NA",SUMIFS(SummaryData!$D:$D,SummaryData!$A:$A,$B$141,SummaryData!$B:$B,$B145,SummaryData!$C:$C,$C$14)) -> 1.8 | E145: =IF(SUMIFS(SummaryData!$E:$E,SummaryData!$A:$A,$B$141,SummaryData!$B:$B,$B145,SummaryData!$C:$C,$C$14)=0,"NA",SUMIFS(SummaryData!$E:$E,SummaryData!$A:$A,$B$141,SummaryData!$B:$B,$B145,SummaryData!$C:$C,$C$14)) -> 1.2 | F145: =IF(SUMIFS(SummaryData!$F:$F,SummaryData!$A:$A,$B$141,SummaryData!$B:$B,$B145,SummaryData!$C:$C,$C$14)=0,"NA",SUMIFS(SummaryData!$F:$F,SummaryData!$A:$A,$B$141,SummaryData!$B:$B,$B145,SummaryData!$C:$C,$C$14)) -> 2.5 | H145: =IF(SUMIFS(SummaryData!$D:$D,SummaryData!$A:$A,$B$141,SummaryData!$B:$B,$B145,SummaryData!$C:$C,$H$14)=0,"NA",SUMIFS(SummaryData!$D:$D,SummaryData!$A:$A,$B$141,SummaryData!$B:$B,$B145,SummaryData!$C:$C,$H$14)) -> 1.4 | J145: =IF(SUMIFS(SummaryData!$E:$E,SummaryData!$A:$A,$B$141,SummaryData!$B:$B,$B145,SummaryData!$C:$C,$H$14)=0,"NA",SUMIFS(SummaryData!$E:$E,SummaryData!$A:$A,$B$141,SummaryData!$B:$B,$B145,SummaryData!$C:$C,$H$14)) -> 0.9 | K145: =IF(SUMIFS(SummaryData!$F:$F,SummaryData!$A:$A,$B$141,SummaryData!$B:$B,$B145,SummaryData!$C:$C,$H$14)=0,"NA",SUMIFS(SummaryData!$F:$F,SummaryData!$A:$A,$B$141,SummaryData!$B:$B,$B145,SummaryData!$C:$C,$H$14)) -> 2.1 | M145: =IF(SUMIFS(SummaryData!$D:$D,SummaryData!$A:$A,$B$141,SummaryData!$B:$B,$B145,SummaryData!$C:$C,$M$14)=0,"NA",SUMIFS(SummaryData!$D:$D,SummaryData!$A:$A,$B$141,SummaryData!$B:$B,$B145,SummaryData!$C:$C,$M$14)) -> 1.579703 | O145: =IF(SUMIFS(SummaryData!$E:$E,SummaryData!$A:$A,$B$141,SummaryData!$B:$B,$B145,SummaryData!$C:$C,$M$14)=0,"NA",SUMIFS(SummaryData!$E:$E,SummaryData!$A:$A,$B$141,SummaryData!$B:$B,$B145,SummaryData!$C:$C,$M$14)) -> 1.196126 | P145: =IF(SUMIFS(SummaryData!$F:$F,SummaryData!$A:$A,$B$141,SummaryData!$B:$B,$B145,SummaryData!$C:$C,$M$14)=0,"NA",SUMIFS(SummaryData!$F:$F,SummaryData!$A:$A,$B$141,SummaryData!$B:$B,$B145,SummaryData!$C:$C,$M$14)) -> 2.083693
B146: SOCIAL CAPITAL - Ability to raise $2,000 within 2 days in an emergency
B147: Ability to raise $2,000 within 2 days in an emergency | C147: =IF(SUMIFS(SummaryData!$D:$D,SummaryData!$A:$A,$B$146,SummaryData!$B:$B,$B147,SummaryData!$C:$C,$C$14)=0,"NA",SUMIFS(SummaryData!$D:$D,SummaryData!$A:$A,$B$146,SummaryData!$B:$B,$B147,SummaryData!$C:$C,$C$14)) -> 85.7 | E147: =IF(SUMIFS(SummaryData!$E:$E,SummaryData!$A:$A,$B$146,SummaryData!$B:$B,$B147,SummaryData!$C:$C,$C$14)=0,"NA",SUMIFS(SummaryData!$E:$E,SummaryData!$A:$A,$B$146,SummaryData!$B:$B,$B147,SummaryData!$C:$C,$C$14)) -> 83.9 | F147: =IF(SUMIFS(SummaryData!$F:$F,SummaryData!$A:$A,$B$146,SummaryData!$B:$B,$B147,SummaryData!$C:$C,$C$14)=0,"NA",SUMIFS(SummaryData!$F:$F,SummaryData!$A:$A,$B$146,SummaryData!$B:$B,$B147,SummaryData!$C:$C,$C$14)) -> 87.4 | H147: =IF(SUMIFS(SummaryData!$D:$D,SummaryData!$A:$A,$B$146,SummaryData!$B:$B,$B147,SummaryData!$C:$C,$H$14)=0,"NA",SUMIFS(SummaryData!$D:$D,SummaryData!$A:$A,$B$146,SummaryData!$B:$B,$B147,SummaryData!$C:$C,$H$14)) -> 87.5 | J147: =IF(SUMIFS(SummaryData!$E:$E,SummaryData!$A:$A,$B$146,SummaryData!$B:$B,$B147,SummaryData!$C:$C,$H$14)=0,"NA",SUMIFS(SummaryData!$E:$E,SummaryData!$A:$A,$B$146,SummaryData!$B:$B,$B147,SummaryData!$C:$C,$H$14)) -> 85.9 | K147: =IF(SUMIFS(SummaryData!$F:$F,SummaryData!$A:$A,$B$146,SummaryData!$B:$B,$B147,SummaryData!$C:$C,$H$14)=0,"NA",SUMIFS(SummaryData!$F:$F,SummaryData!$A:$A,$B$146,SummaryData!$B:$B,$B147,SummaryData!$C:$C,$H$14)) -> 89 | M147: =IF(SUMIFS(SummaryData!$D:$D,SummaryData!$A:$A,$B$146,SummaryData!$B:$B,$B147,SummaryData!$C:$C,$M$14)=0,"NA",SUMIFS(SummaryData!$D:$D,SummaryData!$A:$A,$B$146,SummaryData!$B:$B,$B147,SummaryData!$C:$C,$M$14)) -> 86.6 | O147: =IF(SUMIFS(SummaryData!$E:$E,SummaryData!$A:$A,$B$146,SummaryData!$B:$B,$B147,SummaryData!$C:$C,$M$14)=0,"NA",SUMIFS(SummaryData!$E:$E,SummaryData!$A:$A,$B$146,SummaryData!$B:$B,$B147,SummaryData!$C:$C,$M$14)) -> 85.3 | P147: =IF(SUMIFS(SummaryData!$F:$F,SummaryData!$A:$A,$B$146,SummaryData!$B:$B,$B147,SummaryData!$C:$C,$M$14)=0,"NA",SUMIFS(SummaryData!$F:$F,SummaryData!$A:$A,$B$146,SummaryData!$B:$B,$B147,SummaryData!$C:$C,$M$14)) -> 87.7
B148: SOCIAL CAPITAL - Experienced food insecurity
B149: Ran out of food, and couldn't afford to buy more in the previous year | C149: =IF(SUMIFS(SummaryData!$D:$D,SummaryData!$A:$A,$B$148,SummaryData!$B:$B,$B149,SummaryData!$C:$C,$C$14)=0,"NA",SUMIFS(SummaryData!$D:$D,SummaryData!$A:$A,$B$148,SummaryData!$B:$B,$B149,SummaryData!$C:$C,$C$14)) -> 5.999185 | E149: =IF(SUMIFS(SummaryData!$E:$E,SummaryData!$A:$A,$B$148,SummaryData!$B:$B,$B149,SummaryData!$C:$C,$C$14)=0,"NA",SUMIFS(SummaryData!$E:$E,SummaryData!$A:$A,$B$148,SummaryData!$B:$B,$B149,SummaryData!$C:$C,$C$14)) -> 4.900322 | F149: =IF(SUMIFS(SummaryData!$F:$F,SummaryData!$A:$A,$B$148,SummaryData!$B:$B,$B149,SummaryData!$C:$C,$C$14)=0,"NA",SUMIFS(SummaryData!$F:$F,SummaryData!$A:$A,$B$148,SummaryData!$B:$B,$B149,SummaryData!$C:$C,$C$14)) -> 7.32548 | H149: =IF(SUMIFS(SummaryData!$D:$D,SummaryData!$A:$A,$B$148,SummaryData!$B:$B,$B149,SummaryData!$C:$C,$H$14)=0,"NA",SUMIFS(SummaryData!$D:$D,SummaryData!$A:$A,$B$148,SummaryData!$B:$B,$B149,SummaryData!$C:$C,$H$14)) -> 7.266622 | J149: =IF(SUMIFS(SummaryData!$E:$E,SummaryData!$A:$A,$B$148,SummaryData!$B:$B,$B149,SummaryData!$C:$C,$H$14)=0,"NA",SUMIFS(SummaryData!$E:$E,SummaryData!$A:$A,$B$148,SummaryData!$B:$B,$B149,SummaryData!$C:$C,$H$14)) -> 6.07473 | K149: =IF(SUMIFS(SummaryData!$F:$F,SummaryData!$A:$A,$B$148,SummaryData!$B:$B,$B149,SummaryData!$C:$C,$H$14)=0,"NA",SUMIFS(SummaryData!$F:$F,SummaryData!$A:$A,$B$148,SummaryData!$B:$B,$B149,SummaryData!$C:$C,$H$14)) -> 8.670782 | M149: =IF(SUMIFS(SummaryData!$D:$D,SummaryData!$A:$A,$B$148,SummaryData!$B:$B,$B149,SummaryData!$C:$C,$M$14)=0,"NA",SUMIFS(SummaryData!$D:$D,SummaryData!$A:$A,$B$148,SummaryData!$B:$B,$B149,SummaryData!$C:$C,$M$14)) -> 6.804694 | O149: =IF(SUMIFS(SummaryData!$E:$E,SummaryData!$A:$A,$B$148,SummaryData!$B:$B,$B149,SummaryData!$C:$C,$M$14)=0,"NA",SUMIFS(SummaryData!$E:$E,SummaryData!$A:$A,$B$148,SummaryData!$B:$B,$B149,SummaryData!$C:$C,$M$14)) -> 5.954339 | P149: =IF(SUMIFS(SummaryData!$F:$F,SummaryData!$A:$A,$B$148,SummaryData!$B:$B,$B149,SummaryData!$C:$C,$M$14)=0,"NA",SUMIFS(SummaryData!$F:$F,SummaryData!$A:$A,$B$148,SummaryData!$B:$B,$B149,SummaryData!$C:$C,$M$14)) -> 7.766462
B150: SOCIAL CAPITAL - Reliance on low-cost food for children
B151: Never, or not often | C151: =IF(SUMIFS(SummaryData!$D:$D,SummaryData!$A:$A,$B$150,SummaryData!$B:$B,$B151,SummaryData!$C:$C,$C$14)=0,"NA",SUMIFS(SummaryData!$D:$D,SummaryData!$A:$A,$B$150,SummaryData!$B:$B,$B151,SummaryData!$C:$C,$C$14)) -> 85.2 | E151: =IF(SUMIFS(SummaryData!$E:$E,SummaryData!$A:$A,$B$150,SummaryData!$B:$B,$B151,SummaryData!$C:$C,$C$14)=0,"NA",SUMIFS(SummaryData!$E:$E,SummaryData!$A:$A,$B$150,SummaryData!$B:$B,$B151,SummaryData!$C:$C,$C$14)) -> 81.1 | F151: =IF(SUMIFS(SummaryData!$F:$F,SummaryData!$A:$A,$B$150,SummaryData!$B:$B,$B151,SummaryData!$C:$C,$C$14)=0,"NA",SUMIFS(SummaryData!$F:$F,SummaryData!$A:$A,$B$150,SummaryData!$B:$B,$B151,SummaryData!$C:$C,$C$14)) -> 88.6 | H151: =IF(SUMIFS(SummaryData!$D:$D,SummaryData!$A:$A,$B$150,SummaryData!$B:$B,$B151,SummaryData!$C:$C,$H$14)=0,"NA",SUMIFS(SummaryData!$D:$D,SummaryData!$A:$A,$B$150,SummaryData!$B:$B,$B151,SummaryData!$C:$C,$H$14)) -> 79 | J151: =IF(SUMIFS(SummaryData!$E:$E,SummaryData!$A:$A,$B$150,SummaryData!$B:$B,$B151,SummaryData!$C:$C,$H$14)=0,"NA",SUMIFS(SummaryData!$E:$E,SummaryData!$A:$A,$B$150,SummaryData!$B:$B,$B151,SummaryData!$C:$C,$H$14)) -> 74.7 | K151: =IF(SUMIFS(SummaryData!$F:$F,SummaryData!$A:$A,$B$150,SummaryData!$B:$B,$B151,SummaryData!$C:$C,$H$14)=0,"NA",SUMIFS(SummaryData!$F:$F,SummaryData!$A:$A,$B$150,SummaryData!$B:$B,$B151,SummaryData!$C:$C,$H$14)) -> 82.8 | M151: =IF(SUMIFS(SummaryData!$D:$D,SummaryData!$A:$A,$B$150,SummaryData!$B:$B,$B151,SummaryData!$C:$C,$M$14)=0,"NA",SUMIFS(SummaryData!$D:$D,SummaryData!$A:$A,$B$150,SummaryData!$B:$B,$B151,SummaryData!$C:$C,$M$14)) -> 81.9 | O151: =IF(SUMIFS(SummaryData!$E:$E,SummaryData!$A:$A,$B$150,SummaryData!$B:$B,$B151,SummaryData!$C:$C,$M$14)=0,"NA",SUMIFS(SummaryData!$E:$E,SummaryData!$A:$A,$B$150,SummaryData!$B:$B,$B151,SummaryData!$C:$C,$M$14)) -> 79 | P151: =IF(SUMIFS(SummaryData!$F:$F,SummaryData!$A:$A,$B$150,SummaryData!$B:$B,$B151,SummaryData!$C:$C,$M$14)=0,"NA",SUMIFS(SummaryData!$F:$F,SummaryData!$A:$A,$B$150,SummaryData!$B:$B,$B151,SummaryData!$C:$C,$M$14)) -> 84.5
B152: Sometimes | C152: =IF(SUMIFS(SummaryData!$D:$D,SummaryData!$A:$A,$B$150,SummaryData!$B:$B,$B152,SummaryData!$C:$C,$C$14)=0,"NA",SUMIFS(SummaryData!$D:$D,SummaryData!$A:$A,$B$150,SummaryData!$B:$B,$B152,SummaryData!$C:$C,$C$14)) -> 8.7 | E152: =IF(SUMIFS(SummaryData!$E:$E,SummaryData!$A:$A,$B$150,SummaryData!$B:$B,$B152,SummaryData!$C:$C,$C$14)=0,"NA",SUMIFS(SummaryData!$E:$E,SummaryData!$A:$A,$B$150,SummaryData!$B:$B,$B152,SummaryData!$C:$C,$C$14)) -> 6.3 | F152: =IF(SUMIFS(SummaryData!$F:$F,SummaryData!$A:$A,$B$150,SummaryData!$B:$B,$B152,SummaryData!$C:$C,$C$14)=0,"NA",SUMIFS(SummaryData!$F:$F,SummaryData!$A:$A,$B$150,SummaryData!$B:$B,$B152,SummaryData!$C:$C,$C$14)) -> 12 | H152: =IF(SUMIFS(SummaryData!$D:$D,SummaryData!$A:$A,$B$150,SummaryData!$B:$B,$B152,SummaryData!$C:$C,$H$14)=0,"NA",SUMIFS(SummaryData!$D:$D,SummaryData!$A:$A,$B$150,SummaryData!$B:$B,$B152,SummaryData!$C:$C,$H$14)) -> 13 | J152: =IF(SUMIFS(SummaryData!$E:$E,SummaryData!$A:$A,$B$150,SummaryData!$B:$B,$B152,SummaryData!$C:$C,$H$14)=0,"NA",SUMIFS(SummaryData!$E:$E,SummaryData!$A:$A,$B$150,SummaryData!$B:$B,$B152,SummaryData!$C:$C,$H$14)) -> 9.9 | K152: =IF(SUMIFS(SummaryData!$F:$F,SummaryData!$A:$A,$B$150,SummaryData!$B:$B,$B152,SummaryData!$C:$C,$H$14)=0,"NA",SUMIFS(SummaryData!$F:$F,SummaryData!$A:$A,$B$150,SummaryData!$B:$B,$B152,SummaryData!$C:$C,$H$14)) -> 16.8 | M152: =IF(SUMIFS(SummaryData!$D:$D,SummaryData!$A:$A,$B$150,SummaryData!$B:$B,$B152,SummaryData!$C:$C,$M$14)=0,"NA",SUMIFS(SummaryData!$D:$D,SummaryData!$A:$A,$B$150,SummaryData!$B:$B,$B152,SummaryData!$C:$C,$M$14)) -> 10.9 | O152: =IF(SUMIFS(SummaryData!$E:$E,SummaryData!$A:$A,$B$150,SummaryData!$B:$B,$B152,SummaryData!$C:$C,$M$14)=0,"NA",SUMIFS(SummaryData!$E:$E,SummaryData!$A:$A,$B$150,SummaryData!$B:$B,$B152,SummaryData!$C:$C,$M$14)) -> 8.8 | P152: =IF(SUMIFS(SummaryData!$F:$F,SummaryData!$A:$A,$B$150,SummaryData!$B:$B,$B152,SummaryData!$C:$C,$M$14)=0,"NA",SUMIFS(SummaryData!$F:$F,SummaryData!$A:$A,$B$150,SummaryData!$B:$B,$B152,SummaryData!$C:$C,$M$14)) -> 13.3
B153: Yes, definitely | C153: =IF(SUMIFS(SummaryData!$D:$D,SummaryData!$A:$A,$B$150,SummaryData!$B:$B,$B153,SummaryData!$C:$C,$C$14)=0,"NA",SUMIFS(SummaryData!$D:$D,SummaryData!$A:$A,$B$150,SummaryData!$B:$B,$B153,SummaryData!$C:$C,$C$14)) -> 5.7 | E153: =IF(SUMIFS(SummaryData!$E:$E,SummaryData!$A:$A,$B$150,SummaryData!$B:$B,$B153,SummaryData!$C:$C,$C$14)=0,"NA",SUMIFS(SummaryData!$E:$E,SummaryData!$A:$A,$B$150,SummaryData!$B:$B,$B153,SummaryData!$C:$C,$C$14)) -> 3.5 | F153: =IF(SUMIFS(SummaryData!$F:$F,SummaryData!$A:$A,$B$150,SummaryData!$B:$B,$B153,SummaryData!$C:$C,$C$14)=0,"NA",SUMIFS(SummaryData!$F:$F,SummaryData!$A:$A,$B$150,SummaryData!$B:$B,$B153,SummaryData!$C:$C,$C$14)) -> 9.2 | H153: =IF(SUMIFS(SummaryData!$D:$D,SummaryData!$A:$A,$B$150,SummaryData!$B:$B,$B153,SummaryData!$C:$C,$H$14)=0,"NA",SUMIFS(SummaryData!$D:$D,SummaryData!$A:$A,$B$150,SummaryData!$B:$B,$B153,SummaryData!$C:$C,$H$14)) -> 6.7 | J153: =IF(SUMIFS(SummaryData!$E:$E,SummaryData!$A:$A,$B$150,SummaryData!$B:$B,$B153,SummaryData!$C:$C,$H$14)=0,"NA",SUMIFS(SummaryData!$E:$E,SummaryData!$A:$A,$B$150,SummaryData!$B:$B,$B153,SummaryData!$C:$C,$H$14)) -> 4.7 | K153: =IF(SUMIFS(SummaryData!$F:$F,SummaryData!$A:$A,$B$150,SummaryData!$B:$B,$B153,SummaryData!$C:$C,$H$14)=0,"NA",SUMIFS(SummaryData!$F:$F,SummaryData!$A:$A,$B$150,SummaryData!$B:$B,$B153,SummaryData!$C:$C,$H$14)) -> 9.4 | M153: =IF(SUMIFS(SummaryData!$D:$D,SummaryData!$A:$A,$B$150,SummaryData!$B:$B,$B153,SummaryData!$C:$C,$M$14)=0,"NA",SUMIFS(SummaryData!$D:$D,SummaryData!$A:$A,$B$150,SummaryData!$B:$B,$B153,SummaryData!$C:$C,$M$14)) -> 6.4 | O153: =IF(SUMIFS(SummaryData!$E:$E,SummaryData!$A:$A,$B$150,SummaryData!$B:$B,$B153,SummaryData!$C:$C,$M$14)=0,"NA",SUMIFS(SummaryData!$E:$E,SummaryData!$A:$A,$B$150,SummaryData!$B:$B,$B153,SummaryData!$C:$C,$M$14)) -> 4.8 | P153: =IF(SUMIFS(SummaryData!$F:$F,SummaryData!$A:$A,$B$150,SummaryData!$B:$B,$B153,SummaryData!$C:$C,$M$14)=0,"NA",SUMIFS(SummaryData!$F:$F,SummaryData!$A:$A,$B$150,SummaryData!$B:$B,$B153,SummaryData!$C:$C,$M$14)) -> 8.4
B154: SOCIAL CAPITAL - Membership of an organised group
B155: Sports | C155: =IF(SUMIFS(SummaryData!$D:$D,SummaryData!$A:$A,$B$154,SummaryData!$B:$B,$B155,SummaryData!$C:$C,$C$14)=0,"NA",SUMIFS(SummaryData!$D:$D,SummaryData!$A:$A,$B$154,SummaryData!$B:$B,$B155,SummaryData!$C:$C,$C$14)) -> 28.5 | E155: =IF(SUMIFS(SummaryData!$E:$E,SummaryData!$A:$A,$B$154,SummaryData!$B:$B,$B155,SummaryData!$C:$C,$C$14)=0,"NA",SUMIFS(SummaryData!$E:$E,SummaryData!$A:$A,$B$154,SummaryData!$B:$B,$B155,SummaryData!$C:$C,$C$14)) -> 26.4 | F155: =IF(SUMIFS(SummaryData!$F:$F,SummaryData!$A:$A,$B$154,SummaryData!$B:$B,$B155,SummaryData!$C:$C,$C$14)=0,"NA",SUMIFS(SummaryData!$F:$F,SummaryData!$A:$A,$B$154,SummaryData!$B:$B,$B155,SummaryData!$C:$C,$C$14)) -> 30.6 | H155: =IF(SUMIFS(SummaryData!$D:$D,SummaryData!$A:$A,$B$154,SummaryData!$B:$B,$B155,SummaryData!$C:$C,$H$14)=0,"NA",SUMIFS(SummaryData!$D:$D,SummaryData!$A:$A,$B$154,SummaryData!$B:$B,$B155,SummaryData!$C:$C,$H$14)) -> 19.1 | J155: =IF(SUMIFS(SummaryData!$E:$E,SummaryData!$A:$A,$B$154,SummaryData!$B:$B,$B155,SummaryData!$C:$C,$H$14)=0,"NA",SUMIFS(SummaryData!$E:$E,SummaryData!$A:$A,$B$154,SummaryData!$B:$B,$B155,SummaryData!$C:$C,$H$14)) -> 17.4 | K155: =IF(SUMIFS(SummaryData!$F:$F,SummaryData!$A:$A,$B$154,SummaryData!$B:$B,$B155,SummaryData!$C:$C,$H$14)=0,"NA",SUMIFS(SummaryData!$F:$F,SummaryData!$A:$A,$B$154,SummaryData!$B:$B,$B155,SummaryData!$C:$C,$H$14)) -> 21 | M155: =IF(SUMIFS(SummaryData!$D:$D,SummaryData!$A:$A,$B$154,SummaryData!$B:$B,$B155,SummaryData!$C:$C,$M$14)=0,"NA",SUMIFS(SummaryData!$D:$D,SummaryData!$A:$A,$B$154,SummaryData!$B:$B,$B155,SummaryData!$C:$C,$M$14)) -> 23.66763 | O155: =IF(SUMIFS(SummaryData!$E:$E,SummaryData!$A:$A,$B$154,SummaryData!$B:$B,$B155,SummaryData!$C:$C,$M$14)=0,"NA",SUMIFS(SummaryData!$E:$E,SummaryData!$A:$A,$B$154,SummaryData!$B:$B,$B155,SummaryData!$C:$C,$M$14)) -> 22.30965 | P155: =IF(SUMIFS(SummaryData!$F:$F,SummaryData!$A:$A,$B$154,SummaryData!$B:$B,$B155,SummaryData!$C:$C,$M$14)=0,"NA",SUMIFS(SummaryData!$F:$F,SummaryData!$A:$A,$B$154,SummaryData!$B:$B,$B155,SummaryData!$C:$C,$M$14)) -> 25.08157
B156: Religious | C156: =IF(SUMIFS(SummaryData!$D:$D,SummaryData!$A:$A,$B$154,SummaryData!$B:$B,$B156,SummaryData!$C:$C,$C$14)=0,"NA",SUMIFS(SummaryData!$D:$D,SummaryData!$A:$A,$B$154,SummaryData!$B:$B,$B156,SummaryData!$C:$C,$C$14)) -> 13.6 | E156: =IF(SUMIFS(SummaryData!$E:$E,SummaryData!$A:$A,$B$154,SummaryData!$B:$B,$B156,SummaryData!$C:$C,$C$14)=0,"NA",SUMIFS(SummaryData!$E:$E,SummaryData!$A:$A,$B$154,SummaryData!$B:$B,$B156,SummaryData!$C:$C,$C$14)) -> 12.1 | F156: =IF(SUMIFS(SummaryData!$F:$F,SummaryData!$A:$A,$B$154,SummaryData!$B:$B,$B156,SummaryData!$C:$C,$C$14)=0,"NA",SUMIFS(SummaryData!$F:$F,SummaryData!$A:$A,$B$154,SummaryData!$B:$B,$B156,SummaryData!$C:$C,$C$14)) -> 15.2 | H156: =IF(SUMIFS(SummaryData!$D:$D,SummaryData!$A:$A,$B$154,SummaryData!$B:$B,$B156,SummaryData!$C:$C,$H$14)=0,"NA",SUMIFS(SummaryData!$D:$D,SummaryData!$A:$A,$B$154,SummaryData!$B:$B,$B156,SummaryData!$C:$C,$H$14)) -> 17.9 | J156: =IF(SUMIFS(SummaryData!$E:$E,SummaryData!$A:$A,$B$154,SummaryData!$B:$B,$B156,SummaryData!$C:$C,$H$14)=0,"NA",SUMIFS(SummaryData!$E:$E,SummaryData!$A:$A,$B$154,SummaryData!$B:$B,$B156,SummaryData!$C:$C,$H$14)) -> 16.2 | K156: =IF(SUMIFS(SummaryData!$F:$F,SummaryData!$A:$A,$B$154,SummaryData!$B:$B,$B156,SummaryData!$C:$C,$H$14)=0,"NA",SUMIFS(SummaryData!$F:$F,SummaryData!$A:$A,$B$154,SummaryData!$B:$B,$B156,SummaryData!$C:$C,$H$14)) -> 19.7 | M156: =IF(SUMIFS(SummaryData!$D:$D,SummaryData!$A:$A,$B$154,SummaryData!$B:$B,$B156,SummaryData!$C:$C,$M$14)=0,"NA",SUMIFS(SummaryData!$D:$D,SummaryData!$A:$A,$B$154,SummaryData!$B:$B,$B156,SummaryData!$C:$C,$M$14)) -> 15.85547 | O156: =IF(SUMIFS(SummaryData!$E:$E,SummaryData!$A:$A,$B$154,SummaryData!$B:$B,$B156,SummaryData!$C:$C,$M$14)=0,"NA",SUMIFS(SummaryData!$E:$E,SummaryData!$A:$A,$B$154,SummaryData!$B:$B,$B156,SummaryData!$C:$C,$M$14)) -> 14.72696 | P156: =IF(SUMIFS(SummaryData!$F:$F,SummaryData!$A:$A,$B$154,SummaryData!$B:$B,$B156,SummaryData!$C:$C,$M$14)=0,"NA",SUMIFS(SummaryData!$F:$F,SummaryData!$A:$A,$B$154,SummaryData!$B:$B,$B156,SummaryData!$C:$C,$M$14)) -> 17.05315
B157: School | C157: =IF(SUMIFS(SummaryData!$D:$D,SummaryData!$A:$A,$B$154,SummaryData!$B:$B,$B157,SummaryData!$C:$C,$C$14)=0,"NA",SUMIFS(SummaryData!$D:$D,SummaryData!$A:$A,$B$154,SummaryData!$B:$B,$B157,SummaryData!$C:$C,$C$14)) -> 7.9 | E157: =IF(SUMIFS(SummaryData!$E:$E,SummaryData!$A:$A,$B$154,SummaryData!$B:$B,$B157,SummaryData!$C:$C,$C$14)=0,"NA",SUMIFS(SummaryData!$E:$E,SummaryData!$A:$A,$B$154,SummaryData!$B:$B,$B157,SummaryData!$C:$C,$C$14)) -> 6.7 | F157: =IF(SUMIFS(SummaryData!$F:$F,SummaryData!$A:$A,$B$154,SummaryData!$B:$B,$B157,SummaryData!$C:$C,$C$14)=0,"NA",SUMIFS(SummaryData!$F:$F,SummaryData!$A:$A,$B$154,SummaryData!$B:$B,$B157,SummaryData!$C:$C,$C$14)) -> 9.2 | H157: =IF(SUMIFS(SummaryData!$D:$D,SummaryData!$A:$A,$B$154,SummaryData!$B:$B,$B157,SummaryData!$C:$C,$H$14)=0,"NA",SUMIFS(SummaryData!$D:$D,SummaryData!$A:$A,$B$154,SummaryData!$B:$B,$B157,SummaryData!$C:$C,$H$14)) -> 14.9 | J157: =IF(SUMIFS(SummaryData!$E:$E,SummaryData!$A:$A,$B$154,SummaryData!$B:$B,$B157,SummaryData!$C:$C,$H$14)=0,"NA",SUMIFS(SummaryData!$E:$E,SummaryData!$A:$A,$B$154,SummaryData!$B:$B,$B157,SummaryData!$C:$C,$H$14)) -> 13.4 | K157: =IF(SUMIFS(SummaryData!$F:$F,SummaryData!$A:$A,$B$154,SummaryData!$B:$B,$B157,SummaryData!$C:$C,$H$14)=0,"NA",SUMIFS(SummaryData!$F:$F,SummaryData!$A:$A,$B$154,SummaryData!$B:$B,$B157,SummaryData!$C:$C,$H$14)) -> 16.7 | M157: =IF(SUMIFS(SummaryData!$D:$D,SummaryData!$A:$A,$B$154,SummaryData!$B:$B,$B157,SummaryData!$C:$C,$M$14)=0,"NA",SUMIFS(SummaryData!$D:$D,SummaryData!$A:$A,$B$154,SummaryData!$B:$B,$B157,SummaryData!$C:$C,$M$14)) -> 11.41644 | O157: =IF(SUMIFS(SummaryData!$E:$E,SummaryData!$A:$A,$B$154,SummaryData!$B:$B,$B157,SummaryData!$C:$C,$M$14)=0,"NA",SUMIFS(SummaryData!$E:$E,SummaryData!$A:$A,$B$154,SummaryData!$B:$B,$B157,SummaryData!$C:$C,$M$14)) -> 10.41365 | P157: =IF(SUMIFS(SummaryData!$F:$F,SummaryData!$A:$A,$B$154,SummaryData!$B:$B,$B157,SummaryData!$C:$C,$M$14)=0,"NA",SUMIFS(SummaryData!$F:$F,SummaryData!$A:$A,$B$154,SummaryData!$B:$B,$B157,SummaryData!$C:$C,$M$14)) -> 12.50232
B158: Professional | C158: =IF(SUMIFS(SummaryData!$D:$D,SummaryData!$A:$A,$B$154,SummaryData!$B:$B,$B158,SummaryData!$C:$C,$C$14)=0,"NA",SUMIFS(SummaryData!$D:$D,SummaryData!$A:$A,$B$154,SummaryData!$B:$B,$B158,SummaryData!$C:$C,$C$14)) -> 19.9 | E158: =IF(SUMIFS(SummaryData!$E:$E,SummaryData!$A:$A,$B$154,SummaryData!$B:$B,$B158,SummaryData!$C:$C,$C$14)=0,"NA",SUMIFS(SummaryData!$E:$E,SummaryData!$A:$A,$B$154,SummaryData!$B:$B,$B158,SummaryData!$C:$C,$C$14)) -> 18.2 | F158: =IF(SUMIFS(SummaryData!$F:$F,SummaryData!$A:$A,$B$154,SummaryData!$B:$B,$B158,SummaryData!$C:$C,$C$14)=0,"NA",SUMIFS(SummaryData!$F:$F,SummaryData!$A:$A,$B$154,SummaryData!$B:$B,$B158,SummaryData!$C:$C,$C$14)) -> 21.8 | H158: =IF(SUMIFS(SummaryData!$D:$D,SummaryData!$A:$A,$B$154,SummaryData!$B:$B,$B158,SummaryData!$C:$C,$H$14)=0,"NA",SUMIFS(SummaryData!$D:$D,SummaryData!$A:$A,$B$154,SummaryData!$B:$B,$B158,SummaryData!$C:$C,$H$14)) -> 19.9 | J158: =IF(SUMIFS(SummaryData!$E:$E,SummaryData!$A:$A,$B$154,SummaryData!$B:$B,$B158,SummaryData!$C:$C,$H$14)=0,"NA",SUMIFS(SummaryData!$E:$E,SummaryData!$A:$A,$B$154,SummaryData!$B:$B,$B158,SummaryData!$C:$C,$H$14)) -> 18.2 | K158: =IF(SUMIFS(SummaryData!$F:$F,SummaryData!$A:$A,$B$154,SummaryData!$B:$B,$B158,SummaryData!$C:$C,$H$14)=0,"NA",SUMIFS(SummaryData!$F:$F,SummaryData!$A:$A,$B$154,SummaryData!$B:$B,$B158,SummaryData!$C:$C,$H$14)) -> 21.7 | M158: =IF(SUMIFS(SummaryData!$D:$D,SummaryData!$A:$A,$B$154,SummaryData!$B:$B,$B158,SummaryData!$C:$C,$M$14)=0,"NA",SUMIFS(SummaryData!$D:$D,SummaryData!$A:$A,$B$154,SummaryData!$B:$B,$B158,SummaryData!$C:$C,$M$14)) -> 19.83364 | O158: =IF(SUMIFS(SummaryData!$E:$E,SummaryData!$A:$A,$B$154,SummaryData!$B:$B,$B158,SummaryData!$C:$C,$M$14)=0,"NA",SUMIFS(SummaryData!$E:$E,SummaryData!$A:$A,$B$154,SummaryData!$B:$B,$B158,SummaryData!$C:$C,$M$14)) -> 18.60486 | P158: =IF(SUMIFS(SummaryData!$F:$F,SummaryData!$A:$A,$B$154,SummaryData!$B:$B,$B158,SummaryData!$C:$C,$M$14)=0,"NA",SUMIFS(SummaryData!$F:$F,SummaryData!$A:$A,$B$154,SummaryData!$B:$B,$B158,SummaryData!$C:$C,$M$14)) -> 21.12252
B159: Other | C159: =IF(SUMIFS(SummaryData!$D:$D,SummaryData!$A:$A,$B$154,SummaryData!$B:$B,$B159,SummaryData!$C:$C,$C$14)=0,"NA",SUMIFS(SummaryData!$D:$D,SummaryData!$A:$A,$B$154,SummaryData!$B:$B,$B159,SummaryData!$C:$C,$C$14)) -> 17.3 | E159: =IF(SUMIFS(SummaryData!$E:$E,SummaryData!$A:$A,$B$154,SummaryData!$B:$B,$B159,SummaryData!$C:$C,$C$14)=0,"NA",SUMIFS(SummaryData!$E:$E,SummaryData!$A:$A,$B$154,SummaryData!$B:$B,$B159,SummaryData!$C:$C,$C$14)) -> 15.7 | F159: =IF(SUMIFS(SummaryData!$F:$F,SummaryData!$A:$A,$B$154,SummaryData!$B:$B,$B159,SummaryData!$C:$C,$C$14)=0,"NA",SUMIFS(SummaryData!$F:$F,SummaryData!$A:$A,$B$154,SummaryData!$B:$B,$B159,SummaryData!$C:$C,$C$14)) -> 19 | H159: =IF(SUMIFS(SummaryData!$D:$D,SummaryData!$A:$A,$B$154,SummaryData!$B:$B,$B159,SummaryData!$C:$C,$H$14)=0,"NA",SUMIFS(SummaryData!$D:$D,SummaryData!$A:$A,$B$154,SummaryData!$B:$B,$B159,SummaryData!$C:$C,$H$14)) -> 19.3 | J159: =IF(SUMIFS(SummaryData!$E:$E,SummaryData!$A:$A,$B$154,SummaryData!$B:$B,$B159,SummaryData!$C:$C,$H$14)=0,"NA",SUMIFS(SummaryData!$E:$E,SummaryData!$A:$A,$B$154,SummaryData!$B:$B,$B159,SummaryData!$C:$C,$H$14)) -> 17.6 | K159: =IF(SUMIFS(SummaryData!$F:$F,SummaryData!$A:$A,$B$154,SummaryData!$B:$B,$B159,SummaryData!$C:$C,$H$14)=0,"NA",SUMIFS(SummaryData!$F:$F,SummaryData!$A:$A,$B$154,SummaryData!$B:$B,$B159,SummaryData!$C:$C,$H$14)) -> 21 | M159: =IF(SUMIFS(SummaryData!$D:$D,SummaryData!$A:$A,$B$154,SummaryData!$B:$B,$B159,SummaryData!$C:$C,$M$14)=0,"NA",SUMIFS(SummaryData!$D:$D,SummaryData!$A:$A,$B$154,SummaryData!$B:$B,$B159,SummaryData!$C:$C,$M$14)) -> 18.22779 | O159: =IF(SUMIFS(SummaryData!$E:$E,SummaryData!$A:$A,$B$154,SummaryData!$B:$B,$B159,SummaryData!$C:$C,$M$14)=0,"NA",SUMIFS(SummaryData!$E:$E,SummaryData!$A:$A,$B$154,SummaryData!$B:$B,$B159,SummaryData!$C:$C,$M$14)) -> 17.09535 | P159: =IF(SUMIFS(SummaryData!$F:$F,SummaryData!$A:$A,$B$154,SummaryData!$B:$B,$B159,SummaryData!$C:$C,$M$14)=0,"NA",SUMIFS(SummaryData!$F:$F,SummaryData!$A:$A,$B$154,SummaryData!$B:$B,$B159,SummaryData!$C:$C,$M$14)) -> 19.41767
B160: SOCIAL CAPITAL - Feeling of safety - Feel safe walking alone down their street after dark
B161: Never, or not often | C161: =IF(SUMIFS(SummaryData!$D:$D,SummaryData!$A:$A,$B$160,SummaryData!$B:$B,$B161,SummaryData!$C:$C,$C$14)=0,"NA",SUMIFS(SummaryData!$D:$D,SummaryData!$A:$A,$B$160,SummaryData!$B:$B,$B161,SummaryData!$C:$C,$C$14)) -> 9.9 | E161: =IF(SUMIFS(SummaryData!$E:$E,SummaryData!$A:$A,$B$160,SummaryData!$B:$B,$B161,SummaryData!$C:$C,$C$14)=0,"NA",SUMIFS(SummaryData!$E:$E,SummaryData!$A:$A,$B$160,SummaryData!$B:$B,$B161,SummaryData!$C:$C,$C$14)) -> 8.5 | F161: =IF(SUMIFS(SummaryData!$F:$F,SummaryData!$A:$A,$B$160,SummaryData!$B:$B,$B161,SummaryData!$C:$C,$C$14)=0,"NA",SUMIFS(SummaryData!$F:$F,SummaryData!$A:$A,$B$160,SummaryData!$B:$B,$B161,SummaryData!$C:$C,$C$14)) -> 11.4 | H161: =IF(SUMIFS(SummaryData!$D:$D,SummaryData!$A:$A,$B$160,SummaryData!$B:$B,$B161,SummaryData!$C:$C,$H$14)=0,"NA",SUMIFS(SummaryData!$D:$D,SummaryData!$A:$A,$B$160,SummaryData!$B:$B,$B161,SummaryData!$C:$C,$H$14)) -> 30.3 | J161: =IF(SUMIFS(SummaryData!$E:$E,SummaryData!$A:$A,$B$160,SummaryData!$B:$B,$B161,SummaryData!$C:$C,$H$14)=0,"NA",SUMIFS(SummaryData!$E:$E,SummaryData!$A:$A,$B$160,SummaryData!$B:$B,$B161,SummaryData!$C:$C,$H$14)) -> 28.3 | K161: =IF(SUMIFS(SummaryData!$F:$F,SummaryData!$A:$A,$B$160,SummaryData!$B:$B,$B161,SummaryData!$C:$C,$H$14)=0,"NA",SUMIFS(SummaryData!$F:$F,SummaryData!$A:$A,$B$160,SummaryData!$B:$B,$B161,SummaryData!$C:$C,$H$14)) -> 32.5 | M161: =IF(SUMIFS(SummaryData!$D:$D,SummaryData!$A:$A,$B$160,SummaryData!$B:$B,$B161,SummaryData!$C:$C,$M$14)=0,"NA",SUMIFS(SummaryData!$D:$D,SummaryData!$A:$A,$B$160,SummaryData!$B:$B,$B161,SummaryData!$C:$C,$M$14)) -> 20.36241 | O161: =IF(SUMIFS(SummaryData!$E:$E,SummaryData!$A:$A,$B$160,SummaryData!$B:$B,$B161,SummaryData!$C:$C,$M$14)=0,"NA",SUMIFS(SummaryData!$E:$E,SummaryData!$A:$A,$B$160,SummaryData!$B:$B,$B161,SummaryData!$C:$C,$M$14)) -> 19.06811 | P161: =IF(SUMIFS(SummaryData!$F:$F,SummaryData!$A:$A,$B$160,SummaryData!$B:$B,$B161,SummaryData!$C:$C,$M$14)=0,"NA",SUMIFS(SummaryData!$F:$F,SummaryData!$A:$A,$B$160,SummaryData!$B:$B,$B161,SummaryData!$C:$C,$M$14)) -> 21.72098
B162: Sometimes | C162: =IF(SUMIFS(SummaryData!$D:$D,SummaryData!$A:$A,$B$160,SummaryData!$B:$B,$B162,SummaryData!$C:$C,$C$14)=0,"NA",SUMIFS(SummaryData!$D:$D,SummaryData!$A:$A,$B$160,SummaryData!$B:$B,$B162,SummaryData!$C:$C,$C$14)) -> 15.2 | E162: =IF(SUMIFS(SummaryData!$E:$E,SummaryData!$A:$A,$B$160,SummaryData!$B:$B,$B162,SummaryData!$C:$C,$C$14)=0,"NA",SUMIFS(SummaryData!$E:$E,SummaryData!$A:$A,$B$160,SummaryData!$B:$B,$B162,SummaryData!$C:$C,$C$14)) -> 13.5 | F162: =IF(SUMIFS(SummaryData!$F:$F,SummaryData!$A:$A,$B$160,SummaryData!$B:$B,$B162,SummaryData!$C:$C,$C$14)=0,"NA",SUMIFS(SummaryData!$F:$F,SummaryData!$A:$A,$B$160,SummaryData!$B:$B,$B162,SummaryData!$C:$C,$C$14)) -> 17 | H162: =IF(SUMIFS(SummaryData!$D:$D,SummaryData!$A:$A,$B$160,SummaryData!$B:$B,$B162,SummaryData!$C:$C,$H$14)=0,"NA",SUMIFS(SummaryData!$D:$D,SummaryData!$A:$A,$B$160,SummaryData!$B:$B,$B162,SummaryData!$C:$C,$H$14)) -> 27.4 | J162: =IF(SUMIFS(SummaryData!$E:$E,SummaryData!$A:$A,$B$160,SummaryData!$B:$B,$B162,SummaryData!$C:$C,$H$14)=0,"NA",SUMIFS(SummaryData!$E:$E,SummaryData!$A:$A,$B$160,SummaryData!$B:$B,$B162,SummaryData!$C:$C,$H$14)) -> 25.3 | K162: =IF(SUMIFS(SummaryData!$F:$F,SummaryData!$A:$A,$B$160,SummaryData!$B:$B,$B162,SummaryData!$C:$C,$H$14)=0,"NA",SUMIFS(SummaryData!$F:$F,SummaryData!$A:$A,$B$160,SummaryData!$B:$B,$B162,SummaryData!$C:$C,$H$14)) -> 29.5 | M162: =IF(SUMIFS(SummaryData!$D:$D,SummaryData!$A:$A,$B$160,SummaryData!$B:$B,$B162,SummaryData!$C:$C,$M$14)=0,"NA",SUMIFS(SummaryData!$D:$D,SummaryData!$A:$A,$B$160,SummaryData!$B:$B,$B162,SummaryData!$C:$C,$M$14)) -> 21.13494 | O162: =IF(SUMIFS(SummaryData!$E:$E,SummaryData!$A:$A,$B$160,SummaryData!$B:$B,$B162,SummaryData!$C:$C,$M$14)=0,"NA",SUMIFS(SummaryData!$E:$E,SummaryData!$A:$A,$B$160,SummaryData!$B:$B,$B162,SummaryData!$C:$C,$M$14)) -> 19.78687 | P162: =IF(SUMIFS(SummaryData!$F:$F,SummaryData!$A:$A,$B$160,SummaryData!$B:$B,$B162,SummaryData!$C:$C,$M$14)=0,"NA",SUMIFS(SummaryData!$F:$F,SummaryData!$A:$A,$B$160,SummaryData!$B:$B,$B162,SummaryData!$C:$C,$M$14)) -> 22.54904
B163: Yes, definitely | C163: =IF(SUMIFS(SummaryData!$D:$D,SummaryData!$A:$A,$B$160,SummaryData!$B:$B,$B163,SummaryData!$C:$C,$C$14)=0,"NA",SUMIFS(SummaryData!$D:$D,SummaryData!$A:$A,$B$160,SummaryData!$B:$B,$B163,SummaryData!$C:$C,$C$14)) -> 71.7 | E163: =IF(SUMIFS(SummaryData!$E:$E,SummaryData!$A:$A,$B$160,SummaryData!$B:$B,$B163,SummaryData!$C:$C,$C$14)=0,"NA",SUMIFS(SummaryData!$E:$E,SummaryData!$A:$A,$B$160,SummaryData!$B:$B,$B163,SummaryData!$C:$C,$C$14)) -> 69.5 | F163: =IF(SUMIFS(SummaryData!$F:$F,SummaryData!$A:$A,$B$160,SummaryData!$B:$B,$B163,SummaryData!$C:$C,$C$14)=0,"NA",SUMIFS(SummaryData!$F:$F,SummaryData!$A:$A,$B$160,SummaryData!$B:$B,$B163,SummaryData!$C:$C,$C$14)) -> 73.7 | H163: =IF(SUMIFS(SummaryData!$D:$D,SummaryData!$A:$A,$B$160,SummaryData!$B:$B,$B163,SummaryData!$C:$C,$H$14)=0,"NA",SUMIFS(SummaryData!$D:$D,SummaryData!$A:$A,$B$160,SummaryData!$B:$B,$B163,SummaryData!$C:$C,$H$14)) -> 36.3 | J163: =IF(SUMIFS(SummaryData!$E:$E,SummaryData!$A:$A,$B$160,SummaryData!$B:$B,$B163,SummaryData!$C:$C,$H$14)=0,"NA",SUMIFS(SummaryData!$E:$E,SummaryData!$A:$A,$B$160,SummaryData!$B:$B,$B163,SummaryData!$C:$C,$H$14)) -> 34.1 | K163: =IF(SUMIFS(SummaryData!$F:$F,SummaryData!$A:$A,$B$160,SummaryData!$B:$B,$B163,SummaryData!$C:$C,$H$14)=0,"NA",SUMIFS(SummaryData!$F:$F,SummaryData!$A:$A,$B$160,SummaryData!$B:$B,$B163,SummaryData!$C:$C,$H$14)) -> 38.5 | M163: =IF(SUMIFS(SummaryData!$D:$D,SummaryData!$A:$A,$B$160,SummaryData!$B:$B,$B163,SummaryData!$C:$C,$M$14)=0,"NA",SUMIFS(SummaryData!$D:$D,SummaryData!$A:$A,$B$160,SummaryData!$B:$B,$B163,SummaryData!$C:$C,$M$14)) -> 53.73876 | O163: =IF(SUMIFS(SummaryData!$E:$E,SummaryData!$A:$A,$B$160,SummaryData!$B:$B,$B163,SummaryData!$C:$C,$M$14)=0,"NA",SUMIFS(SummaryData!$E:$E,SummaryData!$A:$A,$B$160,SummaryData!$B:$B,$B163,SummaryData!$C:$C,$M$14)) -> 52.09802 | P163: =IF(SUMIFS(SummaryData!$F:$F,SummaryData!$A:$A,$B$160,SummaryData!$B:$B,$B163,SummaryData!$C:$C,$M$14)=0,"NA",SUMIFS(SummaryData!$F:$F,SummaryData!$A:$A,$B$160,SummaryData!$B:$B,$B163,SummaryData!$C:$C,$M$14)) -> 55.37144
B164: SOCIAL CAPITAL - Feeling of trust - Most people could be trusted
B165: Never, or not often | C165: =IF(SUMIFS(SummaryData!$D:$D,SummaryData!$A:$A,$B$164,SummaryData!$B:$B,$B165,SummaryData!$C:$C,$C$14)=0,"NA",SUMIFS(SummaryData!$D:$D,SummaryData!$A:$A,$B$164,SummaryData!$B:$B,$B165,SummaryData!$C:$C,$C$14)) -> 15.2 | E165: =IF(SUMIFS(SummaryData!$E:$E,SummaryData!$A:$A,$B$164,SummaryData!$B:$B,$B165,SummaryData!$C:$C,$C$14)=0,"NA",SUMIFS(SummaryData!$E:$E,SummaryData!$A:$A,$B$164,SummaryData!$B:$B,$B165,SummaryData!$C:$C,$C$14)) -> 13.5 | F165: =IF(SUMIFS(SummaryData!$F:$F,SummaryData!$A:$A,$B$164,SummaryData!$B:$B,$B165,SummaryData!$C:$C,$C$14)=0,"NA",SUMIFS(SummaryData!$F:$F,SummaryData!$A:$A,$B$164,SummaryData!$B:$B,$B165,SummaryData!$C:$C,$C$14)) -> 17.1 | H165: =IF(SUMIFS(SummaryData!$D:$D,SummaryData!$A:$A,$B$164,SummaryData!$B:$B,$B165,SummaryData!$C:$C,$H$14)=0,"NA",SUMIFS(SummaryData!$D:$D,SummaryData!$A:$A,$B$164,SummaryData!$B:$B,$B165,SummaryData!$C:$C,$H$14)) -> 17.4 | J165: =IF(SUMIFS(SummaryData!$E:$E,SummaryData!$A:$A,$B$164,SummaryData!$B:$B,$B165,SummaryData!$C:$C,$H$14)=0,"NA",SUMIFS(SummaryData!$E:$E,SummaryData!$A:$A,$B$164,SummaryData!$B:$B,$B165,SummaryData!$C:$C,$H$14)) -> 15.6 | K165: =IF(SUMIFS(SummaryData!$F:$F,SummaryData!$A:$A,$B$164,SummaryData!$B:$B,$B165,SummaryData!$C:$C,$H$14)=0,"NA",SUMIFS(SummaryData!$F:$F,SummaryData!$A:$A,$B$164,SummaryData!$B:$B,$B165,SummaryData!$C:$C,$H$14)) -> 19.4 | M165: =IF(SUMIFS(SummaryData!$D:$D,SummaryData!$A:$A,$B$164,SummaryData!$B:$B,$B165,SummaryData!$C:$C,$M$14)=0,"NA",SUMIFS(SummaryData!$D:$D,SummaryData!$A:$A,$B$164,SummaryData!$B:$B,$B165,SummaryData!$C:$C,$M$14)) -> 16.20392 | O165: =IF(SUMIFS(SummaryData!$E:$E,SummaryData!$A:$A,$B$164,SummaryData!$B:$B,$B165,SummaryData!$C:$C,$M$14)=0,"NA",SUMIFS(SummaryData!$E:$E,SummaryData!$A:$A,$B$164,SummaryData!$B:$B,$B165,SummaryData!$C:$C,$M$14)) -> 14.95462 | P165: =IF(SUMIFS(SummaryData!$F:$F,SummaryData!$A:$A,$B$164,SummaryData!$B:$B,$B165,SummaryData!$C:$C,$M$14)=0,"NA",SUMIFS(SummaryData!$F:$F,SummaryData!$A:$A,$B$164,SummaryData!$B:$B,$B165,SummaryData!$C:$C,$M$14)) -> 17.53606
B166: Sometimes | C166: =IF(SUMIFS(SummaryData!$D:$D,SummaryData!$A:$A,$B$164,SummaryData!$B:$B,$B166,SummaryData!$C:$C,$C$14)=0,"NA",SUMIFS(SummaryData!$D:$D,SummaryData!$A:$A,$B$164,SummaryData!$B:$B,$B166,SummaryData!$C:$C,$C$14)) -> 53.8 | E166: =IF(SUMIFS(SummaryData!$E:$E,SummaryData!$A:$A,$B$164,SummaryData!$B:$B,$B166,SummaryData!$C:$C,$C$14)=0,"NA",SUMIFS(SummaryData!$E:$E,SummaryData!$A:$A,$B$164,SummaryData!$B:$B,$B166,SummaryData!$C:$C,$C$14)) -> 51.5 | F166: =IF(SUMIFS(SummaryData!$F:$F,SummaryData!$A:$A,$B$164,SummaryData!$B:$B,$B166,SummaryData!$C:$C,$C$14)=0,"NA",SUMIFS(SummaryData!$F:$F,SummaryData!$A:$A,$B$164,SummaryData!$B:$B,$B166,SummaryData!$C:$C,$C$14)) -> 56.1 | H166: =IF(SUMIFS(SummaryData!$D:$D,SummaryData!$A:$A,$B$164,SummaryData!$B:$B,$B166,SummaryData!$C:$C,$H$14)=0,"NA",SUMIFS(SummaryData!$D:$D,SummaryData!$A:$A,$B$164,SummaryData!$B:$B,$B166,SummaryData!$C:$C,$H$14)) -> 56.1 | J166: =IF(SUMIFS(SummaryData!$E:$E,SummaryData!$A:$A,$B$164,SummaryData!$B:$B,$B166,SummaryData!$C:$C,$H$14)=0,"NA",SUMIFS(SummaryData!$E:$E,SummaryData!$A:$A,$B$164,SummaryData!$B:$B,$B166,SummaryData!$C:$C,$H$14)) -> 53.8 | K166: =IF(SUMIFS(SummaryData!$F:$F,SummaryData!$A:$A,$B$164,SummaryData!$B:$B,$B166,SummaryData!$C:$C,$H$14)=0,"NA",SUMIFS(SummaryData!$F:$F,SummaryData!$A:$A,$B$164,SummaryData!$B:$B,$B166,SummaryData!$C:$C,$H$14)) -> 58.4 | M166: =IF(SUMIFS(SummaryData!$D:$D,SummaryData!$A:$A,$B$164,SummaryData!$B:$B,$B166,SummaryData!$C:$C,$M$14)=0,"NA",SUMIFS(SummaryData!$D:$D,SummaryData!$A:$A,$B$164,SummaryData!$B:$B,$B166,SummaryData!$C:$C,$M$14)) -> 55.13273 | O166: =IF(SUMIFS(SummaryData!$E:$E,SummaryData!$A:$A,$B$164,SummaryData!$B:$B,$B166,SummaryData!$C:$C,$M$14)=0,"NA",SUMIFS(SummaryData!$E:$E,SummaryData!$A:$A,$B$164,SummaryData!$B:$B,$B166,SummaryData!$C:$C,$M$14)) -> 53.50202 | P166: =IF(SUMIFS(SummaryData!$F:$F,SummaryData!$A:$A,$B$164,SummaryData!$B:$B,$B166,SummaryData!$C:$C,$M$14)=0,"NA",SUMIFS(SummaryData!$F:$F,SummaryData!$A:$A,$B$164,SummaryData!$B:$B,$B166,SummaryData!$C:$C,$M$14)) -> 56.75248
B167: Yes, definitely | C167: =IF(SUMIFS(SummaryData!$D:$D,SummaryData!$A:$A,$B$164,SummaryData!$B:$B,$B167,SummaryData!$C:$C,$C$14)=0,"NA",SUMIFS(SummaryData!$D:$D,SummaryData!$A:$A,$B$164,SummaryData!$B:$B,$B167,SummaryData!$C:$C,$C$14)) -> 28.8 | E167: =IF(SUMIFS(SummaryData!$E:$E,SummaryData!$A:$A,$B$164,SummaryData!$B:$B,$B167,SummaryData!$C:$C,$C$14)=0,"NA",SUMIFS(SummaryData!$E:$E,SummaryData!$A:$A,$B$164,SummaryData!$B:$B,$B167,SummaryData!$C:$C,$C$14)) -> 26.9 | F167: =IF(SUMIFS(SummaryData!$F:$F,SummaryData!$A:$A,$B$164,SummaryData!$B:$B,$B167,SummaryData!$C:$C,$C$14)=0,"NA",SUMIFS(SummaryData!$F:$F,SummaryData!$A:$A,$B$164,SummaryData!$B:$B,$B167,SummaryData!$C:$C,$C$14)) -> 30.9 | H167: =IF(SUMIFS(SummaryData!$D:$D,SummaryData!$A:$A,$B$164,SummaryData!$B:$B,$B167,SummaryData!$C:$C,$H$14)=0,"NA",SUMIFS(SummaryData!$D:$D,SummaryData!$A:$A,$B$164,SummaryData!$B:$B,$B167,SummaryData!$C:$C,$H$14)) -> 24.2 | J167: =IF(SUMIFS(SummaryData!$E:$E,SummaryData!$A:$A,$B$164,SummaryData!$B:$B,$B167,SummaryData!$C:$C,$H$14)=0,"NA",SUMIFS(SummaryData!$E:$E,SummaryData!$A:$A,$B$164,SummaryData!$B:$B,$B167,SummaryData!$C:$C,$H$14)) -> 22.4 | K167: =IF(SUMIFS(SummaryData!$F:$F,SummaryData!$A:$A,$B$164,SummaryData!$B:$B,$B167,SummaryData!$C:$C,$H$14)=0,"NA",SUMIFS(SummaryData!$F:$F,SummaryData!$A:$A,$B$164,SummaryData!$B:$B,$B167,SummaryData!$C:$C,$H$14)) -> 26.1 | M167: =IF(SUMIFS(SummaryData!$D:$D,SummaryData!$A:$A,$B$164,SummaryData!$B:$B,$B167,SummaryData!$C:$C,$M$14)=0,"NA",SUMIFS(SummaryData!$D:$D,SummaryData!$A:$A,$B$164,SummaryData!$B:$B,$B167,SummaryData!$C:$C,$M$14)) -> 26.42682 | O167: =IF(SUMIFS(SummaryData!$E:$E,SummaryData!$A:$A,$B$164,SummaryData!$B:$B,$B167,SummaryData!$C:$C,$M$14)=0,"NA",SUMIFS(SummaryData!$E:$E,SummaryData!$A:$A,$B$164,SummaryData!$B:$B,$B167,SummaryData!$C:$C,$M$14)) -> 25.07843 | P167: =IF(SUMIFS(SummaryData!$F:$F,SummaryData!$A:$A,$B$164,SummaryData!$B:$B,$B167,SummaryData!$C:$C,$M$14)=0,"NA",SUMIFS(SummaryData!$F:$F,SummaryData!$A:$A,$B$164,SummaryData!$B:$B,$B167,SummaryData!$C:$C,$M$14)) -> 27.8208
B168: SOCIAL CAPITAL - Tolerance of diversity - Multiculturalism makes life in your area better
B169: Never, or not often | C169: =IF(SUMIFS(SummaryData!$D:$D,SummaryData!$A:$A,$B$168,SummaryData!$B:$B,$B169,SummaryData!$C:$C,$C$14)=0,"NA",SUMIFS(SummaryData!$D:$D,SummaryData!$A:$A,$B$168,SummaryData!$B:$B,$B169,SummaryData!$C:$C,$C$14)) -> 10 | E169: =IF(SUMIFS(SummaryData!$E:$E,SummaryData!$A:$A,$B$168,SummaryData!$B:$B,$B169,SummaryData!$C:$C,$C$14)=0,"NA",SUMIFS(SummaryData!$E:$E,SummaryData!$A:$A,$B$168,SummaryData!$B:$B,$B169,SummaryData!$C:$C,$C$14)) -> 8.7 | F169: =IF(SUMIFS(SummaryData!$F:$F,SummaryData!$A:$A,$B$168,SummaryData!$B:$B,$B169,SummaryData!$C:$C,$C$14)=0,"NA",SUMIFS(SummaryData!$F:$F,SummaryData!$A:$A,$B$168,SummaryData!$B:$B,$B169,SummaryData!$C:$C,$C$14)) -> 11.4 | H169: =IF(SUMIFS(SummaryData!$D:$D,SummaryData!$A:$A,$B$168,SummaryData!$B:$B,$B169,SummaryData!$C:$C,$H$14)=0,"NA",SUMIFS(SummaryData!$D:$D,SummaryData!$A:$A,$B$168,SummaryData!$B:$B,$B169,SummaryData!$C:$C,$H$14)) -> 7.4 | J169: =IF(SUMIFS(SummaryData!$E:$E,SummaryData!$A:$A,$B$168,SummaryData!$B:$B,$B169,SummaryData!$C:$C,$H$14)=0,"NA",SUMIFS(SummaryData!$E:$E,SummaryData!$A:$A,$B$168,SummaryData!$B:$B,$B169,SummaryData!$C:$C,$H$14)) -> 6.3 | K169: =IF(SUMIFS(SummaryData!$F:$F,SummaryData!$A:$A,$B$168,SummaryData!$B:$B,$B169,SummaryData!$C:$C,$H$14)=0,"NA",SUMIFS(SummaryData!$F:$F,SummaryData!$A:$A,$B$168,SummaryData!$B:$B,$B169,SummaryData!$C:$C,$H$14)) -> 8.6 | M169: =IF(SUMIFS(SummaryData!$D:$D,SummaryData!$A:$A,$B$168,SummaryData!$B:$B,$B169,SummaryData!$C:$C,$M$14)=0,"NA",SUMIFS(SummaryData!$D:$D,SummaryData!$A:$A,$B$168,SummaryData!$B:$B,$B169,SummaryData!$C:$C,$M$14)) -> 8.674343 | O169: =IF(SUMIFS(SummaryData!$E:$E,SummaryData!$A:$A,$B$168,SummaryData!$B:$B,$B169,SummaryData!$C:$C,$M$14)=0,"NA",SUMIFS(SummaryData!$E:$E,SummaryData!$A:$A,$B$168,SummaryData!$B:$B,$B169,SummaryData!$C:$C,$M$14)) -> 7.822578 | P169: =IF(SUMIFS(SummaryData!$F:$F,SummaryData!$A:$A,$B$168,SummaryData!$B:$B,$B169,SummaryData!$C:$C,$M$14)=0,"NA",SUMIFS(SummaryData!$F:$F,SummaryData!$A:$A,$B$168,SummaryData!$B:$B,$B169,SummaryData!$C:$C,$M$14)) -> 9.609185
B170: Sometimes | C170: =IF(SUMIFS(SummaryData!$D:$D,SummaryData!$A:$A,$B$168,SummaryData!$B:$B,$B170,SummaryData!$C:$C,$C$14)=0,"NA",SUMIFS(SummaryData!$D:$D,SummaryData!$A:$A,$B$168,SummaryData!$B:$B,$B170,SummaryData!$C:$C,$C$14)) -> 29.2 | E170: =IF(SUMIFS(SummaryData!$E:$E,SummaryData!$A:$A,$B$168,SummaryData!$B:$B,$B170,SummaryData!$C:$C,$C$14)=0,"NA",SUMIFS(SummaryData!$E:$E,SummaryData!$A:$A,$B$168,SummaryData!$B:$B,$B170,SummaryData!$C:$C,$C$14)) -> 27.1 | F170: =IF(SUMIFS(SummaryData!$F:$F,SummaryData!$A:$A,$B$168,SummaryData!$B:$B,$B170,SummaryData!$C:$C,$C$14)=0,"NA",SUMIFS(SummaryData!$F:$F,SummaryData!$A:$A,$B$168,SummaryData!$B:$B,$B170,SummaryData!$C:$C,$C$14)) -> 31.4 | H170: =IF(SUMIFS(SummaryData!$D:$D,SummaryData!$A:$A,$B$168,SummaryData!$B:$B,$B170,SummaryData!$C:$C,$H$14)=0,"NA",SUMIFS(SummaryData!$D:$D,SummaryData!$A:$A,$B$168,SummaryData!$B:$B,$B170,SummaryData!$C:$C,$H$14)) -> 29.1 | J170: =IF(SUMIFS(SummaryData!$E:$E,SummaryData!$A:$A,$B$168,SummaryData!$B:$B,$B170,SummaryData!$C:$C,$H$14)=0,"NA",SUMIFS(SummaryData!$E:$E,SummaryData!$A:$A,$B$168,SummaryData!$B:$B,$B170,SummaryData!$C:$C,$H$14)) -> 27 | K170: =IF(SUMIFS(SummaryData!$F:$F,SummaryData!$A:$A,$B$168,SummaryData!$B:$B,$B170,SummaryData!$C:$C,$H$14)=0,"NA",SUMIFS(SummaryData!$F:$F,SummaryData!$A:$A,$B$168,SummaryData!$B:$B,$B170,SummaryData!$C:$C,$H$14)) -> 31.2 | M170: =IF(SUMIFS(SummaryData!$D:$D,SummaryData!$A:$A,$B$168,SummaryData!$B:$B,$B170,SummaryData!$C:$C,$M$14)=0,"NA",SUMIFS(SummaryData!$D:$D,SummaryData!$A:$A,$B$168,SummaryData!$B:$B,$B170,SummaryData!$C:$C,$M$14)) -> 29.16815 | O170: =IF(SUMIFS(SummaryData!$E:$E,SummaryData!$A:$A,$B$168,SummaryData!$B:$B,$B170,SummaryData!$C:$C,$M$14)=0,"NA",SUMIFS(SummaryData!$E:$E,SummaryData!$A:$A,$B$168,SummaryData!$B:$B,$B170,SummaryData!$C:$C,$M$14)) -> 27.68445 | P170: =IF(SUMIFS(SummaryData!$F:$F,SummaryData!$A:$A,$B$168,SummaryData!$B:$B,$B170,SummaryData!$C:$C,$M$14)=0,"NA",SUMIFS(SummaryData!$F:$F,SummaryData!$A:$A,$B$168,SummaryData!$B:$B,$B170,SummaryData!$C:$C,$M$14)) -> 30.69761
B171: Yes, definitely | C171: =IF(SUMIFS(SummaryData!$D:$D,SummaryData!$A:$A,$B$168,SummaryData!$B:$B,$B171,SummaryData!$C:$C,$C$14)=0,"NA",SUMIFS(SummaryData!$D:$D,SummaryData!$A:$A,$B$168,SummaryData!$B:$B,$B171,SummaryData!$C:$C,$C$14)) -> 53.7 | E171: =IF(SUMIFS(SummaryData!$E:$E,SummaryData!$A:$A,$B$168,SummaryData!$B:$B,$B171,SummaryData!$C:$C,$C$14)=0,"NA",SUMIFS(SummaryData!$E:$E,SummaryData!$A:$A,$B$168,SummaryData!$B:$B,$B171,SummaryData!$C:$C,$C$14)) -> 51.4 | F171: =IF(SUMIFS(SummaryData!$F:$F,SummaryData!$A:$A,$B$168,SummaryData!$B:$B,$B171,SummaryData!$C:$C,$C$14)=0,"NA",SUMIFS(SummaryData!$F:$F,SummaryData!$A:$A,$B$168,SummaryData!$B:$B,$B171,SummaryData!$C:$C,$C$14)) -> 56 | H171: =IF(SUMIFS(SummaryData!$D:$D,SummaryData!$A:$A,$B$168,SummaryData!$B:$B,$B171,SummaryData!$C:$C,$H$14)=0,"NA",SUMIFS(SummaryData!$D:$D,SummaryData!$A:$A,$B$168,SummaryData!$B:$B,$B171,SummaryData!$C:$C,$H$14)) -> 54.9 | J171: =IF(SUMIFS(SummaryData!$E:$E,SummaryData!$A:$A,$B$168,SummaryData!$B:$B,$B171,SummaryData!$C:$C,$H$14)=0,"NA",SUMIFS(SummaryData!$E:$E,SummaryData!$A:$A,$B$168,SummaryData!$B:$B,$B171,SummaryData!$C:$C,$H$14)) -> 52.6 | K171: =IF(SUMIFS(SummaryData!$F:$F,SummaryData!$A:$A,$B$168,SummaryData!$B:$B,$B171,SummaryData!$C:$C,$H$14)=0,"NA",SUMIFS(SummaryData!$F:$F,SummaryData!$A:$A,$B$168,SummaryData!$B:$B,$B171,SummaryData!$C:$C,$H$14)) -> 57.2 | M171: =IF(SUMIFS(SummaryData!$D:$D,SummaryData!$A:$A,$B$168,SummaryData!$B:$B,$B171,SummaryData!$C:$C,$M$14)=0,"NA",SUMIFS(SummaryData!$D:$D,SummaryData!$A:$A,$B$168,SummaryData!$B:$B,$B171,SummaryData!$C:$C,$M$14)) -> 54.28206 | O171: =IF(SUMIFS(SummaryData!$E:$E,SummaryData!$A:$A,$B$168,SummaryData!$B:$B,$B171,SummaryData!$C:$C,$M$14)=0,"NA",SUMIFS(SummaryData!$E:$E,SummaryData!$A:$A,$B$168,SummaryData!$B:$B,$B171,SummaryData!$C:$C,$M$14)) -> 52.66866 | P171: =IF(SUMIFS(SummaryData!$F:$F,SummaryData!$A:$A,$B$168,SummaryData!$B:$B,$B171,SummaryData!$C:$C,$M$14)=0,"NA",SUMIFS(SummaryData!$F:$F,SummaryData!$A:$A,$B$168,SummaryData!$B:$B,$B171,SummaryData!$C:$C,$M$14)) -> 55.88652
B172: Not applicable | C172: =IF(SUMIFS(SummaryData!$D:$D,SummaryData!$A:$A,$B$168,SummaryData!$B:$B,$B172,SummaryData!$C:$C,$C$14)=0,"NA",SUMIFS(SummaryData!$D:$D,SummaryData!$A:$A,$B$168,SummaryData!$B:$B,$B172,SummaryData!$C:$C,$C$14)) -> 3.2 | E172: =IF(SUMIFS(SummaryData!$E:$E,SummaryData!$A:$A,$B$168,SummaryData!$B:$B,$B172,SummaryData!$C:$C,$C$14)=0,"NA",SUMIFS(SummaryData!$E:$E,SummaryData!$A:$A,$B$168,SummaryData!$B:$B,$B172,SummaryData!$C:$C,$C$14)) -> 2.6 | F172: =IF(SUMIFS(SummaryData!$F:$F,SummaryData!$A:$A,$B$168,SummaryData!$B:$B,$B172,SummaryData!$C:$C,$C$14)=0,"NA",SUMIFS(SummaryData!$F:$F,SummaryData!$A:$A,$B$168,SummaryData!$B:$B,$B172,SummaryData!$C:$C,$C$14)) -> 4.1 | H172: =IF(SUMIFS(SummaryData!$D:$D,SummaryData!$A:$A,$B$168,SummaryData!$B:$B,$B172,SummaryData!$C:$C,$H$14)=0,"NA",SUMIFS(SummaryData!$D:$D,SummaryData!$A:$A,$B$168,SummaryData!$B:$B,$B172,SummaryData!$C:$C,$H$14)) -> 4 | J172: =IF(SUMIFS(SummaryData!$E:$E,SummaryData!$A:$A,$B$168,SummaryData!$B:$B,$B172,SummaryData!$C:$C,$H$14)=0,"NA",SUMIFS(SummaryData!$E:$E,SummaryData!$A:$A,$B$168,SummaryData!$B:$B,$B172,SummaryData!$C:$C,$H$14)) -> 3.3 | K172: =IF(SUMIFS(SummaryData!$F:$F,SummaryData!$A:$A,$B$168,SummaryData!$B:$B,$B172,SummaryData!$C:$C,$H$14)=0,"NA",SUMIFS(SummaryData!$F:$F,SummaryData!$A:$A,$B$168,SummaryData!$B:$B,$B172,SummaryData!$C:$C,$H$14)) -> 4.8 | M172: =IF(SUMIFS(SummaryData!$D:$D,SummaryData!$A:$A,$B$168,SummaryData!$B:$B,$B172,SummaryData!$C:$C,$M$14)=0,"NA",SUMIFS(SummaryData!$D:$D,SummaryData!$A:$A,$B$168,SummaryData!$B:$B,$B172,SummaryData!$C:$C,$M$14)) -> 3.606141 | O172: =IF(SUMIFS(SummaryData!$E:$E,SummaryData!$A:$A,$B$168,SummaryData!$B:$B,$B172,SummaryData!$C:$C,$M$14)=0,"NA",SUMIFS(SummaryData!$E:$E,SummaryData!$A:$A,$B$168,SummaryData!$B:$B,$B172,SummaryData!$C:$C,$M$14)) -> 3.100578 | P172: =IF(SUMIFS(SummaryData!$F:$F,SummaryData!$A:$A,$B$168,SummaryData!$B:$B,$B172,SummaryData!$C:$C,$M$14)=0,"NA",SUMIFS(SummaryData!$F:$F,SummaryData!$A:$A,$B$168,SummaryData!$B:$B,$B172,SummaryData!$C:$C,$M$14)) -> 4.190573
B173: SOCIAL CAPITAL - Feelings of being valued by society
B174: Never, or not often | C174: =IF(SUMIFS(SummaryData!$D:$D,SummaryData!$A:$A,$B$173,SummaryData!$B:$B,$B174,SummaryData!$C:$C,$C$14)=0,"NA",SUMIFS(SummaryData!$D:$D,SummaryData!$A:$A,$B$173,SummaryData!$B:$B,$B174,SummaryData!$C:$C,$C$14)) -> 11.9 | E174: =IF(SUMIFS(SummaryData!$E:$E,SummaryData!$A:$A,$B$173,SummaryData!$B:$B,$B174,SummaryData!$C:$C,$C$14)=0,"NA",SUMIFS(SummaryData!$E:$E,SummaryData!$A:$A,$B$173,SummaryData!$B:$B,$B174,SummaryData!$C:$C,$C$14)) -> 10.5 | F174: =IF(SUMIFS(SummaryData!$F:$F,SummaryData!$A:$A,$B$173,SummaryData!$B:$B,$B174,SummaryData!$C:$C,$C$14)=0,"NA",SUMIFS(SummaryData!$F:$F,SummaryData!$A:$A,$B$173,SummaryData!$B:$B,$B174,SummaryData!$C:$C,$C$14)) -> 13.5 | H174: =IF(SUMIFS(SummaryData!$D:$D,SummaryData!$A:$A,$B$173,SummaryData!$B:$B,$B174,SummaryData!$C:$C,$H$14)=0,"NA",SUMIFS(SummaryData!$D:$D,SummaryData!$A:$A,$B$173,SummaryData!$B:$B,$B174,SummaryData!$C:$C,$H$14)) -> 11.5 | J174: =IF(SUMIFS(SummaryData!$E:$E,SummaryData!$A:$A,$B$173,SummaryData!$B:$B,$B174,SummaryData!$C:$C,$H$14)=0,"NA",SUMIFS(SummaryData!$E:$E,SummaryData!$A:$A,$B$173,SummaryData!$B:$B,$B174,SummaryData!$C:$C,$H$14)) -> 10 | K174: =IF(SUMIFS(SummaryData!$F:$F,SummaryData!$A:$A,$B$173,SummaryData!$B:$B,$B174,SummaryData!$C:$C,$H$14)=0,"NA",SUMIFS(SummaryData!$F:$F,SummaryData!$A:$A,$B$173,SummaryData!$B:$B,$B174,SummaryData!$C:$C,$H$14)) -> 13.1 | M174: =IF(SUMIFS(SummaryData!$D:$D,SummaryData!$A:$A,$B$173,SummaryData!$B:$B,$B174,SummaryData!$C:$C,$M$14)=0,"NA",SUMIFS(SummaryData!$D:$D,SummaryData!$A:$A,$B$173,SummaryData!$B:$B,$B174,SummaryData!$C:$C,$M$14)) -> 11.78209 | O174: =IF(SUMIFS(SummaryData!$E:$E,SummaryData!$A:$A,$B$173,SummaryData!$B:$B,$B174,SummaryData!$C:$C,$M$14)=0,"NA",SUMIFS(SummaryData!$E:$E,SummaryData!$A:$A,$B$173,SummaryData!$B:$B,$B174,SummaryData!$C:$C,$M$14)) -> 10.74156 | P174: =IF(SUMIFS(SummaryData!$F:$F,SummaryData!$A:$A,$B$173,SummaryData!$B:$B,$B174,SummaryData!$C:$C,$M$14)=0,"NA",SUMIFS(SummaryData!$F:$F,SummaryData!$A:$A,$B$173,SummaryData!$B:$B,$B174,SummaryData!$C:$C,$M$14)) -> 12.90884
B175: Sometimes | C175: =IF(SUMIFS(SummaryData!$D:$D,SummaryData!$A:$A,$B$173,SummaryData!$B:$B,$B175,SummaryData!$C:$C,$C$14)=0,"NA",SUMIFS(SummaryData!$D:$D,SummaryData!$A:$A,$B$173,SummaryData!$B:$B,$B175,SummaryData!$C:$C,$C$14)) -> 38.5 | E175: =IF(SUMIFS(SummaryData!$E:$E,SummaryData!$A:$A,$B$173,SummaryData!$B:$B,$B175,SummaryData!$C:$C,$C$14)=0,"NA",SUMIFS(SummaryData!$E:$E,SummaryData!$A:$A,$B$173,SummaryData!$B:$B,$B175,SummaryData!$C:$C,$C$14)) -> 36.2 | F175: =IF(SUMIFS(SummaryData!$F:$F,SummaryData!$A:$A,$B$173,SummaryData!$B:$B,$B175,SummaryData!$C:$C,$C$14)=0,"NA",SUMIFS(SummaryData!$F:$F,SummaryData!$A:$A,$B$173,SummaryData!$B:$B,$B175,SummaryData!$C:$C,$C$14)) -> 40.9 | H175: =IF(SUMIFS(SummaryData!$D:$D,SummaryData!$A:$A,$B$173,SummaryData!$B:$B,$B175,SummaryData!$C:$C,$H$14)=0,"NA",SUMIFS(SummaryData!$D:$D,SummaryData!$A:$A,$B$173,SummaryData!$B:$B,$B175,SummaryData!$C:$C,$H$14)) -> 38.3 | J175: =IF(SUMIFS(SummaryData!$E:$E,SummaryData!$A:$A,$B$173,SummaryData!$B:$B,$B175,SummaryData!$C:$C,$H$14)=0,"NA",SUMIFS(SummaryData!$E:$E,SummaryData!$A:$A,$B$173,SummaryData!$B:$B,$B175,SummaryData!$C:$C,$H$14)) -> 36 | K175: =IF(SUMIFS(SummaryData!$F:$F,SummaryData!$A:$A,$B$173,SummaryData!$B:$B,$B175,SummaryData!$C:$C,$H$14)=0,"NA",SUMIFS(SummaryData!$F:$F,SummaryData!$A:$A,$B$173,SummaryData!$B:$B,$B175,SummaryData!$C:$C,$H$14)) -> 40.5 | M175: =IF(SUMIFS(SummaryData!$D:$D,SummaryData!$A:$A,$B$173,SummaryData!$B:$B,$B175,SummaryData!$C:$C,$M$14)=0,"NA",SUMIFS(SummaryData!$D:$D,SummaryData!$A:$A,$B$173,SummaryData!$B:$B,$B175,SummaryData!$C:$C,$M$14)) -> 38.29285 | O175: =IF(SUMIFS(SummaryData!$E:$E,SummaryData!$A:$A,$B$173,SummaryData!$B:$B,$B175,SummaryData!$C:$C,$M$14)=0,"NA",SUMIFS(SummaryData!$E:$E,SummaryData!$A:$A,$B$173,SummaryData!$B:$B,$B175,SummaryData!$C:$C,$M$14)) -> 36.68676 | P175: =IF(SUMIFS(SummaryData!$F:$F,SummaryData!$A:$A,$B$173,SummaryData!$B:$B,$B175,SummaryData!$C:$C,$M$14)=0,"NA",SUMIFS(SummaryData!$F:$F,SummaryData!$A:$A,$B$173,SummaryData!$B:$B,$B175,SummaryData!$C:$C,$M$14)) -> 39.92491
B176: Yes, definitely | C176: =IF(SUMIFS(SummaryData!$D:$D,SummaryData!$A:$A,$B$173,SummaryData!$B:$B,$B176,SummaryData!$C:$C,$C$14)=0,"NA",SUMIFS(SummaryData!$D:$D,SummaryData!$A:$A,$B$173,SummaryData!$B:$B,$B176,SummaryData!$C:$C,$C$14)) -> 45.5 | E176: =IF(SUMIFS(SummaryData!$E:$E,SummaryData!$A:$A,$B$173,SummaryData!$B:$B,$B176,SummaryData!$C:$C,$C$14)=0,"NA",SUMIFS(SummaryData!$E:$E,SummaryData!$A:$A,$B$173,SummaryData!$B:$B,$B176,SummaryData!$C:$C,$C$14)) -> 43.2 | F176: =IF(SUMIFS(SummaryData!$F:$F,SummaryData!$A:$A,$B$173,SummaryData!$B:$B,$B176,SummaryData!$C:$C,$C$14)=0,"NA",SUMIFS(SummaryData!$F:$F,SummaryData!$A:$A,$B$173,SummaryData!$B:$B,$B176,SummaryData!$C:$C,$C$14)) -> 47.9 | H176: =IF(SUMIFS(SummaryData!$D:$D,SummaryData!$A:$A,$B$173,SummaryData!$B:$B,$B176,SummaryData!$C:$C,$H$14)=0,"NA",SUMIFS(SummaryData!$D:$D,SummaryData!$A:$A,$B$173,SummaryData!$B:$B,$B176,SummaryData!$C:$C,$H$14)) -> 46.2 | J176: =IF(SUMIFS(SummaryData!$E:$E,SummaryData!$A:$A,$B$173,SummaryData!$B:$B,$B176,SummaryData!$C:$C,$H$14)=0,"NA",SUMIFS(SummaryData!$E:$E,SummaryData!$A:$A,$B$173,SummaryData!$B:$B,$B176,SummaryData!$C:$C,$H$14)) -> 43.9 | K176: =IF(SUMIFS(SummaryData!$F:$F,SummaryData!$A:$A,$B$173,SummaryData!$B:$B,$B176,SummaryData!$C:$C,$H$14)=0,"NA",SUMIFS(SummaryData!$F:$F,SummaryData!$A:$A,$B$173,SummaryData!$B:$B,$B176,SummaryData!$C:$C,$H$14)) -> 48.5 | M176: =IF(SUMIFS(SummaryData!$D:$D,SummaryData!$A:$A,$B$173,SummaryData!$B:$B,$B176,SummaryData!$C:$C,$M$14)=0,"NA",SUMIFS(SummaryData!$D:$D,SummaryData!$A:$A,$B$173,SummaryData!$B:$B,$B176,SummaryData!$C:$C,$M$14)) -> 45.8379 | O176: =IF(SUMIFS(SummaryData!$E:$E,SummaryData!$A:$A,$B$173,SummaryData!$B:$B,$B176,SummaryData!$C:$C,$M$14)=0,"NA",SUMIFS(SummaryData!$E:$E,SummaryData!$A:$A,$B$173,SummaryData!$B:$B,$B176,SummaryData!$C:$C,$M$14)) -> 44.19716 | P176: =IF(SUMIFS(SummaryData!$F:$F,SummaryData!$A:$A,$B$173,SummaryData!$B:$B,$B176,SummaryData!$C:$C,$M$14)=0,"NA",SUMIFS(SummaryData!$F:$F,SummaryData!$A:$A,$B$173,SummaryData!$B:$B,$B176,SummaryData!$C:$C,$M$14)) -> 47.48771
B177: SOCIAL CAPITAL - Have a real say on issues important to them
B178: Never, or not often | C178: =IF(SUMIFS(SummaryData!$D:$D,SummaryData!$A:$A,$B$177,SummaryData!$B:$B,$B178,SummaryData!$C:$C,$C$14)=0,"NA",SUMIFS(SummaryData!$D:$D,SummaryData!$A:$A,$B$177,SummaryData!$B:$B,$B178,SummaryData!$C:$C,$C$14)) -> 29.1 | E178: =IF(SUMIFS(SummaryData!$E:$E,SummaryData!$A:$A,$B$177,SummaryData!$B:$B,$B178,SummaryData!$C:$C,$C$14)=0,"NA",SUMIFS(SummaryData!$E:$E,SummaryData!$A:$A,$B$177,SummaryData!$B:$B,$B178,SummaryData!$C:$C,$C$14)) -> 27 | F178: =IF(SUMIFS(SummaryData!$F:$F,SummaryData!$A:$A,$B$177,SummaryData!$B:$B,$B178,SummaryData!$C:$C,$C$14)=0,"NA",SUMIFS(SummaryData!$F:$F,SummaryData!$A:$A,$B$177,SummaryData!$B:$B,$B178,SummaryData!$C:$C,$C$14)) -> 31.3 | H178: =IF(SUMIFS(SummaryData!$D:$D,SummaryData!$A:$A,$B$177,SummaryData!$B:$B,$B178,SummaryData!$C:$C,$H$14)=0,"NA",SUMIFS(SummaryData!$D:$D,SummaryData!$A:$A,$B$177,SummaryData!$B:$B,$B178,SummaryData!$C:$C,$H$14)) -> 22.3 | J178: =IF(SUMIFS(SummaryData!$E:$E,SummaryData!$A:$A,$B$177,SummaryData!$B:$B,$B178,SummaryData!$C:$C,$H$14)=0,"NA",SUMIFS(SummaryData!$E:$E,SummaryData!$A:$A,$B$177,SummaryData!$B:$B,$B178,SummaryData!$C:$C,$H$14)) -> 20.4 | K178: =IF(SUMIFS(SummaryData!$F:$F,SummaryData!$A:$A,$B$177,SummaryData!$B:$B,$B178,SummaryData!$C:$C,$H$14)=0,"NA",SUMIFS(SummaryData!$F:$F,SummaryData!$A:$A,$B$177,SummaryData!$B:$B,$B178,SummaryData!$C:$C,$H$14)) -> 24.2 | M178: =IF(SUMIFS(SummaryData!$D:$D,SummaryData!$A:$A,$B$177,SummaryData!$B:$B,$B178,SummaryData!$C:$C,$M$14)=0,"NA",SUMIFS(SummaryData!$D:$D,SummaryData!$A:$A,$B$177,SummaryData!$B:$B,$B178,SummaryData!$C:$C,$M$14)) -> 25.76917 | O178: =IF(SUMIFS(SummaryData!$E:$E,SummaryData!$A:$A,$B$177,SummaryData!$B:$B,$B178,SummaryData!$C:$C,$M$14)=0,"NA",SUMIFS(SummaryData!$E:$E,SummaryData!$A:$A,$B$177,SummaryData!$B:$B,$B178,SummaryData!$C:$C,$M$14)) -> 24.3388 | P178: =IF(SUMIFS(SummaryData!$F:$F,SummaryData!$A:$A,$B$177,SummaryData!$B:$B,$B178,SummaryData!$C:$C,$M$14)=0,"NA",SUMIFS(SummaryData!$F:$F,SummaryData!$A:$A,$B$177,SummaryData!$B:$B,$B178,SummaryData!$C:$C,$M$14)) -> 27.25332
B179: Sometimes | C179: =IF(SUMIFS(SummaryData!$D:$D,SummaryData!$A:$A,$B$177,SummaryData!$B:$B,$B179,SummaryData!$C:$C,$C$14)=0,"NA",SUMIFS(SummaryData!$D:$D,SummaryData!$A:$A,$B$177,SummaryData!$B:$B,$B179,SummaryData!$C:$C,$C$14)) -> 41.5 | E179: =IF(SUMIFS(SummaryData!$E:$E,SummaryData!$A:$A,$B$177,SummaryData!$B:$B,$B179,SummaryData!$C:$C,$C$14)=0,"NA",SUMIFS(SummaryData!$E:$E,SummaryData!$A:$A,$B$177,SummaryData!$B:$B,$B179,SummaryData!$C:$C,$C$14)) -> 39.2 | F179: =IF(SUMIFS(SummaryData!$F:$F,SummaryData!$A:$A,$B$177,SummaryData!$B:$B,$B179,SummaryData!$C:$C,$C$14)=0,"NA",SUMIFS(SummaryData!$F:$F,SummaryData!$A:$A,$B$177,SummaryData!$B:$B,$B179,SummaryData!$C:$C,$C$14)) -> 43.9 | H179: =IF(SUMIFS(SummaryData!$D:$D,SummaryData!$A:$A,$B$177,SummaryData!$B:$B,$B179,SummaryData!$C:$C,$H$14)=0,"NA",SUMIFS(SummaryData!$D:$D,SummaryData!$A:$A,$B$177,SummaryData!$B:$B,$B179,SummaryData!$C:$C,$H$14)) -> 47.3 | J179: =IF(SUMIFS(SummaryData!$E:$E,SummaryData!$A:$A,$B$177,SummaryData!$B:$B,$B179,SummaryData!$C:$C,$H$14)=0,"NA",SUMIFS(SummaryData!$E:$E,SummaryData!$A:$A,$B$177,SummaryData!$B:$B,$B179,SummaryData!$C:$C,$H$14)) -> 45 | K179: =IF(SUMIFS(SummaryData!$F:$F,SummaryData!$A:$A,$B$177,SummaryData!$B:$B,$B179,SummaryData!$C:$C,$H$14)=0,"NA",SUMIFS(SummaryData!$F:$F,SummaryData!$A:$A,$B$177,SummaryData!$B:$B,$B179,SummaryData!$C:$C,$H$14)) -> 49.6 | M179: =IF(SUMIFS(SummaryData!$D:$D,SummaryData!$A:$A,$B$177,SummaryData!$B:$B,$B179,SummaryData!$C:$C,$M$14)=0,"NA",SUMIFS(SummaryData!$D:$D,SummaryData!$A:$A,$B$177,SummaryData!$B:$B,$B179,SummaryData!$C:$C,$M$14)) -> 44.42581 | O179: =IF(SUMIFS(SummaryData!$E:$E,SummaryData!$A:$A,$B$177,SummaryData!$B:$B,$B179,SummaryData!$C:$C,$M$14)=0,"NA",SUMIFS(SummaryData!$E:$E,SummaryData!$A:$A,$B$177,SummaryData!$B:$B,$B179,SummaryData!$C:$C,$M$14)) -> 42.7853 | P179: =IF(SUMIFS(SummaryData!$F:$F,SummaryData!$A:$A,$B$177,SummaryData!$B:$B,$B179,SummaryData!$C:$C,$M$14)=0,"NA",SUMIFS(SummaryData!$F:$F,SummaryData!$A:$A,$B$177,SummaryData!$B:$B,$B179,SummaryData!$C:$C,$M$14)) -> 46.07857
